Workbook

Sheet START

Sheet Instructions
D2: 2020
X4: Yes
X5: No
W7: Type of Entities Range:
X8: Parent Municipality
X9: Consolidated Information
W17: MTREF Range: | X17: 2008
X18: 2009
X19: 2010
X20: 2011
X21: 2012
X22: 2013
X23: 2014
X24: 2015
X25: 2016
X26: 2017
X27: 2018
X28: 2019
X29: 2020
X30: 2021
X31: 2022
W33: MTREF Linked: | X33: 11
W34: MTREF: | X34: =INDEX(X17:X31,X33,1) -> 2018
W36: Fin Year: | X36: =MTREF&"/"&RIGHT(MTREF,2)+1 -> 2018/19

Sheet Template names (hidden)
A1: Common sheet headings
A2: Head1 | B2: =HLOOKUP(MTREF,Headings,2) -> 2016/17 | C2: Prior year -1
A3: Head1A | B3: =HLOOKUP(MTREF,Headings,3) -> 2015/16 | C3: Prior year -2
A4: Head1B | B4: =HLOOKUP(MTREF,Headings,4) -> 2014/15 | C4: Prior year -3
A5: Head2 | B5: =HLOOKUP(MTREF,Headings,5) -> Current Year 2017/18 | C5: Year in which budget is being prepared
A6: Head2A | B6: =HLOOKUP(MTREF,Headings,6) -> 2017/18 | C6: Year in which budget is being prepared
A7: Head3 | B7: =HLOOKUP(MTREF,Headings,7) -> 2018/19 Medium Term Revenue & Expenditure Framework | C7: MTREF name
A8: Head4 | B8: LTFS | C8: Long term financial strategy
A9: Head5 | B9: Audited Outcome
A10: Head5A | B10: Outcome
A11: Head5B | B11: Pre-audit outcome
A12: Head6 | B12: Original Budget
A13: Head7 | B13: Adjusted Budget
A14: Head8 | B14: Full Year Forecast
A15: Head9 | B15: =HLOOKUP(MTREF,Headings,8) -> Budget Year 2018/19 | C15: 1st year of MTREF | D15: Year1
A16: Head10 | B16: =HLOOKUP(MTREF,Headings,9) -> Budget Year +1 2019/20 | C16: 2nd year of MTREF | D16: Year2
A17: Head11 | B17: =HLOOKUP(MTREF,Headings,10) -> Budget Year +2 2020/21 | C17: 3rd year of MTREF | D17: Year3
A18: Head12 | B18: =HLOOKUP(MTREF,Headings,11) -> Forecast 2021/22 | C18: 1st yr of long term forecast | D18: Year4
A19: Head13 | B19: =HLOOKUP(MTREF,Headings,12) -> Forecast 2022/23 | C19: Next yr of long term forecast | D19: Year5
A20: Head14 | B20: =HLOOKUP(MTREF,Headings,13) -> Forecast 2023/24 | C20: Next yr of long term forecast | D20: Year6
A21: Head15 | B21: =HLOOKUP(MTREF,Headings,14) -> Forecast 2024/25 | C21: Next yr of long term forecast | D21: Year7
A22: Head16 | B22: =HLOOKUP(MTREF,Headings,15) -> Forecast 2025/26 | C22: Next yr of long term forecast | D22: Year8
A23: Head17 | B23: =HLOOKUP(MTREF,Headings,16) -> Forecast 2026/27 | C23: Next yr of long term forecast | D23: Year9
A24: Head18 | B24: =HLOOKUP(MTREF,Headings,17) -> Forecast 2027/28 | C24: Next yr of long term forecast | D24: Year10
A25: Head19 | B25: =HLOOKUP(MTREF,Headings,18) -> Forecast 2028/29 | C25: Next yr of long term forecast | D25: Year11
A26: Head20 | B26: =HLOOKUP(MTREF,Headings,19) -> Forecast 2029/30 | C26: Next yr of long term forecast | D26: Year12
A27: Head21 | B27: =HLOOKUP(MTREF,Headings,20) -> Forecast 2030/31 | C27: Next yr of long term forecast | D27: Year13
A28: Head22 | B28: =HLOOKUP(MTREF,Headings,21) -> Forecast 2031/32 | C28: Next yr of long term forecast | D28: Year14
A29: Head23 | B29: =HLOOKUP(MTREF,Headings,22) -> Forecast 2032/33 | C29: Next yr of long term forecast | D29: Year15
A30: Head24 | B30: Description
A31: Head25
A32: Head26 | B32: Vote Description
A33: Head27 | B33: Ref
A34: Head27a | B34: References
A35: Head28 | B35: Surplus/(Deficit) for the year | D35: Result
A36: Head29 | B36: =HLOOKUP(MTREF,Headings,23) -> Annual target 2018/19
A37: Head30 | B37: =HLOOKUP(MTREF,Headings,24) -> Revised target 2018/19
A38: Head31 | B38: Quarter ended 30 September
A39: Head32 | B39: Quarter ended 31 December
A40: Head33 | B40: Quarter ended 31 March
A41: Head34 | B41: Quarter ended 30 June
A42: Head35 | B42: Variance explanation
A43: Head36 | B43: YTD Actual 31 Dec
A44: Head37 | B44: YTD Budget 31 Dec
A45: Head38 | B45: Monthly actual
A46: Head39 | B46: YTD actual
A47: Head40 | B47: YTD budget
A48: Head41 | B48: YTD variance
A49: Head42 | B49: Surplus/ (Deficit) for the yr/period
A50: Head43 | B50: =Head3&" Summary" -> 2018/19 Medium Term Revenue & Expenditure Framework Summary
A51: Head44 | B51: 2001 Census
A52: Head45 | B52: 2011 Census
A53: Head46 | B53: - Adjustments Budget - January 2007
A54: Head47 | B54: Previous target year to complete
A55: Head48 | B55: Present value
A56: Head49
A57: Head50 | B57: Other Adjusts.
A58: Head51 | B58: Accum. Funds
A59: Head52 | B59: Multi-year capital
A60: Head53 | B60: Unfore. Unavoid.
A61: Head54 | B61: Prior Adjusted
A62: Head55 | B62: Nat. or Prov. Govt
A63: Head56 | B63: Total Adjusts.
A64: SFPerf1 | B64: Budgeted Financial Performance
A65: SFPerf2 | B65: Forecast Financial Performance
A66: SFPos1 | B66: Budgeted Financial Position
A67: SFPos2 | B67: Forecast Financial Position
A68: Cash1 | B68: Budget Cash Flow
A69: Cash2 | B69: Forecast Cash Flow
A70: RandM | B70: Expenditure includes repairs & maintenance of R'000
A71: Depart1 | B71: Department 1 - | D71: DEP1
A72: Depart2 | B72: Department 2 - | D72: DEP2
A73: Depart3 | B73: Department 3 - | D73: DEP3
A74: Depart4 | B74: Department 4 - | D74: DEP4
A75: Depart5 | B75: Department 5 - | D75: DEP5
A76: Depart6 | B76: Department 6 - | D76: DEP6
A77: Depart7 | B77: Department 7 - | D77: DEP7
A78: Depart8 | B78: Department 8 - | D78: DEP8
A79: Depart9 | B79: Department 9 - | D79: DEP9
A80: Depart10 | B80: Department 10 - | D80: DEP10
A81: Depart11 | B81: Department 11 - | D81: DEP11
A82: Depart12 | B82: Department 12 - | D82: DEP12
A83: Depart13 | B83: Department 13 - | D83: DEP13
A84: Depart14 | B84: Department 14 - | D84: DEP14
A87: Base year of forecast column selection names
A88: Choose | B88: ACT
B89: APP
B90: ADJ
A92: Standard nomenclature
A93: Muni | B93: ='Lookup and lists'!B28 -> LIM331 Greater Giyani
A94: Municipal Entities | B94: 2 | C94: Type of report: | D94: 1
A95: =IF((MuniEntities=1)*(MuniType=2),"YES","NO") -> NO | B95: Does this municipality have entities (consolidated budget and entity budgets required)? YES/NO
A96: Entity 1 | B96: (Pty) Ltd Example 1 - Municipal entity - | D96: Ent1
A97: Entity 2 | B97: (Pty) Ltd Example 2 - Municipal entity - | D97: Ent2
A98: Entity 3 | B98: Municipal Entity Example 3 | D98: Ent3
A99: Budget approval tables | C99: Chart x-ref | D99: Sch/Tab/Ch | E99: Alternative for municipalities without entities | F99: Alternative for municipalities without entities
B100: =IF(Consolques="YES",E100,F100) -> Table A1 Budget Summary | D100: Table A1 | E100: =D100&"Consolidated Budget Summary" -> Table A1 Consolidated Budget Summary | F100: =D100&"Budget Summary" -> Table A1 Budget Summary
B101: Table A2 Budgeted Financial Performance (revenue and expenditure by functional classification) | C101: Charts 5, 6 | D101: Table A2 | E101: =D101&"Consolidated Budgeted Financial Performance (revenue and expenditure by functional classification)" -> Table A2 Consolidated Budgeted Financial Performance (revenue and expenditure by functional classification) | F101: =D101&"Budgeted Financial Performance (revenue and expenditure by functional classification)" -> Table A2 Budgeted Financial Performance (revenue and expenditure by functional classification)
B102: Table A3 Budgeted Financial Performance (revenue and expenditure by municipal vote) | D102: Table A3 | E102: =D102&"Consolidated Budgeted Financial Performance (revenue and expenditure by municipal vote)" -> Table A3 Consolidated Budgeted Financial Performance (revenue and expenditure by municipal vote) | F102: =D102&"Budgeted Financial Performance (revenue and expenditure by municipal vote)" -> Table A3 Budgeted Financial Performance (revenue and expenditure by municipal vote)
B103: Table A4 Budgeted Financial Performance (revenue and expenditure) | C103: Charts 1, 2, 3, 4 | D103: Table A4 | E103: =D103&"Consolidated Budgeted Financial Performance (revenue and expenditure)" -> Table A4 Consolidated Budgeted Financial Performance (revenue and expenditure) | F103: =D103&"Budgeted Financial Performance (revenue and expenditure)" -> Table A4 Budgeted Financial Performance (revenue and expenditure)
B104: Table A5 Budgeted Capital Expenditure by vote, functional classification and funding | C104: Charts 7, 8, 9, 10, 20 | D104: Table A5 | E104: =D104&"Consolidated Budgeted Capital Expenditure by vote, functional classification and funding" -> Table A5 Consolidated Budgeted Capital Expenditure by vote, functional classification and funding | F104: =D104&"Budgeted Capital Expenditure by vote, functional classification and funding" -> Table A5 Budgeted Capital Expenditure by vote, functional classification and funding
B105: Table A6 Budgeted Financial Position | D105: Table A6 | E105: =D105&"Consolidated Budgeted Financial Position" -> Table A6 Consolidated Budgeted Financial Position | F105: =D105&"Budgeted Financial Position" -> Table A6 Budgeted Financial Position
B106: Table A7 Budgeted Cash Flows | D106: Table A7 | E106: =D106&"Consolidated Budgeted Cash Flows" -> Table A7 Consolidated Budgeted Cash Flows | F106: =D106&"Budgeted Cash Flows" -> Table A7 Budgeted Cash Flows
B107: Table A8 Cash backed reserves/accumulated surplus reconciliation | D107: Table A8 | E107: =D107&"Consolidated Cash backed reserves/accumulated surplus reconciliation" -> Table A8 Consolidated Cash backed reserves/accumulated surplus reconciliation | F107: =D107&"Cash backed reserves/accumulated surplus reconciliation" -> Table A8 Cash backed reserves/accumulated surplus reconciliation
B108: Table A9 Asset Management | D108: Table A9 | E108: =D108&"Consolidated Asset Management" -> Table A9 Consolidated Asset Management | F108: =D108&"Asset Management" -> Table A9 Asset Management
B109: Table A10 Basic service delivery measurement | D109: Table A10 | E109: =D109&"Consolidated basic service delivery measurement" -> Table A10 Consolidated basic service delivery measurement | F109: =D109&"Basic service delivery measurement" -> Table A10 Basic service delivery measurement
A110: Supportinging Tables to the Budget Approval Tables | C110: =$C$99 -> Chart x-ref | D110: =$D$99 -> Sch/Tab/Ch
A111: Supporting Table SA1 | B111: =A111&" Supportinging detail to 'Budgeted Financial Performance'" -> Supporting Table SA1 Supportinging detail to 'Budgeted Financial Performance'
A112: Supporting Table SA2 | B112: =IF(Consolques="YES",E112,F112) -> Supporting Table SA2 Matrix Financial Performance Budget (revenue source/expenditure type and dept.) | E112: =A112&"Consolidated Matrix Financial Performance Budget (revenue source/expenditure type & dept.)" -> Supporting Table SA2 Consolidated Matrix Financial Performance Budget (revenue source/expenditure type & dept.) | F112: =A112&"Matrix Financial Performance Budget (revenue source/expenditure type and dept.)" -> Supporting Table SA2 Matrix Financial Performance Budget (revenue source/expenditure type and dept.)
A113: Supporting Table SA3 | B113: =A113&"Supportinging detail to 'Budgeted Financial Position'" -> Supporting Table SA3 Supportinging detail to 'Budgeted Financial Position'
A114: Supporting Table SA4 | B114: =A114&"Reconciliation of IDP strategic objectives and budget (revenue)" -> Supporting Table SA4 Reconciliation of IDP strategic objectives and budget (revenue) | C114: Chart 11
A115: Supporting Table SA5 | B115: =A115&"Reconciliation of IDP strategic objectives and budget (operating expenditure)" -> Supporting Table SA5 Reconciliation of IDP strategic objectives and budget (operating expenditure) | C115: Chart 12
A116: Supporting Table SA6 | B116: =A116&"Reconciliation of IDP strategic objectives and budget (capital expenditure)" -> Supporting Table SA6 Reconciliation of IDP strategic objectives and budget (capital expenditure) | C116: Chart 13
A117: Supporting Table SA7 | B117: =A117&" Measureable performance objectives" -> Supporting Table SA7 Measureable performance objectives
A118: Supporting Table SA8 | B118: =A118&" Performance indicators and benchmarks" -> Supporting Table SA8 Performance indicators and benchmarks | C118: Chts 15-19
A119: Supporting Table SA9 | B119: =A119&" Social, economic and demographic statistics and assumptions" -> Supporting Table SA9 Social, economic and demographic statistics and assumptions
A120: Supporting Table SA10 | B120: =A120&" Funding measurement" -> Supporting Table SA10 Funding measurement | C120: Chart 14
A121: Supporting Table SA11 | B121: =A121&" Property rates summary" -> Supporting Table SA11 Property rates summary
A122: Supporting Table SA12a | B122: =A122&" Property rates by category (current year)" -> Supporting Table SA12a Property rates by category (current year)
A123: Supporting Table SA12b | B123: =A123&" Property rates by category (budget year)" -> Supporting Table SA12b Property rates by category (budget year)
A124: Supporting Table SA13a | B124: =A124&" Service Tariffs by category" -> Supporting Table SA13a Service Tariffs by category
A125: Supporting Table SA13b | B125: =A125&" Service Tariffs by category - explanatory" -> Supporting Table SA13b Service Tariffs by category - explanatory
A126: Supporting Table SA14 | B126: =A126&" Household bills" -> Supporting Table SA14 Household bills
A127: Supporting Table SA15 | B127: =A127&" Investment particulars by type" -> Supporting Table SA15 Investment particulars by type
A128: Supporting Table SA16 | B128: =A128&" Investment particulars by maturity" -> Supporting Table SA16 Investment particulars by maturity
A129: Supporting Table SA17 | B129: =A129&" Borrowing" -> Supporting Table SA17 Borrowing
A130: Supporting Table SA18 | B130: =A130&" Transfers and grant receipts" -> Supporting Table SA18 Transfers and grant receipts
A131: Supporting Table SA19 | B131: =A131&" Expenditure on transfers and grant programme" -> Supporting Table SA19 Expenditure on transfers and grant programme
A132: Supporting Table SA20 | B132: =A132&" Reconciliation of transfers, grant receipts and unspent funds" -> Supporting Table SA20 Reconciliation of transfers, grant receipts and unspent funds
A133: Supporting Table SA21 | B133: =A133&" Transfers and grants made by the municipality" -> Supporting Table SA21 Transfers and grants made by the municipality
A134: Supporting Table SA22 | B134: =A134&" Summary councillor and staff benefits" -> Supporting Table SA22 Summary councillor and staff benefits
A135: Supporting Table SA23 | B135: =A135&" Salaries, allowances & benefits (political office bearers/councillors/senior managers)" -> Supporting Table SA23 Salaries, allowances & benefits (political office bearers/councillors/senior managers)
A136: Supporting Table SA24 | B136: =A136&" Summary of personnel numbers" -> Supporting Table SA24 Summary of personnel numbers
A137: Supporting Table SA25 | B137: =IF(Consolques="YES",E137,F137) -> Supporting Table SA25 Budgeted monthly revenue and expenditure | E137: =A137&" Consolidated budgeted monthly revenue and expenditure" -> Supporting Table SA25 Consolidated budgeted monthly revenue and expenditure | F137: =A137&" Budgeted monthly revenue and expenditure" -> Supporting Table SA25 Budgeted monthly revenue and expenditure
A138: Supporting Table SA26 | B138: Supporting Table SA26 Budgeted monthly revenue and expenditure (municipal vote) | E138: =A138&" Consolidated budgeted monthly revenue and expenditure (municipal vote)" -> Supporting Table SA26 Consolidated budgeted monthly revenue and expenditure (municipal vote) | F138: =A138&" Budgeted monthly revenue and expenditure (municipal vote)" -> Supporting Table SA26 Budgeted monthly revenue and expenditure (municipal vote)
A139: Supporting Table SA27 | B139: Supporting Table SA27 Budgeted monthly revenue and expenditure (functional classification) | E139: =A139&" Consolidated budgeted monthly revenue and expenditure (functional classification)" -> Supporting Table SA27 Consolidated budgeted monthly revenue and expenditure (functional classification) | F139: =A139&" Budgeted monthly revenue and expenditure (functional classification)" -> Supporting Table SA27 Budgeted monthly revenue and expenditure (functional classification)
A140: Supporting Table SA28 | B140: Supporting Table SA28 Budgeted monthly capital expenditure (municipal vote) | E140: =A140&" Consolidated budgeted monthly capital expenditure (municipal vote)" -> Supporting Table SA28 Consolidated budgeted monthly capital expenditure (municipal vote) | F140: =A140&" Budgeted monthly capital expenditure (municipal vote)" -> Supporting Table SA28 Budgeted monthly capital expenditure (municipal vote)
A141: Supporting Table SA29 | B141: Supporting Table SA29 Budgeted monthly capital expenditure (functional classification) | E141: =A141&" Consolidated budgeted monthly capital expenditure (functional classification)" -> Supporting Table SA29 Consolidated budgeted monthly capital expenditure (functional classification) | F141: =A141&" Budgeted monthly capital expenditure (functional classification)" -> Supporting Table SA29 Budgeted monthly capital expenditure (functional classification)
A142: Supporting Table SA30 | B142: Supporting Table SA30 Budgeted monthly cash flow | E142: =A142&" Consolidated budgeted monthly cash flow" -> Supporting Table SA30 Consolidated budgeted monthly cash flow | F142: =A142&" Budgeted monthly cash flow" -> Supporting Table SA30 Budgeted monthly cash flow
A143: Supporting Table SA31 | B143: NOT REQUIRED - municipality does not have entities | E143: =A143&" Aggregated entity budget" -> Supporting Table SA31 Aggregated entity budget | F143: NOT REQUIRED - municipality does not have entities
A144: Supporting Table SA32 | B144: =A144&" List of external mechanisms" -> Supporting Table SA32 List of external mechanisms
A145: Supporting Table SA33 | B145: =A145&" Contracts having future budgetary implications" -> Supporting Table SA33 Contracts having future budgetary implications
A146: Supporting Table SA34a | B146: =IF(Consolques="YES",E146,F146) -> Supporting Table SA34a Capital expenditure on new assets by asset class | E146: =A146&" Consolidated capital expenditure on new assets by asset class" -> Supporting Table SA34a Consolidated capital expenditure on new assets by asset class | F146: =A146&" Capital expenditure on new assets by asset class" -> Supporting Table SA34a Capital expenditure on new assets by asset class
A147: Supporting Table SA34b | B147: Supporting Table SA34b Capital expenditure on the renewal of existing assets by asset class | E147: =A147&" Consolidated capital expenditure on the renewal of existing assets by asset class" -> Supporting Table SA34b Consolidated capital expenditure on the renewal of existing assets by asset class | F147: =A147&" Capital expenditure on the renewal of existing assets by asset class" -> Supporting Table SA34b Capital expenditure on the renewal of existing assets by asset class
A148: Supporting Table SA34c | B148: Supporting Table SA34c Repairs and maintenance expenditure by asset class | E148: =A148&" Consolidated repairs and maintenance by asset class" -> Supporting Table SA34c Consolidated repairs and maintenance by asset class | F148: =A148&" Repairs and maintenance expenditure by asset class" -> Supporting Table SA34c Repairs and maintenance expenditure by asset class
A149: Supporting Table SA34d | B149: =IF(Consolques="YES",E149,F149) -> Supporting Table SA34d Depreciation by asset class | E149: =A149&" Consolidated Depreciation by asset class" -> Supporting Table SA34d Consolidated Depreciation by asset class | F149: =A149&" Depreciation by asset class" -> Supporting Table SA34d Depreciation by asset class
A150: Supporting Table SA34e | B150: =IF(Consolques="YES",E150,F150) -> Supporting Table SA34e Capital expenditure on the upgrading of existing assets by asset class | E150: =A150&" Consolidated capital expenditure on the upgrading of existing assets by asset class" -> Supporting Table SA34e Consolidated capital expenditure on the upgrading of existing assets by asset class | F150: =A150&" Capital expenditure on the upgrading of existing assets by asset class" -> Supporting Table SA34e Capital expenditure on the upgrading of existing assets by asset class
A151: Supporting Table SA35 | B151: Supporting Table SA35 Future financial implications of the capital budget | E151: =A151&" Consolidated future financial implications of the capital budget" -> Supporting Table SA35 Consolidated future financial implications of the capital budget | F151: =A151& " Future financial implications of the capital budget" -> Supporting Table SA35 Future financial implications of the capital budget
A152: Supporting Table SA36 | B152: Supporting Table SA36 Detailed capital budget | E152: =A152&" Consolidated detailed capital budget" -> Supporting Table SA36 Consolidated detailed capital budget | F152: =A152& " Detailed capital budget" -> Supporting Table SA36 Detailed capital budget
A153: Supporting Table SA37 | B153: Supporting Table SA37 Projects delayed from previous financial year/s | E153: =A153&" Consolidated projects delayed from previous financial year/s" -> Supporting Table SA37 Consolidated projects delayed from previous financial year/s | F153: =A153& " Projects delayed from previous financial year/s" -> Supporting Table SA37 Projects delayed from previous financial year/s
A154: Supporting Table SA38 | B154: =IF(Consolques="YES",E154,F154) -> Supporting Table SA38 Detailed operational projects | E154: =A154&" Consolidated detailed operational projects" -> Supporting Table SA38 Consolidated detailed operational projects | F154: =A154& " Detailed operational projects" -> Supporting Table SA38 Detailed operational projects
A156: Budget Charts | B156: Charts | C156: Cross reference
A157: Chart A1 | B157: =A157&"Revenue by Municipal Vote" -> Chart A1 Revenue by Municipal Vote
A158: Chart A2 | B158: =A158&"Expenditure by Municipal Vote" -> Chart A2 Expenditure by Municipal Vote
A159: Chart A3 | B159: =A159&"Revenue by Standard Classification" -> Chart A3 Revenue by Standard Classification | C159: A2
A160: Chart A4 | B160: =A160&"Expenditure by Standard Classification" -> Chart A4 Expenditure by Standard Classification | C160: A2
A161: Chart A5 | B161: =A161&"Revenue by Major Source (refer 'Minor' source for 'Other Revenue' allocation" -> Chart A5 Revenue by Major Source (refer 'Minor' source for 'Other Revenue' allocation | C161: A3
A162: Chart A6 | B162: =A162&"Revenue by Minor Source (Other)" -> Chart A6 Revenue by Minor Source (Other) | C162: A3
A163: Chart A7 | B163: =A163&"Expenditure by Major Type" -> Chart A7 Expenditure by Major Type | C163: A3
A164: Chart A8 | B164: =A164&"Expenditure by Minor Type (Other)" -> Chart A8 Expenditure by Minor Type (Other) | C164: A3
A165: Chart A9 | B165: =A165&"Capital Expenditure by Municipal Vote/Appropriation (Major)" -> Chart A9 Capital Expenditure by Municipal Vote/Appropriation (Major) | C165: A5
A166: Chart A10 | B166: =A166&"Capital Expenditure by Municipal Vote/Appropriation (Minor)" -> Chart A10 Capital Expenditure by Municipal Vote/Appropriation (Minor) | C166: A5
A167: Chart A11 | B167: =A166&"Capital Expenditure by Standard Classification" -> Chart A10 Capital Expenditure by Standard Classification | C167: A5
A168: Chart A12 | B168: =A168&"Capital expenditure performance trend" -> Chart A12 Capital expenditure performance trend | C168: A5
A169: Chart A13 | B169: =A169&"Capital funding by Source" -> Chart A13 Capital funding by Source | C169: A5
A170: Chart A14 | B170: =A170&"Cash flow trend" -> Chart A14 Cash flow trend | C170: A7
A171: Chart A15 | B171: =A171&"IDP Strategic Objective - Revenue" -> Chart A15 IDP Strategic Objective - Revenue | C171: Table A4
A172: Chart A16 | B172: =A172&"IDP Strategic Objective - Expenditure" -> Chart A16 IDP Strategic Objective - Expenditure | C172: Table A5
A173: Chart A17 | B173: =A173&"IDP Strategic Objective - Capital Expenditure" -> Chart A17 IDP Strategic Objective - Capital Expenditure | C173: Table A6
A174: Chart A18 | B174: =A174&"Debt (borrowing to Total Revenue)" -> Chart A18 Debt (borrowing to Total Revenue) | C174: Table A8
A175: Chart A19 | B175: =A175&"Debtors' trend analysis" -> Chart A19 Debtors' trend analysis | C175: Table A8
A176: Chart A20 | B176: =A176&"Distribution losses" -> Chart A20 Distribution losses | C176: Table A8
A177: Chart A21 | B177: =A177&"Borrowed funding of capital expenditure" -> Chart A21 Borrowed funding of capital expenditure | C177: Table A8
A178: Chart A22 | B178: =A178&"Expenditure analysis (% of Revenue)" -> Chart A22 Expenditure analysis (% of Revenue) | C178: Table A8
A179: Chart A23 | B179: =A179&"Increases in service charges" -> Chart A23 Increases in service charges | C179: Table A10

Sheet Lookup and lists (hidden)
A1: Description | B1: 2007 | C1: 2008 | D1: 2009 | E1: 2010 | F1: 2011 | G1: 2012 | H1: 2013 | I1: 2014 | J1: 2015 | K1: 2016 | L1: 2017 | M1: 2018 | N1: 2019 | O1: 2020 | Q1: Lists | Y1: Grants: | Z1: National - opex | AA1: Provincial - opex | AB1: National - capex | AC1: Provincial - capex
A2: ='Template names'!C2 -> Prior year -1 | B2: 2005/06 | C2: 2006/07 | D2: 2007/08 | E2: =E1-2&"/"&RIGHT(E1,2)-1 -> 2008/9 | F2: 2009/10 | G2: 2010/11 | H2: 2011/12 | I2: 2012/13 | J2: 2013/14 | K2: 2014/15 | L2: 2015/16 | M2: 2016/17 | N2: 2017/18 | O2: 2018/19 | Q2: Yes | R2: <1 | S2: <4 | T2: Market | U2: Land & impr. | V2: Yes | W2: Uniform | X2: Yrs | Z2: Local Government Equitable Share | AA2: Health subsidy | AB2: Municipal Infrastructure Grant (MIG) | AC2: Agriculture
A3: ='Template names'!C3 -> Prior year -2 | B3: 2004/05 | C3: 2005/06 | D3: 2006/07 | E3: =E1-3&"/"&RIGHT(E1,2)-2 -> 2007/8 | F3: 2008/9 | G3: 2009/10 | H3: 2010/11 | I3: 2011/12 | J3: 2012/13 | K3: 2013/14 | L3: 2014/15 | M3: 2015/16 | N3: 2016/17 | O3: 2017/18 | Q3: No | R3: 1 | S3: 4 | T3: Dep.Replace | U3: Land only | V3: No | W3: Variable | X3: Mths | Z3: RSC Levy Replacement | AA3: Ambulance subsidy | AB3: Public Transport and Systems | AC3: Education
A4: ='Template names'!C4 -> Prior year -3 | B4: 2003/04 | C4: 2004/05 | D4: 2005/06 | E4: =E1-4&"/"&RIGHT(E1,2)-3 -> 2006/7 | F4: 2007/8 | G4: 2008/9 | H4: 2009/10 | I4: 2010/11 | J4: 2011/12 | K4: 2012/13 | L4: 2013/14 | M4: 2014/15 | N4: 2015/16 | O4: 2016/17 | R4: 2 | S4: 5 | T4: Other | U4: Other | Z4: Finance Management | AA4: Housing | AB4: Rural Transport Services and Infrastructure | AC4: Health
A5: ='Template names'!C5 -> Year in which budget is being prepared | B5: Current Year 2006/07 | C5: Current Year 2007/08 | D5: Current Year 2008/09 | E5: ="Current Year "& E1-1&"/"&RIGHT(E1,2) -> Current Year 2009/10 | F5: Current Year 2010/11 | G5: Current Year 2011/12 | H5: Current Year 2012/13 | I5: Current Year 2013/14 | J5: Current Year 2014/15 | K5: Current Year 2015/16 | L5: Current Year 2016/17 | M5: Current Year 2017/18 | N5: Current Year 2018/19 | O5: Current Year 2019/20 | R5: 3 | S5: 6 | Z5: Municipal Systems Improvement | AA5: Sport and Recreation | AB5: Regional Bulk Infrastructure | AC5: Housing and Local Government
A6: ='Template names'!C6 -> Year in which budget is being prepared | B6: 2006/07 | C6: 2007/08 | D6: 2008/09 | E6: =E1-1&"/"&RIGHT(E1,2) -> 2009/10 | F6: 2010/11 | G6: 2011/12 | H6: 2012/13 | I6: 2013/14 | J6: 2014/15 | K6: 2015/16 | L6: 2016/17 | M6: 2017/18 | N6: 2018/19 | O6: 2019/20 | R6: 4 | S6: 6-10 | Z6: Water Services Operating Subsidy | AB6: Rural Households Infrastructure | AC6: Other Departments
A7: ='Template names'!C7 -> MTREF name | B7: 2007/08 Medium Term Revenue & Expenditure Framework | C7: 2008/09 Medium Term Revenue & Expenditure Framework | D7: 2009/10 Medium Term Revenue & Expenditure Framework | E7: =E1&"/"&RIGHT(E1,2)+1&" Medium Term Revenue & Expenditure Framework" -> 2010/11 Medium Term Revenue & Expenditure Framework | F7: 2011/12 Medium Term Revenue & Expenditure Framework | G7: 2012/13 Medium Term Revenue & Expenditure Framework | H7: 2013/14 Medium Term Revenue & Expenditure Framework | I7: 2014/15 Medium Term Revenue & Expenditure Framework | J7: 2015/16 Medium Term Revenue & Expenditure Framework | K7: 2016/17 Medium Term Revenue & Expenditure Framework | L7: 2017/18 Medium Term Revenue & Expenditure Framework | M7: 2018/19 Medium Term Revenue & Expenditure Framework | N7: 2019/20 Medium Term Revenue & Expenditure Framework | O7: 2020/21 Medium Term Revenue & Expenditure Framework | R7: 5 | S7: >10 | Z7: Energy Efficiency and Demand Management | AB7: Neighbourhood Development Partnership | AC7: Public Works, Roads, Transport
A8: ='Template names'!C15 -> 1st year of MTREF | B8: Budget Year 2007/08 | C8: Budget Year 2008/09 | D8: Budget Year 2009/10 | E8: ="Budget Year "&E1&"/"&RIGHT(E1,2)+1 -> Budget Year 2010/11 | F8: Budget Year 2011/12 | G8: Budget Year 2012/13 | H8: Budget Year 2013/14 | I8: Budget Year 2014/15 | J8: Budget Year 2015/16 | K8: Budget Year 2016/17 | L8: Budget Year 2017/18 | M8: Budget Year 2018/19 | N8: Budget Year 2019/20 | O8: Budget Year 2020/21 | R8: >5 | Z8: Integrated National Electrification Programme | AB8: 2010 FIFA World Cup Stadiums Development | AC8: Sport and Recreation
A9: ='Template names'!C16 -> 2nd year of MTREF | B9: Budget Year +1 2008/09 | C9: Budget Year +1 2009/10 | D9: Budget Year +1 2010/11 | E9: ="Budget Year +1 "&E1+1&"/"&RIGHT(E1,2)+2 -> Budget Year +1 2011/12 | F9: Budget Year +1 2012/13 | G9: Budget Year +1 2013/14 | H9: Budget Year +1 2014/15 | I9: Budget Year +1 2015/16 | J9: Budget Year +1 2016/17 | K9: Budget Year +1 2017/18 | L9: Budget Year +1 2018/19 | M9: Budget Year +1 2019/20 | N9: Budget Year +1 2020/21 | O9: Budget Year +1 2021/22 | Z9: Municipal Drought Relief
A10: ='Template names'!C17 -> 3rd year of MTREF | B10: Budget Year +2 2009/10 | C10: Budget Year +2 2010/11 | D10: Budget Year +2 2011/12 | E10: ="Budget Year +2 "&E1+2&"/"&RIGHT(E1,2)+3 -> Budget Year +2 2012/13 | F10: Budget Year +2 2013/14 | G10: Budget Year +2 2014/15 | H10: Budget Year +2 2015/16 | I10: Budget Year +2 2016/17 | J10: Budget Year +2 2017/18 | K10: Budget Year +2 2018/19 | L10: Budget Year +2 2019/20 | M10: Budget Year +2 2020/21 | N10: Budget Year +2 2021/22 | O10: Budget Year +2 2022/23 | Z10: 2010 FIFA World Cup Operating
A11: ='Template names'!C18 -> 1st yr of long term forecast | B11: Forecast 2010/11 | C11: Forecast 2011/12 | D11: Forecast 2012/13 | E11: ="Forecast "&E1+3&"/"&RIGHT(E1,2)+4 -> Forecast 2013/14 | F11: Forecast 2014/15 | G11: Forecast 2015/16 | H11: Forecast 2016/17 | I11: Forecast 2017/18 | J11: Forecast 2018/19 | K11: Forecast 2019/20 | L11: Forecast 2020/21 | M11: Forecast 2021/22 | N11: Forecast 2022/23 | O11: Forecast 2023/24 | Z11: Electricity Demand Side Management
A12: ='Template names'!C19 -> Next yr of long term forecast | B12: Forecast 2011/12 | C12: Forecast 2012/13 | D12: Forecast 2013/14 | E12: ="Forecast "&E1+4&"/"&RIGHT(E1,2)+5 -> Forecast 2014/15 | F12: Forecast 2015/16 | G12: Forecast 2016/17 | H12: Forecast 2017/18 | I12: Forecast 2018/19 | J12: Forecast 2019/20 | K12: Forecast 2020/21 | L12: Forecast 2021/22 | M12: Forecast 2022/23 | N12: Forecast 2023/24 | O12: Forecast 2024/25 | Z12: EPWP Incentive
A13: ='Template names'!C20 -> Next yr of long term forecast | B13: Forecast 2012/13 | C13: Forecast 2013/14 | D13: Forecast 2014/15 | E13: ="Forecast "&E1+5&"/"&RIGHT(E1,2)+6 -> Forecast 2015/16 | F13: Forecast 2016/17 | G13: Forecast 2017/18 | H13: Forecast 2018/19 | I13: Forecast 2019/20 | J13: Forecast 2020/21 | K13: Forecast 2021/22 | L13: Forecast 2022/23 | M13: Forecast 2023/24 | N13: Forecast 2024/25 | O13: Forecast 2025/26
A14: ='Template names'!C21 -> Next yr of long term forecast | B14: Forecast 2013/14 | C14: Forecast 2014/15 | D14: Forecast 2015/16 | E14: ="Forecast "&E1+6&"/"&RIGHT(E1,2)+7 -> Forecast 2016/17 | F14: Forecast 2017/18 | G14: Forecast 2018/19 | H14: Forecast 2019/20 | I14: Forecast 2020/21 | J14: Forecast 2021/22 | K14: Forecast 2022/23 | L14: Forecast 2023/24 | M14: Forecast 2024/25 | N14: Forecast 2025/26 | O14: Forecast 2026/27 | Z14: Asset Class | AA14: Asset sub-class old | AB14: Asset sub-class
A15: ='Template names'!C22 -> Next yr of long term forecast | B15: Forecast 2014/15 | C15: Forecast 2015/16 | D15: Forecast 2016/17 | E15: ="Forecast "&E1+7&"/"&RIGHT(E1,2)+8 -> Forecast 2017/18 | F15: Forecast 2018/19 | G15: Forecast 2019/20 | H15: Forecast 2020/21 | I15: Forecast 2021/22 | J15: Forecast 2022/23 | K15: Forecast 2023/24 | L15: Forecast 2024/25 | M15: Forecast 2025/26 | N15: Forecast 2026/27 | O15: Forecast 2027/28
A16: ='Template names'!C23 -> Next yr of long term forecast | B16: Forecast 2015/16 | C16: Forecast 2016/17 | D16: Forecast 2017/18 | E16: ="Forecast "&E1+8&"/"&RIGHT(E1,2)+9 -> Forecast 2018/19 | F16: Forecast 2019/20 | G16: Forecast 2020/21 | H16: Forecast 2021/22 | I16: Forecast 2022/23 | J16: Forecast 2023/24 | K16: Forecast 2024/25 | L16: Forecast 2025/26 | M16: Forecast 2026/27 | N16: Forecast 2027/28 | O16: Forecast 2028/29 | Z16: Roads Infrastructure | AA16: Roads, Pavements & Bridges | AB16: Roads
A17: ='Template names'!C24 -> Next yr of long term forecast | B17: Forecast 2016/17 | C17: Forecast 2017/18 | D17: Forecast 2018/19 | E17: ="Forecast "&E1+9&"/"&RIGHT(E1,2)+10 -> Forecast 2019/20 | F17: Forecast 2020/21 | G17: Forecast 2021/22 | H17: Forecast 2022/23 | I17: Forecast 2023/24 | J17: Forecast 2024/25 | K17: Forecast 2025/26 | L17: Forecast 2026/27 | M17: Forecast 2027/28 | N17: Forecast 2028/29 | O17: Forecast 2029/30 | Z17: Storm water Infrastructure | AA17: Storm water | AB17: Road Structures
A18: ='Template names'!C25 -> Next yr of long term forecast | B18: Forecast 2017/18 | C18: Forecast 2018/19 | D18: Forecast 2019/20 | E18: ="Forecast "&E1+10&"/"&RIGHT(E1,2)+11 -> Forecast 2020/21 | F18: Forecast 2021/22 | G18: Forecast 2022/23 | H18: Forecast 2023/24 | I18: Forecast 2024/25 | J18: Forecast 2025/26 | K18: Forecast 2026/27 | L18: Forecast 2027/28 | M18: Forecast 2028/29 | N18: Forecast 2029/30 | O18: Forecast 2030/31 | Z18: Electrical Infrastructure | AA18: Generation | AB18: Road Furniture
A19: ='Template names'!C26 -> Next yr of long term forecast | B19: Forecast 2018/19 | C19: Forecast 2019/20 | D19: Forecast 2020/21 | E19: ="Forecast "&E1+11&"/"&RIGHT(E1,2)+12 -> Forecast 2021/22 | F19: Forecast 2022/23 | G19: Forecast 2023/24 | H19: Forecast 2024/25 | I19: Forecast 2025/26 | J19: Forecast 2026/27 | K19: Forecast 2027/28 | L19: Forecast 2028/29 | M19: Forecast 2029/30 | N19: Forecast 2030/31 | O19: Forecast 2031/32 | Z19: Water Supply Infrastructure | AA19: Transmission & Reticulation | AB19: Capital Spares
A20: ='Template names'!C27 -> Next yr of long term forecast | B20: Forecast 2019/20 | C20: Forecast 2020/21 | D20: Forecast 2021/22 | E20: ="Forecast "&E1+12&"/"&RIGHT(E1,2)+13 -> Forecast 2022/23 | F20: Forecast 2023/24 | G20: Forecast 2024/25 | H20: Forecast 2025/26 | I20: Forecast 2026/27 | J20: Forecast 2027/28 | K20: Forecast 2028/29 | L20: Forecast 2029/30 | M20: Forecast 2030/31 | N20: Forecast 2031/32 | O20: Forecast 2032/33 | Z20: Sanitation Infrastructure | AA20: Street Lighting | AB20: Drainage Collection
A21: ='Template names'!C28 -> Next yr of long term forecast | B21: Forecast 2020/21 | C21: Forecast 2021/22 | D21: Forecast 2022/23 | E21: ="Forecast "&E1+13&"/"&RIGHT(E1,2)+14 -> Forecast 2023/24 | F21: Forecast 2024/25 | G21: Forecast 2025/26 | H21: Forecast 2026/27 | I21: Forecast 2027/28 | J21: Forecast 2028/29 | K21: Forecast 2029/30 | L21: Forecast 2030/31 | M21: Forecast 2031/32 | N21: Forecast 2032/33 | O21: Forecast 2033/34 | Z21: Solid Waste Infrastructure | AA21: Dams & Reservoirs | AB21: Storm water Conveyance
A22: ='Template names'!C29 -> Next yr of long term forecast | B22: Forecast 2021/22 | C22: Forecast 2022/23 | D22: Forecast 2023/24 | E22: ="Forecast "&E1+14&"/"&RIGHT(E1,2)+15 -> Forecast 2024/25 | F22: Forecast 2025/26 | G22: Forecast 2026/27 | H22: Forecast 2027/28 | I22: Forecast 2028/29 | J22: Forecast 2029/30 | K22: Forecast 2030/31 | L22: Forecast 2031/32 | M22: Forecast 2032/33 | N22: Forecast 2033/34 | O22: Forecast 2034/35 | Z22: Rail Infrastructure | AA22: Water purification | AB22: Attenuation
A23: Adjustments Budget | B23: Annual target 2007/08 | C23: Annual target 2008/09 | D23: Annual target 2009/10 | E23: ="Annual target " & E1&"/"&RIGHT(E1,2)+1 -> Annual target 2010/11 | F23: Annual target 2011/12 | G23: Annual target 2012/13 | H23: Annual target 2013/14 | I23: Annual target 2014/15 | J23: Annual target 2015/16 | K23: Annual target 2016/17 | L23: Annual target 2017/18 | M23: Annual target 2018/19 | N23: Annual target 2019/20 | O23: Annual target 2020/21 | Z23: Coastal Infrastructure | AA23: Reticulation | AB23: Power Plants
A24: =A23 -> Adjustments Budget | B24: Revised target 2007/08 | C24: Revised target 2008/09 | D24: Revised target 2009/10 | E24: ="Revised target "& E1&"/"&RIGHT(E1,2)+1 -> Revised target 2010/11 | F24: Revised target 2011/12 | G24: Revised target 2012/13 | H24: Revised target 2013/14 | I24: Revised target 2014/15 | J24: Revised target 2015/16 | K24: Revised target 2016/17 | L24: Revised target 2017/18 | M24: Revised target 2018/19 | N24: Revised target 2019/20 | O24: Revised target 2020/21 | Z24: Information and Communication Infrastructure | AA24: Sewerage purification | AB24: HV Substations
A25: NOTE: This sheet should not be directly amended - select headings from sheet 'S' | Z25: Community Facilities | AA25: Waste Management | AB25: HV Switching Station
Z26: Sport and Recreation Facilities | AA26: Transportation | AB26: HV Transmission Conductors
A27: Name link | B27: 129 | Z27: Heritage assets | AA27: Gas | AB27: MV Substations
A28: Name of Muni | B28: =INDEX(B29:B307,B27,1) -> LIM331 Greater Giyani | Z28: Revenue Generating | AA28: Parks & gardens | AB28: MV Switching Stations
B29: Choose name from list | C29: Set name on 'Instructions' sheet | Z29: Non-revenue Generating | AA29: Sportsfields & stadia | AB29: MV Networks
B30: BUF Buffalo City | C30: EC EASTERN CAPE | Z30: Operational Buildings | AA30: Swimming pools | AB30: LV Networks
B31: NMA Nelson Mandela Bay | C31: EC EASTERN CAPE | Z31: Housing | AA31: Community halls | AB31: Capital Spares
B32: EC101 Dr. Beyers Naude | C32: EC EASTERN CAPE | Z32: Biological or Cultivated Assets | AA32: Libraries | AB32: Dams and Weirs
B33: EC102 Blue Crane Route | C33: EC EASTERN CAPE | Z33: Servitudes | AA33: Recreational facilities | AB33: Boreholes
B34: EC104 Makana | C34: EC EASTERN CAPE | Z34: Licences and Rights | AA34: Fire, safety & emergency | AB34: Reservoirs
B35: EC105 Ndlambe | C35: EC EASTERN CAPE | Z35: Computer Equipment | AA35: Security and policing | AB35: Pump Stations
B36: EC106 Sundays River Valley | C36: EC EASTERN CAPE | Z36: Furniture and Office Equipment | AA36: Buses | AB36: Water Treatment Works
B37: EC108 Kouga | C37: EC EASTERN CAPE | Z37: Machinery and Equipment | AA37: Clinics | AB37: Bulk Mains
B38: EC109 Kou-Kamma | C38: EC EASTERN CAPE | Z38: Transport Assets | AA38: Museums & Art Galleries | AB38: Distribution
B39: DC10 Sarah Baartman | C39: EC EASTERN CAPE | Z39: Libraries | AA39: Cemeteries | AB39: Distribution Points
B40: EC121 Mbhashe | C40: EC EASTERN CAPE | Z40: Zoo's, Marine and Non-biological Animals | AA40: Social rental housing | AB40: PRV Stations
B41: EC122 Mnquma | C41: EC EASTERN CAPE | AA41: Buildings | AB41: Capital Spares
B42: EC123 Great Kei | C42: EC EASTERN CAPE | AA42: Housing development | AB42: Pump Station
B43: EC124 Amahlathi | C43: EC EASTERN CAPE | AA43: General vehicles | AB43: Reticulation
B44: EC126 Ngqushwa | C44: EC EASTERN CAPE | AA44: Specialised vehicles - Refuse | AB44: Waste Water Treatment Works
B45: EC129 Raymond Mhlaba | C45: EC EASTERN CAPE | AA45: Specialised vehicles - Fire | AB45: Outfall Sewers
B46: DC12 Amathole | C46: EC EASTERN CAPE | AA46: Specialised vehicles - Conservancy | AB46: Toilet Facilities
B47: EC131 Inxuba Yethemba | C47: EC EASTERN CAPE | AA47: Specialised vehicles - Ambulances | AB47: Capital Spares
B48: EC135 Intsika Yethu | C48: EC EASTERN CAPE | AA48: Plant & equipment | AB48: Landfill Sites
B49: EC136 Emalahleni (Ec) | C49: EC EASTERN CAPE | AA49: Computers - hardware/equipment | AB49: Waste Transfer Stations
B50: EC137 Engcobo | C50: EC EASTERN CAPE | AA50: Furniture and other office equipment | AB50: Waste Processing Facilities
B51: EC138 Sakhisizwe | C51: EC EASTERN CAPE | AA51: Abattoirs | AB51: Waste Drop-off Points
B52: EC139 Enoch Mgijima | C52: EC EASTERN CAPE | AA52: Markets | AB52: Waste Separation Facilities
B53: DC13 Chris Hani | C53: EC EASTERN CAPE | AA53: Civic Land and Buildings | AB53: Electricity Generation Facilities
B54: EC141 Elundini | C54: EC EASTERN CAPE | AA54: Other Buildings | AB54: Capital Spares
B55: EC142 Senqu | C55: EC EASTERN CAPE | AA55: Other Land | AB55: Rail Lines
B56: EC145 Walter Sisulu | C56: EC EASTERN CAPE | AA56: Surplus Assets - (Investment or Inventory) | AB56: Rail Structures
B57: DC14 Joe Gqabi | C57: EC EASTERN CAPE | AA57: Computers - software & programming | AB57: Rail Furniture
B58: EC153 Ngquza Hills | C58: EC EASTERN CAPE | AA58: Other | AB58: Drainage Collection
B59: EC154 Port St Johns | C59: EC EASTERN CAPE | AB59: Storm water Conveyance
B60: EC155 Nyandeni | C60: EC EASTERN CAPE | Z60: SA16 - Investments | AB60: Attenuation
B61: EC156 Mhlontlo | C61: EC EASTERN CAPE | Z61: Security | AA61: Interest rate | AB61: MV Substations
B62: EC157 King Sabata Dalindyebo | C62: EC EASTERN CAPE | Z62: Yes | AA62: Fixed | AB62: LV Networks
B63: DC15 O .R. Tambo | C63: EC EASTERN CAPE | Z63: No | AA63: Variable | AB63: Capital Spares
B64: EC441 Matatiele | C64: EC EASTERN CAPE | AB64: Sand Pumps
B65: EC442 Umzimvubu | C65: EC EASTERN CAPE | AB65: Piers
B66: EC443 Mbizana | C66: EC EASTERN CAPE | Z66: SA36, SA37 - Capital projects | AB66: Revetments
B67: EC444 Ntabankulu | C67: EC EASTERN CAPE | Z67: Yes | AB67: Promenades
B68: DC44 Alfred Nzo | C68: EC EASTERN CAPE | Z68: No | AB68: Capital Spares
B69: MAN Mangaung | C69: FS FREE STATE | AB69: Data Centres
B70: FS161 Letsemeng | C70: FS FREE STATE | AB70: Core Layers
B71: FS162 Kopanong | C71: FS FREE STATE | AB71: Distribution Layers
B72: FS163 Mohokare | C72: FS FREE STATE | AB72: Capital Spares
B73: DC16 Xhariep | C73: FS FREE STATE | AB73: Halls
B74: FS181 Masilonyana | C74: FS FREE STATE | AB74: Centres
B75: FS182 Tokologo | C75: FS FREE STATE | AB75: Crèches
B76: FS183 Tswelopele | C76: FS FREE STATE | AB76: Clinics/Care Centres
B77: FS184 Matjhabeng | C77: FS FREE STATE | AB77: Fire/Ambulance Stations
B78: FS185 Nala | C78: FS FREE STATE | AB78: Testing Stations
B79: DC18 Lejweleputswa | C79: FS FREE STATE | AB79: Museums
B80: FS191 Setsoto | C80: FS FREE STATE | AB80: Galleries
B81: FS192 Dihlabeng | C81: FS FREE STATE | AB81: Theatres
B82: FS193 Nketoana | C82: FS FREE STATE | AB82: Libraries
B83: FS194 Maluti-a-Phofung | C83: FS FREE STATE | AB83: Cemeteries/Crematoria
B84: FS195 Phumelela | C84: FS FREE STATE | AB84: Police
B85: FS196 Mantsopa | C85: FS FREE STATE | AB85: Purls
B86: DC19 Thabo Mofutsanyana | C86: FS FREE STATE | AB86: Public Open Space
B87: FS201 Moqhaka | C87: FS FREE STATE | AB87: Nature Reserves
B88: FS203 Ngwathe | C88: FS FREE STATE | AB88: Public Ablution Facilities
B89: FS204 Metsimaholo | C89: FS FREE STATE | AB89: Markets
B90: FS205 Mafube | C90: FS FREE STATE | AB90: Stalls
B91: DC20 Fezile Dabi | C91: FS FREE STATE | AB91: Abattoirs
B92: EKU Ekurhuleni Metro | C92: GT GAUTENG | AB92: Airports
B93: JHB City Of Johannesburg | C93: GT GAUTENG | AB93: Taxi Ranks/Bus Terminals
B94: TSH City Of Tshwane | C94: GT GAUTENG | AB94: Capital Spares
B95: GT421 Emfuleni | C95: GT GAUTENG | AB95: Indoor Facilities
B96: GT422 Midvaal | C96: GT GAUTENG | AB96: Outdoor Facilities
B97: GT423 Lesedi | C97: GT GAUTENG | AB97: Capital Spares
B98: DC42 Sedibeng | C98: GT GAUTENG | AB98: Monuments
B99: GT481 Mogale City | C99: GT GAUTENG | AB99: Historic Buildings
B100: GT484 Merafong City | C100: GT GAUTENG | AB100: Works of Art
B101: GT485 Rand West City | C101: GT GAUTENG | AB101: Conservation Areas
B102: DC48 West Rand | C102: GT GAUTENG | AB102: Other Heritage
B103: ETH eThekwini | C103: KZN KWAZULU-NATAL | AB103: Improved Property
B104: KZN212 Umdoni | C104: KZN KWAZULU-NATAL | AB104: Unimproved Property
B105: KZN213 Umzumbe | C105: KZN KWAZULU-NATAL | AB105: Municipal Offices
B106: KZN214 uMuziwabantu | C106: KZN KWAZULU-NATAL | AB106: Pay/Enquiry Points
B107: KZN216 Ray Nkonyeni | C107: KZN KWAZULU-NATAL | AB107: Building Plan Offices
B108: DC21 Ugu | C108: KZN KWAZULU-NATAL | AB108: Workshops
B109: KZN221 uMshwathi | C109: KZN KWAZULU-NATAL | AB109: Yards
B110: KZN222 uMngeni | C110: KZN KWAZULU-NATAL | AB110: Stores
B111: KZN223 Mpofana | C111: KZN KWAZULU-NATAL | AB111: Laboratories
B112: KZN224 Impendle | C112: KZN KWAZULU-NATAL | AB112: Training Centres
B113: KZN225 Msunduzi | C113: KZN KWAZULU-NATAL | AB113: Manufacturing Plant
B114: KZN226 Mkhambathini | C114: KZN KWAZULU-NATAL | AB114: Depots
B115: KZN227 Richmond | C115: KZN KWAZULU-NATAL | AB115: Capital Spares
B116: DC22 uMgungundlovu | C116: KZN KWAZULU-NATAL | AB116: Staff Housing
B117: KZN235 Okhahlamba | C117: KZN KWAZULU-NATAL | AB117: Social Housing
B118: KZN237 Inkosi Langalibalele | C118: KZN KWAZULU-NATAL | AB118: Capital Spares
B119: KZN238 Alfred Duma | C119: KZN KWAZULU-NATAL | AB119: Water Rights
B120: DC23 Uthukela | C120: KZN KWAZULU-NATAL | AB120: Effluent Licenses
B121: KZN241 Endumeni | C121: KZN KWAZULU-NATAL | AB121: Solid Waste Licenses
B122: KZN242 Nquthu | C122: KZN KWAZULU-NATAL | AB122: Computer Software and Applications
B123: KZN244 Msinga | C123: KZN KWAZULU-NATAL | AB123: Load Settlement Software Applications
B124: KZN245 Umvoti | C124: KZN KWAZULU-NATAL | AB124: Unspecified
B125: DC24 Umzinyathi | C125: KZN KWAZULU-NATAL
B126: KZN252 Newcastle | C126: KZN KWAZULU-NATAL
B127: KZN253 eMadlangeni | C127: KZN KWAZULU-NATAL
B128: KZN254 Dannhauser | C128: KZN KWAZULU-NATAL
B129: DC25 Amajuba | C129: KZN KWAZULU-NATAL
B130: KZN261 eDumbe | C130: KZN KWAZULU-NATAL
B131: KZN262 uPhongolo | C131: KZN KWAZULU-NATAL
B132: KZN263 Abaqulusi | C132: KZN KWAZULU-NATAL
B133: KZN265 Nongoma | C133: KZN KWAZULU-NATAL
B134: KZN266 Ulundi | C134: KZN KWAZULU-NATAL
B135: DC26 Zululand | C135: KZN KWAZULU-NATAL
B136: KZN271 Umhlabuyalingana | C136: KZN KWAZULU-NATAL
B137: KZN272 Jozini | C137: KZN KWAZULU-NATAL
B138: KZN275 Mtubatuba | C138: KZN KWAZULU-NATAL
B139: KZN276 The New Big 5 False Bay | C139: KZN KWAZULU-NATAL
B140: DC27 Umkhanyakude | C140: KZN KWAZULU-NATAL
B141: KZN281 Mfolozi | C141: KZN KWAZULU-NATAL
B142: KZN282 uMhlathuze | C142: KZN KWAZULU-NATAL
B143: KZN284 uMlalazi | C143: KZN KWAZULU-NATAL
B144: KZN285 Mthonjaneni | C144: KZN KWAZULU-NATAL
B145: KZN286 Nkandla | C145: KZN KWAZULU-NATAL
B146: DC28 King Cetshwayo | C146: KZN KWAZULU-NATAL
B147: KZN291 Mandeni | C147: KZN KWAZULU-NATAL
B148: KZN292 KwaDukuza | C148: KZN KWAZULU-NATAL
B149: KZN293 Ndwedwe | C149: KZN KWAZULU-NATAL
B150: KZN294 Maphumulo | C150: KZN KWAZULU-NATAL
B151: DC29 iLembe | C151: KZN KWAZULU-NATAL
B152: KZN433 Greater Kokstad | C152: KZN KWAZULU-NATAL
B153: KZN434 Ubuhlebezwe | C153: KZN KWAZULU-NATAL
B154: KZN435 Umzimkhulu | C154: KZN KWAZULU-NATAL
B155: KZN436 Dr Nkosazana Dlamini Zuma | C155: KZN KWAZULU-NATAL
B156: DC43 Harry Gwala | C156: KZN KWAZULU-NATAL
B157: LIM331 Greater Giyani | C157: LIM LIMPOPO
B158: LIM332 Greater Letaba | C158: LIM LIMPOPO
B159: LIM333 Greater Tzaneen | C159: LIM LIMPOPO
B160: LIM334 Ba-Phalaborwa | C160: LIM LIMPOPO
B161: LIM335 Maruleng | C161: LIM LIMPOPO
B162: DC33 Mopani | C162: LIM LIMPOPO
B163: LIM341 Musina | C163: LIM LIMPOPO
B164: LIM343 Thulamela | C164: LIM LIMPOPO
B165: LIM344 Makhado | C165: LIM LIMPOPO
B166: LIM345 Makhado-Thulamela | C166: LIM LIMPOPO
B167: DC34 Vhembe | C167: LIM LIMPOPO
B168: LIM351 Blouberg | C168: LIM LIMPOPO
B169: LIM353 Molemole | C169: LIM LIMPOPO
B170: LIM354 Polokwane | C170: LIM LIMPOPO
B171: LIM355 Lepelle-Nkumpi | C171: LIM LIMPOPO
B172: DC35 Capricorn | C172: LIM LIMPOPO
B173: LIM361 Thabazimbi | C173: LIM LIMPOPO
B174: LIM362 Lephalale | C174: LIM LIMPOPO
B175: LIM366 Bela Bela | C175: LIM LIMPOPO
B176: LIM367 Mogalakwena | C176: LIM LIMPOPO
B177: LIM368 Modimolle-Mookgopong | C177: LIM LIMPOPO
B178: DC36 Waterberg | C178: LIM LIMPOPO
B179: LIM471 Ephraim Mogale | C179: LIM LIMPOPO
B180: LIM472 Elias Motsoaledi | C180: LIM LIMPOPO
B181: LIM473 Makhuduthamaga | C181: LIM LIMPOPO
B182: LIM476 Fetakgomo-Tubatse | C182: LIM LIMPOPO
B183: DC47 Sekhukhune | C183: LIM LIMPOPO
B184: MP301 Albert Luthuli | C184: MP MPUMALANGA
B185: MP302 Msukaligwa | C185: MP MPUMALANGA
B186: MP303 Mkhondo | C186: MP MPUMALANGA
B187: MP304 Pixley Ka Seme (MP) | C187: MP MPUMALANGA
B188: MP305 Lekwa | C188: MP MPUMALANGA
B189: MP306 Dipaleseng | C189: MP MPUMALANGA
B190: MP307 Govan Mbeki | C190: MP MPUMALANGA
B191: DC30 Gert Sibande | C191: MP MPUMALANGA
B192: MP311 Victor Khanye | C192: MP MPUMALANGA
B193: MP312 Emalahleni (Mp) | C193: MP MPUMALANGA
B194: MP313 Steve Tshwete | C194: MP MPUMALANGA
B195: MP314 Emakhazeni | C195: MP MPUMALANGA
B196: MP315 Thembisile Hani | C196: MP MPUMALANGA
B197: MP316 Dr J.S. Moroka | C197: MP MPUMALANGA
B198: DC31 Nkangala | C198: MP MPUMALANGA
B199: MP321 Thaba Chweu | C199: MP MPUMALANGA
B200: MP324 Nkomazi | C200: MP MPUMALANGA
... 87 more rows

Sheet Org structure
A1: Organisational Structure Votes | C1: Organisational Structure Sub-Votes | E1: Display Sub-Votes
A2: Energy sources | B2: Vote 1 | C2: Energy sources | F2: ES
A3: Community and social services | B3: 1.1 | C3: 1.1 - Electricity | D3: =CONCATENATE(B3, " - ", C3) -> 1.1 - 1.1 - Electricity | E3: 1.1 - Electricity | F3: FX002001001000000000000000000000000000
A4: Finance and administration | B4: 1.2 | C4: 1.2 - Street Lighting and Signal Systems | D4: 1.2 - 1.2 - Street Lighting and Signal Systems | E4: 1.2 - Street Lighting and Signal Systems | F4: FX002001002000000000000000000000000000
A5: Planning and development | B5: 1.3 | D5: 1.3 - | E5: 1.3 -
A6: Executive and council | B6: 1.4 | D6: 1.4 - | E6: 1.4 -
A7: Internal audit | B7: 1.5 | D7: 1.5 - | E7: 1.5 -
A8: Road transport | B8: 1.6 | D8: 1.6 - | E8: 1.6 -
A9: Public safety | B9: 1.7 | D9: 1.7 - | E9: 1.7 -
A10: Waste management | B10: 1.8 | D10: 1.8 - | E10: 1.8 -
A11: Sport and recreation | B11: 1.9 | D11: 1.9 - | E11: 1.9 -
A12: Water management | B12: 1.10 | D12: 1.10 - | E12: 1.10 -
A13: Waste water management | B13: Vote 2 | C13: Community and social services | F13: CASS
A14: Housing | B14: 2.1 | C14: 2.1 - Animal Care and Diseases | D14: =CONCATENATE(B14, " - ", C14) -> 2.1 - 2.1 - Animal Care and Diseases | E14: 2.1 - Animal Care and Diseases | F14: FX001001002000000000000000000000000000
A15: Finance and administration | B15: 2.2 | C15: 2.2 - Community Halls and Facilities | D15: 2.2 - 2.2 - Community Halls and Facilities | E15: 2.2 - Community Halls and Facilities | F15: FX001001005000000000000000000000000000
A16: =B156&" - "&C156 -> Vote 15 - | B16: 2.3 | C16: 2.3 - Libraries and Archives | D16: 2.3 - 2.3 - Libraries and Archives | E16: 2.3 - Libraries and Archives | F16: FX001001006000000000000000000000000000
B17: 2.4 | C17: 2.4 - Cemeteries, Funeral Parlours and Crematoriums | D17: 2.4 - 2.4 - Cemeteries, Funeral Parlours and Crematoriums | E17: 2.4 - Cemeteries, Funeral Parlours and Crematoriums | F17: FX001001003000000000000000000000000000
B18: 2.5 | C18: 2.5 - Libraries and Archives | D18: 2.5 - 2.5 - Libraries and Archives | E18: 2.5 - Libraries and Archives | F18: FX001002013000000000000000000000000000
B19: 2.6 | C19: 2.6 - Disaster Management | D19: 2.6 - 2.6 - Disaster Management | E19: 2.6 - Disaster Management | F19: FX001002008000000000000000000000000000
B20: 2.7 | D20: 2.7 - | E20: 2.7 - | F20: NULL
B21: 2.8 | D21: 2.8 - | E21: 2.8 - | F21: NULL
B22: 2.9 | D22: 2.9 - | E22: 2.9 - | F22: NULL
B23: 2.10 | D23: 2.10 - | E23: 2.10 - | F23: NULL
B24: Vote 3 | C24: Finance and administration | F24: FAA
B25: 3.1 | C25: 3.1 - Fleet Management | D25: =CONCATENATE(B25, " - ", C25) -> 3.1 - 3.1 - Fleet Management | E25: 3.1 - Fleet Management | F25: FX005001005000000000000000000000000000
B26: 3.2 | C26: 3.2 - Budget and Treasury Office | D26: 3.2 - 3.2 - Budget and Treasury Office | E26: 3.2 - Budget and Treasury Office | F26: FX005001003000000000000000000000000000
B27: 3.3 | C27: 3.3 - Finance | D27: 3.3 - 3.3 - Finance | E27: 3.3 - Finance | F27: FX005001004000000000000000000000000000
B28: 3.4 | C28: 3.4 - Asset Management | D28: 3.4 - 3.4 - Asset Management | E28: 3.4 - Asset Management | F28: FX005001002000000000000000000000000000
B29: 3.5 | C29: 3.5 - Human Resources | D29: 3.5 - 3.5 - Human Resources | E29: 3.5 - Human Resources | F29: FX005001006000000000000000000000000000
B30: 3.6 | C30: 3.6 - Legal Services | D30: 3.6 - 3.6 - Legal Services | E30: 3.6 - Legal Services | F30: FX005001008000000000000000000000000000
B31: 3.7 | C31: 3.7 - Property Services | D31: 3.7 - 3.7 - Property Services | E31: 3.7 - Property Services | F31: FX005001010000000000000000000000000000
B32: 3.8 | C32: 3.8 - Risk Management | D32: 3.8 - 3.8 - Risk Management | E32: 3.8 - Risk Management | F32: FX005001011000000000000000000000000000
B33: 3.9 | C33: 3.9 - Supply Chain Management | D33: 3.9 - 3.9 - Supply Chain Management | E33: 3.9 - Supply Chain Management | F33: FX005001013000000000000000000000000000
B34: 3.10 | D34: 3.10 - | E34: 3.10 -
B35: Vote 4 | C35: Planning and development | F35: PAD
B36: 4.1 | C36: 4.1 - Town Planning, Building Regulations and Enforcement, and City Engineer | D36: =CONCATENATE(B36, " - ", C36) -> 4.1 - 4.1 - Town Planning, Building Regulations and Enforcement, and City Engineer | E36: 4.1 - Town Planning, Building Regulations and Enforcement, and City Engineer | F36: FX010001006000000000000000000000000000
B37: 4.2 | C37: 4.2 - Corporate Wide Strategic Planning (IDPs, LEDs) | D37: 4.2 - 4.2 - Corporate Wide Strategic Planning (IDPs, LEDs) | E37: 4.2 - Corporate Wide Strategic Planning (IDPs, LEDs) | F37: FX010001002000000000000000000000000000
B38: 4.3 | C38: 4.3 - Economic Development/Planning | D38: 4.3 - 4.3 - Economic Development/Planning | E38: 4.3 - Economic Development/Planning | F38: FX010001005000000000000000000000000000
B39: 4.4 | C39: 4.4 - Project Management Unit | D39: 4.4 - 4.4 - Project Management Unit | E39: 4.4 - Project Management Unit | F39: FX010001007000000000000000000000000000
B40: 4.5 | D40: 4.5 - | E40: 4.5 -
B41: 4.6 | D41: 4.6 - | E41: 4.6 -
B42: 4.7 | D42: 4.7 - | E42: 4.7 -
B43: 4.8 | D43: 4.8 - | E43: 4.8 -
B44: 4.9 | D44: 4.9 - | E44: 4.9 -
B45: 4.10 | D45: 4.10 - | E45: 4.10 -
B46: Vote 5 | C46: Executive and council | F46: EAC
B47: 5.1 | C47: 5.1 - Municipal Manager, Town Secretary and Chief Executive | D47: =CONCATENATE(B47, " - ", C47) -> 5.1 - 5.1 - Municipal Manager, Town Secretary and Chief Executive | E47: 5.1 - Municipal Manager, Town Secretary and Chief Executive | F47: FX004001002000000000000000000000000000
B48: 5.2 | C48: 5.2 - Mayor and Council | D48: 5.2 - 5.2 - Mayor and Council | E48: 5.2 - Mayor and Council | F48: FX004001001000000000000000000000000000
B49: 5.3 | D49: 5.3 - | E49: 5.3 -
B50: 5.4 | D50: 5.4 - | E50: 5.4 -
B51: 5.5 | D51: 5.5 - | E51: 5.5 -
B52: 5.6 | D52: 5.6 - | E52: 5.6 -
B53: 5.7 | D53: 5.7 - | E53: 5.7 -
B54: 5.8 | D54: 5.8 - | E54: 5.8 -
B55: 5.9 | D55: 5.9 - | E55: 5.9 -
B56: 5.10 | D56: 5.10 - | E56: 5.10 -
B57: Vote 6 | C57: Internal audit | F57: IA
B58: 6.1 | C58: 6.1 - Governance Function | D58: =CONCATENATE(B58, " - ", C58) -> 6.1 - 6.1 - Governance Function | E58: 6.1 - Governance Function | F58: FX008001001000000000000000000000000000
B59: 6.2 | D59: 6.2 - | E59: 6.2 -
B60: 6.3 | D60: 6.3 - | E60: 6.3 -
B61: 6.4 | D61: 6.4 - | E61: 6.4 -
B62: 6.5 | D62: 6.5 - | E62: 6.5 -
B63: 6.6 | D63: 6.6 - | E63: 6.6 -
B64: 6.7 | D64: 6.7 - | E64: 6.7 -
B65: 6.8 | D65: 6.8 - | E65: 6.8 -
B66: 6.9 | D66: 6.9 - | E66: 6.9 -
B67: 6.10 | D67: 6.10 - | E67: 6.10 -
B68: Vote 7 | C68: Road transport | F68: RT
B69: 7.1 | C69: 7.1 - Taxi Ranks | D69: =CONCATENATE(B69, " - ", C69) -> 7.1 - 7.1 - Taxi Ranks | E69: 7.1 - Taxi Ranks | F69: FX012001005000000000000000000000000000
B70: 7.2 | C70: 7.2 - Road and Traffic Regulation | D70: 7.2 - 7.2 - Road and Traffic Regulation | E70: 7.2 - Road and Traffic Regulation | F70: FX012002001000000000000000000000000000
B71: 7.3 | C71: 7.3 - Public Transport | D71: 7.3 - 7.3 - Public Transport | E71: 7.3 - Public Transport | F71: FX012001003000000000000000000000000000
B72: 7.4 | C72: 7.4 - Roads | D72: 7.4 - 7.4 - Roads | E72: 7.4 - Roads | F72: FX012001004000000000000000000000000000
B73: 7.5 | D73: 7.5 - | E73: 7.5 -
B74: 7.6 | D74: 7.6 - | E74: 7.6 -
B75: 7.7 | D75: 7.7 - | E75: 7.7 -
B76: 7.8 | D76: 7.8 - | E76: 7.8 -
B77: 7.9 | D77: 7.9 - | E77: 7.9 -
B78: 7.10 | D78: 7.10 - | E78: 7.10 -
B79: Vote 8 | C79: Public safety | F79: PS
B80: 8.1 | C80: 8.1 - Cleansing | D80: =CONCATENATE(B80, " - ", C80) -> 8.1 - 8.1 - Cleansing | E80: 8.1 - Cleansing | F80: FX011001002000000000000000000000000000
B81: 8.2 | C81: 8.2 - Fencing and Fences | D81: 8.2 - 8.2 - Fencing and Fences | E81: 8.2 - Fencing and Fences | F81: FX011001004000000000000000000000000000
B82: 8.3 | D82: 8.3 - | E82: 8.3 -
B83: 8.4 | D83: 8.4 - | E83: 8.4 -
B84: 8.5 | D84: 8.5 - | E84: 8.5 -
B85: 8.6 | D85: 8.6 - | E85: 8.6 -
B86: 8.7 | D86: 8.7 - | E86: 8.7 -
B87: 8.8 | D87: 8.8 - | E87: 8.8 -
B88: 8.9 | D88: 8.9 - | E88: 8.9 -
B89: 8.10 | D89: 8.10 - | E89: 8.10 -
B90: Vote 9 | C90: Waste management | F90: WM
B91: 9.1 | C91: 9.1 - Recycling | D91: =CONCATENATE(B91, " - ", C91) -> 9.1 - 9.1 - Recycling | E91: 9.1 - Recycling | F91: FX014001001000000000000000000000000000
B92: 9.2 | C92: 9.2 - Solid Waste Disposal (Landfill Sites) | D92: 9.2 - 9.2 - Solid Waste Disposal (Landfill Sites) | E92: 9.2 - Solid Waste Disposal (Landfill Sites) | F92: FX014001002000000000000000000000000000
B93: 9.3 | C93: 9.3 - Solid Waste Removal | D93: 9.3 - 9.3 - Solid Waste Removal | E93: 9.3 - Solid Waste Removal | F93: FX014001003000000000000000000000000000
B94: 9.4 | D94: 9.4 - | E94: 9.4 -
B95: 9.5 | D95: 9.5 - | E95: 9.5 -
B96: 9.6 | D96: 9.6 - | E96: 9.6 -
B97: 9.7 | D97: 9.7 - | E97: 9.7 -
B98: 9.8 | D98: 9.8 - | E98: 9.8 -
B99: 9.9 | D99: 9.9 - | E99: 9.9 -
B100: 9.10 | D100: 9.10 - | E100: 9.10 -
B101: Vote 10 | C101: Sport and recreation | F101: SAR
B102: 10.1 | C102: 10.1 - Recreational Facilities | D102: =CONCATENATE(B102, " - ", C102) -> 10.1 - 10.1 - Recreational Facilities | E102: 10.1 - Recreational Facilities | F102: FX013001003000000000000000000000000000
B103: 10.2 | C103: 10.2 - Sports Grounds and Stadiums | D103: 10.2 - 10.2 - Sports Grounds and Stadiums | E103: 10.2 - Sports Grounds and Stadiums | F103: FX013001004000000000000000000000000000
B104: 10.3 | D104: 10.3 - | E104: 10.3 -
B105: 10.4 | D105: 10.4 - | E105: 10.4 -
B106: 10.5 | D106: 10.5 - | E106: 10.5 -
B107: 10.6 | D107: 10.6 - | E107: 10.6 -
B108: 10.7 | D108: 10.7 - | E108: 10.7 -
B109: 10.8 | D109: 10.8 - | E109: 10.8 -
B110: 10.9 | D110: 10.9 - | E110: 10.9 -
B111: 10.10 | D111: 10.10 - | E111: 10.10 -
B112: Vote 11 | C112: Water management | F112: WAT
B113: 11.1 | C113: 11.1 - Water Distribution | D113: =CONCATENATE(B113, " - ", C113) -> 11.1 - 11.1 - Water Distribution | E113: 11.1 - Water Distribution | F113: FX016001002000000000000000000000000000
B114: 11.2 | D114: 11.2 - | E114: 11.2 -
B115: 11.3 | D115: 11.3 - | E115: 11.3 -
B116: 11.4 | D116: 11.4 - | E116: 11.4 -
B117: 11.5 | D117: 11.5 - | E117: 11.5 -
B118: 11.6 | D118: 11.6 - | E118: 11.6 -
B119: 11.7 | D119: 11.7 - | E119: 11.7 -
B120: 11.8 | D120: 11.8 - | E120: 11.8 -
B121: 11.9 | D121: 11.9 - | E121: 11.9 -
B122: 11.10 | D122: 11.10 - | E122: 11.10 -
B123: Vote 12 | C123: Waste water management | F123: WWM
B124: 12.1 | C124: 12.1 - Sewerage | D124: =CONCATENATE(B124, " - ", C124) -> 12.1 - 12.1 - Sewerage | E124: 12.1 - Sewerage | F124: FX015001002000000000000000000000000000
B125: 12.2 | D125: 12.2 - | E125: 12.2 -
B126: 12.3 | D126: 12.3 - | E126: 12.3 -
B127: 12.4 | D127: 12.4 - | E127: 12.4 -
B128: 12.5 | D128: 12.5 - | E128: 12.5 -
B129: 12.6 | D129: 12.6 - | E129: 12.6 -
B130: 12.7 | D130: 12.7 - | E130: 12.7 -
B131: 12.8 | D131: 12.8 - | E131: 12.8 -
B132: 12.9 | D132: 12.9 - | E132: 12.9 -
B133: 12.10 | D133: 12.10 - | E133: 12.10 -
B134: Vote 13 | C134: Housing | F134: HOU
B135: 13.1 | C135: 13.1 - Housing | D135: =CONCATENATE(B135, " - ", C135) -> 13.1 - 13.1 - Housing | E135: 13.1 - Housing | F135: FX007002001000000000000000000000000000
B136: 13.2 | D136: 13.2 - | E136: 13.2 -
B137: 13.3 | D137: 13.3 - | E137: 13.3 -
B138: 13.4 | D138: 13.4 - | E138: 13.4 -
B139: 13.5 | D139: 13.5 - | E139: 13.5 -
B140: 13.6 | D140: 13.6 - | E140: 13.6 -
B141: 13.7 | D141: 13.7 - | E141: 13.7 -
B142: 13.8 | D142: 13.8 - | E142: 13.8 -
B143: 13.9 | D143: 13.9 - | E143: 13.9 -
B144: 13.10 | D144: 13.10 - | E144: 13.10 -
B145: Vote 14 | C145: Finance and administration | F145: FAA02
B146: 14.1 | C146: 14.1 - Security Services | D146: =CONCATENATE(B146, " - ", C146) -> 14.1 - 14.1 - Security Services | E146: 14.1 - Security Services | F146: FX005001012000000000000000000000000000
B147: 14.2 | C147: 14.2 - Administrative and Corporate Support | D147: 14.2 - 14.2 - Administrative and Corporate Support | E147: 14.2 - Administrative and Corporate Support | F147: FX005001001000000000000000000000000000
B148: 14.3 | C148: 14.3 - Information Technology | D148: 14.3 - 14.3 - Information Technology | E148: 14.3 - Information Technology | F148: FX005001007000000000000000000000000000
B149: 14.4 | D149: 14.4 - | E149: 14.4 -
B150: 14.5 | D150: 14.5 - | E150: 14.5 -
B151: 14.6 | D151: 14.6 - | E151: 14.6 -
B152: 14.7 | D152: 14.7 - | E152: 14.7 -
B153: 14.8 | D153: 14.8 - | E153: 14.8 -
B154: 14.9 | D154: 14.9 - | E154: 14.9 -
B155: 14.10 | D155: 14.10 - | E155: 14.10 -
B156: Vote 15
B157: 15.1 | D157: =CONCATENATE(B157, " - ", C157) -> 15.1 - | E157: 15.1 -
B158: 15.2 | D158: 15.2 - | E158: 15.2 -
B159: 15.3 | D159: 15.3 - | E159: 15.3 -
B160: 15.4 | D160: 15.4 - | E160: 15.4 -
B161: 15.5 | D161: 15.5 - | E161: 15.5 -
B162: 15.6 | D162: 15.6 - | E162: 15.6 -
B163: 15.7 | D163: 15.7 - | E163: 15.7 -
B164: 15.8 | D164: 15.8 - | E164: 15.8 -
B165: 15.9 | D165: 15.9 - | E165: 15.9 -
B166: 15.10 | D166: 15.10 - | E166: 15.10 -

Sheet Contacts
A1: =muni&" - "&" Contact Information" -> LIM331 Greater Giyani - Contact Information
A3: A. GENERAL INFORMATION
A4: Municipality | B4: =muni -> LIM331 Greater Giyani | C4: =IF(B4="Choose name from List","Set name on 'Instructions' sheet", "") -> 
A6: Grade | B6: 3 | C6: 1 Grade in terms of the Remuneration of Public Office Bearers Act.
A8: Province | B8: =IF(B4>" ",VLOOKUP(B4,'Lookup and lists'!B29:C307,2, FALSE)," ") -> LIM LIMPOPO
A10: Web Address | B10: www.greatergiyani.gov.za
A12: e-mail Address | B12: Chaukemm@greatergiyani.gov.za
A14: B. CONTACT INFORMATION
A15: Postal address:
A16: P.O. Box | B16: Private Bag x 9559
A17: City / Town | B17: Giyani
A18: Postal Code | B18: 826
A20: Street address
A21: Building | B21: Greater Giyani Municipality
A22: Street No. & Name | B22: BA 59 CIVIC CENTRE
A23: City / Town | B23: GIYANI
A24: Postal Code | B24: 826
A26: General Contacts
A27: Telephone number | B27: 015 811 5500
A28: Fax number | B28: 015 812 0268
A30: C. POLITICAL LEADERSHIP
A31: Speaker: | C31: Secretary/PA to the Speaker:
A32: ID Number | B32: 7303105337084 | C32: ID Number | D32: 7503031090083
A33: Title | B33: Mr | C33: Title | D33: Mrs
A34: Name | B34: MP HLUGWANI | C34: Name | D34: B S NOVELA
A35: Telephone number | B35: 015 811 5500 | C35: Telephone number | D35: 015 811 5551
A36: Cell number | B36: 083 748 5962 | C36: Cell number | D36: 076 812 6319
A37: Fax number | B37: 015 812 0268 | C37: Fax number | D37: 086 766 9371
A38: E-mail address | B38: hlugwanimp@greatergiyani.gov.za | C38: E-mail address | D38: chabalalasb@greatergiyani.gov.za
A40: Mayor/Executive Mayor: | C40: Secretary/PA to the Mayor/Executive Mayor:
A41: ID Number | B41: 7402280574089 | C41: ID Number | D41: 8506200671087
A42: Title | B42: Mrs | C42: Title | D42: Mrs
A43: Name | B43: SS Mathebula | C43: Name | D43: M H MABASA
A44: Telephone number | B44: 015 811 5500 | C44: Telephone number | D44: 015 811 5500
A45: Cell number | B45: 082 461 3006 | C45: Cell number | D45: 078 698 0156
A46: Fax number | B46: 015 812 0268 | C46: Fax number | D46: 015 812 0268
A47: E-mail address | B47: mathebulass@greatergiyani.gov.za | C47: E-mail address | D47: mabasamh@greatergiyani.gov.za
A49: Deputy Mayor/Executive Mayor: | C49: Secretary/PA to the Deputy Mayor/Executive Mayor:
A50: ID Number | C50: ID Number
A51: Title | C51: Title
A52: Name | C52: Name
A53: Telephone number | C53: Telephone number
A54: Cell number | C54: Cell number
A55: Fax number | C55: Fax number
A56: E-mail address | C56: E-mail address
A58: D. MANAGEMENT LEADERSHIP
A59: Municipal Manager: | C59: Secretary/PA to the Municipal Manager:
A60: ID Number | B60: 751115 5310 088 | C60: ID Number | D60: 8003100995089
A61: Title | B61: Mr | C61: Title | D61: Ms
A62: Name | B62: MM CHAUKE | C62: Name | D62: R Ngunyule
A63: Telephone number | B63: 015 811 5541 | C63: Telephone number | D63: 015 811 5542
A64: Cell number | B64: 0832756934 | C64: Cell number | D64: 076 812 6020
A65: Fax number | B65: 086 662 8787 | C65: Fax number | D65: 086 662 8787
A66: E-mail address | B66: ChaukeMM@greatergiyani.gov.za | C66: E-mail address | D66: Ngunyulerb@greatergiyani.gov.za
A68: Chief Financial Officer | C68: Secretary/PA to the Chief Financial Officer
A69: ID Number | B69: 6001145880086 | C69: ID Number | D69: 8107250771081
A70: Title | B70: Mr | C70: Title | D70: Mrs
A71: Name | B71: RH MALULEKE | C71: Name | D71: MP Hlengani
A72: Telephone number | B72: 015 811 5564 | C72: Telephone number | D72: 015 811 5594
A73: Cell number | B73: 0646014190 | C73: Cell number | D73: 076 522 6432
A74: Fax number | B74: 086 662 8787 | C74: Fax number | D74: 015 812 0622
A75: E-mail address | B75: malulekerh@greatergiyani.gov.za | C75: E-mail address | D75: hlenganimp@greatergiyani.gov.za
A77: Official responsible for submitting financial information | C77: Official responsible for submitting financial information
A78: ID Number | B78: 8209160951082 | C78: ID Number | D78: 8707145666089
A79: Title | B79: Mrs | C79: Title | D79: Mr
A80: Name | B80: N Mashau | C80: Name | D80: M W Maswanganyi
A81: Telephone number | B81: 015 811 5520 | C81: Telephone number | D81: 015 811 5606
A82: Cell number | B82: 076 522 0295 | C82: Cell number | D82: 073 952 2170
A83: Fax number | B83: 086 759 8942 | C83: Fax number | D83: 015 812 0268
A84: E-mail address | B84: mashaun@greatergiyani.gov.za | C84: E-mail address | D84: maswanganyiw@greatergiyani.gov.za
A85: Official responsible for submitting financial information | C85: Official responsible for submitting financial information
A86: ID Number | C86: ID Number
A87: Title | C87: Title
A88: Name | C88: Name
A89: Telephone number | C89: Telephone number
A90: Cell number | C90: Cell number
A91: Fax number | C91: Fax number
A92: E-mail address | C92: E-mail address
A93: Official responsible for submitting financial information | C93: Official responsible for submitting financial information
A94: ID Number | C94: ID Number
A95: Title | C95: Title
A96: Name | C96: Name
A97: Telephone number | C97: Telephone number
A98: Cell number | C98: Cell number
A99: Fax number | C99: Fax number
A100: E-mail address | C100: E-mail address
A101: Official responsible for submitting financial information | C101: Official responsible for submitting financial information
A102: ID Number | C102: ID Number
A103: Title | C103: Title
A104: Name | C104: Name
A105: Telephone number | C105: Telephone number
A106: Cell number | C106: Cell number
A107: Fax number | C107: Fax number
A108: E-mail address | C108: E-mail address
A109: Official responsible for submitting financial information | C109: Official responsible for submitting financial information
A110: ID Number | C110: ID Number
A111: Title | C111: Title
A112: Name | C112: Name
A113: Telephone number | C113: Telephone number
A114: Cell number | C114: Cell number
A115: Fax number | C115: Fax number
A116: E-mail address | C116: E-mail address
A117: Official responsible for submitting financial information | C117: Official responsible for submitting financial information
A118: ID Number | C118: ID Number
A119: Title | C119: Title
A120: Name | C120: Name
A121: Telephone number | C121: Telephone number
A122: Cell number | C122: Cell number
A123: Fax number | C123: Fax number
A124: E-mail address | C124: E-mail address
A125: Official responsible for submitting financial information | C125: Official responsible for submitting financial information
A126: ID Number | C126: ID Number
A127: Title | C127: Title
A128: Name | C128: Name
A129: Telephone number | C129: Telephone number
A130: Cell number | C130: Cell number
A131: Fax number | C131: Fax number
A132: E-mail address | C132: E-mail address
A133: Official responsible for submitting financial information
A134: ID Number
A135: Title
A136: Name
A137: Telephone number
A138: Cell number
A139: Fax number
A140: E-mail address

Sheet A1-Sum
A1: =muni&" - "&Approve1 -> LIM331 Greater Giyani - Table A1 Budget Summary
A2: =desc -> Description | B2: =head1b -> 2014/15 | C2: =head1A -> 2015/16 | D2: =Head1 -> 2016/17 | E2: =Head2 -> Current Year 2017/18 | I2: =Head3 -> 2018/19 Medium Term Revenue & Expenditure Framework
A3: R thousands | B3: =Head5 -> Audited Outcome | C3: =Head5 -> Audited Outcome | D3: =Head5 -> Audited Outcome | E3: =Head6 -> Original Budget | F3: =Head7 -> Adjusted Budget | G3: =Head8 -> Full Year Forecast | H3: =Head5b -> Pre-audit outcome | I3: =Head9 -> Budget Year 2018/19 | J3: =Head10 -> Budget Year +1 2019/20 | K3: =Head11 -> Budget Year +2 2020/21
A4: Financial Performance
A5: Property rates | B5: ='A4-FinPerf RE'!C5 -> 28668162 | C5: ='A4-FinPerf RE'!D5 -> 30675862 | D5: ='A4-FinPerf RE'!E5 -> 33865255 | E5: ='A4-FinPerf RE'!F5 -> 30000000 | F5: ='A4-FinPerf RE'!G5 -> 30000000 | G5: ='A4-FinPerf RE'!H5 -> 30000000 | H5: ='A4-FinPerf RE'!I5 -> 30000000 | I5: ='A4-FinPerf RE'!J5 -> 35000000 | J5: ='A4-FinPerf RE'!K5 -> 37000000 | K5: ='A4-FinPerf RE'!L5 -> 39000000
A6: Service charges | B6: =SUM('A4-FinPerf RE'!C6:C10) -> 3953160 | C6: =SUM('A4-FinPerf RE'!D6:D10) -> 4236874 | D6: =SUM('A4-FinPerf RE'!E6:E10) -> 4472542 | E6: =SUM('A4-FinPerf RE'!F6:F10) -> 4300000 | F6: =SUM('A4-FinPerf RE'!G6:G10) -> 4400000 | G6: =SUM('A4-FinPerf RE'!H6:H10) -> 4400000 | H6: =SUM('A4-FinPerf RE'!I6:I10) -> 4400000 | I6: =SUM('A4-FinPerf RE'!J6:J10) -> 4700000 | J6: =SUM('A4-FinPerf RE'!K6:K10) -> 4900000 | K6: =SUM('A4-FinPerf RE'!L6:L10) -> 5200000
A7: Investment revenue | B7: ='A4-FinPerf RE'!C12 -> 14893660 | C7: ='A4-FinPerf RE'!D12 -> 13400970 | D7: ='A4-FinPerf RE'!E12 -> 15174630 | E7: ='A4-FinPerf RE'!F12 -> 11776000 | F7: ='A4-FinPerf RE'!G12 -> 17323603 | G7: ='A4-FinPerf RE'!H12 -> 17323603 | H7: ='A4-FinPerf RE'!I12 -> 17323603 | I7: ='A4-FinPerf RE'!J12 -> 15200000 | J7: ='A4-FinPerf RE'!K12 -> 15960000 | K7: ='A4-FinPerf RE'!L12 -> 16758000
A8: Transfers recognised - operational | B8: ='A4-FinPerf RE'!C18 -> 175399282 | C8: ='A4-FinPerf RE'!D18 -> 226341284 | D8: ='A4-FinPerf RE'!E18 -> 222487633 | E8: ='A4-FinPerf RE'!F18 -> 241457000 | F8: ='A4-FinPerf RE'!G18 -> 241310582 | G8: ='A4-FinPerf RE'!H18 -> 241310582 | H8: ='A4-FinPerf RE'!I18 -> 241310582 | I8: ='A4-FinPerf RE'!J18 -> 259395000 | J8: ='A4-FinPerf RE'!K18 -> 283183000 | K8: ='A4-FinPerf RE'!L18 -> 306849000
A9: Other own revenue | B9: ='A4-FinPerf RE'!C11+'A4-FinPerf RE'!C13+'A4-FinPerf RE'!C14+'A4-FinPerf RE'!C15+'A4-FinPerf RE'!C16+'A4-FinPerf RE'!C17+'A4-FinPerf RE'!C19+'A4-FinPerf RE'!C20 -> 7650027.05 | C9: ='A4-FinPerf RE'!D11+'A4-FinPerf RE'!D13+'A4-FinPerf RE'!D14+'A4-FinPerf RE'!D15+'A4-FinPerf RE'!D16+'A4-FinPerf RE'!D17+'A4-FinPerf RE'!D19+'A4-FinPerf RE'!D20 -> 16066568.05 | D9: ='A4-FinPerf RE'!E11+'A4-FinPerf RE'!E13+'A4-FinPerf RE'!E14+'A4-FinPerf RE'!E15+'A4-FinPerf RE'!E16+'A4-FinPerf RE'!E17+'A4-FinPerf RE'!E19+'A4-FinPerf RE'!E20 -> 13644127 | E9: ='A4-FinPerf RE'!F11+'A4-FinPerf RE'!F13+'A4-FinPerf RE'!F14+'A4-FinPerf RE'!F15+'A4-FinPerf RE'!F16+'A4-FinPerf RE'!F17+'A4-FinPerf RE'!F19+'A4-FinPerf RE'!F20 -> 15067969 | F9: ='A4-FinPerf RE'!G11+'A4-FinPerf RE'!G13+'A4-FinPerf RE'!G14+'A4-FinPerf RE'!G15+'A4-FinPerf RE'!G16+'A4-FinPerf RE'!G17+'A4-FinPerf RE'!G19+'A4-FinPerf RE'!G20 -> 43603178 | G9: ='A4-FinPerf RE'!H11+'A4-FinPerf RE'!H13+'A4-FinPerf RE'!H14+'A4-FinPerf RE'!H15+'A4-FinPerf RE'!H16+'A4-FinPerf RE'!H17+'A4-FinPerf RE'!H19+'A4-FinPerf RE'!H20 -> 43603178 | H9: ='A4-FinPerf RE'!I11+'A4-FinPerf RE'!I13+'A4-FinPerf RE'!I14+'A4-FinPerf RE'!I15+'A4-FinPerf RE'!I16+'A4-FinPerf RE'!I17+'A4-FinPerf RE'!I19+'A4-FinPerf RE'!I20 -> 43603178 | I9: ='A4-FinPerf RE'!J11+'A4-FinPerf RE'!J13+'A4-FinPerf RE'!J14+'A4-FinPerf RE'!J15+'A4-FinPerf RE'!J16+'A4-FinPerf RE'!J17+'A4-FinPerf RE'!J19+'A4-FinPerf RE'!J20 -> 37076330 | J9: ='A4-FinPerf RE'!K11+'A4-FinPerf RE'!K13+'A4-FinPerf RE'!K14+'A4-FinPerf RE'!K15+'A4-FinPerf RE'!K16+'A4-FinPerf RE'!K17+'A4-FinPerf RE'!K19+'A4-FinPerf RE'!K20 -> 37867900 | K9: ='A4-FinPerf RE'!L11+'A4-FinPerf RE'!L13+'A4-FinPerf RE'!L14+'A4-FinPerf RE'!L15+'A4-FinPerf RE'!L16+'A4-FinPerf RE'!L17+'A4-FinPerf RE'!L19+'A4-FinPerf RE'!L20 -> 38836800
A10: ='A4-FinPerf RE'!A21 -> Total Revenue (excluding capital transfers and contributions) | B10: =SUM(B5:B9) -> 230564291.1 | C10: 290721558.1 | D10: 289644187 | E10: 302600969 | F10: 336637363 | G10: 336637363 | H10: 336637363 | I10: 351371330 | J10: 378910900 | K10: 406643800
A11: Employee costs | B11: ='A4-FinPerf RE'!C24 -> 94202388 | C11: ='A4-FinPerf RE'!D24 -> 108057434.8 | D11: ='A4-FinPerf RE'!E24 -> 119525379 | E11: ='A4-FinPerf RE'!F24 -> 134140016 | F11: ='A4-FinPerf RE'!G24 -> 127396765 | G11: ='A4-FinPerf RE'!H24 -> 127396765 | H11: ='A4-FinPerf RE'!I24 -> 127396765 | I11: ='A4-FinPerf RE'!J24 -> 144558334 | J11: ='A4-FinPerf RE'!K24 -> 151786250.7 | K11: ='A4-FinPerf RE'!L24 -> 159375563.2
A12: Remuneration of councillors | B12: ='A4-FinPerf RE'!C25 -> 18573328 | C12: ='A4-FinPerf RE'!D25 -> 18273962 | D12: ='A4-FinPerf RE'!E25 -> 19431700 | E12: ='A4-FinPerf RE'!F25 -> 20503553 | F12: ='A4-FinPerf RE'!G25 -> 22535057 | G12: ='A4-FinPerf RE'!H25 -> 22535057 | H12: ='A4-FinPerf RE'!I25 -> 22535057 | I12: ='A4-FinPerf RE'!J25 -> 23856763 | J12: ='A4-FinPerf RE'!K25 -> 25049601.15 | K12: ='A4-FinPerf RE'!L25 -> 26302081.21
A13: Depreciation & asset impairment | B13: ='A4-FinPerf RE'!C27 -> 14405689 | C13: ='A4-FinPerf RE'!D27 -> 20361720 | D13: ='A4-FinPerf RE'!E27 -> 38553790 | E13: ='A4-FinPerf RE'!F27 -> 30000000 | F13: ='A4-FinPerf RE'!G27 -> 30000000 | G13: ='A4-FinPerf RE'!H27 -> 30000000 | H13: ='A4-FinPerf RE'!I27 -> 30000000 | I13: ='A4-FinPerf RE'!J27 -> 30000000 | J13: ='A4-FinPerf RE'!K27 -> 31620000 | K13: ='A4-FinPerf RE'!L27 -> 33359100
A14: Finance charges | B14: ='A4-FinPerf RE'!C28 -> 0 | C14: ='A4-FinPerf RE'!D28 -> 0 | D14: ='A4-FinPerf RE'!E28 -> 0 | E14: ='A4-FinPerf RE'!F28 -> 0 | F14: ='A4-FinPerf RE'!G28 -> 0 | G14: ='A4-FinPerf RE'!H28 -> 0 | H14: ='A4-FinPerf RE'!I28 -> 0 | I14: ='A4-FinPerf RE'!J28 -> 0 | J14: ='A4-FinPerf RE'!K28 -> 0 | K14: ='A4-FinPerf RE'!L28 -> 0
A15: Materials and bulk purchases | B15: ='A4-FinPerf RE'!C29+'A4-FinPerf RE'!C30 -> 7888503 | C15: ='A4-FinPerf RE'!D29+'A4-FinPerf RE'!D30 -> 25776515.93 | D15: ='A4-FinPerf RE'!E29+'A4-FinPerf RE'!E30 -> 16265310 | E15: ='A4-FinPerf RE'!F29+'A4-FinPerf RE'!F30 -> 8150000 | F15: ='A4-FinPerf RE'!G29+'A4-FinPerf RE'!G30 -> 7344954 | G15: ='A4-FinPerf RE'!H29+'A4-FinPerf RE'!H30 -> 7344954 | H15: ='A4-FinPerf RE'!I29+'A4-FinPerf RE'!I30 -> 7344954 | I15: ='A4-FinPerf RE'!J29+'A4-FinPerf RE'!J30 -> 12261118 | J15: ='A4-FinPerf RE'!K29+'A4-FinPerf RE'!K30 -> 12874173.9 | K15: ='A4-FinPerf RE'!L29+'A4-FinPerf RE'!L30 -> 13517882.6
A16: Transfers and grants | B16: ='A4-FinPerf RE'!C32 -> 0 | C16: ='A4-FinPerf RE'!D32 -> 0 | D16: ='A4-FinPerf RE'!E32 -> 0 | E16: ='A4-FinPerf RE'!F32 -> 0 | F16: ='A4-FinPerf RE'!G32 -> 0 | G16: ='A4-FinPerf RE'!H32 -> 0 | H16: ='A4-FinPerf RE'!I32 -> 0 | I16: ='A4-FinPerf RE'!J32 -> 0 | J16: ='A4-FinPerf RE'!K32 -> 0 | K16: ='A4-FinPerf RE'!L32 -> 0
A17: Other expenditure | B17: ='A4-FinPerf RE'!C26+'A4-FinPerf RE'!C31+'A4-FinPerf RE'!C33+'A4-FinPerf RE'!C34 -> 21801810 | C17: ='A4-FinPerf RE'!D26+'A4-FinPerf RE'!D31+'A4-FinPerf RE'!D33+'A4-FinPerf RE'!D34 -> 120358161 | D17: ='A4-FinPerf RE'!E26+'A4-FinPerf RE'!E31+'A4-FinPerf RE'!E33+'A4-FinPerf RE'!E34 -> 128918050 | E17: ='A4-FinPerf RE'!F26+'A4-FinPerf RE'!F31+'A4-FinPerf RE'!F33+'A4-FinPerf RE'!F34 -> 136081875 | F17: ='A4-FinPerf RE'!G26+'A4-FinPerf RE'!G31+'A4-FinPerf RE'!G33+'A4-FinPerf RE'!G34 -> 143136907 | G17: ='A4-FinPerf RE'!H26+'A4-FinPerf RE'!H31+'A4-FinPerf RE'!H33+'A4-FinPerf RE'!H34 -> 143136907 | H17: ='A4-FinPerf RE'!I26+'A4-FinPerf RE'!I31+'A4-FinPerf RE'!I33+'A4-FinPerf RE'!I34 -> 143136907 | I17: ='A4-FinPerf RE'!J26+'A4-FinPerf RE'!J31+'A4-FinPerf RE'!J33+'A4-FinPerf RE'!J34 -> 141418765 | J17: ='A4-FinPerf RE'!K26+'A4-FinPerf RE'!K31+'A4-FinPerf RE'!K33+'A4-FinPerf RE'!K34 -> 132548754.2 | K17: ='A4-FinPerf RE'!L26+'A4-FinPerf RE'!L31+'A4-FinPerf RE'!L33+'A4-FinPerf RE'!L34 -> 151451744
A18: ='A4-FinPerf RE'!A35 -> Total Expenditure | B18: =SUM(B11:B17) -> 156871718 | C18: =SUM(C11:C17) -> 292827793.7 | D18: 322694229 | E18: 328875444 | F18: 330413683 | G18: 330413683 | H18: 330413683 | I18: 352094980 | J18: 353878780 | K18: 384006371
A19: ='A4-FinPerf RE'!A37 -> Surplus/(Deficit) | B19: =B10-B18 -> 73692573.05 | C19: -2106235.67 | D19: -33050042 | E19: -26274475 | F19: 6223680 | G19: 6223680 | H19: 6223680 | I19: -723650 | J19: 25032120 | K19: 22637429
A20: ='A4-FinPerf RE'!A38 -> Transfers and subsidies - capital (monetary allocations) (National / Provincial and District) | B20: ='A4-FinPerf RE'!C38 -> 81749102 | C20: ='A4-FinPerf RE'!D38 -> 105700629 | D20: ='A4-FinPerf RE'!E38 -> 92999654 | E20: ='A4-FinPerf RE'!F38 -> 81736000 | F20: ='A4-FinPerf RE'!G38 -> 99115000 | G20: ='A4-FinPerf RE'!H38 -> 99115000 | H20: ='A4-FinPerf RE'!I38 -> 99115000 | I20: ='A4-FinPerf RE'!J38 -> 70673000 | J20: ='A4-FinPerf RE'!K38 -> 73488000 | K20: ='A4-FinPerf RE'!L38 -> 76549000
A21: Contributions recognised - capital & contributed assets | B21: ='A4-FinPerf RE'!C39+'A4-FinPerf RE'!C40 -> 0 | C21: ='A4-FinPerf RE'!D39+'A4-FinPerf RE'!D40 -> 0 | D21: ='A4-FinPerf RE'!E39+'A4-FinPerf RE'!E40 -> 0 | E21: ='A4-FinPerf RE'!F39+'A4-FinPerf RE'!F40 -> 0 | F21: ='A4-FinPerf RE'!G39+'A4-FinPerf RE'!G40 -> 0 | G21: ='A4-FinPerf RE'!H39+'A4-FinPerf RE'!H40 -> 0 | H21: ='A4-FinPerf RE'!I39+'A4-FinPerf RE'!I40 -> 0 | I21: ='A4-FinPerf RE'!J39+'A4-FinPerf RE'!J40 -> 0 | J21: ='A4-FinPerf RE'!K39+'A4-FinPerf RE'!K40 -> 0 | K21: ='A4-FinPerf RE'!L39+'A4-FinPerf RE'!L40 -> 0
A22: ='A4-FinPerf RE'!A41 -> Surplus/(Deficit) after capital transfers & contributions | B22: =B19+SUM(B20:B21) -> 155441675.1 | C22: =C19+SUM(C20:C21) -> 103594393.3 | D22: 59949612 | E22: 55461525 | F22: 105338680 | G22: 105338680 | H22: 105338680 | I22: 69949350 | J22: 98520120 | K22: 99186429
A23: ='A4-FinPerf RE'!A46 -> Share of surplus/ (deficit) of associate | B23: ='A4-FinPerf RE'!C46 -> 0 | C23: ='A4-FinPerf RE'!D46 -> 0 | D23: ='A4-FinPerf RE'!E46 -> 0 | E23: ='A4-FinPerf RE'!F46 -> 0 | F23: ='A4-FinPerf RE'!G46 -> 0 | G23: ='A4-FinPerf RE'!H46 -> 0 | H23: ='A4-FinPerf RE'!I46 -> 0 | I23: ='A4-FinPerf RE'!J46 -> 0 | J23: ='A4-FinPerf RE'!K46 -> 0 | K23: ='A4-FinPerf RE'!L46 -> 0
A24: ='A4-FinPerf RE'!A47 -> Surplus/(Deficit) for the year | B24: =B22+B23 -> 155441675.1 | C24: =C22+C23 -> 103594393.3 | D24: 59949612 | E24: 55461525 | F24: 105338680 | G24: 105338680 | H24: 105338680 | I24: 69949350 | J24: 98520120 | K24: 99186429
J25: -
A26: Capital expenditure & funds sources
A27: Capital expenditure | B27: ='A5-Capex'!C63 -> 88485307 | C27: ='A5-Capex'!D63 -> 63937443 | D27: ='A5-Capex'!E63 -> 30523585 | E27: ='A5-Capex'!F63 -> 113023557 | F27: ='A5-Capex'!G63 -> 135338681 | G27: ='A5-Capex'!H63 -> 135338681 | H27: ='A5-Capex'!I63 -> 135338681 | I27: ='A5-Capex'!J63 -> 99949350 | J27: ='A5-Capex'!K63 -> 130140120 | K27: ='A5-Capex'!L63 -> 132545529
A28: Transfers recognised - capital | B28: ='A5-Capex'!C70 -> 62628297 | C28: ='A5-Capex'!D70 -> 56835914 | D28: ='A5-Capex'!E70 -> 22981656 | E28: ='A5-Capex'!F70 -> 81736000 | F28: ='A5-Capex'!G70 -> 76068200 | G28: ='A5-Capex'!H70 -> 76068200 | H28: ='A5-Capex'!I70 -> 76068200 | I28: ='A5-Capex'!J70 -> 56482392 | J28: ='A5-Capex'!K70 -> 57547861.6 | K28: ='A5-Capex'!L70 -> 60751854.68
A29: ='A5-Capex'!A71 -> Public contributions & donations | B29: ='A5-Capex'!C71 -> 0 | C29: ='A5-Capex'!D71 -> 0 | D29: ='A5-Capex'!E71 -> 0 | E29: ='A5-Capex'!F71 -> 0 | F29: ='A5-Capex'!G71 -> 0 | G29: ='A5-Capex'!H71 -> 0 | H29: ='A5-Capex'!I71 -> 0 | I29: ='A5-Capex'!J71 -> 0 | J29: ='A5-Capex'!K71 -> 0 | K29: ='A5-Capex'!L71 -> 0
A30: ='A5-Capex'!A72 -> Borrowing | B30: ='A5-Capex'!C72 -> 0 | C30: ='A5-Capex'!D72 -> 0 | D30: ='A5-Capex'!E72 -> 0 | E30: ='A5-Capex'!F72 -> 0 | F30: ='A5-Capex'!G72 -> 0 | G30: ='A5-Capex'!H72 -> 0 | H30: ='A5-Capex'!I72 -> 0 | I30: ='A5-Capex'!J72 -> 0 | J30: ='A5-Capex'!K72 -> 0 | K30: ='A5-Capex'!L72 -> 0
A31: ='A5-Capex'!A73 -> Internally generated funds | B31: ='A5-Capex'!C73 -> 25857010 | C31: ='A5-Capex'!D73 -> 7101529 | D31: ='A5-Capex'!E73 -> 7541929 | E31: ='A5-Capex'!F73 -> 31287557 | F31: ='A5-Capex'!G73 -> 59270481 | G31: ='A5-Capex'!H73 -> 59270481 | H31: ='A5-Capex'!I73 -> 59270481 | I31: ='A5-Capex'!J73 -> 43466958 | J31: ='A5-Capex'!K73 -> 72592258.4 | K31: ='A5-Capex'!L73 -> 71793674.32
A32: Total sources of capital funds | B32: =SUM(B28:B31) -> 88485307 | C32: 63937443 | D32: 30523585 | E32: 113023557 | F32: 135338681 | G32: 135338681 | H32: 135338681 | I32: 99949350 | J32: 130140120 | K32: 132545529
A34: Financial position
A35: ='A6-FinPos'!A12 -> Total current assets | B35: ='A6-FinPos'!C12 -> 182569277 | C35: ='A6-FinPos'!D12 -> 220129566 | D35: ='A6-FinPos'!E12 -> 235170044 | E35: ='A6-FinPos'!F12 -> 69744801 | F35: ='A6-FinPos'!G12 -> 0 | G35: ='A6-FinPos'!H12 -> 0 | H35: ='A6-FinPos'!I12 -> 0 | I35: ='A6-FinPos'!J12 -> 0 | J35: ='A6-FinPos'!K12 -> 0 | K35: ='A6-FinPos'!L12 -> 0
A36: ='A6-FinPos'!A24 -> Total non current assets | B36: ='A6-FinPos'!C24 -> 410693809 | C36: ='A6-FinPos'!D24 -> 525422124.5 | D36: ='A6-FinPos'!E24 -> 585026191 | E36: ='A6-FinPos'!F24 -> 113023557 | F36: ='A6-FinPos'!G24 -> 135339000 | G36: ='A6-FinPos'!H24 -> 135339000 | H36: ='A6-FinPos'!I24 -> 135339000 | I36: ='A6-FinPos'!J24 -> 0 | J36: ='A6-FinPos'!K24 -> 0 | K36: ='A6-FinPos'!L24 -> 0
A37: ='A6-FinPos'!A34 -> Total current liabilities | B37: ='A6-FinPos'!C34 -> 50497396 | C37: ='A6-FinPos'!D34 -> 62486713 | D37: ='A6-FinPos'!E34 -> 77173636 | E37: ='A6-FinPos'!F34 -> 9379000 | F37: ='A6-FinPos'!G34 -> 0 | G37: ='A6-FinPos'!H34 -> 0 | H37: ='A6-FinPos'!I34 -> 0 | I37: ='A6-FinPos'!J34 -> 0 | J37: ='A6-FinPos'!K34 -> 0 | K37: ='A6-FinPos'!L34 -> 0
A38: ='A6-FinPos'!A39 -> Total non current liabilities | B38: ='A6-FinPos'!C39 -> 19640069 | C38: ='A6-FinPos'!D39 -> 36631023 | D38: ='A6-FinPos'!E39 -> 38545962 | E38: ='A6-FinPos'!F39 -> 0 | F38: ='A6-FinPos'!G39 -> 0 | G38: ='A6-FinPos'!H39 -> 0 | H38: ='A6-FinPos'!I39 -> 0 | I38: ='A6-FinPos'!J39 -> 0 | J38: ='A6-FinPos'!K39 -> 0 | K38: ='A6-FinPos'!L39 -> 0
A39: Community wealth/Equity | B39: ='A6-FinPos'!C48 -> 523125621 | C39: ='A6-FinPos'!D48 -> 646433954.5 | D39: ='A6-FinPos'!E48 -> 704476637 | E39: ='A6-FinPos'!F48 -> 55461525 | F39: ='A6-FinPos'!G48 -> 105338680 | G39: ='A6-FinPos'!H48 -> 105338680 | H39: ='A6-FinPos'!I48 -> 105338680 | I39: ='A6-FinPos'!J48 -> 69949350 | J39: ='A6-FinPos'!K48 -> 98520120 | K39: ='A6-FinPos'!L48 -> 99186429
A41: Cash flows
A42: Net cash from (used) operating | B42: ='A7-CFlow'!C17 -> 149444511 | C42: ='A7-CFlow'!D17 -> 120191095.2 | D42: ='A7-CFlow'!E17 -> 19428783.72 | E42: ='A7-CFlow'!F17 -> 84125780.56 | F42: ='A7-CFlow'!G17 -> 143036324 | G42: ='A7-CFlow'!H17 -> 143036324 | H42: ='A7-CFlow'!I17 -> 143036324 | I42: ='A7-CFlow'!J17 -> 109949350 | J42: ='A7-CFlow'!K17 -> 124699171 | K42: ='A7-CFlow'!L17 -> 117979512.5
A43: Net cash from (used) investing | B43: ='A7-CFlow'!C27 -> -85769041 | C43: ='A7-CFlow'!D27 -> -63937443 | D43: ='A7-CFlow'!E27 -> -30525586 | E43: ='A7-CFlow'!F27 -> -84923557 | F43: ='A7-CFlow'!G27 -> -134638681 | G43: ='A7-CFlow'!H27 -> -134638681 | H43: ='A7-CFlow'!I27 -> -134638681 | I43: ='A7-CFlow'!J27 -> 0 | J43: ='A7-CFlow'!K27 -> 0 | K43: ='A7-CFlow'!L27 -> 0
A44: Net cash from (used) financing | B44: ='A7-CFlow'!C36 -> 0 | C44: ='A7-CFlow'!D36 -> -26557699 | D44: ='A7-CFlow'!E36 -> -3258622 | E44: ='A7-CFlow'!F36 -> 0 | F44: ='A7-CFlow'!G36 -> 0 | G44: ='A7-CFlow'!H36 -> 0 | H44: ='A7-CFlow'!I36 -> 0 | I44: ='A7-CFlow'!J36 -> 0 | J44: ='A7-CFlow'!K36 -> 0 | K44: ='A7-CFlow'!L36 -> 0
A45: =LEFT('A7-CFlow'!A40,37) -> Cash/cash equivalents at the year end | B45: ='A7-CFlow'!C40 -> 150319098 | C45: ='A7-CFlow'!D40 -> 180005001.2 | D45: ='A7-CFlow'!E40 -> 165649576.7 | E45: ='A7-CFlow'!F40 -> 164851800.3 | F45: ='A7-CFlow'!G40 -> 174047219.7 | G45: ='A7-CFlow'!H40 -> 174047219.7 | H45: ='A7-CFlow'!I40 -> 174047219.7 | I45: ='A7-CFlow'!J40 -> 298351994 | J45: ='A7-CFlow'!K40 -> 423051165 | K45: ='A7-CFlow'!L40 -> 541030677.5
A47: Cash backing/surplus reconciliation
A48: ='A8-ResRecon'!A4 -> Cash and investments available | B48: ='A8-ResRecon'!C8 -> 150319082 | C48: ='A8-ResRecon'!D8 -> 180005001 | D48: ='A8-ResRecon'!E8 -> 166530477 | E48: ='A8-ResRecon'!F8 -> 0 | F48: ='A8-ResRecon'!G8 -> 0 | G48: ='A8-ResRecon'!H8 -> 0 | H48: ='A8-ResRecon'!I8 -> 0 | I48: ='A8-ResRecon'!J8 -> 0 | J48: ='A8-ResRecon'!K8 -> 0 | K48: ='A8-ResRecon'!L8 -> 0
A49: ='A8-ResRecon'!A10 -> Application of cash and investments | B49: ='A8-ResRecon'!C18 -> -1980170 | C49: ='A8-ResRecon'!D18 -> 31078713 | D49: ='A8-ResRecon'!E18 -> 9962636 | E49: ='A8-ResRecon'!F18 -> -53302000 | F49: ='A8-ResRecon'!G18 -> 0 | G49: ='A8-ResRecon'!H18 -> 0 | H49: ='A8-ResRecon'!I18 -> 0 | I49: ='A8-ResRecon'!J18 -> 0 | J49: ='A8-ResRecon'!K18 -> 0 | K49: ='A8-ResRecon'!L18 -> 0
A50: Balance - surplus (shortfall) | B50: =B48-B49 -> 152299252 | C50: =C48-C49 -> 148926288 | D50: 156567841 | E50: 53302000 | F50: 0 | G50: 0 | H50: 0 | I50: 0 | J50: 0 | K50: 0
A52: Asset management
A53: Asset register summary (WDV) | B53: ='A9-Asset'!C165 -> 410693809 | C53: ='A9-Asset'!D165 -> 525422124.5 | D53: ='A9-Asset'!E165 -> 558566680 | E53: ='A9-Asset'!F165 -> 393893051 | F53: ='A9-Asset'!G165 -> 85498639 | G53: ='A9-Asset'!H165 -> 85498639 | I53: ='A9-Asset'!I165 -> 397831982 | J53: ='A9-Asset'!J165 -> 401810302 | K53: ='A9-Asset'!K165 -> 401810302
A54: ='A9-Asset'!A168 -> Depreciation | B54: ='A9-Asset'!C168 -> 14405686 | C54: ='A9-Asset'!D168 -> 20361463 | D54: ='A9-Asset'!E168 -> 27530406 | E54: ='A9-Asset'!F168 -> 30000000 | F54: ='A9-Asset'!G168 -> 30000000 | G54: ='A9-Asset'!H168 -> 30000000 | I54: ='A9-Asset'!I168 -> 30000000 | J54: ='A9-Asset'!J168 -> 31620000 | K54: ='A9-Asset'!K168 -> 33359100
A55: Renewal of Existing Assets | B55: ='A9-Asset'!C37 -> 61277481 | C55: ='A9-Asset'!D37 -> 31759264 | D55: ='A9-Asset'!E37 -> 25353565.88 | E55: ='A9-Asset'!F37 -> 0 | F55: ='A9-Asset'!G37 -> 0 | G55: ='A9-Asset'!H37 -> 0 | I55: ='A9-Asset'!I37 -> 0 | J55: ='A9-Asset'!J37 -> 0 | K55: ='A9-Asset'!K37 -> 0
A56: Repairs and Maintenance | B56: ='A9-Asset'!C169 -> 7888539 | C56: ='A9-Asset'!D169 -> 25776515.68 | D56: ='A9-Asset'!E169 -> 16265309.8 | E56: ='A9-Asset'!F169 -> 19800000 | F56: ='A9-Asset'!G169 -> 12931480 | G56: ='A9-Asset'!H169 -> 12931480 | I56: ='A9-Asset'!I169 -> 18610000 | J56: ='A9-Asset'!J169 -> 19540500 | K56: ='A9-Asset'!K169 -> 20517525
A58: Free services
A59: Cost of Free Basic Services provided | B59: ='A10-SerDel'!C60 -> 0 | C59: ='A10-SerDel'!D60 -> 0 | D59: ='A10-SerDel'!E60 -> 0 | E59: ='A10-SerDel'!F60 -> 0 | F59: ='A10-SerDel'!G60 -> 0 | G59: ='A10-SerDel'!H60 -> 0 | H59: ='A10-SerDel'!I60 -> 0 | I59: ='A10-SerDel'!I60 -> 0 | J59: ='A10-SerDel'!J60 -> 0 | K59: ='A10-SerDel'!K60 -> 0
A60: Revenue cost of free services provided | B60: ='A10-SerDel'!C79 -> 0 | C60: ='A10-SerDel'!D79 -> 0 | D60: ='A10-SerDel'!E79 -> 0 | E60: ='A10-SerDel'!F79 -> 0 | F60: ='A10-SerDel'!G79 -> 0 | G60: ='A10-SerDel'!H79 -> 0 | H60: ='A10-SerDel'!I79 -> 0 | I60: ='A10-SerDel'!I79 -> 0 | J60: ='A10-SerDel'!J79 -> 0 | K60: ='A10-SerDel'!K79 -> 0
A61: Households below minimum service level
A62: ='A10-SerDel'!A5 -> Water: | B62: ='A10-SerDel'!C14 -> 0 | C62: ='A10-SerDel'!D14 -> 0 | D62: ='A10-SerDel'!E14 -> 0 | E62: ='A10-SerDel'!F14 -> 0 | F62: ='A10-SerDel'!G14 -> 0 | G62: ='A10-SerDel'!H14 -> 0 | H62: ='A10-SerDel'!I14 -> 0 | I62: ='A10-SerDel'!I14 -> 0 | J62: ='A10-SerDel'!J14 -> 0 | K62: ='A10-SerDel'!K14 -> 0
A63: ='A10-SerDel'!A16 -> Sanitation/sewerage: | B63: ='A10-SerDel'!C26 -> 0 | C63: ='A10-SerDel'!D26 -> 0 | D63: ='A10-SerDel'!E26 -> 0 | E63: ='A10-SerDel'!F26 -> 0 | F63: ='A10-SerDel'!G26 -> 0 | G63: ='A10-SerDel'!H26 -> 0 | H63: ='A10-SerDel'!I26 -> 0 | I63: ='A10-SerDel'!I26 -> 0 | J63: ='A10-SerDel'!J26 -> 0 | K63: ='A10-SerDel'!K26 -> 0
A64: ='A10-SerDel'!A28 -> Energy: | B64: ='A10-SerDel'!C35 -> 0 | C64: ='A10-SerDel'!D35 -> 0 | D64: ='A10-SerDel'!E35 -> 0 | E64: ='A10-SerDel'!F35 -> 0 | F64: ='A10-SerDel'!G35 -> 0 | G64: ='A10-SerDel'!H35 -> 0 | H64: ='A10-SerDel'!I35 -> 0 | I64: ='A10-SerDel'!I35 -> 0 | J64: ='A10-SerDel'!J35 -> 0 | K64: ='A10-SerDel'!K35 -> 0
A65: ='A10-SerDel'!A37 -> Refuse: | B65: ='A10-SerDel'!C45 -> 0 | C65: ='A10-SerDel'!D45 -> 0 | D65: ='A10-SerDel'!E45 -> 0 | E65: ='A10-SerDel'!F45 -> 0 | F65: ='A10-SerDel'!G45 -> 0 | G65: ='A10-SerDel'!H45 -> 0 | H65: ='A10-SerDel'!I45 -> 0 | I65: ='A10-SerDel'!I45 -> 0 | J65: ='A10-SerDel'!J45 -> 0 | K65: ='A10-SerDel'!K45 -> 0

Sheet A2-FinPerf SC
A1: =muni&" - "&Approve3 -> LIM331 Greater Giyani - Table A2 Budgeted Financial Performance (revenue and expenditure by functional classification)
A2: ="Functional Classification "&desc -> Functional Classification Description | B2: =head27 -> Ref | C2: =head1b -> 2014/15 | D2: =head1A -> 2015/16 | E2: =Head1 -> 2016/17 | F2: =Head2 -> Current Year 2017/18 | I2: =Head3 -> 2018/19 Medium Term Revenue & Expenditure Framework
A3: R thousand | B3: 1 | C3: =Head5 -> Audited Outcome | D3: =Head5 -> Audited Outcome | E3: =Head5 -> Audited Outcome | F3: =Head6 -> Original Budget | G3: =Head7 -> Adjusted Budget | H3: =Head8 -> Full Year Forecast | I3: =Head9 -> Budget Year 2018/19 | J3: =Head10 -> Budget Year +1 2019/20 | K3: =Head11 -> Budget Year +2 2020/21
A4: Revenue - Functional
A5: Governance and administration | C5: =SUM(C6:C8) -> 301997887 | D5: =SUM(D6:D8) -> 385189965 | E5: 371804177.4 | F5: 370867096 | G5: 423782024 | H5: 423782024 | I5: 408247600 | J5: 437947333.5 | K5: 467963655.2
A6: Executive and council | C6: =A2A!C6 -> 0 | D6: =A2A!D6 -> 0 | E6: =A2A!E6 -> 0 | F6: =A2A!F6 -> 0 | G6: =A2A!G6 -> 0 | H6: =A2A!H6 -> 0 | I6: =A2A!I6 -> 0 | J6: =A2A!J6 -> 0 | K6: =A2A!K6 -> 0
A7: Finance and administration | C7: =A2A!C9 -> 301997887 | D7: =A2A!D9 -> 385189965 | E7: =A2A!E9 -> 371804177.4 | F7: =A2A!F9 -> 370867096 | G7: =A2A!G9 -> 423782024 | H7: =A2A!H9 -> 423782024 | I7: =A2A!I9 -> 408247600 | J7: =A2A!J9 -> 437947333.5 | K7: =A2A!K9 -> 467963655.2
A8: Internal audit | C8: =A2A!C24 -> 0 | D8: =A2A!D24 -> 0 | E8: =A2A!E24 -> 0 | F8: =A2A!F24 -> 0 | G8: =A2A!G24 -> 0 | H8: =A2A!H24 -> 0 | I8: =A2A!I24 -> 0 | J8: =A2A!J24 -> 0 | K8: =A2A!K24 -> 0
A9: Community and public safety | C9: =SUM(C10:C14) -> 828928 | D9: =SUM(D10:D14) -> 803961 | E9: 1033132.42 | F9: 943904 | G9: 1057368 | H9: 1057368 | I9: 869000 | J9: 912450 | K9: 958072.5
A10: Community and social services | C10: =A2A!C27 -> 276060 | D10: =A2A!D27 -> 249664 | E10: =A2A!E27 -> 465122.88 | F10: =A2A!F27 -> 333904 | G10: =A2A!G27 -> 397518 | H10: =A2A!H27 -> 397518 | I10: =A2A!I27 -> 258000 | J10: =A2A!J27 -> 270900 | K10: =A2A!K27 -> 284445
A11: Sport and recreation | C11: =A2A!C49 -> 56223 | D11: =A2A!D49 -> 46526 | E11: =A2A!E49 -> 7729.54 | F11: =A2A!F49 -> 100000 | G11: =A2A!G49 -> 21138 | H11: =A2A!H49 -> 21138 | I11: =A2A!I49 -> 22000 | J11: =A2A!J49 -> 23100 | K11: =A2A!K49 -> 24255
A12: Public safety | C12: =A2A!C55 -> 0 | D12: =A2A!D55 -> 0 | E12: =A2A!E55 -> 0 | F12: =A2A!F55 -> 0 | G12: =A2A!G55 -> 0 | H12: =A2A!H55 -> 0 | I12: =A2A!I55 -> 0 | J12: =A2A!J55 -> 0 | K12: =A2A!K55 -> 0
A13: Housing | C13: =A2A!C62 -> 496645 | D13: =A2A!D62 -> 507771 | E13: =A2A!E62 -> 560280 | F13: =A2A!F62 -> 510000 | G13: =A2A!G62 -> 638712 | H13: =A2A!H62 -> 638712 | I13: =A2A!I62 -> 589000 | J13: =A2A!J62 -> 618450 | K13: =A2A!K62 -> 649372.5
A14: Health | C14: =A2A!C65 -> 0 | D14: =A2A!D65 -> 0 | E14: =A2A!E65 -> 0 | F14: =A2A!F65 -> 0 | G14: =A2A!G65 -> 0 | H14: =A2A!H65 -> 0 | I14: =A2A!I65 -> 0 | J14: =A2A!J65 -> 0 | K14: =A2A!K65 -> 0
A15: Economic and environmental services | C15: =SUM(C16:C18) -> 5345879 | D15: =SUM(D16:D18) -> 5903727 | E15: 5503908 | F15: 8215970 | G15: 6475662 | H15: 6475662 | I15: 8212130 | J15: 8622736.5 | K15: 9053873.325
A16: Planning and development | C16: =A2A!C74 -> 510590 | D16: =A2A!D74 -> 637143 | E16: =A2A!E74 -> 546403 | F16: =A2A!F74 -> 815970 | G16: =A2A!G74 -> 685256 | H16: =A2A!H74 -> 685256 | I16: =A2A!I74 -> 880130 | J16: =A2A!J74 -> 924136.5 | K16: =A2A!K74 -> 970343.325
A17: Road transport | C17: =A2A!C85 -> 4835289 | D17: =A2A!D85 -> 5266584 | E17: =A2A!E85 -> 4957505 | F17: =A2A!F85 -> 7400000 | G17: =A2A!G85 -> 5790406 | H17: =A2A!H85 -> 5790406 | I17: =A2A!I85 -> 7332000 | J17: =A2A!J85 -> 7698600 | K17: =A2A!K85 -> 8083530
A18: Environmental protection | C18: =A2A!C92 -> 0 | D18: =A2A!D92 -> 0 | E18: =A2A!E92 -> 0 | F18: =A2A!F92 -> 0 | G18: =A2A!G92 -> 0 | H18: =A2A!H92 -> 0 | I18: =A2A!I92 -> 0 | J18: =A2A!J92 -> 0 | K18: =A2A!K92 -> 0
A19: Trading services | C19: =SUM(C20:C23) -> 4140700 | D19: =SUM(D20:D23) -> 4524534 | E19: 4302622.81 | F19: 4310000 | G19: 4437310 | H19: 4437310 | I19: 4715600 | J19: =SUM(J20:J23) -> 4916380 | K19: 5217199
A20: Energy sources | C20: =A2A!C100 -> 0 | D20: =A2A!D100 -> 0 | E20: =A2A!E100 -> 0 | F20: =A2A!F100 -> 0 | G20: =A2A!G100 -> 0 | H20: =A2A!H100 -> 0 | I20: =A2A!I100 -> 0 | J20: =A2A!J100 -> 0 | K20: =A2A!K100 -> 0
A21: Water management | C21: =A2A!C104 -> 150063 | D21: =A2A!D104 -> 285432 | E21: =A2A!E104 -> 0 | F21: =A2A!F104 -> 0 | G21: =A2A!G104 -> 0 | H21: =A2A!H104 -> 0 | I21: =A2A!I104 -> 0 | J21: =A2A!J104 -> 0 | K21: =A2A!K104 -> 0
A22: Waste water management | C22: =A2A!C108 -> 29098 | D22: =A2A!D108 -> 0 | E22: =A2A!E108 -> 0 | F22: =A2A!F108 -> 0 | G22: =A2A!G108 -> 0 | H22: =A2A!H108 -> 0 | I22: =A2A!I108 -> 0 | J22: =A2A!J108 -> 0 | K22: =A2A!K108 -> 0
A23: Waste management | C23: =A2A!C113 -> 3961539 | D23: =A2A!D113 -> 4239102 | E23: =A2A!E113 -> 4302622.81 | F23: =A2A!F113 -> 4310000 | G23: =A2A!G113 -> 4437310 | H23: =A2A!H113 -> 4437310 | I23: =A2A!I113 -> 4715600 | J23: =A2A!J113 -> 4916380 | K23: =A2A!K113 -> 5217199
A24: Other | B24: 4 | C24: =A2A!C118 -> 0 | D24: =A2A!D118 -> 0 | E24: =A2A!E118 -> 0 | F24: =A2A!F118 -> 0 | G24: =A2A!G118 -> 0 | H24: =A2A!H118 -> 0 | I24: =A2A!I118 -> 0 | J24: =A2A!J118 -> 0 | K24: =A2A!K118 -> 0
A25: ="Total "&A4 -> Total Revenue - Functional | B25: 2 | C25: =C5+C9+C15+C19+C24 -> 312313394 | D25: =D5+D9+D15+D19+D24 -> 396422187 | E25: =E5+E9+E15+E19+E24 -> 382643840.7 | F25: 384336970 | G25: 435752364 | H25: 435752364 | I25: =I5+I9+I15+I19+I24 -> 422044330 | J25: 452398900 | K25: 483192800
A27: Expenditure - Functional
A28: Governance and administration | C28: =SUM(C29:C31) -> 79444443.06 | D28: =SUM(D29:D31) -> 161899758.3 | E28: 215227375 | F28: 202013068.8 | G28: 205372535.1 | H28: 205372535.1 | I28: 211117232 | J28: 211532144.6 | K28: 235482403.8
A29: Executive and council | C29: =A2A!C129 -> 29321864.87 | D29: =A2A!D129 -> 30003080 | E29: =A2A!E129 -> 35188330 | F29: =A2A!F129 -> 33953303.75 | G29: =A2A!G129 -> 35364576.36 | H29: =A2A!H129 -> 35364576.36 | I29: =A2A!I129 -> 37335758 | J29: =A2A!J129 -> 39202545.9 | K29: =A2A!K129 -> 41162673.2
A30: Finance and administration | C30: =A2A!C132 -> 48521871.89 | D30: =A2A!D132 -> 130378452.3 | E30: =A2A!E132 -> 178263980 | F30: =A2A!F132 -> 165338025.9 | G30: =A2A!G132 -> 167712270.7 | H30: =A2A!H132 -> 167712270.7 | I30: =A2A!I132 -> 171276130 | J30: =A2A!J132 -> 169698987.5 | K30: =A2A!K132 -> 191557588.9
A31: Internal audit | C31: =A2A!C147 -> 1600706.3 | D31: =A2A!D147 -> 1518226 | E31: =A2A!E147 -> 1775065 | F31: =A2A!F147 -> 2721739.17 | G31: =A2A!G147 -> 2295688 | H31: =A2A!H147 -> 2295688 | I31: =A2A!I147 -> 2505344 | J31: =A2A!J147 -> 2630611.2 | K31: =A2A!K147 -> 2762141.76
A32: Community and public safety | C32: =SUM(C33:C37) -> 14844909 | D32: =SUM(D33:D37) -> 14990797.26 | E32: 15182142 | F32: 23928910.41 | G32: 16058892 | H32: 16058892 | I32: 19337950 | J32: 20304847.5 | K32: 21320089.88
A33: Community and social services | C33: =A2A!C150 -> 8404014 | D33: =A2A!D150 -> 8256380 | E33: =A2A!E150 -> 8075717 | F33: =A2A!F150 -> 17104846.59 | G33: =A2A!G150 -> 9165908 | H33: =A2A!H150 -> 9165908 | I33: =A2A!I150 -> 11726317 | J33: =A2A!J150 -> 12312632.85 | K33: =A2A!K150 -> 12928264.49
A34: Sport and recreation | C34: =A2A!C172 -> 5616392 | D34: =A2A!D172 -> 5860621 | E34: =A2A!E172 -> 6161756 | F34: =A2A!F172 -> 5717860.04 | G34: =A2A!G172 -> 5666404 | H34: =A2A!H172 -> 5666404 | I34: =A2A!I172 -> 6273504 | J34: =A2A!J172 -> 6587179.2 | K34: =A2A!K172 -> 6916538.16
A35: Public safety | C35: =A2A!C178 -> 0 | D35: =A2A!D178 -> 0 | E35: =A2A!E178 -> 0 | F35: =A2A!F178 -> 0 | G35: =A2A!G178 -> 127790 | H35: =A2A!H178 -> 127790 | I35: =A2A!I178 -> 150000 | J35: =A2A!J178 -> 157500 | K35: =A2A!K178 -> 165375
A36: Housing | C36: =A2A!C185 -> 824503 | D36: =A2A!D185 -> 873796.26 | E36: =A2A!E185 -> 944669 | F36: =A2A!F185 -> 1106203.78 | G36: =A2A!G185 -> 1098790 | H36: =A2A!H185 -> 1098790 | I36: =A2A!I185 -> 1188129 | J36: =A2A!J185 -> 1247535.45 | K36: =A2A!K185 -> 1309912.222
A37: Health | C37: =A2A!C188 -> 0 | D37: =A2A!D188 -> 0 | E37: =A2A!E188 -> 0 | F37: =A2A!F188 -> 0 | G37: =A2A!G188 -> 0 | H37: =A2A!H188 -> 0 | I37: =A2A!I188 -> 0 | J37: =A2A!J188 -> 0 | K37: =A2A!K188 -> 0
A38: Economic and environmental services | C38: =SUM(C39:C41) -> 34705929.85 | D38: =SUM(D39:D41) -> 74625491.94 | E38: 45511070 | F38: 55263681.28 | G38: 49733113.81 | H38: 49733113.81 | I38: 53014997 | J38: 55665746.85 | K38: 58449034.19
A39: Planning and development | C39: =A2A!C197 -> 8454785.85 | D39: =A2A!D197 -> 9754649.87 | E39: =A2A!E197 -> 13482589 | F39: =A2A!F197 -> 14779262.78 | G39: =A2A!G197 -> 17161952.44 | H39: =A2A!H197 -> 17161952.44 | I39: =A2A!I197 -> 28797877 | J39: =A2A!J197 -> 30237770.85 | K39: =A2A!K197 -> 31749659.39
A40: Road transport | C40: =A2A!C208 -> 26251144 | D40: =A2A!D208 -> 64870842.07 | E40: =A2A!E208 -> 32028481 | F40: =A2A!F208 -> 40484418.5 | G40: =A2A!G208 -> 32571161.37 | H40: =A2A!H208 -> 32571161.37 | I40: =A2A!I208 -> 24217120 | J40: =A2A!J208 -> 25427976 | K40: =A2A!K208 -> 26699374.8
A41: Environmental protection | C41: =A2A!C215 -> 0 | D41: =A2A!D215 -> 0 | E41: =A2A!E215 -> 0 | F41: =A2A!F215 -> 0 | G41: =A2A!G215 -> 0 | H41: =A2A!H215 -> 0 | I41: =A2A!I215 -> 0 | J41: =A2A!J215 -> 0 | K41: =A2A!K215 -> 0
A42: Trading services | C42: =SUM(C43:C46) -> 27876437.29 | D42: =SUM(D43:D46) -> 41311746.24 | E42: 46773642 | F42: =SUM(F43:F46) -> 53831541.92 | G42: 59249145 | H42: 59249145 | I42: 52843313 | J42: 49805478.65 | K42: =SUM(K43:K46) -> 51355752.58
A43: Energy sources | C43: =A2A!C223 -> 21655341 | D43: =A2A!D223 -> 30430247.81 | E43: =A2A!E223 -> 35597729 | F43: =A2A!F223 -> 36716170.38 | G43: =A2A!G223 -> 40172973 | H43: =A2A!H223 -> 40172973 | I43: =A2A!I223 -> 35866341 | J43: =A2A!J223 -> 31979658.05 | K43: =A2A!K223 -> 32638640.95
A44: Water management | C44: =A2A!C227 -> -1060014 | D44: =A2A!D227 -> -787359.57 | E44: =A2A!E227 -> 0 | F44: =A2A!F227 -> 0 | G44: =A2A!G227 -> 0 | H44: =A2A!H227 -> 0 | I44: =A2A!I227 -> 0 | J44: =A2A!J227 -> 0 | K44: =A2A!K227 -> 0
A45: Waste water management | C45: =A2A!C231 -> 114496 | D45: =A2A!D231 -> -216209 | E45: =A2A!E231 -> 0 | F45: =A2A!F231 -> 0 | G45: =A2A!G231 -> 0 | H45: =A2A!H231 -> 0 | I45: =A2A!I231 -> 0 | J45: =A2A!J231 -> 0 | K45: =A2A!K231 -> 0
A46: Waste management | C46: =A2A!C236 -> 7166614.29 | D46: =A2A!D236 -> 11885067 | E46: =A2A!E236 -> 11175913 | F46: =A2A!F236 -> 17115371.54 | G46: =A2A!G236 -> 19076172 | H46: =A2A!H236 -> 19076172 | I46: =A2A!I236 -> 16976972 | J46: =A2A!J236 -> 17825820.6 | K46: =A2A!K236 -> 18717111.63
A47: Other | B47: 4 | C47: =A2A!C241 -> 0 | D47: =A2A!D241 -> 0 | E47: =A2A!E241 -> 0 | F47: =A2A!F241 -> 0 | G47: =A2A!G241 -> 0 | H47: =A2A!H241 -> 0 | I47: =A2A!I241 -> 15781488 | J47: =A2A!J241 -> 16570562.4 | K47: =A2A!K241 -> 17399090.52
A48: ="Total "&A27 -> Total Expenditure - Functional | B48: 3 | C48: =C28+C32+C38+C42+C47 -> 156871719.2 | D48: =D28+D32+D38+D42+D47 -> 292827793.8 | E48: =E28+E32+E38+E42+E47 -> 322694229 | F48: =F28+F32+F38+F42+F47 -> 335037202.4 | G48: 330413685.9 | H48: 330413685.9 | I48: 352094980 | J48: 353878780 | K48: 384006371
A49: =result -> Surplus/(Deficit) for the year | C49: =C25-C48 -> 155441674.8 | D49: =D25-D48 -> 103594393.2 | E49: 59949611.66 | F49: 49299767.56 | G49: 105338678.1 | H49: 105338678.1 | I49: 69949350 | J49: 98520120 | K49: 99186429
A50: =head27a -> References
A51: 1. Government Finance Statistics Functions and Sub-functions are standardised to assist the compilation of national and international accounts for comparison purposes
A52: 2. Total Revenue by functional classification must reconcile to Total Operating Revenue shown in Budgeted Financial Performance (revenue and expenditure)
A53: 3. Total Expenditure by Functional Classification must reconcile to Total Operating Expenditure shown in Budgeted Financial Performance (revenue and expenditure)
A54: 4. All amounts must be classified under a functional classification . The GFS function 'Other' is only for Abbatoirs, Air Transport, Forestry, Licensing and Regulation, Markets and Tourism - and if used must be supported by footnotes. Nothing else may be placed under 'Other'. Assign associate share to relevant classification.
A57: check oprev balance | C57: =C25-'A4-FinPerf RE'!C59 -> 0.9499999881 | D57: =D25-'A4-FinPerf RE'!D59 -> -0.05000001192 | E57: =E25-'A4-FinPerf RE'!E59 -> -0.3399999738 | F57: =F25-'A4-FinPerf RE'!F59 -> 1 | G57: =G25-'A4-FinPerf RE'!G59 -> 1 | H57: =H25-'A4-FinPerf RE'!H59 -> 1 | I57: =I25-'A4-FinPerf RE'!J59 -> 0 | J57: =J25-'A4-FinPerf RE'!K59 -> 0 | K57: =K25-'A4-FinPerf RE'!L59 -> 0
A58: check opexp balance | C58: =C48-'A4-FinPerf RE'!C35 -> 1.199999988 | D58: =D48-'A4-FinPerf RE'!D35 -> 0.06999993324 | E58: =E48-'A4-FinPerf RE'!E35 -> 0 | F58: =F48-'A4-FinPerf RE'!F35 -> 6161758.44 | G58: =G48-'A4-FinPerf RE'!G35 -> 2.879999995 | H58: =H48-'A4-FinPerf RE'!H35 -> 2.879999995 | I58: =I48-'A4-FinPerf RE'!J35 -> 0 | J58: =J48-'A4-FinPerf RE'!K35 -> 0 | K58: =K48-'A4-FinPerf RE'!L35 -> 0

Sheet A2A
A1: =muni&" - "&Approve3 -> LIM331 Greater Giyani - Table A2 Budgeted Financial Performance (revenue and expenditure by functional classification)
A2: ="Functional Classification "&desc -> Functional Classification Description | B2: =head27 -> Ref | C2: =head1b -> 2014/15 | D2: =head1A -> 2015/16 | E2: =Head1 -> 2016/17 | F2: =Head2 -> Current Year 2017/18 | I2: =Head3 -> 2018/19 Medium Term Revenue & Expenditure Framework
A3: R thousand | B3: 1 | C3: =Head5 -> Audited Outcome | D3: =Head5 -> Audited Outcome | E3: =Head5 -> Audited Outcome | F3: =Head6 -> Original Budget | G3: =Head7 -> Adjusted Budget | H3: =Head8 -> Full Year Forecast | I3: =Head9 -> Budget Year 2018/19 | J3: =Head10 -> Budget Year +1 2019/20 | K3: =Head11 -> Budget Year +2 2020/21
A4: Revenue - Functional
A5: Municipal governance and administration | C5: =C6+C9+C24 -> 301997887 | D5: =D6+D9+D24 -> 385189965 | E5: 371804177.4 | F5: 370867096 | G5: 423782024 | H5: 423782024 | I5: 408247600 | J5: 437947333.5 | K5: 467963655.2
A6: Executive and council | C6: =SUM(C7:C8) -> 0 | D6: =SUM(D7:D8) -> 0 | E6: 0 | F6: 0 | G6: 0 | H6: 0 | I6: 0 | J6: 0 | K6: 0
A7: Mayor and Council | C7: 0 | D7: 0 | E7: 0 | F7: 0 | G7: 0 | H7: 0 | I7: 0 | J7: 0 | K7: 0
A8: Municipal Manager, Town Secretary and Chief Executive | C8: 0 | D8: 0 | E8: 0 | F8: 0 | G8: 0 | H8: 0 | I8: 0 | J8: 0 | K8: 0
A9: Finance and administration | C9: =SUM(C10:C23) -> 301997887 | D9: 385189965 | E9: 371804177.4 | F9: 370867096 | G9: 423782024 | H9: 423782024 | I9: 408247600 | J9: 437947333.5 | K9: 467963655.2
A10: Administrative and Corporate Support | C10: 0 | D10: 0 | E10: 0 | F10: 0 | G10: 0 | H10: 0 | I10: 0 | J10: 0 | K10: 0
A11: Asset Management | C11: 427436 | E11: 0 | F11: 0 | G11: 0 | H11: 0 | I11: 0 | J11: 0 | K11: 0
A12: Budget and Treasury Office | C12: 0 | D12: 0 | E12: 0 | F12: 0 | G12: 0 | H12: 0 | I12: 0 | J12: 0 | K12: 0
A13: Finance | C13: 300563899 | D13: 384601817 | E13: 370376207.2 | F13: 370077096 | G13: 422539460 | H13: 422539460 | I13: 406900600 | J13: 436541983.5 | K13: 466507537.7
A14: Fleet Management | C14: 16177 | D14: 12429 | E14: 16304.46 | F14: 20000 | G14: 15806 | H14: 15806 | I14: 17000 | J14: 17850 | K14: 18742.5
A15: Human Resources | C15: 377481 | D15: 183775 | E15: 211632.72 | F15: 370000 | G15: 223582 | H15: 223582 | I15: 380000 | J15: 390000 | K15: 390000
A16: Information Technology | C16: 0 | D16: 0 | E16: 0 | F16: 0 | G16: 0 | H16: 0 | I16: 0 | J16: 0 | K16: 0
A17: Legal Services | C17: 0 | D17: 0 | E17: 0 | F17: 0 | G17: 0 | H17: 0 | I17: 0 | J17: 0 | K17: 0
A18: Marketing, Customer Relations, Publicity and Media Co-ordination | C18: 0 | D18: 0 | E18: 0 | F18: 0 | G18: 0 | H18: 0 | I18: 0 | J18: 0 | K18: 0
A19: Property Services | C19: 157839 | D19: 106303 | E19: 293278.79 | F19: 0 | G19: 0 | H19: 0 | I19: 0 | J19: 0 | K19: 0
A20: Risk Management | C20: 0 | D20: 0 | E20: 0 | F20: 0 | G20: 0 | H20: 0 | I20: 0 | J20: 0 | K20: 0
A21: Security Services | C21: 0 | D21: 0 | E21: 0 | F21: 0 | G21: 0 | H21: 0 | I21: 0 | J21: 0 | K21: 0
A22: Supply Chain Management | C22: 455055 | D22: 285641 | E22: 906754.24 | F22: 400000 | G22: 1003176 | H22: 1003176 | I22: 950000 | J22: 997500 | K22: 1047375
A23: Valuation Service | C23: 0 | D23: 0 | E23: 0 | F23: 0 | G23: 0 | H23: 0 | I23: 0 | J23: 0 | K23: 0
A24: Internal audit | C24: =SUM(C25:C25) -> 0 | D24: 0 | E24: 0 | F24: 0 | G24: 0 | H24: 0 | I24: 0 | J24: 0 | K24: 0
A25: Governance Function | C25: 0 | D25: 0 | E25: 0 | F25: 0 | G25: 0 | H25: 0 | I25: 0 | J25: 0 | K25: 0
A26: Community and public safety | C26: =C27+C49+C55+C62+C65 -> 828928 | D26: =D27+D49+D55+D62+D65 -> 803961 | E26: 1033132.42 | F26: 943904 | G26: 1057368 | H26: 1057368 | I26: 869000 | J26: 912450 | K26: 958072.5
A27: Community and social services | C27: =SUM(C28:C48) -> 276060 | D27: =SUM(D28:D48) -> 249664 | E27: 465122.88 | F27: 333904 | G27: 397518 | H27: 397518 | I27: 258000 | J27: 270900 | K27: 284445
A28: Aged Care | C28: 0 | D28: 0 | E28: 0 | F28: 0 | G28: 0 | H28: 0 | I28: 0 | J28: 0 | K28: 0
A29: Agricultural | C29: 0 | D29: 0 | E29: 0 | F29: 0 | G29: 0 | H29: 0 | I29: 0 | J29: 0 | K29: 0
A30: Animal Care and Diseases | C30: 0 | D30: 0 | E30: 0 | F30: 0 | G30: 0 | H30: 0 | I30: 0 | J30: 0 | K30: 0
A31: Cemeteries, Funeral Parlours and Crematoriums | C31: 77865 | D31: 53902 | E31: 263843.96 | F31: 101904 | G31: 243312 | H31: 243312 | I31: 83000 | J31: 87150 | K31: 91507.5
A32: Child Care Facilities | C32: 0 | D32: 0 | E32: 0 | F32: 0 | G32: 0 | H32: 0 | I32: 0 | J32: 0 | K32: 0
A33: Community Halls and Facilities | C33: 195180 | D33: 192289 | E33: 198543 | F33: 230000 | G33: 150608 | H33: 150608 | I33: 175000 | J33: 183750 | K33: 192937.5
A34: Consumer Protection | C34: 0 | D34: 0 | E34: 0 | F34: 0 | G34: 0 | H34: 0 | I34: 0 | J34: 0 | K34: 0
A35: Cultural Matters | C35: 0 | D35: 0 | E35: 0 | F35: 0 | G35: 0 | H35: 0 | I35: 0 | J35: 0 | K35: 0
A36: Disaster Management | C36: 0 | D36: 0 | E36: 0 | F36: 0 | G36: 0 | H36: 0 | I36: 0 | J36: 0 | K36: 0
A37: Education | C37: 0 | D37: 0 | E37: 0 | F37: 0 | G37: 0 | H37: 0 | I37: 0 | J37: 0 | K37: 0
A38: Indigenous and Customary Law | C38: 0 | D38: 0 | E38: 0 | F38: 0 | G38: 0 | H38: 0 | I38: 0 | J38: 0 | K38: 0
A39: Industrial Promotion | C39: 0 | D39: 0 | E39: 0 | F39: 0 | G39: 0 | H39: 0 | I39: 0 | J39: 0 | K39: 0
A40: Language Policy | C40: 0 | D40: 0 | E40: 0 | F40: 0 | G40: 0 | H40: 0 | I40: 0 | J40: 0 | K40: 0
A41: Libraries and Archives | C41: 3015 | D41: 3473 | E41: 2735.92 | F41: 2000 | G41: 3598 | H41: 3598 | I41: 0 | J41: 0 | K41: 0
A42: Literacy Programmes | C42: 0 | D42: 0 | E42: 0 | F42: 0 | G42: 0 | H42: 0 | I42: 0 | J42: 0 | K42: 0
A43: Media Services | C43: 0 | D43: 0 | E43: 0 | F43: 0 | G43: 0 | H43: 0 | I43: 0 | J43: 0 | K43: 0
A44: Museums and Art Galleries | C44: 0 | D44: 0 | E44: 0 | F44: 0 | G44: 0 | H44: 0 | I44: 0 | J44: 0 | K44: 0
A45: Population Development | C45: 0 | D45: 0 | E45: 0 | F45: 0 | G45: 0 | H45: 0 | I45: 0 | J45: 0 | K45: 0
A46: Provincial Cultural Matters | C46: 0 | D46: 0 | E46: 0 | F46: 0 | G46: 0 | H46: 0 | I46: 0 | J46: 0 | K46: 0
A47: Theatres | C47: 0 | D47: 0 | E47: 0 | F47: 0 | G47: 0 | H47: 0 | I47: 0 | J47: 0 | K47: 0
A48: Zoo's | C48: 0 | D48: 0 | E48: 0 | F48: 0 | G48: 0 | H48: 0 | I48: 0 | J48: 0 | K48: 0
A49: Sport and recreation | C49: =SUM(C50:C54) -> 56223 | D49: =SUM(D50:D54) -> 46526 | E49: 7729.54 | F49: 100000 | G49: 21138 | H49: 21138 | I49: 22000 | J49: 23100 | K49: 24255
A50: Beaches and Jetties | C50: 0 | D50: 0 | E50: 0 | F50: 0 | G50: 0 | H50: 0 | I50: 0 | J50: 0 | K50: 0
A51: Casinos, Racing, Gambling, Wagering | C51: 0 | D51: 0 | E51: 0 | F51: 0 | G51: 0 | H51: 0 | I51: 0 | J51: 0 | K51: 0
A52: Community Parks (including Nurseries) | C52: 0 | D52: 0 | E52: 0 | F52: 0 | G52: 0 | H52: 0 | I52: 0 | J52: 0 | K52: 0
A53: Recreational Facilities | C53: 0 | D53: 0 | E53: 0 | F53: 0 | G53: 0 | H53: 0 | I53: 0 | J53: 0 | K53: 0
A54: Sports Grounds and Stadiums | C54: 56223 | D54: 46526 | E54: 7729.54 | F54: 100000 | G54: 21138 | H54: 21138 | I54: 22000 | J54: 23100 | K54: 24255
A55: Public safety | C55: =SUM(C56:C61) -> 0 | D55: =SUM(D56:D61) -> 0 | E55: 0 | F55: 0 | G55: 0 | H55: 0 | I55: 0 | J55: 0 | K55: 0
A56: Civil Defence | C56: 0 | D56: 0 | E56: 0 | F56: 0 | G56: 0 | H56: 0 | I56: 0 | J56: 0 | K56: 0
A57: Cleansing | C57: 0 | D57: 0 | E57: 0 | F57: 0 | G57: 0 | H57: 0 | I57: 0 | J57: 0 | K57: 0
A58: Control of Public Nuisances | C58: 0 | D58: 0 | E58: 0 | F58: 0 | G58: 0 | H58: 0 | I58: 0 | J58: 0 | K58: 0
A59: Fencing and Fences | C59: 0 | D59: 0 | E59: 0 | F59: 0 | G59: 0 | H59: 0 | I59: 0 | J59: 0 | K59: 0
A60: Fire Fighting and Protection | C60: 0 | D60: 0 | E60: 0 | F60: 0 | G60: 0 | H60: 0 | I60: 0 | J60: 0 | K60: 0
A61: Licensing and Control of Animals | C61: 0 | D61: 0 | E61: 0 | F61: 0 | G61: 0 | H61: 0 | I61: 0 | J61: 0 | K61: 0
A62: Housing | C62: =SUM(C63:C64) -> 496645 | D62: =SUM(D63:D64) -> 507771 | E62: 560280 | F62: 510000 | G62: 638712 | H62: 638712 | I62: 589000 | J62: 618450 | K62: 649372.5
A63: Housing | C63: 496645 | D63: 507771 | E63: 560280 | F63: 510000 | G63: 638712 | H63: 638712 | I63: 589000 | J63: 618450 | K63: 649372.5
A64: Informal Settlements | C64: 0 | D64: 0 | E64: 0 | F64: 0 | G64: 0 | H64: 0 | I64: 0 | J64: 0 | K64: 0
A65: Health | C65: =SUM(C66:C72) -> 0 | D65: =SUM(D66:D72) -> 0 | E65: 0 | F65: 0 | G65: 0 | H65: 0 | I65: 0 | J65: 0 | K65: 0
A66: Ambulance | C66: 0 | D66: 0 | E66: 0 | F66: 0 | G66: 0 | H66: 0 | I66: 0 | J66: 0 | K66: 0
A67: Health Services | C67: 0 | D67: 0 | E67: 0 | F67: 0 | G67: 0 | H67: 0 | I67: 0 | J67: 0 | K67: 0
A68: Laboratory Services | C68: 0 | D68: 0 | E68: 0 | F68: 0 | G68: 0 | H68: 0 | I68: 0 | J68: 0 | K68: 0
A69: Food Control | C69: 0 | D69: 0 | E69: 0 | F69: 0 | G69: 0 | H69: 0 | I69: 0 | J69: 0 | K69: 0
A70: Health Surveillance and Prevention of Communicable Diseases including immunizations | C70: 0 | D70: 0 | E70: 0 | F70: 0 | G70: 0 | H70: 0 | I70: 0 | J70: 0 | K70: 0
A71: Vector Control | C71: 0 | D71: 0 | E71: 0 | F71: 0 | G71: 0 | H71: 0 | I71: 0 | J71: 0 | K71: 0
A72: Chemical Safety | C72: 0 | D72: 0 | E72: 0 | F72: 0 | G72: 0 | H72: 0 | I72: 0 | J72: 0 | K72: 0
A73: Economic and environmental services | C73: =C74+C85+C92 -> 5345879 | D73: =D74+D85+D92 -> 5903727 | E73: 5503908 | F73: 8215970 | G73: 6475662 | H73: 6475662 | I73: 8212130 | J73: 8622736.5 | K73: 9053873.325
A74: Planning and development | C74: =SUM(C75:C84) -> 510590 | D74: =SUM(D75:D84) -> 637143 | E74: 546403 | F74: 815970 | G74: 685256 | H74: 685256 | I74: 880130 | J74: 924136.5 | K74: 970343.325
A75: Billboards | C75: 0 | D75: 0 | E75: 0 | F75: 0 | G75: 0 | H75: 0 | I75: 0 | J75: 0 | K75: 0
A76: Corporate Wide Strategic Planning (IDPs, LEDs) | C76: 0 | D76: 0 | E76: 0 | F76: 155970 | G76: 120188 | H76: 120188 | I76: 122000 | J76: 128100 | K76: 134505
A77: Central City Improvement District | C77: 0 | D77: 0 | E77: 0 | F77: 0 | G77: 0 | H77: 0 | I77: 0 | J77: 0 | K77: 0
A78: Development Facilitation | C78: 0 | D78: 0 | E78: 0 | F78: 0 | G78: 0 | H78: 0 | I78: 0 | J78: 0 | K78: 0
A79: Economic Development/Planning | C79: 98058 | D79: 139841 | E79: 110838 | F79: 0 | G79: 0 | H79: 0 | I79: 0 | J79: 0 | K79: 0
A80: Regional Planning and Development | C80: 0 | D80: 0 | E80: 0 | F80: 0 | G80: 0 | H80: 0 | I80: 0 | J80: 0 | K80: 0
A81: Town Planning, Building Regulations and Enforcement, and City Engineer | C81: 412532 | D81: 497302 | E81: 435565 | F81: 660000 | G81: 565068 | H81: 565068 | I81: 758130 | J81: 796036.5 | K81: 835838.325
A82: Project Management Unit | C82: 0 | D82: 0 | E82: 0 | F82: 0 | G82: 0 | H82: 0 | I82: 0 | J82: 0 | K82: 0
A83: Provincial Planning | C83: 0 | D83: 0 | E83: 0 | F83: 0 | G83: 0 | H83: 0 | I83: 0 | J83: 0 | K83: 0
A84: Support to Local Municipalities | C84: 0 | D84: 0 | E84: 0 | F84: 0 | G84: 0 | H84: 0 | I84: 0 | J84: 0 | K84: 0
A85: Road transport | C85: =SUM(C86:C91) -> 4835289 | D85: =SUM(D86:D91) -> 5266584 | E85: 4957505 | F85: 7400000 | G85: 5790406 | H85: 5790406 | I85: 7332000 | J85: 7698600 | K85: 8083530
A86: Police Forces, Traffic and Street Parking Control | C86: 0 | D86: 0 | E86: 0 | F86: 0 | G86: 0 | H86: 0 | I86: 7332000 | J86: 7698600 | K86: 8083530
A87: Pounds | C87: 0 | D87: 0 | E87: 0 | F87: 0 | G87: 0 | H87: 0 | I87: 0 | J87: 0 | K87: 0
A88: Public Transport | C88: 0 | D88: 0 | E88: 0 | F88: 0 | G88: 0 | H88: 0 | I88: 0 | J88: 0 | K88: 0
A89: Road and Traffic Regulation | C89: 4835289 | D89: 5266584 | E89: 4957505 | F89: 7400000 | G89: 5790406 | H89: 5790406 | I89: 0 | J89: 0 | K89: 0
A90: Roads | C90: 0 | D90: 0 | E90: 0 | F90: 0 | G90: 0 | H90: 0 | I90: 0 | J90: 0 | K90: 0
A91: Taxi Ranks | C91: 0 | D91: 0 | E91: 0 | F91: 0 | G91: 0 | H91: 0 | I91: 0 | J91: 0 | K91: 0
A92: Environmental protection | C92: =SUM(C93:C98) -> 0 | D92: =SUM(D93:D98) -> 0 | E92: 0 | F92: 0 | G92: 0 | H92: 0 | I92: 0 | J92: 0 | K92: 0
A93: Biodiversity and Landscape | C93: 0 | D93: 0 | E93: 0 | F93: 0 | G93: 0 | H93: 0 | I93: 0 | J93: 0 | K93: 0
A94: Coastal Protection | C94: 0 | D94: 0 | E94: 0 | F94: 0 | G94: 0 | H94: 0 | I94: 0 | J94: 0 | K94: 0
A95: Indigenous Forests | C95: 0 | D95: 0 | E95: 0 | F95: 0 | G95: 0 | H95: 0 | I95: 0 | J95: 0 | K95: 0
A96: Nature Conservation | C96: 0 | D96: 0 | E96: 0 | F96: 0 | G96: 0 | H96: 0 | I96: 0 | J96: 0 | K96: 0
A97: Pollution Control | C97: 0 | D97: 0 | E97: 0 | F97: 0 | G97: 0 | H97: 0 | I97: 0 | J97: 0 | K97: 0
A98: Soil Conservation | C98: 0 | D98: 0 | E98: 0 | F98: 0 | G98: 0 | H98: 0 | I98: 0 | J98: 0 | K98: 0
A99: Trading services | C99: =C100+C104+C108+C113 -> 4140700 | D99: =D100+D104+D108+D113 -> 4524534 | E99: 4302622.81 | F99: 4310000 | G99: 4437310 | H99: 4437310 | I99: 4715600 | J99: 4916380 | K99: =K100+K104+K108+K113 -> 5217199
A100: Energy sources | C100: =SUM(C101:C103) -> 0 | D100: =SUM(D101:D103) -> 0 | E100: 0 | F100: 0 | G100: 0 | H100: 0 | I100: 0 | J100: 0 | K100: 0
A101: Electricity | C101: 0 | D101: 0 | E101: 0 | F101: 0 | G101: 0 | H101: 0 | I101: 0 | J101: 0 | K101: 0
A102: Street Lighting and Signal Systems | C102: 0 | D102: 0 | E102: 0 | F102: 0 | G102: 0 | H102: 0 | I102: 0 | J102: 0 | K102: 0
A103: Nonelectric Energy | C103: 0 | D103: 0 | E103: 0 | F103: 0 | G103: 0 | H103: 0 | I103: 0 | J103: 0 | K103: 0
A104: Water management | C104: =SUM(C105:C107) -> 150063 | D104: =SUM(D105:D107) -> 285432 | E104: 0 | F104: 0 | G104: 0 | H104: 0 | I104: 0 | J104: 0 | K104: 0
A105: Water Treatment | C105: 0 | D105: 0 | E105: 0 | F105: 0 | G105: 0 | H105: 0 | I105: 0 | J105: 0 | K105: 0
A106: Water Distribution | C106: 150063 | D106: 285432 | E106: 0 | F106: 0 | G106: 0 | H106: 0 | I106: 0 | J106: 0 | K106: 0
A107: Water Storage | C107: 0 | D107: 0 | E107: 0 | F107: 0 | G107: 0 | H107: 0 | I107: 0 | J107: 0 | K107: 0
A108: Waste water management | C108: =SUM(C109:C112) -> 29098 | D108: =SUM(D109:D112) -> 0 | E108: 0 | F108: 0 | G108: 0 | H108: 0 | I108: 0 | J108: 0 | K108: 0
A109: Public Toilets | C109: 0 | D109: 0 | E109: 0 | F109: 0 | G109: 0 | H109: 0 | I109: 0 | J109: 0 | K109: 0
A110: Sewerage | C110: 29098 | D110: 0 | E110: 0 | F110: 0 | G110: 0 | H110: 0 | I110: 0 | J110: 0 | K110: 0
A111: Storm Water Management | C111: 0 | D111: 0 | E111: 0 | F111: 0 | G111: 0 | H111: 0 | I111: 0 | J111: 0 | K111: 0
A112: Waste Water Treatment | C112: 0 | D112: 0 | E112: 0 | F112: 0 | G112: 0 | H112: 0 | I112: 0 | J112: 0 | K112: 0
A113: Waste management | C113: =SUM(C114:C117) -> 3961539 | D113: =SUM(D114:D117) -> 4239102 | E113: 4302622.81 | F113: 4310000 | G113: 4437310 | H113: 4437310 | I113: 4715600 | J113: 4916380 | K113: 5217199
A114: Recycling | C114: 0 | D114: 0 | E114: 0 | F114: 0 | G114: 0 | H114: 0 | I114: 0 | J114: 0 | K114: 0
A115: Solid Waste Disposal (Landfill Sites) | C115: 0 | D115: 0 | E115: 0 | F115: 0 | G115: 0 | H115: 0 | I115: 0 | J115: 0 | K115: 0
A116: Solid Waste Removal | C116: 3961539 | D116: 4239102 | E116: 4302622.81 | F116: 4310000 | G116: 4437310 | H116: 4437310 | I116: 4715600 | J116: 4916380 | K116: 5217199
A117: Street Cleaning | C117: 0 | D117: 0 | E117: 0 | F117: 0 | G117: 0 | H117: 0 | I117: 0 | J117: 0 | K117: 0
A118: Other | C118: =SUM(C119:C124) -> 0 | D118: =SUM(D119:D124) -> 0 | E118: 0 | F118: 0 | G118: 0 | H118: 0 | I118: 0 | J118: 0 | K118: 0
A119: Abattoirs | C119: 0 | D119: 0 | E119: 0 | F119: 0 | G119: 0 | H119: 0 | I119: 0 | J119: 0 | K119: 0
A120: Air Transport | C120: 0 | D120: 0 | E120: 0 | F120: 0 | G120: 0 | H120: 0 | I120: 0 | J120: 0 | K120: 0
A121: Forestry | C121: 0 | D121: 0 | E121: 0 | F121: 0 | G121: 0 | H121: 0 | I121: 0 | J121: 0 | K121: 0
A122: Licensing and Regulation | C122: 0 | D122: 0 | E122: 0 | F122: 0 | G122: 0 | H122: 0 | I122: 0 | J122: 0 | K122: 0
A123: Markets | C123: 0 | D123: 0 | E123: 0 | F123: 0 | G123: 0 | H123: 0 | I123: 0 | J123: 0 | K123: 0
A124: Tourism | C124: 0 | D124: 0 | E124: 0 | F124: 0 | G124: 0 | H124: 0 | I124: 0 | J124: 0 | K124: 0
A125: ="Total "&A4 -> Total Revenue - Functional | B125: 2 | C125: =C5+C26+C73+C99+C118 -> 312313394 | D125: 396422187 | E125: 382643840.7 | F125: 384336970 | G125: 435752364 | H125: 435752364 | I125: 422044330 | J125: 452398900 | K125: 483192800
A127: Expenditure - Functional
A128: =A5 -> Municipal governance and administration | C128: =C129+C132+C147 -> 79444443.06 | D128: 161899758.3 | E128: 215227375 | F128: 202013068.8 | G128: 205372535.1 | H128: 205372535.1 | I128: 211117232 | J128: 211532144.6 | K128: 235482403.8
A129: Executive and council | C129: =SUM(C130:C131) -> 29321864.87 | D129: 30003080 | E129: 35188330 | F129: 33953303.75 | G129: 35364576.36 | H129: 35364576.36 | I129: 37335758 | J129: 39202545.9 | K129: 41162673.2
A130: Mayor and Council | C130: 25199833.42 | D130: 26366966 | E130: 30376830 | F130: 32584758.92 | G130: 34542624 | H130: 34542624 | I130: 35877181 | J130: 37671040.05 | K130: 39554592.05
A131: Municipal Manager, Town Secretary and Chief Executive | C131: 4122031.45 | D131: 3636114 | E131: 4811500 | F131: 1368544.83 | G131: 821952.36 | H131: 821952.36 | I131: 1458577 | J131: 1531505.85 | K131: 1608081.143
A132: Finance and administration | C132: =SUM(C133:C146) -> 48521871.89 | D132: =SUM(D133:D146) -> 130378452.3 | E132: 178263980 | F132: 165338025.9 | G132: 167712270.7 | H132: 167712270.7 | I132: 171276130 | J132: 169698987.5 | K132: 191557588.9
A133: Administrative and Corporate Support | C133: 7231182.81 | D133: 7417827 | E133: 10074806 | F133: 12900506.38 | G133: 13334372.8 | H133: 13334372.8 | I133: 14707758 | J133: 15443145.9 | K133: 16215303.2
A134: Asset Management | C134: 17157006.53 | D134: 24625658 | E134: 42877678 | F134: 38007871.93 | G134: 40203040 | H134: 40203040 | I134: 39752593 | J134: 41740222.65 | K134: 43827233.78
A135: Budget and Treasury Office | C135: 4797546.98 | D135: 5266635 | E135: 5542579 | F135: 8425740.8 | G135: 11339553 | H135: 11339553 | I135: 5941740 | J135: 6238827 | K135: 6550768.35
A136: Finance | C136: -29459268.92 | D136: 29805318 | E136: 59374258 | F136: 34170448.99 | G136: 37192924.91 | H136: 37192924.91 | I136: 32482555 | J136: 23965733.75 | K136: 38537672.44
A137: Fleet Management | C137: 4441571 | D137: 7058267 | E137: 7308696 | F137: 9139610.07 | G137: 9199781 | H137: 9199781 | I137: 8069419 | J137: 8472889.95 | K137: 8896534.448
A138: Human Resources | C138: 11380447.16 | D138: 20340353 | E138: 15691006 | F138: 14501093.01 | G138: 13429431 | H138: 13429431 | I138: 13838443 | J138: 14530365.15 | K138: 15256883.41
A139: Information Technology | C139: 2417281.02 | D139: 5792540.35 | E139: 5889207 | F139: 10723026.39 | G139: 6411231 | H139: 6411231 | I139: 7697479 | J139: 8082352.95 | K139: 8486470.598
A140: Legal Services | C140: 4354604.92 | D140: 1635413 | E140: 1221396 | F140: 3100657 | G140: 4067289 | H140: 4067289 | I140: 7803381 | J140: 8193550.05 | K140: 8603227.553
A141: Marketing, Customer Relations, Publicity and Media Co-ordination | C141: 0 | D141: 0 | E141: 0 | F141: 0 | G141: 0 | H141: 0 | I141: 0 | J141: 0 | K141: 0
A142: Property Services | C142: 7614554 | D142: 8177475 | E142: 11147710 | F142: 10957933.98 | G142: 10700745 | H142: 10700745 | I142: 14147894 | J142: 14855288.7 | K142: 15598053.14
A143: Risk Management | C143: 10592329.08 | D143: 10388268 | E143: 8703886 | F143: 9614410.28 | G143: 8168311 | H143: 8168311 | I143: 9623739 | J143: 10104925.95 | K143: 10610172.25
A144: Security Services | C144: 6774091 | D144: 8796473 | E144: 8930282 | F144: 10807624 | G144: 11166510 | H144: 11166510 | I144: 14186888 | J144: 14896232.4 | K144: 15641044.02
A145: Supply Chain Management | C145: 1220526.31 | D145: 1074225 | E145: 1502476 | F145: 2989103.08 | G145: 2499082 | H145: 2499082 | I145: 3024241 | J145: 3175453.05 | K145: 3334225.703
A146: Valuation Service | C146: 0 | D146: 0 | E146: 0 | F146: 0 | G146: 0 | H146: 0 | I146: 0 | J146: 0 | K146: 0
A147: Internal audit | C147: =SUM(C148:C148) -> 1600706.3 | D147: 1518226 | E147: 1775065 | F147: 2721739.17 | G147: 2295688 | H147: 2295688 | I147: 2505344 | J147: 2630611.2 | K147: 2762141.76
A148: Governance Function | C148: 1600706.3 | D148: 1518226 | E148: 1775065 | F148: 2721739.17 | G148: 2295688 | H148: 2295688 | I148: 2505344 | J148: 2630611.2 | K148: 2762141.76
A149: Community and public safety | C149: =C150+C172+C178+C185+C188 -> 14844909 | D149: 14990797.26 | E149: 15182142 | F149: 23928910.41 | G149: 16058892 | H149: 16058892 | I149: 19337950 | J149: 20304847.5 | K149: 21320089.88
A150: Community and social services | C150: =SUM(C151:C171) -> 8404014 | D150: =SUM(D151:D171) -> 8256380 | E150: 8075717 | F150: 17104846.59 | G150: 9165908 | H150: 9165908 | I150: 11726317 | J150: 12312632.85 | K150: 12928264.49
A151: Aged Care | C151: 0 | D151: 0 | E151: 0 | F151: 0 | G151: 0 | H151: 0 | I151: 0 | J151: 0 | K151: 0
A152: =A29 -> Agricultural | C152: 0 | D152: 0 | E152: 0 | F152: 0 | G152: 0 | H152: 0 | I152: 0 | J152: 0 | K152: 0
A153: Animal Care and Diseases | C153: 0 | D153: 0 | E153: 535665 | F153: 675643 | G153: 549595 | H153: 549595 | I153: 715392 | J153: 751161.6 | K153: 788719.68
A154: Cemeteries, Funeral Parlours and Crematoriums | C154: 2570528 | D154: 2881373 | E154: 2792155 | F154: 3474877 | G154: 3136929 | H154: 3136929 | I154: 3944747 | J154: 4141984.35 | K154: 4349083.567
A155: Child Care Facilities | C155: 0 | D155: 0 | E155: 0 | F155: 0 | G155: 0 | H155: 0 | I155: 0 | J155: 0 | K155: 0
A156: Community Halls and Facilities | C156: 2817366 | D156: 3184265 | E156: 2750414 | F156: 4433381.88 | G156: 3947667 | H156: 3947667 | I156: 4856668 | J156: 5099501.4 | K156: 5354476.47
A157: Consumer Protection | C157: 0 | D157: 0 | E157: 0 | F157: 6161756 | G157: 0 | H157: 0 | I157: 0 | J157: 0 | K157: 0
A158: Cultural Matters | C158: 0 | D158: 0 | E158: 0 | F158: 0 | G158: 0 | H158: 0 | I158: 0 | J158: 0 | K158: 0
A159: Disaster Management | C159: 2559945 | D159: 1557786 | E159: 1508393 | F159: 1805129.71 | G159: 1129402 | H159: 1129402 | I159: 1644560 | J159: 1726788 | K159: 1813127.4
A160: Education | C160: 0 | D160: 0 | E160: 0 | F160: 0 | G160: 0 | H160: 0 | I160: 0 | J160: 0 | K160: 0
A161: Indigenous and Customary Law | C161: 0 | D161: 0 | E161: 0 | F161: 0 | G161: 0 | H161: 0 | I161: 0 | J161: 0 | K161: 0
A162: Industrial Promotion | C162: 0 | D162: 0 | E162: 0 | F162: 0 | G162: 0 | H162: 0 | I162: 0 | J162: 0 | K162: 0
A163: Language Policy | C163: 0 | D163: 0 | E163: 0 | F163: 0 | G163: 0 | H163: 0 | I163: 0 | J163: 0 | K163: 0
A164: Libraries and Archives | C164: 456175 | D164: 632956 | E164: 489090 | F164: 554059 | G164: 402315 | H164: 402315 | I164: 564950 | J164: 593197.5 | K164: 622857.375
A165: Literacy Programmes | C165: 0 | D165: 0 | E165: 0 | F165: 0 | G165: 0 | H165: 0 | I165: 0 | J165: 0 | K165: 0
A166: Media Services | C166: 0 | D166: 0 | E166: 0 | F166: 0 | G166: 0 | H166: 0 | I166: 0 | J166: 0 | K166: 0
A167: Museums and Art Galleries | C167: 0 | D167: 0 | E167: 0 | F167: 0 | G167: 0 | H167: 0 | I167: 0 | J167: 0 | K167: 0
A168: Population Development | C168: 0 | D168: 0 | E168: 0 | F168: 0 | G168: 0 | H168: 0 | I168: 0 | J168: 0 | K168: 0
A169: Provincial Cultural Matters | C169: 0 | D169: 0 | E169: 0 | F169: 0 | G169: 0 | H169: 0 | I169: 0 | J169: 0 | K169: 0
A170: Theatres | C170: 0 | D170: 0 | E170: 0 | F170: 0 | G170: 0 | H170: 0 | I170: 0 | J170: 0 | K170: 0
A171: Zoo's | C171: 0 | D171: 0 | E171: 0 | F171: 0 | G171: 0 | H171: 0 | I171: 0 | J171: 0 | K171: 0
A172: =A49 -> Sport and recreation | C172: =SUM(C173:C177) -> 5616392 | D172: 5860621 | E172: 6161756 | F172: 5717860.04 | G172: 5666404 | H172: 5666404 | I172: 6273504 | J172: 6587179.2 | K172: 6916538.16
A173: Beaches and Jetties | C173: 0 | D173: 0 | E173: 0 | F173: 0 | G173: 0 | H173: 0 | I173: 0 | J173: =I173*1.05 -> 0 | K173: =J173*1.05 -> 0
A174: Casinos, Racing, Gambling, Wagering | C174: 0 | D174: 0 | E174: 0 | F174: 0 | G174: 0 | H174: 0 | I174: 0 | J174: 0 | K174: 0
A175: Community Parks (including Nurseries) | C175: 0 | D175: 0 | E175: 0 | F175: 0 | G175: 0 | H175: 0 | I175: 0 | J175: 0 | K175: 0
A176: Recreational Facilities | C176: 0 | D176: 0 | E176: 0 | F176: 370000 | G176: 395000 | H176: 395000 | I176: 345000 | J176: 362250 | K176: 380362.5
A177: Sports Grounds and Stadiums | C177: 5616392 | D177: 5860621 | E177: 6161756 | F177: 5347860.04 | G177: 5271404 | H177: 5271404 | I177: 5928504 | J177: 6224929.2 | K177: 6536175.66
A178: Public safety | C178: =SUM(C179:C184) -> 0 | D178: 0 | E178: 0 | F178: 0 | G178: 127790 | H178: 127790 | I178: 150000 | J178: 157500 | K178: 165375
A179: Civil Defence | C179: 0 | D179: 0 | E179: 0 | F179: 0 | G179: 0 | H179: 0 | I179: 0 | J179: 0 | K179: 0
A180: Cleansing | C180: 0 | D180: 0 | E180: 0 | F180: 0 | G180: 127790 | H180: 127790 | I180: 0 | J180: 0 | K180: 0
A181: Control of Public Nuisances | C181: 0 | D181: 0 | E181: 0 | F181: 0 | G181: 0 | H181: 0 | I181: 0 | J181: 0 | K181: 0
A182: =A59 -> Fencing and Fences | C182: 0 | D182: 0 | E182: 0 | F182: 0 | G182: 0 | H182: 0 | I182: 150000 | J182: 157500 | K182: 165375
A183: Fire Fighting and Protection | C183: 0 | D183: 0 | E183: 0 | F183: 0 | G183: 0 | H183: 0 | I183: 0 | J183: 0 | K183: 0
A184: Licensing and Control of Animals | C184: 0 | D184: 0 | E184: 0 | F184: 0 | G184: 0 | H184: 0 | I184: 0 | J184: 0 | K184: 0
A185: Housing | C185: =SUM(C186:C187) -> 824503 | D185: 873796.26 | E185: 944669 | F185: 1106203.78 | G185: 1098790 | H185: 1098790 | I185: 1188129 | J185: 1247535.45 | K185: 1309912.222
A186: Housing | C186: 824503 | D186: 873796.26 | E186: 944669 | F186: 1106203.78 | G186: 1098790 | H186: 1098790 | I186: 1188129 | J186: 1247535.45 | K186: 1309912.222
A187: Informal Settlements | C187: 0 | D187: 0 | E187: 0 | F187: 0 | G187: 0 | H187: 0 | I187: 0 | J187: 0 | K187: 0
A188: Health | C188: =SUM(C189:C195) -> 0 | D188: =SUM(D189:D195) -> 0 | E188: 0 | F188: 0 | G188: 0 | H188: 0 | I188: 0 | J188: 0 | K188: 0
A189: Ambulance | C189: 0 | D189: 0 | E189: 0 | F189: 0 | G189: 0 | H189: 0 | I189: 0 | J189: 0 | K189: 0
A190: Health Services | C190: 0 | D190: 0 | E190: 0 | F190: 0 | G190: 0 | H190: 0 | I190: 0 | J190: 0 | K190: 0
A191: Laboratory Services | C191: 0 | D191: 0 | E191: 0 | F191: 0 | G191: 0 | H191: 0 | I191: 0 | J191: 0 | K191: 0
A192: Food Control | C192: 0 | D192: 0 | E192: 0 | F192: 0 | G192: 0 | H192: 0 | I192: 0 | J192: 0 | K192: 0
A193: Health Surveillance and Prevention of Communicable Diseases including immunizations | C193: 0 | D193: 0 | E193: 0 | F193: 0 | G193: 0 | H193: 0 | I193: 0 | J193: 0 | K193: 0
A194: Vector Control | C194: 0 | D194: 0 | E194: 0 | F194: 0 | G194: 0 | H194: 0 | I194: 0 | J194: 0 | K194: 0
A195: Chemical Safety | C195: 0 | D195: 0 | E195: 0 | F195: 0 | G195: 0 | H195: 0 | I195: 0 | J195: 0 | K195: 0
A196: Economic and environmental services | C196: =C197+C208+C215 -> 34705929.85 | D196: 74625491.94 | E196: 45511070 | F196: 55263681.28 | G196: 49733113.81 | H196: 49733113.81 | I196: 53014997 | J196: 55665746.85 | K196: 58449034.19
A197: Planning and development | C197: =SUM(C198:C207) -> 8454785.85 | D197: =SUM(D198:D207) -> 9754649.87 | E197: 13482589 | F197: 14779262.78 | G197: 17161952.44 | H197: 17161952.44 | I197: 28797877 | J197: 30237770.85 | K197: 31749659.39
A198: Billboards | C198: 0 | D198: 0 | E198: 0 | F198: 0 | G198: 0 | H198: 0 | I198: 0 | J198: 0 | K198: 0
A199: Corporate Wide Strategic Planning (IDPs, LEDs) | C199: 2189217.43 | D199: 2141110 | E199: 2925169 | F199: 5975176.16 | G199: 5318458.44 | H199: 5318458.44 | I199: 7010648 | J199: 7361180.4 | K199: 7729239.42
A200: Central City Improvement District | C200: 0 | D200: 0 | E200: 0 | F200: 0 | G200: 0 | H200: 0 | I200: 0 | J200: 0 | K200: 0
A201: Development Facilitation | C201: 0 | D201: 0 | E201: 0 | F201: 0 | G201: 0 | H201: 0 | I201: 0 | J201: 0 | K201: 0
... 55 more rows

Sheet A3-FinPerf V
A1: =muni&" - "&Approve2 -> LIM331 Greater Giyani - Table A3 Budgeted Financial Performance (revenue and expenditure by municipal vote)
A2: =Vdesc -> Vote Description | B2: =head27 -> Ref | C2: =head1b -> 2014/15 | D2: =head1A -> 2015/16 | E2: =Head1 -> 2016/17 | F2: =Head2 -> Current Year 2017/18 | I2: =Head3 -> 2018/19 Medium Term Revenue & Expenditure Framework | L2: =Head4 -> LTFS
A3: R thousand | C3: =Head5 -> Audited Outcome | D3: =Head5 -> Audited Outcome | E3: =Head5 -> Audited Outcome | F3: =Head6 -> Original Budget | G3: =Head7 -> Adjusted Budget | H3: =Head8 -> Full Year Forecast | I3: =Head9 -> Budget Year 2018/19 | J3: =Head10 -> Budget Year +1 2019/20 | K3: =Head11 -> Budget Year +2 2020/21 | L3: =Head12 -> Forecast 2021/22 | M3: =Head13 -> Forecast 2022/23 | N3: =Head14 -> Forecast 2023/24 | O3: =Head15 -> Forecast 2024/25 | P3: =Head16 -> Forecast 2025/26 | Q3: =Head17 -> Forecast 2026/27 | R3: =Head18 -> Forecast 2027/28 | S3: =Head19 -> Forecast 2028/29 | T3: =Head20 -> Forecast 2029/30 | U3: =Head21 -> Forecast 2030/31 | V3: =Head22 -> Forecast 2031/32 | W3: =Head23 -> Forecast 2032/33
A4: Revenue by Vote | B4: 1
A5: =A3A!A5 -> Energy sources | C5: =A3A!C5 -> 0 | D5: =A3A!D5 -> 0 | E5: =A3A!E5 -> 0 | F5: =A3A!F5 -> 0 | G5: =A3A!G5 -> 0 | H5: =A3A!H5 -> 0 | I5: =A3A!I5 -> 0 | J5: =A3A!J5 -> 0 | K5: =A3A!K5 -> 0
A6: =A3A!A16 -> Community and social services | C6: =A3A!C16 -> 276060 | D6: =A3A!D16 -> 249664 | E6: =A3A!E16 -> 465122.88 | F6: =A3A!F16 -> 333904 | G6: =A3A!G16 -> 397518 | H6: =A3A!H16 -> 397518 | I6: =A3A!I16 -> 258000 | J6: =A3A!J16 -> 270900 | K6: =A3A!K16 -> 284445
A7: =A3A!A27 -> Finance and administration | C7: =A3A!C27 -> 301997887 | D7: =A3A!D27 -> 385189965 | E7: =A3A!E27 -> 371804177.4 | F7: =A3A!F27 -> 370867096 | G7: =A3A!G27 -> 423782024 | H7: =A3A!H27 -> 423782024 | I7: =A3A!I27 -> 408247600 | J7: =A3A!J27 -> 437947333.5 | K7: =A3A!K27 -> 467963655.2
A8: =A3A!A38 -> Planning and development | C8: =A3A!C38 -> 510590 | D8: =A3A!D38 -> 637143 | E8: =A3A!E38 -> 546403 | F8: =A3A!F38 -> 815970 | G8: =A3A!G38 -> 685256 | H8: =A3A!H38 -> 685256 | I8: =A3A!I38 -> 880130 | J8: =A3A!J38 -> 924136.5 | K8: =A3A!K38 -> 970343.325
A9: =A3A!A49 -> Executive and council | C9: =A3A!C49 -> 0 | D9: =A3A!D49 -> 0 | E9: =A3A!E49 -> 0 | F9: =A3A!F49 -> 0 | G9: =A3A!G49 -> 0 | H9: =A3A!H49 -> 0 | I9: =A3A!I49 -> 0 | J9: =A3A!J49 -> 0 | K9: =A3A!K49 -> 0
A10: =A3A!A60 -> Internal audit | C10: =A3A!C60 -> 0 | D10: =A3A!D60 -> 0 | E10: =A3A!E60 -> 0 | F10: =A3A!F60 -> 0 | G10: =A3A!G60 -> 0 | H10: =A3A!H60 -> 0 | I10: =A3A!I60 -> 0 | J10: =A3A!J60 -> 0 | K10: =A3A!K60 -> 0
A11: =A3A!A71 -> Road transport | C11: =A3A!C71 -> 4835289 | D11: =A3A!D71 -> 5266584 | E11: =A3A!E71 -> 4957505 | F11: =A3A!F71 -> 7400000 | G11: =A3A!G71 -> 5790406 | H11: =A3A!H71 -> 5790406 | I11: =A3A!I71 -> 7332000 | J11: =A3A!J71 -> 7698600 | K11: =A3A!K71 -> 8083530
A12: =A3A!A82 -> Public safety | C12: =A3A!C82 -> 0 | D12: =A3A!D82 -> 0 | E12: =A3A!E82 -> 0 | F12: =A3A!F82 -> 0 | G12: =A3A!G82 -> 0 | H12: =A3A!H82 -> 0 | I12: =A3A!I82 -> 0 | J12: =A3A!J82 -> 0 | K12: =A3A!K82 -> 0
A13: =A3A!A93 -> Waste management | C13: =A3A!C93 -> 3961539 | D13: =A3A!D93 -> 4239102 | E13: =A3A!E93 -> 4302622.81 | F13: =A3A!F93 -> 4310000 | G13: =A3A!G93 -> 4437310 | H13: =A3A!H93 -> 4437310 | I13: =A3A!I93 -> 4715600 | J13: =A3A!J93 -> 4916380 | K13: =A3A!K93 -> 5217199
A14: =A3A!A104 -> Sport and recreation | C14: =A3A!C104 -> 56223 | D14: =A3A!D104 -> 46526 | E14: =A3A!E104 -> 7729.54 | F14: =A3A!F104 -> 100000 | G14: =A3A!G104 -> 21138 | H14: =A3A!H104 -> 21138 | I14: =A3A!I104 -> 22000 | J14: =A3A!J104 -> 23100 | K14: =A3A!K104 -> 24255
A15: =A3A!A115 -> Water management | C15: =A3A!C115 -> 150063 | D15: =A3A!D115 -> 285432 | E15: =A3A!E115 -> 0 | F15: =A3A!F115 -> 0 | G15: =A3A!G115 -> 0 | H15: =A3A!H115 -> 0 | I15: =A3A!I115 -> 0 | J15: =A3A!J115 -> 0 | K15: =A3A!K115 -> 0 | L15: =A5A!L115 -> 0
A16: =A3A!A126 -> Waste water management | C16: =A3A!C126 -> 29098 | D16: =A3A!D126 -> 0 | E16: =A3A!E126 -> 0 | F16: =A3A!F126 -> 0 | G16: =A3A!G126 -> 0 | H16: =A3A!H126 -> 0 | I16: =A3A!I126 -> 0 | J16: =A3A!J126 -> 0 | K16: =A3A!K126 -> 0 | L16: =A5A!L126 -> 0
A17: =A3A!A137 -> Housing | C17: =A3A!C137 -> 496645 | D17: =A3A!D137 -> 507771 | E17: =A3A!E137 -> 560280 | F17: =A3A!F137 -> 510000 | G17: =A3A!G137 -> 638712 | H17: =A3A!H137 -> 638712 | I17: =A3A!I137 -> 589000 | J17: =A3A!J137 -> 618450 | K17: =A3A!K137 -> 649372.5 | L17: =A5A!L137 -> 0
A18: =A3A!A148 -> Finance and administration | C18: =A3A!C148 -> 0 | D18: =A3A!D148 -> 0 | E18: =A3A!E148 -> 0 | F18: =A3A!F148 -> 0 | G18: =A3A!G148 -> 0 | H18: =A3A!H148 -> 0 | I18: =A3A!I148 -> 0 | J18: =A3A!J148 -> 0 | K18: =A3A!K148 -> 0 | L18: =A5A!L148 -> 0
A19: =A3A!A159 -> Vote 15 - | C19: =A3A!C159 -> 0 | D19: =A3A!D159 -> 0 | E19: =A3A!E159 -> 0 | F19: =A3A!F159 -> 0 | G19: =A3A!G159 -> 0 | H19: =A3A!H159 -> 0 | I19: =A3A!I159 -> 0 | J19: =A3A!J159 -> 0 | K19: =A3A!K159 -> 0 | L19: =A5A!L159 -> 0
A20: Total Revenue by Vote | B20: 2 | C20: =SUM(C5:C19) -> 312313394 | D20: =SUM(D5:D19) -> 396422187 | E20: 382643840.7 | F20: 384336970 | G20: 435752364 | H20: 435752364 | I20: 422044330 | J20: 452398900 | K20: 483192800
A22: Expenditure by Vote to be appropriated | B22: 1
A23: =A3A!A173 -> Energy sources | C23: =A3A!C173 -> 21655341 | D23: =A3A!D173 -> 30430247.81 | E23: =A3A!E173 -> 35597729 | F23: =A3A!F173 -> 36716170.38 | G23: =A3A!G173 -> 40172973 | H23: =A3A!H173 -> 40172973 | I23: =A3A!I173 -> 35866341 | J23: =A3A!J173 -> 31979658.05 | K23: =A3A!K173 -> 32638640.95
A24: =A3A!A184 -> Community and social services | C24: =A3A!C184 -> 8404014 | D24: =A3A!D184 -> 8256380 | E24: =A3A!E184 -> 8075717 | F24: =A3A!F184 -> 10943090.59 | G24: =A3A!G184 -> 9165908 | H24: =A3A!H184 -> 9165908 | I24: =A3A!I184 -> 11726317 | J24: =A3A!J184 -> 12312632.85 | K24: =A3A!K184 -> 12928264.49
A25: =A3A!A195 -> Finance and administration | C25: =A3A!C195 -> 32099317.06 | D25: =A3A!D195 -> 108371612 | E25: =A3A!E195 -> 153369685 | F25: =A3A!F195 -> 130906869.1 | G25: =A3A!G195 -> 136800156.9 | H25: =A3A!H195 -> 136800156.9 | I25: =A3A!I195 -> 134684005 | J25: =A3A!J195 -> 131277256.2 | K25: =A3A!K195 -> 151214771.1
A26: =A3A!A206 -> Planning and development | C26: =A3A!C206 -> 8454785.85 | D26: =A3A!D206 -> 9754649.87 | E26: =A3A!E206 -> 13482589 | F26: =A3A!F206 -> 14779262.78 | G26: =A3A!G206 -> 17161952.44 | H26: =A3A!H206 -> 17161952.44 | I26: =A3A!I206 -> 28797877 | J26: =A3A!J206 -> 30237770.85 | K26: =A3A!K206 -> 31749659.39
A27: =A3A!A217 -> Executive and council | C27: =A3A!C217 -> 29321864.87 | D27: =A3A!D217 -> 30003080 | E27: =A3A!E217 -> 35188330 | F27: =A3A!F217 -> 33953303.75 | G27: =A3A!G217 -> 35364576.36 | H27: =A3A!H217 -> 35364576.36 | I27: =A3A!I217 -> 37335758 | J27: =A3A!J217 -> 39202545.9 | K27: =A3A!K217 -> 41162673.2
A28: =A3A!A228 -> Internal audit | C28: =A3A!C228 -> 1600706.3 | D28: =A3A!D228 -> 1518226 | E28: =A3A!E228 -> 1775065 | F28: =A3A!F228 -> 2721739.17 | G28: =A3A!G228 -> 2295688 | H28: =A3A!H228 -> 2295688 | I28: =A3A!I228 -> 2505344 | J28: =A3A!J228 -> 2630611.2 | K28: =A3A!K228 -> 2762141.76
A29: =A3A!A239 -> Road transport | C29: =A3A!C239 -> 26251144 | D29: =A3A!D239 -> 64870842.07 | E29: =A3A!E239 -> 32028481 | F29: =A3A!F239 -> 40484418.5 | G29: =A3A!G239 -> 32571161.37 | H29: =A3A!H239 -> 32571161.37 | I29: =A3A!I239 -> 39998608 | J29: =A3A!J239 -> 41998538.4 | K29: =A3A!K239 -> 44098465.32
A30: =A3A!A250 -> Public safety | C30: =A3A!C250 -> 0 | D30: =A3A!D250 -> 0 | E30: =A3A!E250 -> 0 | F30: =A3A!F250 -> 0 | G30: =A3A!G250 -> 127790 | H30: =A3A!H250 -> 127790 | I30: =A3A!I250 -> 150000 | J30: =A3A!J250 -> 157500 | K30: =A3A!K250 -> 165375
A31: =A3A!A261 -> Waste management | C31: =A3A!C261 -> 7166614.29 | D31: =A3A!D261 -> 11885067 | E31: =A3A!E261 -> 11175913 | F31: =A3A!F261 -> 17115371.54 | G31: =A3A!G261 -> 19076172 | H31: =A3A!H261 -> 19076172 | I31: =A3A!I261 -> 16976972 | J31: =A3A!J261 -> 17825820.6 | K31: =A3A!K261 -> 18717111.63
A32: =A3A!A272 -> Sport and recreation | C32: =A3A!C272 -> 5616392 | D32: =A3A!D272 -> 5860621 | E32: =A3A!E272 -> 6161756 | F32: =A3A!F272 -> 5717860.04 | G32: =A3A!G272 -> 5666404 | H32: =A3A!H272 -> 5666404 | I32: =A3A!I272 -> 6273504 | J32: =A3A!J272 -> 6587179.2 | K32: =A3A!K272 -> 6916538.16
A33: =A3A!A283 -> Water management | C33: =A3A!C283 -> -1060014 | D33: =A3A!D283 -> -787359.57 | E33: =A3A!E283 -> 0 | F33: =A3A!F283 -> 0 | G33: =A3A!G283 -> 0 | H33: =A3A!H283 -> 0 | I33: =A3A!I283 -> 0 | J33: =A3A!J283 -> 0 | K33: =A3A!K283 -> 0 | L33: =A3A!L284 -> 0
A34: =A3A!A294 -> Waste water management | C34: =A3A!C294 -> 114496 | D34: =A3A!D294 -> -216209 | E34: =A3A!E294 -> 0 | F34: =A3A!F294 -> 0 | G34: =A3A!G294 -> 0 | H34: =A3A!H294 -> 0 | I34: =A3A!I294 -> 0 | J34: =A3A!J294 -> 0 | K34: =A3A!K294 -> 0 | L34: =A3A!L295 -> 0
A35: =A3A!A305 -> Housing | C35: =A3A!C305 -> 824503 | D35: =A3A!D305 -> 873796.26 | E35: =A3A!E305 -> 944669 | F35: =A3A!F305 -> 1106203.78 | G35: =A3A!G305 -> 1098790 | H35: =A3A!H305 -> 1098790 | I35: =A3A!I305 -> 1188129 | J35: =A3A!J305 -> 1247535.45 | K35: =A3A!K305 -> 1309912.222 | L35: =A3A!L306 -> 0
A36: =A3A!A316 -> Finance and administration | C36: =A3A!C316 -> 16422554.83 | D36: =A3A!D316 -> 22006840.35 | E36: =A3A!E316 -> 24894295 | F36: =A3A!F316 -> 34431156.77 | G36: =A3A!G316 -> 30912113.8 | H36: =A3A!H316 -> 30912113.8 | I36: =A3A!I316 -> 36592125 | J36: =A3A!J316 -> 38421731.25 | K36: =A3A!K316 -> 40342817.81 | L36: =A3A!L317 -> 0
A37: =A3A!A327 -> Vote 15 - | C37: =A3A!C327 -> 0 | D37: =A3A!D327 -> 0 | E37: =A3A!E327 -> 0 | F37: =A3A!F327 -> 0 | G37: =A3A!G327 -> 0 | H37: =A3A!H327 -> 0 | I37: =A3A!I327 -> 0 | J37: =A3A!J327 -> 0 | K37: =A3A!K327 -> 0 | L37: =A3A!L328 -> 0
A38: Total Expenditure by Vote | B38: 2 | C38: =SUM(C23:C37) -> 156871719.2 | D38: =SUM(D23:D37) -> 292827793.8 | E38: 322694229 | F38: 328875446.4 | G38: 330413685.9 | H38: 330413685.9 | I38: 352094980 | J38: 353878780 | K38: 384006371 | L38: =SUM(L23:L29) -> 0 | M38: 0 | N38: 0 | O38: 0 | P38: 0 | Q38: 0 | R38: 0 | S38: 0 | T38: 0 | U38: 0 | V38: 0 | W38: 0
A39: =result -> Surplus/(Deficit) for the year | B39: 2 | C39: =C20-C38 -> 155441674.8 | D39: 103594393.2 | E39: 59949611.66 | F39: 55461523.56 | G39: 105338678.1 | H39: 105338678.1 | I39: 69949350 | J39: 98520120 | K39: 99186429 | L39: 0 | M39: 0 | N39: 0 | O39: 0 | P39: 0 | Q39: 0 | R39: 0 | S39: 0 | T39: 0 | U39: 0 | V39: 0 | W39: 0
A40: =head27a -> References
A41: 1. Insert 'Vote'; e.g. department, if different to functional classification structure
A42: 2. Must reconcile to Budgeted Financial Performance (revenue and expenditure)
A43: 3. Assign share in 'associate' to relevant Vote
A45: ="check "&A39 -> check Surplus/(Deficit) for the year | C45: =C39-A3A!C340 -> 0 | D45: =D39-A3A!D340 -> 0 | E45: =E39-A3A!E340 -> 0 | F45: =F39-A3A!F340 -> 0 | G45: =G39-A3A!G340 -> 0 | H45: =H39-A3A!H340 -> 0 | I45: =I39-A3A!I340 -> 0 | J45: =J39-A3A!J340 -> 0 | K45: =K39-A3A!K340 -> 0

Sheet A3A
A1: =muni&" - "&Approve2&"A" -> LIM331 Greater Giyani - Table A3 Budgeted Financial Performance (revenue and expenditure by municipal vote)A
A2: =Vdesc -> Vote Description | B2: =head27 -> Ref | C2: =head1b -> 2014/15 | D2: =head1A -> 2015/16 | E2: =Head1 -> 2016/17 | F2: =Head2 -> Current Year 2017/18 | I2: =Head3 -> 2018/19 Medium Term Revenue & Expenditure Framework | L2: =Head4 -> LTFS
A3: R thousand | C3: =Head5 -> Audited Outcome | D3: =Head5 -> Audited Outcome | E3: =Head5 -> Audited Outcome | F3: =Head6 -> Original Budget | G3: =Head7 -> Adjusted Budget | H3: =Head8 -> Full Year Forecast | I3: =Head9 -> Budget Year 2018/19 | J3: =Head10 -> Budget Year +1 2019/20 | K3: =Head11 -> Budget Year +2 2020/21 | L3: =Head12 -> Forecast 2021/22 | M3: =Head13 -> Forecast 2022/23 | N3: =Head14 -> Forecast 2023/24 | O3: =Head15 -> Forecast 2024/25 | P3: =Head16 -> Forecast 2025/26 | Q3: =Head17 -> Forecast 2026/27 | R3: =Head18 -> Forecast 2027/28 | S3: =Head19 -> Forecast 2028/29 | T3: =Head20 -> Forecast 2029/30 | U3: =Head21 -> Forecast 2030/31 | V3: =Head22 -> Forecast 2031/32 | W3: =Head23 -> Forecast 2032/33
A4: Revenue by Vote | B4: 1
A5: ='Org structure'!A2 -> Energy sources | C5: =SUM(C6:C15) -> 0 | D5: =SUM(D6:D15) -> 0 | E5: 0 | F5: 0 | G5: 0 | H5: 0 | I5: 0 | J5: 0 | K5: 0
A6: ='Org structure'!E3 -> 1.1 - Electricity | C6: 0 | D6: 0 | E6: 0 | F6: 0 | G6: 0 | H6: 0 | I6: 0 | J6: 0 | K6: 0
A7: ='Org structure'!E4 -> 1.2 - Street Lighting and Signal Systems | C7: 0 | D7: 0 | E7: 0 | F7: 0 | G7: 0 | H7: 0 | I7: 0 | J7: 0 | K7: 0
A8: ='Org structure'!E5 -> 1.3 - | C8: 0 | D8: 0 | E8: 0 | F8: 0 | G8: 0 | H8: 0 | I8: 0 | J8: 0 | K8: 0
A9: ='Org structure'!E6 -> 1.4 - | C9: 0 | D9: 0 | E9: 0 | F9: 0 | G9: 0 | H9: 0 | I9: 0 | J9: 0 | K9: 0
A10: ='Org structure'!E7 -> 1.5 - | C10: 0 | D10: 0 | E10: 0 | F10: 0 | G10: 0 | H10: 0 | I10: 0 | J10: 0 | K10: 0
A11: ='Org structure'!E8 -> 1.6 - | C11: 0 | D11: 0 | E11: 0 | F11: 0 | G11: 0 | H11: 0 | I11: 0 | J11: 0 | K11: 0
A12: ='Org structure'!E9 -> 1.7 - | C12: 0 | D12: 0 | E12: 0 | F12: 0 | G12: 0 | H12: 0 | I12: 0 | J12: 0 | K12: 0
A13: ='Org structure'!E10 -> 1.8 - | C13: 0 | D13: 0 | E13: 0 | F13: 0 | G13: 0 | H13: 0 | I13: 0 | J13: 0 | K13: 0
A14: ='Org structure'!E11 -> 1.9 - | C14: 0 | D14: 0 | E14: 0 | F14: 0 | G14: 0 | H14: 0 | I14: 0 | J14: 0 | K14: 0
A15: ='Org structure'!E12 -> 1.10 - | C15: 0 | D15: 0 | E15: 0 | F15: 0 | G15: 0 | H15: 0 | I15: 0 | J15: 0 | K15: 0
A16: ='Org structure'!A3 -> Community and social services | C16: =SUM(C17:C26) -> 276060 | D16: =SUM(D17:D26) -> 249664 | E16: 465122.88 | F16: 333904 | G16: 397518 | H16: 397518 | I16: 258000 | J16: 270900 | K16: 284445
A17: ='Org structure'!E14 -> 2.1 - Animal Care and Diseases | C17: 0 | D17: 0 | E17: 0 | F17: 0 | G17: 0 | H17: 0 | I17: 0 | J17: 0 | K17: 0
A18: ='Org structure'!E15 -> 2.2 - Community Halls and Facilities | C18: 195180 | D18: 192289 | E18: 198543 | F18: 230000 | G18: 150608 | H18: 150608 | I18: 175000 | J18: 183750 | K18: 192937.5
A19: ='Org structure'!E16 -> 2.3 - Libraries and Archives | C19: 3015 | D19: 3473 | E19: 2735.92 | F19: 2000 | G19: 3598 | H19: 3598 | I19: 0 | J19: 0 | K19: 0
A20: ='Org structure'!E17 -> 2.4 - Cemeteries, Funeral Parlours and Crematoriums | C20: 77865 | D20: 53902 | E20: 263843.96 | F20: 101904 | G20: 243312 | H20: 243312 | I20: 83000 | J20: 87150 | K20: 91507.5
A21: ='Org structure'!E18 -> 2.5 - Libraries and Archives | C21: 0 | D21: 0 | E21: 0 | F21: 0 | G21: 0 | H21: 0 | I21: 0 | J21: 0 | K21: 0
A22: ='Org structure'!E19 -> 2.6 - Disaster Management | C22: 0 | D22: 0 | E22: 0 | F22: 0 | G22: 0 | H22: 0 | I22: 0 | J22: 0 | K22: 0
A23: ='Org structure'!E20 -> 2.7 - | C23: 0 | D23: 0 | E23: 0 | F23: 0 | G23: 0 | H23: 0 | I23: 0 | J23: 0 | K23: 0
A24: ='Org structure'!E21 -> 2.8 - | C24: 0 | D24: 0 | E24: 0 | F24: 0 | G24: 0 | H24: 0 | I24: 0 | J24: 0 | K24: 0
A25: ='Org structure'!E22 -> 2.9 - | C25: 0 | D25: 0 | E25: 0 | F25: 0 | G25: 0 | H25: 0 | I25: 0 | J25: 0 | K25: 0
A26: ='Org structure'!E23 -> 2.10 - | C26: 0 | D26: 0 | E26: 0 | F26: 0 | G26: 0 | H26: 0 | I26: 0 | J26: 0 | K26: 0
A27: ='Org structure'!A4 -> Finance and administration | C27: =SUM(C28:C37) -> 301997887 | D27: 385189965 | E27: 371804177.4 | F27: 370867096 | G27: 423782024 | H27: 423782024 | I27: 408247600 | J27: 437947333.5 | K27: 467963655.2
A28: ='Org structure'!E25 -> 3.1 - Fleet Management | C28: 16177 | D28: 12429 | E28: 16304.46 | F28: 20000 | G28: 15806 | H28: 15806 | I28: 17000 | J28: 17850 | K28: 18742.5
A29: ='Org structure'!E26 -> 3.2 - Budget and Treasury Office | C29: 0 | D29: 0 | E29: 0 | F29: 0 | G29: 0 | H29: 0 | I29: 0 | J29: 0 | K29: 0
A30: ='Org structure'!E27 -> 3.3 - Finance | C30: 300563899 | D30: 384601817 | E30: 370376207.2 | F30: 370077096 | G30: 422539460 | H30: 422539460 | I30: 406900600 | J30: 436541983.5 | K30: 466507537.7
A31: ='Org structure'!E28 -> 3.4 - Asset Management | C31: 427436 | E31: 0 | F31: 0 | G31: 0 | H31: 0 | I31: 0 | J31: 0 | K31: 0
A32: ='Org structure'!E29 -> 3.5 - Human Resources | C32: 377481 | D32: 183775 | E32: 211632.72 | F32: 370000 | G32: 223582 | H32: 223582 | I32: 380000 | J32: 390000 | K32: 390000
A33: ='Org structure'!E30 -> 3.6 - Legal Services | C33: 0 | D33: 0 | E33: 0 | F33: 0 | G33: 0 | H33: 0 | I33: 0 | J33: 0 | K33: 0
A34: ='Org structure'!E31 -> 3.7 - Property Services | C34: 157839 | D34: 106303 | E34: 293278.79 | F34: 0 | G34: 0 | H34: 0 | I34: 0 | J34: 0 | K34: 0
A35: ='Org structure'!E32 -> 3.8 - Risk Management | C35: 0 | D35: 0 | E35: 0 | F35: 0 | G35: 0 | H35: 0 | I35: 0 | J35: 0 | K35: 0
A36: ='Org structure'!E33 -> 3.9 - Supply Chain Management | C36: 455055 | D36: 285641 | E36: 906754.24 | F36: 400000 | G36: 1003176 | H36: 1003176 | I36: 950000 | J36: 997500 | K36: 1047375
A37: ='Org structure'!E34 -> 3.10 - | C37: 0 | D37: 0 | E37: 0 | F37: 0 | G37: 0 | H37: 0 | I37: 0 | J37: 0 | K37: 0
A38: ='Org structure'!A5 -> Planning and development | C38: =SUM(C39:C48) -> 510590 | D38: 637143 | E38: 546403 | F38: 815970 | G38: 685256 | H38: 685256 | I38: 880130 | J38: 924136.5 | K38: 970343.325
A39: ='Org structure'!E36 -> 4.1 - Town Planning, Building Regulations and Enforcement, and City Engineer | C39: 412532 | D39: 497302 | E39: 435565 | F39: 660000 | G39: 565068 | H39: 565068 | I39: 758130 | J39: 796036.5 | K39: 835838.325
A40: ='Org structure'!E37 -> 4.2 - Corporate Wide Strategic Planning (IDPs, LEDs) | C40: 0 | D40: 0 | E40: 0 | F40: 155970 | G40: 120188 | H40: 120188 | I40: 122000 | J40: 128100 | K40: 134505
A41: ='Org structure'!E38 -> 4.3 - Economic Development/Planning | C41: 98058 | D41: 139841 | E41: 110838 | F41: 0 | G41: 0 | H41: 0 | I41: 0 | J41: 0 | K41: 0
A42: ='Org structure'!E39 -> 4.4 - Project Management Unit | C42: 0 | D42: 0 | E42: 0 | F42: 0 | G42: 0 | H42: 0 | I42: 0 | J42: 0 | K42: 0
A43: ='Org structure'!E40 -> 4.5 - | C43: 0 | D43: 0 | E43: 0 | F43: 0 | G43: 0 | H43: 0 | I43: 0 | J43: 0 | K43: 0
A44: ='Org structure'!E41 -> 4.6 - | C44: 0 | D44: 0 | E44: 0 | F44: 0 | G44: 0 | H44: 0 | I44: 0 | J44: 0 | K44: 0
A45: ='Org structure'!E42 -> 4.7 - | C45: 0 | D45: 0 | E45: 0 | F45: 0 | G45: 0 | H45: 0 | I45: 0 | J45: 0 | K45: 0
A46: ='Org structure'!E43 -> 4.8 - | C46: 0 | D46: 0 | E46: 0 | F46: 0 | G46: 0 | H46: 0 | I46: 0 | J46: 0 | K46: 0
A47: ='Org structure'!E44 -> 4.9 - | C47: 0 | D47: 0 | E47: 0 | F47: 0 | G47: 0 | H47: 0 | I47: 0 | J47: 0 | K47: 0
A48: ='Org structure'!E45 -> 4.10 - | C48: 0 | D48: 0 | E48: 0 | F48: 0 | G48: 0 | H48: 0 | I48: 0 | J48: 0 | K48: 0
A49: ='Org structure'!A6 -> Executive and council | C49: =SUM(C50:C59) -> 0 | D49: =SUM(D50:D59) -> 0 | E49: 0 | F49: 0 | G49: 0 | H49: 0 | I49: 0 | J49: 0 | K49: 0
A50: ='Org structure'!E47 -> 5.1 - Municipal Manager, Town Secretary and Chief Executive | C50: 0 | D50: 0 | E50: 0 | F50: 0 | G50: 0 | H50: 0 | I50: 0 | J50: 0 | K50: 0
A51: ='Org structure'!E48 -> 5.2 - Mayor and Council | C51: 0 | D51: 0 | E51: 0 | F51: 0 | G51: 0 | H51: 0 | I51: 0 | J51: 0 | K51: 0
A52: ='Org structure'!E49 -> 5.3 - | C52: 0 | D52: 0 | E52: 0 | F52: 0 | G52: 0 | H52: 0 | I52: 0 | J52: 0 | K52: 0
A53: ='Org structure'!E50 -> 5.4 - | C53: 0 | D53: 0 | E53: 0 | F53: 0 | G53: 0 | H53: 0 | I53: 0 | J53: 0 | K53: 0
A54: ='Org structure'!E51 -> 5.5 - | C54: 0 | D54: 0 | E54: 0 | F54: 0 | G54: 0 | H54: 0 | I54: 0 | J54: 0 | K54: 0
A55: ='Org structure'!E52 -> 5.6 - | C55: 0 | D55: 0 | E55: 0 | F55: 0 | G55: 0 | H55: 0 | I55: 0 | J55: 0 | K55: 0
A56: ='Org structure'!E53 -> 5.7 - | C56: 0 | D56: 0 | E56: 0 | F56: 0 | G56: 0 | H56: 0 | I56: 0 | J56: 0 | K56: 0
A57: ='Org structure'!E54 -> 5.8 - | C57: 0 | D57: 0 | E57: 0 | F57: 0 | G57: 0 | H57: 0 | I57: 0 | J57: 0 | K57: 0
A58: ='Org structure'!E55 -> 5.9 - | C58: 0 | D58: 0 | E58: 0 | F58: 0 | G58: 0 | H58: 0 | I58: 0 | J58: 0 | K58: 0
A59: ='Org structure'!E56 -> 5.10 - | C59: 0 | D59: 0 | E59: 0 | F59: 0 | G59: 0 | H59: 0 | I59: 0 | J59: 0 | K59: 0
A60: ='Org structure'!A7 -> Internal audit | C60: =SUM(C61:C70) -> 0 | D60: =SUM(D61:D70) -> 0 | E60: 0 | F60: 0 | G60: 0 | H60: 0 | I60: 0 | J60: 0 | K60: 0
A61: ='Org structure'!E58 -> 6.1 - Governance Function | C61: 0 | D61: 0 | E61: 0 | F61: 0 | G61: 0 | H61: 0 | I61: 0 | J61: 0 | K61: 0
A62: ='Org structure'!E59 -> 6.2 - | C62: 0 | D62: 0 | E62: 0 | F62: 0 | G62: 0 | H62: 0 | I62: 0 | J62: 0 | K62: 0
A63: ='Org structure'!E60 -> 6.3 - | C63: 0 | D63: 0 | E63: 0 | F63: 0 | G63: 0 | H63: 0 | I63: 0 | J63: 0 | K63: 0
A64: ='Org structure'!E61 -> 6.4 - | C64: 0 | D64: 0 | E64: 0 | F64: 0 | G64: 0 | H64: 0 | I64: 0 | J64: 0 | K64: 0
A65: ='Org structure'!E62 -> 6.5 - | C65: 0 | D65: 0 | E65: 0 | F65: 0 | G65: 0 | H65: 0 | I65: 0 | J65: 0 | K65: 0
A66: ='Org structure'!E63 -> 6.6 - | C66: 0 | D66: 0 | E66: 0 | F66: 0 | G66: 0 | H66: 0 | I66: 0 | J66: 0 | K66: 0
A67: ='Org structure'!E64 -> 6.7 - | C67: 0 | D67: 0 | E67: 0 | F67: 0 | G67: 0 | H67: 0 | I67: 0 | J67: 0 | K67: 0
A68: ='Org structure'!E65 -> 6.8 - | C68: 0 | D68: 0 | E68: 0 | F68: 0 | G68: 0 | H68: 0 | I68: 0 | J68: 0 | K68: 0
A69: ='Org structure'!E66 -> 6.9 - | C69: 0 | D69: 0 | E69: 0 | F69: 0 | G69: 0 | H69: 0 | I69: 0 | J69: 0 | K69: 0
A70: ='Org structure'!E67 -> 6.10 - | C70: 0 | D70: 0 | E70: 0 | F70: 0 | G70: 0 | H70: 0 | I70: 0 | J70: 0 | K70: 0
A71: ='Org structure'!A8 -> Road transport | C71: =SUM(C72:C81) -> 4835289 | D71: 5266584 | E71: 4957505 | F71: 7400000 | G71: 5790406 | H71: 5790406 | I71: 7332000 | J71: 7698600 | K71: 8083530
A72: ='Org structure'!E69 -> 7.1 - Taxi Ranks | C72: 0 | D72: 0 | E72: 0 | F72: 0 | G72: 0 | H72: 0 | I72: 0 | J72: 0 | K72: 0
A73: ='Org structure'!E70 -> 7.2 - Road and Traffic Regulation | C73: 4835289 | D73: 5266584 | E73: 4957505 | F73: 7400000 | G73: 5790406 | H73: 5790406 | I73: 7332000 | J73: 7698600 | K73: 8083530
A74: ='Org structure'!E71 -> 7.3 - Public Transport | C74: 0 | D74: 0 | E74: 0 | F74: 0 | G74: 0 | H74: 0 | I74: 0 | J74: 0 | K74: 0
A75: ='Org structure'!E72 -> 7.4 - Roads | C75: 0 | D75: 0 | E75: 0 | F75: 0 | G75: 0 | H75: 0 | I75: 0 | J75: 0 | K75: 0
A76: ='Org structure'!E73 -> 7.5 - | C76: 0 | D76: 0 | E76: 0 | F76: 0 | G76: 0 | H76: 0 | I76: 0 | J76: 0 | K76: 0
A77: ='Org structure'!E74 -> 7.6 - | C77: 0 | D77: 0 | E77: 0 | F77: 0 | G77: 0 | H77: 0 | I77: 0 | J77: 0 | K77: 0
A78: ='Org structure'!E75 -> 7.7 - | C78: 0 | D78: 0 | E78: 0 | F78: 0 | G78: 0 | H78: 0 | I78: 0 | J78: 0 | K78: 0
A79: ='Org structure'!E76 -> 7.8 - | C79: 0 | D79: 0 | E79: 0 | F79: 0 | G79: 0 | H79: 0 | I79: 0 | J79: 0 | K79: 0
A80: ='Org structure'!E77 -> 7.9 - | C80: 0 | D80: 0 | E80: 0 | F80: 0 | G80: 0 | H80: 0 | I80: 0 | J80: 0 | K80: 0
A81: ='Org structure'!E78 -> 7.10 - | C81: 0 | D81: 0 | E81: 0 | F81: 0 | G81: 0 | H81: 0 | I81: 0 | J81: 0 | K81: 0
A82: ='Org structure'!A9 -> Public safety | C82: =SUM(C83:C92) -> 0 | D82: =SUM(D83:D92) -> 0 | E82: 0 | F82: 0 | G82: 0 | H82: 0 | I82: 0 | J82: 0 | K82: 0
A83: ='Org structure'!E80 -> 8.1 - Cleansing | C83: 0 | D83: 0 | E83: 0 | F83: 0 | G83: 0 | H83: 0 | I83: 0 | J83: 0 | K83: 0
A84: ='Org structure'!E81 -> 8.2 - Fencing and Fences | C84: 0 | D84: 0 | E84: 0 | F84: 0 | G84: 0 | H84: 0 | I84: 0 | J84: 0 | K84: 0
A85: ='Org structure'!E82 -> 8.3 - | C85: 0 | D85: 0 | E85: 0 | F85: 0 | G85: 0 | H85: 0 | I85: 0 | J85: 0 | K85: 0
A86: ='Org structure'!E83 -> 8.4 - | C86: 0 | D86: 0 | E86: 0 | F86: 0 | G86: 0 | H86: 0 | I86: 0 | J86: 0 | K86: 0
A87: ='Org structure'!E84 -> 8.5 - | C87: 0 | D87: 0 | E87: 0 | F87: 0 | G87: 0 | H87: 0 | I87: 0 | J87: 0 | K87: 0
A88: ='Org structure'!E85 -> 8.6 - | C88: 0 | D88: 0 | E88: 0 | F88: 0 | G88: 0 | H88: 0 | I88: 0 | J88: 0 | K88: 0
A89: ='Org structure'!E86 -> 8.7 - | C89: 0 | D89: 0 | E89: 0 | F89: 0 | G89: 0 | H89: 0 | I89: 0 | J89: 0 | K89: 0
A90: ='Org structure'!E87 -> 8.8 - | C90: 0 | D90: 0 | E90: 0 | F90: 0 | G90: 0 | H90: 0 | I90: 0 | J90: 0 | K90: 0
A91: ='Org structure'!E88 -> 8.9 - | C91: 0 | D91: 0 | E91: 0 | F91: 0 | G91: 0 | H91: 0 | I91: 0 | J91: 0 | K91: 0
A92: ='Org structure'!E89 -> 8.10 - | C92: 0 | D92: 0 | E92: 0 | F92: 0 | G92: 0 | H92: 0 | I92: 0 | J92: 0 | K92: 0
A93: ='Org structure'!A10 -> Waste management | C93: =SUM(C94:C103) -> 3961539 | D93: =SUM(D94:D103) -> 4239102 | E93: 4302622.81 | F93: 4310000 | G93: 4437310 | H93: 4437310 | I93: 4715600 | J93: 4916380 | K93: 5217199
A94: ='Org structure'!E91 -> 9.1 - Recycling | C94: 0 | D94: 0 | E94: 0 | F94: 0 | G94: 0 | H94: 0 | I94: 0 | J94: 0 | K94: 0
A95: ='Org structure'!E92 -> 9.2 - Solid Waste Disposal (Landfill Sites) | C95: 0 | D95: 0 | E95: 0 | F95: 0 | G95: 0 | H95: 0 | I95: 0 | J95: 0 | K95: 0
A96: ='Org structure'!E93 -> 9.3 - Solid Waste Removal | C96: 3961539 | D96: 4239102 | E96: 4302622.81 | F96: 4310000 | G96: 4437310 | H96: 4437310 | I96: 4715600 | J96: 4916380 | K96: 5217199
A97: ='Org structure'!E94 -> 9.4 - | C97: 0 | D97: 0 | E97: 0 | F97: 0 | G97: 0 | H97: 0 | I97: 0 | J97: 0 | K97: 0
A98: ='Org structure'!E95 -> 9.5 - | C98: 0 | D98: 0 | E98: 0 | F98: 0 | G98: 0 | H98: 0 | I98: 0 | J98: 0 | K98: 0
A99: ='Org structure'!E96 -> 9.6 - | C99: 0 | D99: 0 | E99: 0 | F99: 0 | G99: 0 | H99: 0 | I99: 0 | J99: 0 | K99: 0
A100: ='Org structure'!E97 -> 9.7 - | C100: 0 | D100: 0 | E100: 0 | F100: 0 | G100: 0 | H100: 0 | I100: 0 | J100: 0 | K100: 0
A101: ='Org structure'!E98 -> 9.8 - | C101: 0 | D101: 0 | E101: 0 | F101: 0 | G101: 0 | H101: 0 | I101: 0 | J101: 0 | K101: 0
A102: ='Org structure'!E99 -> 9.9 - | C102: 0 | D102: 0 | E102: 0 | F102: 0 | G102: 0 | H102: 0 | I102: 0 | J102: 0 | K102: 0
A103: ='Org structure'!E100 -> 9.10 - | C103: 0 | D103: 0 | E103: 0 | F103: 0 | G103: 0 | H103: 0 | I103: 0 | J103: 0 | K103: 0
A104: ='Org structure'!A11 -> Sport and recreation | C104: =SUM(C105:C114) -> 56223 | D104: =SUM(D105:D114) -> 46526 | E104: 7729.54 | F104: 100000 | G104: 21138 | H104: 21138 | I104: 22000 | J104: 23100 | K104: 24255
A105: ='Org structure'!E102 -> 10.1 - Recreational Facilities | C105: ` | D105: 0 | E105: 0 | F105: 0 | G105: 0 | H105: 0 | I105: 0 | J105: 0 | K105: 0
A106: ='Org structure'!E103 -> 10.2 - Sports Grounds and Stadiums | C106: 56223 | D106: 46526 | E106: 7729.54 | F106: 100000 | G106: 21138 | H106: 21138 | I106: 22000 | J106: 23100 | K106: 24255
A107: ='Org structure'!E104 -> 10.3 - | C107: 0 | D107: 0 | E107: 0 | F107: 0 | G107: 0 | H107: 0 | I107: 0 | J107: 0 | K107: 0
A108: ='Org structure'!E105 -> 10.4 - | C108: 0 | D108: 0 | E108: 0 | F108: 0 | G108: 0 | H108: 0 | I108: 0 | J108: 0 | K108: 0
A109: ='Org structure'!E106 -> 10.5 - | C109: 0 | D109: 0 | E109: 0 | F109: 0 | G109: 0 | H109: 0 | I109: 0 | J109: 0 | K109: 0
A110: ='Org structure'!E107 -> 10.6 - | C110: 0 | D110: 0 | E110: 0 | F110: 0 | G110: 0 | H110: 0 | I110: 0 | J110: 0 | K110: 0
A111: ='Org structure'!E108 -> 10.7 - | C111: 0 | D111: 0 | E111: 0 | F111: 0 | G111: 0 | H111: 0 | I111: 0 | J111: 0 | K111: 0
A112: ='Org structure'!E109 -> 10.8 - | C112: 0 | D112: 0 | E112: 0 | F112: 0 | G112: 0 | H112: 0 | I112: 0 | J112: 0 | K112: 0
A113: ='Org structure'!E110 -> 10.9 - | C113: 0 | D113: 0 | E113: 0 | F113: 0 | G113: 0 | H113: 0 | I113: 0 | J113: 0 | K113: 0
A114: ='Org structure'!E111 -> 10.10 - | C114: 0 | D114: 0 | E114: 0 | F114: 0 | G114: 0 | H114: 0 | I114: 0 | J114: 0 | K114: 0
A115: ='Org structure'!A12 -> Water management | C115: =SUM(C116:C125) -> 150063 | D115: =SUM(D116:D125) -> 285432 | E115: 0 | F115: 0 | G115: 0 | H115: 0 | I115: 0 | J115: 0 | K115: 0
A116: ='Org structure'!E113 -> 11.1 - Water Distribution | C116: 150063 | D116: 285432 | E116: 0 | F116: 0 | G116: 0 | H116: 0 | I116: 0 | J116: 0 | K116: 0
A117: ='Org structure'!E114 -> 11.2 - | C117: 0 | D117: 0 | E117: 0 | F117: 0 | G117: 0 | H117: 0 | I117: 0 | J117: 0 | K117: 0
A118: ='Org structure'!E115 -> 11.3 - | C118: 0 | D118: 0 | E118: 0 | F118: 0 | G118: 0 | H118: 0 | I118: 0 | J118: 0 | K118: 0
A119: ='Org structure'!E116 -> 11.4 - | C119: 0 | D119: 0 | E119: 0 | F119: 0 | G119: 0 | H119: 0 | I119: 0 | J119: 0 | K119: 0
A120: ='Org structure'!E117 -> 11.5 - | C120: 0 | D120: 0 | E120: 0 | F120: 0 | G120: 0 | H120: 0 | I120: 0 | J120: 0 | K120: 0
A121: ='Org structure'!E118 -> 11.6 - | C121: 0 | D121: 0 | E121: 0 | F121: 0 | G121: 0 | H121: 0 | I121: 0 | J121: 0 | K121: 0
A122: ='Org structure'!E119 -> 11.7 - | C122: 0 | D122: 0 | E122: 0 | F122: 0 | G122: 0 | H122: 0 | I122: 0 | J122: 0 | K122: 0
A123: ='Org structure'!E120 -> 11.8 - | C123: 0 | D123: 0 | E123: 0 | F123: 0 | G123: 0 | H123: 0 | I123: 0 | J123: 0 | K123: 0
A124: ='Org structure'!E121 -> 11.9 - | C124: 0 | D124: 0 | E124: 0 | F124: 0 | G124: 0 | H124: 0 | I124: 0 | J124: 0 | K124: 0
A125: ='Org structure'!E122 -> 11.10 - | C125: 0 | D125: 0 | E125: 0 | F125: 0 | G125: 0 | H125: 0 | I125: 0 | J125: 0 | K125: 0
A126: ='Org structure'!A13 -> Waste water management | C126: =SUM(C127:C136) -> 29098 | D126: =SUM(D127:D136) -> 0 | E126: 0 | F126: 0 | G126: 0 | H126: 0 | I126: 0 | J126: 0 | K126: 0
A127: ='Org structure'!E124 -> 12.1 - Sewerage | C127: 29098 | D127: 0 | E127: 0 | F127: 0 | G127: 0 | H127: 0 | I127: 0 | J127: 0 | K127: 0
A128: ='Org structure'!E125 -> 12.2 - | C128: 0 | D128: 0 | E128: 0 | F128: 0 | G128: 0 | H128: 0 | I128: 0 | J128: 0 | K128: 0
A129: ='Org structure'!E126 -> 12.3 - | C129: 0 | D129: 0 | E129: 0 | F129: 0 | G129: 0 | H129: 0 | I129: 0 | J129: 0 | K129: 0
A130: ='Org structure'!E127 -> 12.4 - | C130: 0 | D130: 0 | E130: 0 | F130: 0 | G130: 0 | H130: 0 | I130: 0 | J130: 0 | K130: 0
A131: ='Org structure'!E128 -> 12.5 - | C131: 0 | D131: 0 | E131: 0 | F131: 0 | G131: 0 | H131: 0 | I131: 0 | J131: 0 | K131: 0
A132: ='Org structure'!E129 -> 12.6 - | C132: 0 | D132: 0 | E132: 0 | F132: 0 | G132: 0 | H132: 0 | I132: 0 | J132: 0 | K132: 0
A133: ='Org structure'!E130 -> 12.7 - | C133: 0 | D133: 0 | E133: 0 | F133: 0 | G133: 0 | H133: 0 | I133: 0 | J133: 0 | K133: 0
A134: ='Org structure'!E131 -> 12.8 - | C134: 0 | D134: 0 | E134: 0 | F134: 0 | G134: 0 | H134: 0 | I134: 0 | J134: 0 | K134: 0
A135: ='Org structure'!E132 -> 12.9 - | C135: 0 | D135: 0 | E135: 0 | F135: 0 | G135: 0 | H135: 0 | I135: 0 | J135: 0 | K135: 0
A136: ='Org structure'!E133 -> 12.10 - | C136: 0 | D136: 0 | E136: 0 | F136: 0 | G136: 0 | H136: 0 | I136: 0 | J136: 0 | K136: 0
A137: ='Org structure'!A14 -> Housing | C137: =SUM(C138:C147) -> 496645 | D137: =SUM(D138:D147) -> 507771 | E137: 560280 | F137: 510000 | G137: 638712 | H137: 638712 | I137: 589000 | J137: 618450 | K137: 649372.5
A138: ='Org structure'!E135 -> 13.1 - Housing | C138: 496645 | D138: 507771 | E138: 560280 | F138: 510000 | G138: 638712 | H138: 638712 | I138: 589000 | J138: 618450 | K138: 649372.5
A139: ='Org structure'!E136 -> 13.2 - | C139: 0 | D139: 0 | E139: 0 | F139: 0 | G139: 0 | H139: 0 | I139: 0 | J139: 0 | K139: 0
A140: ='Org structure'!E137 -> 13.3 - | C140: 0 | D140: 0 | E140: 0 | F140: 0 | G140: 0 | H140: 0 | I140: 0 | J140: 0 | K140: 0
A141: ='Org structure'!E138 -> 13.4 - | C141: 0 | D141: 0 | E141: 0 | F141: 0 | G141: 0 | H141: 0 | I141: 0 | J141: 0 | K141: 0
A142: ='Org structure'!E139 -> 13.5 - | C142: 0 | D142: 0 | E142: 0 | F142: 0 | G142: 0 | H142: 0 | I142: 0 | J142: 0 | K142: 0
A143: ='Org structure'!E140 -> 13.6 - | C143: 0 | D143: 0 | E143: 0 | F143: 0 | G143: 0 | H143: 0 | I143: 0 | J143: 0 | K143: 0
A144: ='Org structure'!E141 -> 13.7 - | C144: 0 | D144: 0 | E144: 0 | F144: 0 | G144: 0 | H144: 0 | I144: 0 | J144: 0 | K144: 0
A145: ='Org structure'!E142 -> 13.8 - | C145: 0 | D145: 0 | E145: 0 | F145: 0 | G145: 0 | H145: 0 | I145: 0 | J145: 0 | K145: 0
A146: ='Org structure'!E143 -> 13.9 - | C146: 0 | D146: 0 | E146: 0 | F146: 0 | G146: 0 | H146: 0 | I146: 0 | J146: 0 | K146: 0
A147: ='Org structure'!E144 -> 13.10 - | C147: 0 | D147: 0 | E147: 0 | F147: 0 | G147: 0 | H147: 0 | I147: 0 | J147: 0 | K147: 0
A148: ='Org structure'!A15 -> Finance and administration | C148: =SUM(C149:C158) -> 0 | D148: =SUM(D149:D158) -> 0 | E148: 0 | F148: 0 | G148: 0 | H148: 0 | I148: 0 | J148: 0 | K148: 0
A149: ='Org structure'!E146 -> 14.1 - Security Services | C149: 0 | D149: 0 | E149: 0 | F149: 0 | G149: 0 | H149: 0 | I149: 0 | J149: 0 | K149: 0
A150: ='Org structure'!E147 -> 14.2 - Administrative and Corporate Support | C150: 0 | D150: 0 | E150: 0 | F150: 0 | G150: 0 | H150: 0 | I150: 0 | J150: 0 | K150: 0
A151: ='Org structure'!E148 -> 14.3 - Information Technology | C151: 0 | D151: 0 | E151: 0 | F151: 0 | G151: 0 | H151: 0 | I151: 0 | J151: 0 | K151: 0
A152: ='Org structure'!E149 -> 14.4 - | C152: 0 | D152: 0 | E152: 0 | F152: 0 | G152: 0 | H152: 0 | I152: 0 | J152: 0 | K152: 0
A153: ='Org structure'!E150 -> 14.5 - | C153: 0 | D153: 0 | E153: 0 | F153: 0 | G153: 0 | H153: 0 | I153: 0 | J153: 0 | K153: 0
A154: ='Org structure'!E151 -> 14.6 - | C154: 0 | D154: 0 | E154: 0 | F154: 0 | G154: 0 | H154: 0 | I154: 0 | J154: 0 | K154: 0
A155: ='Org structure'!E152 -> 14.7 - | C155: 0 | D155: 0 | E155: 0 | F155: 0 | G155: 0 | H155: 0 | I155: 0 | J155: 0 | K155: 0
A156: ='Org structure'!E153 -> 14.8 - | C156: 0 | D156: 0 | E156: 0 | F156: 0 | G156: 0 | H156: 0 | I156: 0 | J156: 0 | K156: 0
A157: ='Org structure'!E154 -> 14.9 - | C157: 0 | D157: 0 | E157: 0 | F157: 0 | G157: 0 | H157: 0 | I157: 0 | J157: 0 | K157: 0
A158: ='Org structure'!E155 -> 14.10 - | C158: 0 | D158: 0 | E158: 0 | F158: 0 | G158: 0 | H158: 0 | I158: 0 | J158: 0 | K158: 0
A159: ='Org structure'!A16 -> Vote 15 - | C159: =SUM(C160:C169) -> 0 | D159: =SUM(D160:D169) -> 0 | E159: 0 | F159: 0 | G159: 0 | H159: 0 | I159: 0 | J159: 0 | K159: 0
A160: ='Org structure'!E157 -> 15.1 - | C160: 0 | D160: 0 | E160: 0 | F160: 0 | G160: 0 | H160: 0 | I160: 0 | J160: 0 | K160: 0
A161: ='Org structure'!E158 -> 15.2 - | C161: 0 | D161: 0 | E161: 0 | F161: 0 | G161: 0 | H161: 0 | I161: 0 | J161: 0 | K161: 0
A162: ='Org structure'!E159 -> 15.3 - | C162: 0 | D162: 0 | E162: 0 | F162: 0 | G162: 0 | H162: 0 | I162: 0 | J162: 0 | K162: 0
A163: ='Org structure'!E160 -> 15.4 - | C163: 0 | D163: 0 | E163: 0 | F163: 0 | G163: 0 | H163: 0 | I163: 0 | J163: 0 | K163: 0
A164: ='Org structure'!E161 -> 15.5 - | C164: 0 | D164: 0 | E164: 0 | F164: 0 | G164: 0 | H164: 0 | I164: 0 | J164: 0 | K164: 0
A165: ='Org structure'!E162 -> 15.6 - | C165: 0 | D165: 0 | E165: 0 | F165: 0 | G165: 0 | H165: 0 | I165: 0 | J165: 0 | K165: 0
A166: ='Org structure'!E163 -> 15.7 - | C166: 0 | D166: 0 | E166: 0 | F166: 0 | G166: 0 | H166: 0 | I166: 0 | J166: 0 | K166: 0
A167: ='Org structure'!E164 -> 15.8 - | C167: 0 | D167: 0 | E167: 0 | F167: 0 | G167: 0 | H167: 0 | I167: 0 | J167: 0 | K167: 0
A168: ='Org structure'!E165 -> 15.9 - | C168: 0 | D168: 0 | E168: 0 | F168: 0 | G168: 0 | H168: 0 | I168: 0 | J168: 0 | K168: 0
A169: ='Org structure'!E166 -> 15.10 - | C169: 0 | D169: 0 | E169: 0 | F169: 0 | G169: 0 | H169: 0 | I169: 0 | J169: 0 | K169: 0
A170: Total Revenue by Vote | B170: 2 | C170: =C5+C16+C27+C38+C49+C60+C71+C82+C93+C104+C115+C126+C137+C148+C159 -> 312313394 | D170: =D5+D16+D27+D38+D49+D60+D71+D82+D93+D104+D115+D126+D137+D148+D159 -> 396422187 | E170: =E5+E16+E27+E38+E49+E60+E71+E82+E93+E104+E115+E126+E137+E148+E159 -> 382643840.7 | F170: 384336970 | G170: 435752364 | H170: 435752364 | I170: =I5+I16+I27+I38+I49+I60+I71+I82+I93+I104+I115+I126+I137+I148+I159 -> 422044330 | J170: 452398900 | K170: 483192800 | L170: =SUM(L78:L81) -> 0 | M170: 0 | N170: 0 | O170: 0 | P170: 0 | Q170: 0 | R170: 0 | S170: 0 | T170: 0 | U170: 0 | V170: 0 | W170: 0
A172: Expenditure by Vote | B172: 1
A173: =A5 -> Energy sources | C173: =SUM(C174:C183) -> 21655341 | D173: 30430247.81 | E173: 35597729 | F173: 36716170.38 | G173: 40172973 | H173: 40172973 | I173: 35866341 | J173: 31979658.05 | K173: 32638640.95
A174: =A6 -> 1.1 - Electricity | C174: 21655341 | D174: 30430247.81 | E174: 35597729 | F174: 36716170.38 | G174: 40172973 | H174: 40172973 | I174: 35866341 | J174: 31979658.05 | K174: 32638640.95
A175: 1.2 - Street Lighting and Signal Systems | C175: 0 | D175: 0 | E175: 0 | F175: 0 | G175: 0 | H175: 0 | I175: 0 | J175: 0 | K175: 0
A176: 1.3 - | C176: 0 | D176: 0 | E176: 0 | F176: 0 | G176: 0 | H176: 0 | I176: 0 | J176: 0 | K176: 0
A177: 1.4 - | C177: 0 | D177: 0 | E177: 0 | F177: 0 | G177: 0 | H177: 0 | I177: 0 | J177: 0 | K177: 0
A178: 1.5 - | C178: 0 | D178: 0 | E178: 0 | F178: 0 | G178: 0 | H178: 0 | I178: 0 | J178: 0 | K178: 0
A179: 1.6 - | C179: 0 | D179: 0 | E179: 0 | F179: 0 | G179: 0 | H179: 0 | I179: 0 | J179: 0 | K179: 0
A180: 1.7 - | C180: 0 | D180: 0 | E180: 0 | F180: 0 | G180: 0 | H180: 0 | I180: 0 | J180: 0 | K180: 0
A181: 1.8 - | C181: 0 | D181: 0 | E181: 0 | F181: 0 | G181: 0 | H181: 0 | I181: 0 | J181: 0 | K181: 0
A182: 1.9 - | C182: 0 | D182: 0 | E182: 0 | F182: 0 | G182: 0 | H182: 0 | I182: 0 | J182: 0 | K182: 0
A183: 1.10 - | C183: 0 | D183: 0 | E183: 0 | F183: 0 | G183: 0 | H183: 0 | I183: 0 | J183: 0 | K183: 0
A184: =A16 -> Community and social services | C184: =SUM(C185:C194) -> 8404014 | D184: =SUM(D185:D194) -> 8256380 | E184: =SUM(E185:E194) -> 8075717 | F184: 10943090.59 | G184: 9165908 | H184: 9165908 | I184: 11726317 | J184: 12312632.85 | K184: 12928264.49
A185: =A17 -> 2.1 - Animal Care and Diseases | C185: 0 | D185: 0 | E185: 535665 | F185: 675643 | G185: 549595 | H185: 549595 | I185: 715392 | J185: 751161.6 | K185: 788719.68
A186: 2.2 - Community Halls and Facilities | C186: 2817366 | D186: 3184265 | E186: 2750414 | F186: 4433381.88 | G186: 3947667 | H186: 3947667 | I186: 4856668 | J186: 5099501.4 | K186: 5354476.47
A187: 2.3 - Libraries and Archives | C187: 456175 | D187: 632956 | E187: 0 | F187: 50000 | G187: 30000 | H187: 30000 | I187: 30000 | J187: 31500 | K187: 33075
A188: 2.4 - Cemeteries, Funeral Parlours and Crematoriums | C188: 2570528 | D188: 2881373 | E188: 2792155 | F188: 3474877 | G188: 3136929 | H188: 3136929 | I188: 3944747 | J188: 4141984.35 | K188: 4349083.567
A189: 2.5 - Libraries and Archives | C189: 0 | D189: 0 | E189: 489090 | F189: 504059 | G189: 372315 | H189: 372315 | I189: 534950 | J189: 561697.5 | K189: 589782.375
A190: 2.6 - Disaster Management | C190: 2559945 | D190: 1557786 | E190: 1508393 | F190: 1805129.71 | G190: 1129402 | H190: 1129402 | I190: 1644560 | J190: 1726788 | K190: 1813127.4
A191: 2.7 - | C191: 0 | D191: 0 | E191: 0 | F191: 0 | G191: 0 | H191: =G191 -> 0 | I191: 0 | J191: 0 | K191: 0
A192: 2.8 - | C192: 0 | D192: 0 | E192: 0 | F192: 0 | G192: 0 | H192: 0 | I192: 0 | J192: 0 | K192: 0
A193: 2.9 - | C193: 0 | D193: 0 | E193: 0 | F193: 0 | G193: 0 | H193: 0 | I193: 0 | J193: 0 | K193: 0
A194: 2.10 - | C194: 0 | D194: 0 | E194: 0 | F194: 0 | G194: 0 | H194: 0 | I194: 0 | J194: 0 | K194: 0
A195: =A27 -> Finance and administration | C195: =SUM(C196:C205) -> 32099317.06 | D195: 108371612 | E195: 153369685 | F195: 130906869.1 | G195: 136800156.9 | H195: 136800156.9 | I195: 134684005 | J195: 131277256.2 | K195: 151214771.1
A196: 3.1 - Fleet Management | C196: 4441571 | D196: 7058267 | E196: 7308696 | F196: 9139610.07 | G196: 9199781 | H196: 9199781 | I196: 8069419 | J196: 8472889.95 | K196: 8896534.448
A197: 3.2 - Budget and Treasury Office | C197: 4797546.98 | D197: 5266635 | E197: 5542579 | F197: 8425740.8 | G197: 11339553 | H197: 11339553 | I197: 5941740 | J197: 6238827 | K197: 6550768.35
A198: 3.3 - Finance | C198: -29459268.92 | D198: 29805318 | E198: 59374258 | F198: 34170448.99 | G198: 37192924.91 | H198: 37192924.91 | I198: 32482555 | J198: 23965733.75 | K198: 38537672.44
A199: 3.4 - Asset Management | C199: 17157006.53 | D199: 24625658 | E199: 42877678 | F199: 38007871.93 | G199: 40203040 | H199: 40203040 | I199: 39752593 | J199: 41740222.65 | K199: 43827233.78
A200: 3.5 - Human Resources | C200: 11380447.16 | D200: 20340353 | E200: 15691006 | F200: 14501093.01 | G200: 13429431 | H200: 13429431 | I200: 13838443 | J200: 14530365.15 | K200: 15256883.41
A201: 3.6 - Legal Services | C201: 4354604.92 | D201: 1635413 | E201: 1221396 | F201: 3100657 | G201: 4067289 | H201: 4067289 | I201: 7803381 | J201: 8193550.05 | K201: 8603227.553
... 144 more rows

Sheet A4-FinPerf RE
A1: =muni&" - "&Approve4 -> LIM331 Greater Giyani - Table A4 Budgeted Financial Performance (revenue and expenditure)
A2: =desc -> Description | B2: =head27 -> Ref | C2: =head1b -> 2014/15 | D2: =head1A -> 2015/16 | E2: =Head1 -> 2016/17 | F2: =Head2 -> Current Year 2017/18 | J2: =Head3 -> 2018/19 Medium Term Revenue & Expenditure Framework | M2: =Head4 -> LTFS
A3: R thousand | B3: 1 | C3: =Head5 -> Audited Outcome | D3: =Head5 -> Audited Outcome | E3: =Head5 -> Audited Outcome | F3: =Head6 -> Original Budget | G3: =Head7 -> Adjusted Budget | H3: =Head8 -> Full Year Forecast | I3: =Head5b -> Pre-audit outcome | J3: =Head9 -> Budget Year 2018/19 | K3: =Head10 -> Budget Year +1 2019/20 | L3: =Head11 -> Budget Year +2 2020/21 | M3: =Head12 -> Forecast 2021/22 | N3: =Head13 -> Forecast 2022/23 | O3: =Head14 -> Forecast 2023/24 | P3: =Head15 -> Forecast 2024/25 | Q3: =Head16 -> Forecast 2025/26 | R3: =Head17 -> Forecast 2026/27 | S3: =Head18 -> Forecast 2027/28 | T3: =Head19 -> Forecast 2028/29 | U3: =Head20 -> Forecast 2029/30 | V3: =Head21 -> Forecast 2030/31 | W3: =Head22 -> Forecast 2031/32 | X3: =Head23 -> Forecast 2032/33
A4: Revenue By Source
A5: Property rates | B5: 2 | C5: ='SA1'!C9 -> 28668162 | D5: ='SA1'!D9 -> 30675862 | E5: ='SA1'!E9 -> 33865255 | F5: ='SA1'!F9 -> 30000000 | G5: ='SA1'!G9 -> 30000000 | H5: ='SA1'!H9 -> 30000000 | I5: ='SA1'!I9 -> 30000000 | J5: ='SA1'!J9 -> 35000000 | K5: ='SA1'!K9 -> 37000000 | L5: ='SA1'!L9 -> 39000000
A6: Service charges - electricity revenue | B6: 2 | C6: ='SA1'!C15 -> 0 | D6: ='SA1'!D15 -> 0 | E6: ='SA1'!E15 -> 0 | F6: ='SA1'!F15 -> 0 | G6: ='SA1'!G15 -> 0 | H6: ='SA1'!H15 -> 0 | I6: ='SA1'!I15 -> 0 | J6: ='SA1'!J15 -> 0 | K6: ='SA1'!K15 -> 0 | L6: ='SA1'!L15 -> 0
A7: Service charges - water revenue | B7: 2 | C7: ='SA1'!C21 -> 0 | D7: ='SA1'!D21 -> 0 | E7: ='SA1'!E21 -> 0 | F7: ='SA1'!F21 -> 0 | G7: ='SA1'!G21 -> 0 | H7: ='SA1'!H21 -> 0 | I7: ='SA1'!I21 -> 0 | J7: ='SA1'!J21 -> 0 | K7: ='SA1'!K21 -> 0 | L7: ='SA1'!L21 -> 0
A8: Service charges - sanitation revenue | B8: 2 | C8: ='SA1'!C27 -> 0 | D8: ='SA1'!D27 -> 0 | E8: ='SA1'!E27 -> 0 | F8: ='SA1'!F27 -> 0 | G8: ='SA1'!G27 -> 0 | H8: ='SA1'!H27 -> 0 | I8: ='SA1'!I27 -> 0 | J8: ='SA1'!J27 -> 0 | K8: ='SA1'!K27 -> 0 | L8: ='SA1'!L27 -> 0
A9: Service charges - refuse revenue | B9: 2 | C9: ='SA1'!C34 -> 3953160 | D9: ='SA1'!D34 -> 4236874 | E9: ='SA1'!E34 -> 4472542 | F9: ='SA1'!F34 -> 4300000 | G9: ='SA1'!G34 -> 4400000 | H9: ='SA1'!H34 -> 4400000 | I9: ='SA1'!I34 -> 4400000 | J9: ='SA1'!J34 -> 4700000 | K9: ='SA1'!K34 -> 4900000 | L9: ='SA1'!L34 -> 5200000
A10: Service charges - other | E10: 0 | F10: 0 | G10: 0 | H10: 0 | I10: 0 | J10: 0 | K10: 0 | L10: 0
A11: Rental of facilities and equipment | C11: 840130 | D11: 880291 | E11: 880126 | F11: 845970 | G11: 811950 | H11: 811950 | I11: 811950 | J11: 788000 | K11: 827400 | L11: 868770
A12: Interest earned - external investments | C12: 14893660 | D12: 13400970 | E12: 15174630 | F12: 11776000 | G12: 17323603 | H12: 17323603 | I12: 17323603 | J12: 15200000 | K12: 15960000 | L12: 16758000
A13: Interest earned - outstanding debtors | D13: 8472698 | E13: 5645953 | F13: 5000000 | G13: 5000000 | H13: 5000000 | I13: 5000000 | J13: 6000000 | K13: 6300000 | L13: 6615000
A14: Dividends received | E14: 0 | F14: 0 | G14: 0 | H14: 0 | I14: 0 | J14: 0 | K14: 0 | L14: 0
A15: Fines, penalties and forfeits | C15: 91418 | D15: 92765 | E15: 31259 | F15: 100000 | G15: 201920 | H15: 201920 | I15: 201920 | J15: 32000 | K15: 33600 | L15: 35280
A16: Licences and permits | C16: 4499346 | D16: 5173819 | E16: 4926246 | F16: 7300000 | G16: 5588486 | H16: 5588486 | I16: 5588486 | J16: 7300000 | K16: 7665000 | L16: 8048250
A17: Agency services | C17: 244525 | D17: 285432 | E17: 318997 | F17: 0 | G17: 0 | H17: 0 | I17: 0 | J17: 0 | K17: 0 | L17: 0
A18: Transfers and subsidies | C18: 175399282 | D18: 226341284 | E18: 222487633 | F18: 241457000 | G18: 241310582 | H18: 241310582 | I18: 241310582 | J18: 259395000 | K18: 283183000 | L18: 306849000
A19: Other revenue | B19: 2 | C19: ='SA1'!C49 -> 1547172.05 | D19: ='SA1'!D49 -> 1161563.05 | E19: ='SA1'!E49 -> 1841546 | F19: ='SA1'!F49 -> 1821999 | G19: ='SA1'!G49 -> 31300822 | H19: ='SA1'!H49 -> 31300822 | I19: ='SA1'!I49 -> 31300822 | J19: ='SA1'!J49 -> 22956330 | K19: ='SA1'!K49 -> 23041900 | L19: ='SA1'!L49 -> 23269500
A20: Gains on disposal of PPE | C20: 427436 | D20: 0 | E20: 0 | F20: 0 | G20: 700000 | H20: 700000 | I20: 700000 | J20: 0 | K20: 0 | L20: 0
A21: Total Revenue (excluding capital transfers and contributions) | C21: =SUM(C5:C20) -> 230564291.1 | D21: 290721558.1 | E21: 289644187 | F21: 302600969 | G21: 336637363 | H21: 336637363 | I21: 336637363 | J21: 351371330 | K21: 378910900 | L21: 406643800 | M21: 0 | N21: 0 | O21: 0 | P21: 0 | Q21: 0 | R21: 0 | S21: 0 | T21: 0 | U21: 0 | V21: 0 | W21: 0 | X21: 0
A23: Expenditure By Type
A24: Employee related costs | B24: 2 | C24: ='SA1'!C67 -> 94202388 | D24: ='SA1'!D67 -> 108057434.8 | E24: ='SA1'!E67 -> 119525379 | F24: ='SA1'!F67 -> 134140016 | G24: ='SA1'!G67 -> 127396765 | H24: ='SA1'!H67 -> 127396765 | I24: ='SA1'!I67 -> 127396765 | J24: ='SA1'!J67 -> 144558334 | K24: ='SA1'!K67 -> 151786250.7 | L24: ='SA1'!L67 -> 159375563.2
A25: Remuneration of councillors | C25: 18573328 | D25: 18273962 | E25: 19431700 | F25: 20503553 | G25: 22535057 | H25: 22535057 | I25: 22535057 | J25: 23856763 | K25: 25049601.15 | L25: 26302081.21
A26: Debt impairment | B26: 3 | C26: -45410047 | D26: 7245980 | E26: 25229239 | F26: 15000000 | G26: 15000000 | H26: 15000000 | I26: 15000000 | J26: 10000000 | K26: 10540000 | L26: 11119700
A27: Depreciation & asset impairment | B27: 2 | C27: ='SA1'!C83 -> 14405689 | D27: ='SA1'!D83 -> 20361720 | E27: ='SA1'!E83 -> 38553790 | F27: ='SA1'!F83 -> 30000000 | G27: ='SA1'!G83 -> 30000000 | H27: ='SA1'!H83 -> 30000000 | I27: ='SA1'!I83 -> 30000000 | J27: ='SA1'!J83 -> 30000000 | K27: ='SA1'!K83 -> 31620000 | L27: ='SA1'!L83 -> 33359100
A28: Finance charges | C28: 0 | D28: 0 | E28: 0 | F28: 0 | G28: 0 | H28: 0 | I28: 0 | J28: 0 | K28: 0 | L28: 0
A29: Bulk purchases | B29: 2 | C29: ='SA1'!C88 -> 0 | D29: ='SA1'!D88 -> 0 | E29: ='SA1'!E88 -> 0 | F29: ='SA1'!F88 -> 0 | G29: ='SA1'!G88 -> 0 | H29: ='SA1'!H88 -> 0 | I29: ='SA1'!I88 -> 0 | J29: ='SA1'!J88 -> 0 | K29: ='SA1'!K88 -> 0 | L29: ='SA1'!L88 -> 0
A30: Other materials | B30: 8 | C30: 7888503 | D30: 25776515.93 | E30: 16265310 | F30: 8150000 | G30: 7344954 | H30: 7344954 | I30: 7344954 | J30: 12261118 | K30: 12874173.9 | L30: 13517882.6
A31: Contracted services | C31: ='SA1'!C127 -> 213876 | D31: ='SA1'!D127 -> 301209.65 | E31: ='SA1'!E127 -> 0 | F31: ='SA1'!F127 -> 73637740.32 | G31: ='SA1'!G127 -> 77841853 | H31: ='SA1'!H127 -> 77841853 | I31: ='SA1'!I127 -> 77841853 | J31: ='SA1'!J127 -> 78620126 | K31: ='SA1'!K127 -> 76871132.3 | L31: ='SA1'!L127 -> 79774688.92
A32: Transfers and subsidies | C32: ='SA1'!C93 -> 0 | D32: ='SA1'!D93 -> 0 | E32: ='SA1'!E93 -> 0 | F32: ='SA1'!F93 -> 0 | G32: ='SA1'!G93 -> 0 | H32: ='SA1'!H93 -> 0 | I32: ='SA1'!I93 -> 0 | J32: ='SA1'!J93 -> 0 | K32: ='SA1'!K93 -> 0 | L32: ='SA1'!L93 -> 0
A33: Other expenditure | B33: 4, 5 | C33: ='SA1'!C157 -> 66997981 | D33: ='SA1'!D157 -> 112810971.4 | E33: ='SA1'!E157 -> 101309089 | F33: ='SA1'!F157 -> 47444134.68 | G33: ='SA1'!G157 -> 50295054 | H33: ='SA1'!H157 -> 50295054 | I33: ='SA1'!I157 -> 50295054 | J33: ='SA1'!J157 -> 52798639 | K33: ='SA1'!K157 -> 45137621.95 | L33: ='SA1'!L157 -> 60557355.05
A34: Loss on disposal of PPE | C34: 0 | D34: 0 | E34: 2379722 | F34: 0 | G34: 0 | H34: 0 | I34: 0 | J34: 0 | K34: 0 | L34: 0
A35: Total Expenditure | C35: =SUM(C24:C34) -> 156871718 | D35: =SUM(D24:D34) -> 292827793.7 | E35: 322694229 | F35: 328875444 | G35: 330413683 | H35: 330413683 | I35: 330413683 | J35: 352094980 | K35: 353878780 | L35: 384006371 | M35: =SUM(M24:M34) -> 0 | N35: 0 | O35: 0 | P35: 0 | Q35: 0 | R35: 0 | S35: 0 | T35: 0 | U35: 0 | V35: 0 | W35: 0 | X35: 0
A37: Surplus/(Deficit) | C37: =C21-C35 -> 73692573.05 | D37: -2106235.67 | E37: -33050042 | F37: -26274475 | G37: 6223680 | H37: 6223680 | I37: 6223680 | J37: -723650 | K37: 25032120 | L37: 22637429 | M37: =M21+M35 -> 0 | N37: 0 | O37: 0 | P37: 0 | Q37: 0 | R37: 0 | S37: 0 | T37: 0 | U37: 0 | V37: 0 | W37: 0 | X37: 0
A38: Transfers and subsidies - capital (monetary allocations) (National / Provincial and District) | C38: 81749102 | D38: 105700629 | E38: 92999654 | F38: 81736000 | G38: 99115000 | H38: 99115000 | I38: 99115000 | J38: 70673000 | K38: 73488000 | L38: 76549000
A39: Transfers and subsidies - capital (monetary allocations) (National / Provincial Departmental Agencies, Households, Non-profit Institutions, Private Enterprises, Public Corporatons, Higher Educational Institutions) | B39: 6 | C39: ='SA1'!C76 -> 0 | D39: ='SA1'!D76 -> 0 | E39: ='SA1'!E76 -> 0 | F39: ='SA1'!F76 -> 0 | G39: ='SA1'!G76 -> 0 | H39: ='SA1'!H76 -> 0 | I39: ='SA1'!I76 -> 0 | J39: ='SA1'!J76 -> 0 | K39: ='SA1'!K76 -> 0 | L39: ='SA1'!L76 -> 0
A40: Transfers and subsidies - capital (in-kind - all) | C40: 0 | D40: 0 | E40: 0 | F40: 0 | G40: 0 | H40: 0 | I40: 0 | J40: 0 | K40: 0 | L40: 0
A41: Surplus/(Deficit) after capital transfers & contributions | C41: =SUM(C37:C40) -> 155441675.1 | D41: 103594393.3 | E41: 59949612 | F41: 55461525 | G41: 105338680 | H41: 105338680 | I41: 105338680 | J41: 69949350 | K41: 98520120 | L41: 99186429
A42: Taxation | C42: 0 | D42: 0 | E42: 0 | F42: 0 | G42: 0 | H42: 0 | I42: 0 | J42: 0 | K42: 0
A43: Surplus/(Deficit) after taxation | C43: =C41-C42 -> 155441675.1 | D43: 103594393.3 | E43: 59949612 | F43: 55461525 | G43: 105338680 | H43: 105338680 | I43: 105338680 | J43: 69949350 | K43: 98520120 | L43: 99186429
A44: Attributable to minorities | C44: 0 | D44: 0 | E44: 0 | F44: 0 | G44: 0 | H44: 0 | I44: 0 | J44: 0 | K44: 0 | L44: 0
A45: Surplus/(Deficit) attributable to municipality | C45: =SUM(C43:C44) -> 155441675.1 | D45: 103594393.3 | E45: 59949612 | F45: 55461525 | G45: 105338680 | H45: 105338680 | I45: 105338680 | J45: 69949350 | K45: 98520120 | L45: 99186429
A46: Share of surplus/ (deficit) of associate | B46: 7 | C46: 0 | D46: 0 | E46: 0 | F46: 0 | G46: 0 | H46: 0 | I46: 0 | J46: 0 | K46: 0 | L46: 0
A47: =result -> Surplus/(Deficit) for the year | C47: =SUM(C45:C46) -> 155441675.1 | D47: 103594393.3 | E47: 59949612 | F47: 55461525 | G47: 105338680 | H47: 105338680 | I47: 105338680 | J47: 69949350 | K47: 98520120 | L47: 99186429 | M47: =M25+M46 -> 0 | N47: 0 | O47: 0 | P47: 0 | Q47: 0 | R47: 0 | S47: 0 | T47: 0 | U47: 0 | V47: 0 | W47: 0 | X47: 0
A48: =head27a -> References
A49: 1. Classifications are revenue sources and expenditure type
A50: 2. Detail to be provided in Table SA1
A51: 3. Previously described as 'bad or doubtful debts' - amounts shown should reflect the change in the provision for debt impairment
A52: 4. Expenditure type components previously shown under repairs and maintenance should be allocated back to the originating expenditure group/item; e.g. employee costs
A53: 5. Repairs & maintenance detailed in Table A9 and Table SA34c
A54: 6. Contributions are funds provided by external organisations to assist with infrastructure development; e.g. developer contributions (detail to be provided in Table SA1)
A55: 7. Equity method ( Includes Joint Ventures)
A56: 8. All materials not part of 'bulk' e.g road making materials, pipe, cable etc.
A57: check balance | C57: =C45-'A3-FinPerf V'!C39 -> 0.25 | D57: =D45-'A3-FinPerf V'!D39 -> 0.1200000048 | E57: =E45-'A3-FinPerf V'!E39 -> 0.3399999738 | F57: =F45-'A3-FinPerf V'!F39 -> 1.439999998 | G57: =G45-'A3-FinPerf V'!G39 -> 1.879999995 | H57: =H45-'A3-FinPerf V'!H39 -> 1.879999995 | J57: =J45-'A3-FinPerf V'!I39 -> 0 | K57: =K45-'A3-FinPerf V'!J39 -> 0 | L57: =L45-'A3-FinPerf V'!K39 -> 0
A59: Total revenue | C59: =C21+SUM(C38:C40) -> 312313393.1 | D59: 396422187.1 | E59: 382643841 | F59: 384336969 | G59: 435752363 | H59: 435752363 | I59: 435752363 | J59: 422044330 | K59: 452398900 | L59: 483192800

Sheet A5-Capex
A1: =muni&" - "&Approve5 -> LIM331 Greater Giyani - Table A5 Budgeted Capital Expenditure by vote, functional classification and funding
A2: =Vdesc -> Vote Description | B2: =head27 -> Ref | C2: =head1b -> 2014/15 | D2: =head1A -> 2015/16 | E2: =Head1 -> 2016/17 | F2: =Head2 -> Current Year 2017/18 | J2: =Head3 -> 2018/19 Medium Term Revenue & Expenditure Framework
A3: R thousand | B3: 1 | C3: =Head5 -> Audited Outcome | D3: =Head5 -> Audited Outcome | E3: =Head5 -> Audited Outcome | F3: =Head6 -> Original Budget | G3: =Head7 -> Adjusted Budget | H3: =Head8 -> Full Year Forecast | I3: =Head5b -> Pre-audit outcome | J3: =Head9 -> Budget Year 2018/19 | K3: =Head10 -> Budget Year +1 2019/20 | L3: =Head11 -> Budget Year +2 2020/21
A4: Capital expenditure - Vote
A5: Multi-year expenditure to be appropriated | B5: 2
A6: =A5A!A6 -> Energy sources | C6: =A5A!C6 -> 0 | D6: =A5A!D6 -> 0 | E6: =A5A!E6 -> 0 | F6: =A5A!F6 -> 21500000 | G6: =A5A!G6 -> 3084532 | H6: =A5A!H6 -> 3084532 | I6: =A5A!I6 -> 3084532 | J6: =A5A!J6 -> 3500000 | K6: =A5A!K6 -> 4000000 | L6: =A5A!L6 -> 4000000
A7: =A5A!A17 -> Community and social services | C7: =A5A!C17 -> 9361485 | D7: =A5A!D17 -> 15204639.29 | E7: =A5A!E17 -> 0 | F7: =A5A!F17 -> 1100000 | G7: =A5A!G17 -> 1215719 | H7: =A5A!H17 -> 1215719 | I7: =A5A!I17 -> 1215719 | J7: =A5A!J17 -> 2000000 | K7: =A5A!K17 -> 7000000 | L7: =A5A!L17 -> 7000000
A8: =A5A!A28 -> Finance and administration | C8: =A5A!C28 -> 0 | D8: =A5A!D28 -> 0 | E8: =A5A!E28 -> 0 | F8: =A5A!F28 -> 8456600 | G8: =A5A!G28 -> 22000000 | H8: =A5A!H28 -> 22000000 | I8: =A5A!I28 -> 22000000 | J8: =A5A!J28 -> 4000000 | K8: =A5A!K28 -> 6000000 | L8: =A5A!L28 -> 6000000
A9: =A5A!A39 -> Planning and development | C9: =A5A!C39 -> 778147 | D9: =A5A!D39 -> 0 | E9: =A5A!E39 -> 0 | F9: =A5A!F39 -> 900000 | G9: =A5A!G39 -> 0 | H9: =A5A!H39 -> 0 | I9: =A5A!I39 -> 0 | J9: =A5A!J39 -> 0 | K9: =A5A!K39 -> 0 | L9: =A5A!L39 -> 0
A10: =A5A!A50 -> Executive and council | C10: =A5A!C50 -> 0 | D10: =A5A!D50 -> 0 | E10: =A5A!E50 -> 0 | F10: =A5A!F50 -> 0 | G10: =A5A!G50 -> 0 | H10: =A5A!H50 -> 0 | I10: =A5A!I50 -> 0 | J10: =A5A!J50 -> 0 | K10: =A5A!K50 -> 0 | L10: =A5A!L50 -> 0
A11: =A5A!A61 -> Internal audit | C11: =A5A!C61 -> 0 | D11: =A5A!D61 -> 0 | E11: =A5A!E61 -> 0 | F11: =A5A!F61 -> 0 | G11: =A5A!G61 -> 0 | H11: =A5A!H61 -> 0 | I11: =A5A!I61 -> 0 | J11: =A5A!J61 -> 0 | K11: =A5A!K61 -> 0 | L11: =A5A!L61 -> 0
A12: =A5A!A72 -> Road transport | C12: =A5A!C72 -> 59045187 | D12: =A5A!D72 -> 20734494.4 | E12: =A5A!E72 -> 25353565.88 | F12: =A5A!F72 -> 34690477 | G12: =A5A!G72 -> 55916639 | H12: =A5A!H72 -> 55916639 | I12: =A5A!I72 -> 55916639 | J12: =A5A!J72 -> 44166027 | K12: =A5A!K72 -> 50116520 | L12: =A5A!L72 -> 84545529
A13: =A5A!A83 -> Public safety | C13: =A5A!C83 -> 0 | D13: =A5A!D83 -> 0 | E13: =A5A!E83 -> 0 | F13: =A5A!F83 -> 0 | G13: =A5A!G83 -> 0 | H13: =A5A!H83 -> 0 | I13: =A5A!I83 -> 0 | J13: =A5A!J83 -> 1500000 | K13: =A5A!K83 -> 1000000 | L13: =A5A!L83 -> 1000000
A14: =A5A!A94 -> Waste management | C14: =A5A!C94 -> 0 | D14: =A5A!D94 -> 3684803 | E14: =A5A!E94 -> 0 | F14: =A5A!F94 -> 17000000 | G14: =A5A!G94 -> 17302254 | H14: =A5A!H94 -> 17302254 | I14: =A5A!I94 -> 17302254 | J14: =A5A!J94 -> 18468083 | K14: =A5A!K94 -> 21500000 | L14: =A5A!L94 -> 19500000
A15: =A5A!A105 -> Sport and recreation | C15: =A5A!C105 -> 9782732 | D15: =A5A!D105 -> 22244292 | E15: =A5A!E105 -> 2020672 | F15: =A5A!F105 -> 24355000 | G15: =A5A!G105 -> 29752938 | H15: =A5A!H105 -> 29752938 | I15: =A5A!I105 -> 29752938 | J15: =A5A!J105 -> 13365240 | K15: =A5A!K105 -> 25153600 | L15: =A5A!L105 -> 7500000
A16: =A5A!A116 -> Water management | C16: =A5A!C116 -> 0 | D16: =A5A!D116 -> 0 | E16: =A5A!E116 -> 0 | F16: =A5A!F116 -> 0 | G16: =A5A!G116 -> 0 | H16: =A5A!H116 -> 0 | I16: =A5A!I116 -> 0 | J16: =A5A!J116 -> 0 | K16: =A5A!K116 -> 0 | L16: =A5A!L116 -> 0
A17: =A5A!A127 -> Waste water management | C17: =A5A!C127 -> 0 | D17: =A5A!D127 -> 0 | E17: =A5A!E127 -> 0 | F17: =A5A!F127 -> 0 | G17: =A5A!G127 -> 0 | H17: =A5A!H127 -> 0 | I17: =A5A!I127 -> 0 | J17: =A5A!J127 -> 0 | K17: =A5A!K127 -> 0 | L17: =A5A!L127 -> 0
A18: =A5A!A138 -> Housing | C18: =A5A!C138 -> 0 | D18: =A5A!D138 -> 0 | E18: =A5A!E138 -> 0 | F18: =A5A!F138 -> 0 | G18: =A5A!G138 -> 0 | H18: =A5A!H138 -> 0 | I18: =A5A!I138 -> 0 | J18: =A5A!J138 -> 0 | K18: =A5A!K138 -> 0 | L18: =A5A!L138 -> 0
A19: =A5A!A149 -> Finance and administration | C19: =A5A!C149 -> 3695537 | D19: =A5A!D149 -> 0 | E19: =A5A!E149 -> 0 | F19: =A5A!F149 -> 0 | G19: =A5A!G149 -> 0 | H19: =A5A!H149 -> 0 | I19: =A5A!I149 -> 0 | J19: =A5A!J149 -> 0 | K19: =A5A!K149 -> 0 | L19: =A5A!L149 -> 0
A20: =A5A!A160 -> Vote 15 - | C20: =A5A!C160 -> 0 | D20: =A5A!D160 -> 0 | E20: =A5A!E160 -> 0 | F20: =A5A!F160 -> 0 | G20: =A5A!G160 -> 0 | H20: =A5A!H160 -> 0 | I20: =A5A!I160 -> 0 | J20: =A5A!J160 -> 0 | K20: =A5A!K160 -> 0 | L20: =A5A!L160 -> 0
A21: Capital multi-year expenditure sub-total | B21: 7 | C21: =SUM(C6:C20) -> 82663088 | D21: =SUM(D6:D20) -> 61868228.69 | E21: 27374237.88 | F21: 108002077 | G21: 129272082 | H21: =SUM(H6:H20) -> 129272082 | I21: 129272082 | J21: 86999350 | K21: 114770120 | L21: 129545529
A23: Single-year expenditure to be appropriated | B23: 2
A24: =A6 -> Energy sources | C24: =A5A!C175 -> 0 | D24: =A5A!D175 -> 1096710.53 | E24: =A5A!E175 -> 0 | F24: =A5A!F175 -> 0 | G24: =A5A!G175 -> 0 | H24: =A5A!H175 -> 0 | I24: =A5A!I175 -> 0 | J24: =A5A!J175 -> 800000 | K24: =A5A!K175 -> 0 | L24: =A5A!L175 -> 0
A25: =A7 -> Community and social services | C25: =A5A!C186 -> 0 | D25: =A5A!D186 -> 0 | E25: =A5A!E186 -> 0 | F25: =A5A!F186 -> 0 | G25: =A5A!G186 -> 0 | H25: =A5A!H186 -> 0 | I25: =A5A!I186 -> 0 | J25: =A5A!J186 -> 500000 | K25: =A5A!K186 -> 1500000 | L25: =A5A!L186 -> 1500000
A26: Finance and administration | C26: =A5A!C197 -> 5138936 | D26: =A5A!D197 -> 342752.84 | E26: =A5A!E197 -> 3010099 | F26: =A5A!F197 -> 3000000 | G26: =A5A!G197 -> 2652398 | H26: =A5A!H197 -> 2652398 | I26: =A5A!I197 -> 2652398 | J26: =A5A!J197 -> 3800000 | K26: =A5A!K197 -> 9800000 | L26: =A5A!L197 -> 0
A27: Planning and development | C27: =A5A!C208 -> 1670 | D27: =A5A!D208 -> 487665.94 | E27: =A5A!E208 -> 0 | F27: =A5A!F208 -> 100000 | G27: =A5A!G208 -> 40000 | H27: =A5A!H208 -> 40000 | I27: =A5A!I208 -> 40000 | J27: =A5A!J208 -> 150000 | K27: =A5A!K208 -> 0 | L27: =A5A!L208 -> 0
A28: Executive and council | C28: =A5A!C219 -> 0 | D28: =A5A!D219 -> 0 | E28: =A5A!E219 -> 0 | F28: =A5A!F219 -> 0 | G28: =A5A!G219 -> 0 | H28: =A5A!H219 -> 0 | I28: =A5A!I219 -> 0 | J28: =A5A!J219 -> 0 | K28: =A5A!K219 -> 0 | L28: =A5A!L219 -> 0
A29: Internal audit | C29: =A5A!C230 -> 0 | D29: =A5A!D230 -> 0 | E29: =A5A!E230 -> 0 | F29: =A5A!F230 -> 0 | G29: =A5A!G230 -> 0 | H29: =A5A!H230 -> 0 | I29: =A5A!I230 -> 0 | J29: =A5A!J230 -> 0 | K29: =A5A!K230 -> 0 | L29: =A5A!L230 -> 0
A30: Road transport | C30: =A5A!C241 -> 0 | D30: =A5A!D241 -> 0 | E30: =A5A!E241 -> 0 | F30: =A5A!F241 -> 700000 | G30: =A5A!G241 -> 0 | H30: =A5A!H241 -> 0 | I30: =A5A!I241 -> 0 | J30: =A5A!J241 -> 1400000 | K30: =A5A!K241 -> 1500000 | L30: =A5A!L241 -> 1500000
A31: Public safety | C31: =A5A!C252 -> 0 | D31: =A5A!D252 -> 0 | E31: =A5A!E252 -> 0 | F31: =A5A!F252 -> 0 | G31: =A5A!G252 -> 0 | H31: =A5A!H252 -> 0 | I31: =A5A!I252 -> 0 | J31: =A5A!J252 -> 0 | K31: =A5A!K252 -> 0 | L31: =A5A!L252 -> 0
A32: Waste management | C32: =A5A!C263 -> 0 | D32: =A5A!D263 -> 0 | E32: =A5A!E263 -> 0 | F32: =A5A!F263 -> 350000 | G32: =A5A!G263 -> 100000 | H32: =A5A!H263 -> 100000 | I32: =A5A!I263 -> 100000 | J32: =A5A!J263 -> 400000 | K32: =A5A!K263 -> 1000000 | L32: =A5A!L263 -> 0
A33: Sport and recreation | C33: =A5A!C274 -> 0 | D33: =A5A!D274 -> 0 | E33: =A5A!E274 -> 0 | F33: =A5A!F274 -> 0 | G33: =A5A!G274 -> 0 | H33: =A5A!H274 -> 0 | I33: =A5A!I274 -> 0 | J33: =A5A!J274 -> 0 | K33: =A5A!K274 -> 0 | L33: =A5A!L274 -> 0
A34: Water management | C34: =A5A!C285 -> 0 | D34: =A5A!D285 -> 0 | E34: =A5A!E285 -> 0 | F34: =A5A!F285 -> 0 | G34: =A5A!G285 -> 0 | H34: =A5A!H285 -> 0 | I34: =A5A!I285 -> 0 | J34: =A5A!J285 -> 0 | K34: =A5A!K285 -> 0 | L34: =A5A!L285 -> 0
A35: Waste water management | C35: =A5A!C296 -> 0 | D35: =A5A!D296 -> 0 | E35: =A5A!E296 -> 0 | F35: =A5A!F296 -> 0 | G35: =A5A!G296 -> 0 | H35: =A5A!H296 -> 0 | I35: =A5A!I296 -> 0 | J35: =A5A!J296 -> 0 | K35: =A5A!K296 -> 0 | L35: =A5A!L296 -> 0
A36: Housing | C36: =A5A!C307 -> 0 | D36: =A5A!D307 -> 0 | E36: =A5A!E307 -> 0 | F36: =A5A!F307 -> 0 | G36: =A5A!G307 -> 0 | H36: =A5A!H307 -> 0 | I36: =A5A!I307 -> 0 | J36: =A5A!J307 -> 0 | K36: =A5A!K307 -> 0 | L36: =A5A!L307 -> 0
A37: Finance and administration | C37: =A5A!C318 -> 681513 | D37: =A5A!D318 -> 142085 | E37: =A5A!E318 -> 139249 | F37: =A5A!F318 -> 871480 | G37: =A5A!G318 -> 3274201 | H37: =A5A!H318 -> 3274201 | I37: =A5A!I318 -> 3274201 | J37: =A5A!J318 -> 5900000 | K37: =A5A!K318 -> 1570000 | L37: =A5A!L318 -> 0
A38: =A20 -> Vote 15 - | C38: =A5A!C329 -> 0 | D38: =A5A!D329 -> 0 | E38: =A5A!E329 -> 0 | F38: =A5A!F329 -> 0 | G38: =A5A!G329 -> 0 | H38: =A5A!H329 -> 0 | I38: =A5A!I329 -> 0 | J38: =A5A!J329 -> 0 | K38: =A5A!K329 -> 0 | L38: =A5A!L329 -> 0
A39: Capital single-year expenditure sub-total | C39: =SUM(C24:C38) -> 5822119 | D39: =SUM(D24:D38) -> 2069214.31 | E39: 3149348 | F39: 5021480 | G39: 6066599 | H39: 6066599 | I39: 6066599 | J39: 12950000 | K39: 15370000 | L39: 3000000
A40: Total Capital Expenditure - Vote | C40: =C39+C21 -> 88485207 | D40: =D39+D21 -> 63937443 | E40: 30523585.88 | F40: 113023557 | G40: 135338681 | H40: 135338681 | I40: 135338681 | J40: 99949350 | K40: 130140120 | L40: 132545529
A42: Capital Expenditure - Functional
A43: Governance and administration | C43: =SUM(C44:C46) -> 9517656 | D43: =SUM(D44:D46) -> 972503.78 | E43: 3149348 | F43: 12428080 | G43: 27926599 | H43: 27926599 | I43: 27926599 | J43: 13700000 | K43: 17370000 | L43: 6000000
A44: Executive and council | C44: 1670 | D44: 487665.94 | E44: 0 | F44: 100000 | G44: 0 | H44: 0 | I44: 0 | J44: 0 | K44: 0 | L44: 0
A45: Finance and administration | C45: 9515986 | D45: 484837.84 | E45: 3149348 | F45: 12328080 | G45: 27926599 | H45: 27926599 | I45: 27926599 | J45: 13700000 | K45: =9800000+1570000+6000000 -> 17370000 | L45: 6000000
A46: Internal audit | C46: 0 | D46: 0 | E46: 0 | F46: 0 | G46: 0 | H46: 0 | I46: 0 | J46: 0 | K46: 0 | L46: 0
A47: Community and public safety | C47: =SUM(C48:C52) -> 19144217 | D47: =SUM(D48:D52) -> 41133734.29 | E47: 2020672 | F47: 43305000 | G47: 30968657 | H47: 30968657 | I47: 30968657 | J47: 17365240 | K47: 34653600 | L47: 17000000
A48: Community and social services | C48: 9361485 | D48: 18889442.29 | E48: 0 | F48: 18950000 | G48: 1215719 | H48: 1215719 | I48: 1215719 | J48: 2500000 | K48: =A5A!W17+A5A!K186 -> 8500000 | L48: =A5A!L186+A5A!X17 -> 8500000
A49: Sport and recreation | C49: 9782732 | D49: 22244292 | E49: 2020672 | F49: 24355000 | G49: 29752938 | H49: 29752938 | I49: 29752938 | J49: 13365240 | K49: =A5A!W105 -> 25153600 | L49: 7500000
A50: Public safety | C50: 0 | D50: 0 | E50: 0 | F50: 0 | G50: 0 | H50: 0 | I50: 0 | J50: 1500000 | K50: 1000000 | L50: 1000000
A51: Housing | C51: 0 | D51: 0 | E51: 0 | F51: 0 | G51: 0 | H51: 0 | I51: 0 | J51: 0 | K51: 0 | L51: 0
A52: Health | C52: 0 | D52: 0 | E52: 0 | F52: 0 | G52: 0 | H52: 0 | I52: 0 | J52: 0 | K52: 0 | L52: 0
A53: Economic and environmental services | C53: =SUM(C54:C56) -> 59823434 | D53: =SUM(D54:D56) -> 20734494.4 | E53: 25353565 | F53: 35790477 | G53: 55956639 | H53: 55956639 | I53: 55956639 | J53: 45716027 | K53: 51616520 | L53: 86045529
A54: Planning and development | C54: 778147 | E54: 0 | F54: 900000 | G54: 40000 | H54: 40000 | I54: 40000 | J54: 150000 | K54: 0 | L54: 0
A55: Road transport | C55: 59045287 | D55: 20734494.4 | E55: 25353565 | F55: 34890477 | G55: 55916639 | H55: 55916639 | I55: 55916639 | J55: 45566027 | K55: =A5A!W72+A5A!K241 -> 51616520 | L55: =A5A!L241+A5A!X72 -> 86045529
A56: Environmental protection | C56: 0 | D56: 0 | E56: 0 | F56: 0 | G56: 0 | H56: 0 | I56: 0 | J56: 0 | K56: 0 | L56: 0
A57: Trading services | C57: =SUM(C58:C61) -> 0 | D57: =SUM(D58:D61) -> 1096710.53 | E57: 0 | F57: 21500000 | G57: 20486786 | H57: 20486786 | I57: 20486786 | J57: 23168083 | K57: 26500000 | L57: 23500000
A58: Energy sources | D58: 1096710.53 | E58: 0 | F58: 21500000 | G58: 3084532 | H58: 3084532 | I58: 3084532 | J58: 4300000 | K58: =A5A!W6+A5A!K175 -> 4000000 | L58: 4000000
A59: Water management | C59: 0 | D59: 0 | E59: 0 | F59: 0 | G59: 0 | H59: 0 | I59: 0 | J59: 0 | K59: 0 | L59: 0
A60: Waste water management | C60: 0 | D60: 0 | E60: 0 | F60: 0 | G60: 0 | H60: 0 | I60: 0 | J60: 0 | K60: 0 | L60: 0
A61: Waste management | C61: 0 | D61: 0 | E61: 0 | F61: 0 | G61: 17402254 | H61: 17402254 | I61: 17402254 | J61: 18868083 | K61: =A5A!W94+A5A!K263 -> 22500000 | L61: 19500000
A62: Other | C62: 0 | D62: 0 | E62: 0 | F62: 0 | G62: 0 | H62: 0 | I62: 0 | J62: 0 | K62: 0 | L62: 0
A63: Total Capital Expenditure - Functional | B63: 3 | C63: =C43+C47+C53+C57+C62 -> 88485307 | D63: =D43+D47+D53+D57+D62 -> 63937443 | E63: 30523585 | F63: 113023557 | G63: 135338681 | H63: 135338681 | I63: 135338681 | J63: 99949350 | K63: 130140120 | L63: =L43+L47+L53+L57+L62 -> 132545529
A65: Funded by:
A66: National Government | C66: 62628297 | D66: 56835914 | E66: 22981656 | F66: 81736000 | G66: 76068200 | H66: 76068200 | I66: 76068200 | J66: 56482392 | K66: 57547861.6 | L66: 60751854.68
A67: Provincial Government | C67: 0 | D67: 0 | E67: 0 | F67: 0 | G67: 0 | H67: 0 | I67: 0 | J67: 0 | K67: 0 | L67: 0
A68: District Municipality | C68: 0 | D68: 0 | E68: 0 | G68: 0 | H68: 0 | I68: 0 | J68: 0 | K68: 0 | L68: 0
A69: Other transfers and grants | C69: 0 | D69: 0 | E69: 0 | F69: 0 | G69: 0 | H69: 0 | I69: 0 | J69: 0 | K69: 0 | L69: 0
A70: Transfers recognised - capital | B70: 4 | C70: =SUM(C66:C69) -> 62628297 | D70: 56835914 | E70: 22981656 | F70: 81736000 | G70: 76068200 | H70: 76068200 | I70: 76068200 | J70: 56482392 | K70: 57547861.6 | L70: 60751854.68
A71: Public contributions & donations | B71: 5 | C71: 0 | D71: 0 | E71: 0 | F71: 0 | G71: 0 | H71: 0 | I71: 0 | J71: 0 | K71: 0 | L71: 0
A72: Borrowing | B72: 6 | C72: 0 | D72: 0 | E72: 0 | F72: 0 | G72: 0 | H72: 0 | I72: 0 | J72: 0 | K72: 0 | L72: 0
A73: Internally generated funds | C73: 25857010 | D73: 7101529 | E73: 7541929 | F73: 31287557 | G73: 59270481 | H73: 59270481 | I73: 59270481 | J73: 43466958 | K73: =K63-K66 -> 72592258.4 | L73: =L63-L66 -> 71793674.32
A74: Total Capital Funding | B74: 7 | C74: =SUM(C70:C73) -> 88485307 | D74: 63937443 | E74: 30523585 | F74: 113023557 | G74: 135338681 | H74: 135338681 | I74: 135338681 | J74: 99949350 | K74: 130140120 | L74: 132545529
A75: =head27a -> References
A76: 1. Municipalities may choose to appropriate for capital expenditure for three years or for one year (if one year appropriation projected expenditure required for yr2 and yr3).
A77: 2. Include capital component of PPP unitary payment. Note that capital transfers are only appropriated to municipalities for the budget year
A78: 3. Capital expenditure by functional classification must reconcile to the appropriations by vote
A79: 4. Must reconcile to supporting table SA20 and to Budgeted Financial Performance (revenue and expenditure)
A80: 5. Must reconcile to Budgeted Financial Performance (revenue and expenditure)
A81: 6. Include finance leases and PPP capital funding component of unitary payment - total borrowing/repayments to reconcile to changes in Table SA17
A82: 7. Total Capital Funding must balance with Total Capital Expenditure
A83: 8. Include any capitalised interest (MFMA section 46) as part of relevant capital budget
A85: check balance | C85: =IF((C63-C74)=0,0,"Unbalanced") -> 0 | D85: =IF((D63-D74)=0,0,"Unbalanced") -> 0 | E85: 0 | F85: 0 | G85: 0 | H85: 0 | I85: 0 | J85: 0 | K85: 0 | L85: 0

Sheet A5A
A1: =muni&" - "&Approve5 -> LIM331 Greater Giyani - Table A5 Budgeted Capital Expenditure by vote, functional classification and funding
A2: =Vdesc -> Vote Description | B2: =head27 -> Ref | C2: =head1b -> 2014/15 | D2: =head1A -> 2015/16 | E2: =Head1 -> 2016/17 | F2: =Head2 -> Current Year 2017/18 | J2: =Head3 -> 2018/19 Medium Term Revenue & Expenditure Framework | N2: ="Multi-year appropriation for "&Head9& " in the "&Head2A&" Annual Budget" -> Multi-year appropriation for Budget Year 2018/19 in the 2017/18 Annual Budget | R2: ="Multi-year appropriation for "&RIGHT(Head10,7)& " in the "&Head2A&" Annual Budget" -> Multi-year appropriation for 2019/20 in the 2017/18 Annual Budget | V2: New multi-year appropriations (funds for new and existing projects)
A3: R thousand | B3: 1 | C3: =Head5 -> Audited Outcome | D3: =Head5 -> Audited Outcome | E3: =Head5 -> Audited Outcome | F3: =Head6 -> Original Budget | G3: =Head7 -> Adjusted Budget | H3: =Head8 -> Full Year Forecast | I3: =Head5b -> Pre-audit outcome | J3: =Head9 -> Budget Year 2018/19 | K3: =Head10 -> Budget Year +1 2019/20 | L3: =Head11 -> Budget Year +2 2020/21 | N3: ="Appropriation for "&RIGHT(Head9,7) -> Appropriation for 2018/19 | O3: ="Adjustments in "&Head2A -> Adjustments in 2017/18 | P3: ="Downward adjustments for "&RIGHT(Head9,7) -> Downward adjustments for 2018/19 | Q3: Appropriation carried forward | R3: ="Appropriation for "&RIGHT(Head9,7) -> Appropriation for 2018/19 | S3: ="Adjustments in "&Head2A -> Adjustments in 2017/18 | T3: ="Downward adjustments for "&RIGHT(Head9,7) -> Downward adjustments for 2018/19 | U3: Appropriation carried forward | V3: =Head9 -> Budget Year 2018/19 | W3: =Head10 -> Budget Year +1 2019/20 | X3: =Head11 -> Budget Year +2 2020/21
A4: Capital expenditure - Municipal Vote
A5: Multi-year expenditure appropriation | B5: 2
A6: ='Org structure'!A2 -> Energy sources | C6: =SUM(C7:C16) -> 0 | D6: =SUM(D7:D16) -> 0 | E6: 0 | F6: 21500000 | G6: 3084532 | H6: 3084532 | I6: =SUM(I7:I16) -> 3084532 | J6: 3500000 | K6: 4000000 | L6: 4000000 | N6: =SUM(N7:N16) -> 0 | O6: 0 | P6: 0 | Q6: 0 | R6: 0 | S6: 0 | T6: 0 | U6: 0 | V6: =SUM(V7:V16) -> 3500000 | W6: =SUM(W7:W16) -> 4000000 | X6: =SUM(X7:X16) -> 4000000
A7: ='Org structure'!E3 -> 1.1 - Electricity | C7: 0 | D7: 0 | E7: 0 | F7: 21500000 | G7: 300000 | H7: 300000 | I7: 300000 | J7: =Q7+V7 -> 0 | K7: =U7+W7 -> 0 | L7: =X7 -> 0 | Q7: =SUM(N7:P7) -> 0 | U7: =SUM(R7:T7) -> 0
A8: ='Org structure'!E4 -> 1.2 - Street Lighting and Signal Systems | C8: 0 | D8: 0 | E8: 0 | F8: 0 | G8: 2784532 | H8: 2784532 | I8: 2784532 | J8: =Q8+V8 -> 3500000 | K8: =U8+W8 -> 4000000 | L8: =X8 -> 4000000 | Q8: =SUM(N8:P8) -> 0 | U8: =SUM(R8:T8) -> 0 | V8: 3500000 | W8: 4000000 | X8: 4000000
A9: ='Org structure'!E5 -> 1.3 - | C9: 0 | D9: 0 | E9: 0 | F9: 0 | G9: 0 | H9: 0 | I9: 0 | J9: =Q9+V9 -> 0 | K9: =U9+W9 -> 0 | L9: 0 | Q9: 0 | U9: 0
A10: ='Org structure'!E6 -> 1.4 - | C10: 0 | D10: 0 | E10: 0 | F10: 0 | G10: 0 | H10: 0 | I10: 0 | J10: 0 | K10: 0 | L10: 0 | Q10: 0 | U10: 0
A11: ='Org structure'!E7 -> 1.5 - | C11: 0 | D11: 0 | E11: 0 | F11: 0 | G11: 0 | H11: 0 | I11: 0 | J11: 0 | K11: 0 | L11: =X11 -> 0 | Q11: 0 | U11: 0
A12: ='Org structure'!E8 -> 1.6 - | C12: 0 | D12: 0 | E12: 0 | F12: 0 | G12: 0 | H12: 0 | I12: 0 | J12: 0 | K12: 0 | L12: 0 | Q12: 0 | U12: 0
A13: ='Org structure'!E9 -> 1.7 - | C13: 0 | D13: 0 | E13: 0 | F13: 0 | G13: 0 | H13: 0 | I13: 0 | J13: 0 | K13: 0 | L13: 0 | Q13: 0 | U13: 0
A14: ='Org structure'!E10 -> 1.8 - | C14: 0 | D14: 0 | E14: 0 | F14: 0 | G14: 0 | H14: 0 | I14: 0 | J14: 0 | K14: 0 | L14: 0 | Q14: 0 | U14: 0
A15: ='Org structure'!E11 -> 1.9 - | C15: 0 | D15: 0 | E15: 0 | F15: 0 | G15: 0 | H15: 0 | I15: 0 | J15: 0 | K15: 0 | L15: 0 | Q15: 0 | U15: 0
A16: ='Org structure'!E12 -> 1.10 - | C16: 0 | D16: 0 | E16: 0 | F16: 0 | G16: 0 | H16: 0 | I16: 0 | J16: 0 | K16: 0 | L16: 0 | Q16: 0 | U16: 0
A17: ='Org structure'!A3 -> Community and social services | C17: =SUM(C18:C27) -> 9361485 | D17: =SUM(D18:D27) -> 15204639.29 | E17: 0 | F17: 1100000 | G17: 1215719 | H17: 1215719 | I17: =SUM(I18:I27) -> 1215719 | J17: 2000000 | K17: 7000000 | L17: 7000000 | N17: =SUM(N18:N27) -> 0 | O17: 0 | P17: 0 | Q17: 0 | R17: 0 | S17: 0 | T17: 0 | U17: 0 | V17: 2000000 | W17: 7000000 | X17: 7000000
A18: ='Org structure'!E14 -> 2.1 - Animal Care and Diseases | C18: 0 | D18: 0 | E18: 0 | F18: 0 | G18: 0 | H18: 0 | I18: 0 | J18: =Q18+V18 -> 0 | K18: =U18+W18 -> 0 | L18: =X18 -> 0 | Q18: =SUM(N18:P18) -> 0 | U18: 0
A19: ='Org structure'!E15 -> 2.2 - Community Halls and Facilities | C19: 3570078 | D19: 3924708.29 | E19: 0 | F19: 1100000 | G19: 1215719 | H19: 1215719 | I19: 1215719 | J19: =Q19+V19 -> 2000000 | K19: =U19+W19 -> 7000000 | L19: 7000000 | Q19: 0 | U19: 0 | V19: 2000000 | W19: 7000000 | X19: 7000000
A20: ='Org structure'!E16 -> 2.3 - Libraries and Archives | C20: 0 | D20: 0 | E20: 0 | F20: 0 | G20: 0 | H20: 0 | I20: 0 | J20: 0 | K20: 0 | L20: 0 | Q20: 0 | U20: 0
A21: ='Org structure'!E17 -> 2.4 - Cemeteries, Funeral Parlours and Crematoriums | C21: 2728080 | E21: 0 | F21: 0 | G21: 0 | H21: 0 | I21: 0 | J21: 0 | K21: =U21+W21 -> 0 | L21: 0 | Q21: 0 | U21: 0
A22: ='Org structure'!E18 -> 2.5 - Libraries and Archives | C22: 0 | D22: 0 | E22: 0 | F22: 0 | G22: 0 | H22: 0 | I22: 0 | J22: 0 | K22: 0 | L22: 0 | Q22: 0 | U22: 0
A23: ='Org structure'!E19 -> 2.6 - Disaster Management | C23: 3063327 | D23: 11279931 | E23: 0 | F23: 0 | G23: 0 | H23: 0 | I23: 0 | J23: 0 | K23: 0 | L23: 0 | Q23: 0 | U23: 0
A24: ='Org structure'!E20 -> 2.7 - | C24: 0 | D24: 0 | E24: 0 | F24: 0 | G24: 0 | H24: 0 | I24: 0 | J24: 0 | K24: 0 | L24: 0 | Q24: 0 | U24: 0
A25: ='Org structure'!E21 -> 2.8 - | C25: 0 | D25: 0 | E25: 0 | F25: 0 | G25: 0 | H25: 0 | I25: 0 | J25: 0 | K25: 0 | L25: 0 | Q25: 0 | U25: 0
A26: ='Org structure'!E22 -> 2.9 - | C26: 0 | D26: 0 | E26: 0 | F26: 0 | G26: 0 | H26: 0 | I26: 0 | J26: 0 | K26: 0 | L26: 0 | Q26: 0 | U26: 0
A27: ='Org structure'!E23 -> 2.10 - | C27: 0 | D27: 0 | E27: 0 | F27: 0 | G27: 0 | H27: 0 | I27: 0 | J27: 0 | K27: 0 | L27: 0 | Q27: 0 | U27: 0
A28: ='Org structure'!A4 -> Finance and administration | C28: =SUM(C29:C38) -> 0 | D28: =SUM(D29:D38) -> 0 | E28: 0 | F28: 8456600 | G28: 22000000 | H28: 22000000 | I28: =SUM(I29:I38) -> 22000000 | J28: 4000000 | K28: 6000000 | L28: 6000000 | N28: =SUM(N29:N38) -> 0 | O28: 0 | P28: 0 | Q28: 0 | R28: 0 | S28: 0 | T28: 0 | U28: 0 | V28: 4000000 | W28: 6000000 | X28: 6000000
A29: ='Org structure'!E25 -> 3.1 - Fleet Management | C29: 0 | D29: 0 | E29: 0 | F29: 0 | G29: 0 | H29: 0 | I29: 0 | J29: =Q29+V29 -> 0 | K29: =U29+W29 -> 0 | L29: =X29 -> 0 | Q29: =SUM(N29:P29) -> 0 | U29: 0
A30: ='Org structure'!E26 -> 3.2 - Budget and Treasury Office | C30: 0 | D30: 0 | E30: 0 | F30: 8456600 | G30: 0 | H30: 0 | I30: 0 | J30: 0 | K30: 0 | L30: 0 | Q30: 0 | U30: 0
A31: ='Org structure'!E27 -> 3.3 - Finance | C31: 0 | D31: 0 | E31: 0 | F31: 0 | G31: 0 | H31: 0 | I31: 0 | J31: 0 | K31: 0 | L31: 0 | Q31: 0 | U31: =SUM(R31:T31) -> 0
A32: ='Org structure'!E28 -> 3.4 - Asset Management | C32: 0 | D32: 0 | E32: 0 | F32: 0 | G32: 0 | H32: 0 | I32: 0 | J32: 0 | K32: =U32+W32 -> 0 | L32: 0 | Q32: 0 | U32: 0
A33: ='Org structure'!E29 -> 3.5 - Human Resources | C33: 0 | D33: 0 | E33: 0 | F33: 0 | G33: 0 | H33: 0 | I33: 0 | J33: =Q33+V33 -> 0 | K33: 0 | L33: 0 | Q33: 0 | U33: 0
A34: ='Org structure'!E30 -> 3.6 - Legal Services | C34: 0 | D34: 0 | E34: 0 | F34: 0 | G34: 0 | H34: 0 | I34: 0 | J34: 0 | K34: 0 | L34: 0 | Q34: 0 | U34: 0
A35: ='Org structure'!E31 -> 3.7 - Property Services | C35: 0 | D35: 0 | E35: 0 | F35: 0 | G35: 22000000 | H35: 22000000 | I35: 22000000 | J35: 4000000 | K35: 6000000 | L35: 6000000 | Q35: 0 | U35: 0 | V35: 4000000 | W35: 6000000 | X35: 6000000
A36: ='Org structure'!E32 -> 3.8 - Risk Management | C36: 0 | D36: 0 | E36: 0 | F36: 0 | G36: 0 | H36: 0 | I36: 0 | J36: 0 | K36: 0 | L36: 0 | Q36: 0 | U36: 0
A37: ='Org structure'!E33 -> 3.9 - Supply Chain Management | C37: 0 | D37: 0 | E37: 0 | F37: 0 | G37: 0 | H37: 0 | I37: 0 | J37: 0 | K37: 0 | L37: 0 | Q37: 0 | U37: 0
A38: ='Org structure'!E34 -> 3.10 - | C38: 0 | D38: 0 | E38: 0 | F38: 0 | G38: 0 | H38: 0 | I38: 0 | J38: 0 | K38: 0 | L38: 0 | Q38: 0 | U38: 0
A39: ='Org structure'!A5 -> Planning and development | C39: =SUM(C40:C49) -> 778147 | D39: =SUM(D40:D49) -> 0 | E39: 0 | F39: 900000 | G39: 0 | H39: 0 | I39: =SUM(I40:I49) -> 0 | J39: 0 | K39: 0 | L39: 0 | N39: =SUM(N40:N49) -> 0 | O39: 0 | P39: 0 | Q39: 0 | R39: 0 | S39: 0 | T39: 0 | U39: 0 | V39: 0 | W39: 0 | X39: 0
A40: ='Org structure'!E36 -> 4.1 - Town Planning, Building Regulations and Enforcement, and City Engineer | C40: 778147 | E40: 0 | F40: 900000 | G40: 0 | H40: 0 | I40: 0 | J40: =Q40+V40 -> 0 | K40: =U40+W40 -> 0 | L40: =X40 -> 0 | Q40: =SUM(N40:P40) -> 0 | U40: 0
A41: ='Org structure'!E37 -> 4.2 - Corporate Wide Strategic Planning (IDPs, LEDs) | C41: 0 | D41: 0 | E41: 0 | F41: 0 | G41: 0 | H41: 0 | I41: 0 | J41: 0 | K41: 0 | L41: 0 | Q41: 0 | U41: 0
A42: ='Org structure'!E38 -> 4.3 - Economic Development/Planning | C42: 0 | D42: 0 | E42: 0 | F42: 0 | G42: 0 | H42: 0 | I42: 0 | J42: 0 | K42: 0 | L42: 0 | Q42: 0 | U42: 0
A43: ='Org structure'!E39 -> 4.4 - Project Management Unit | C43: 0 | D43: 0 | E43: 0 | F43: 0 | G43: 0 | H43: 0 | I43: 0 | J43: 0 | K43: 0 | L43: 0 | Q43: 0 | U43: 0
A44: ='Org structure'!E40 -> 4.5 - | C44: 0 | D44: 0 | E44: 0 | F44: 0 | G44: 0 | H44: 0 | I44: 0 | J44: 0 | K44: 0 | L44: 0 | Q44: 0 | U44: 0
A45: ='Org structure'!E41 -> 4.6 - | C45: 0 | D45: 0 | E45: 0 | F45: 0 | G45: 0 | H45: 0 | I45: 0 | J45: 0 | K45: 0 | L45: 0 | Q45: 0 | U45: 0
A46: ='Org structure'!E42 -> 4.7 - | C46: 0 | D46: 0 | E46: 0 | F46: 0 | G46: 0 | H46: 0 | I46: 0 | J46: 0 | K46: 0 | L46: 0 | Q46: 0 | U46: 0
A47: ='Org structure'!E43 -> 4.8 - | C47: 0 | D47: 0 | E47: 0 | F47: 0 | G47: 0 | H47: 0 | I47: 0 | J47: 0 | K47: 0 | L47: 0 | Q47: 0 | U47: 0
A48: ='Org structure'!E44 -> 4.9 - | C48: 0 | D48: 0 | E48: 0 | F48: 0 | G48: 0 | H48: 0 | I48: 0 | J48: 0 | K48: 0 | L48: 0 | Q48: 0 | U48: 0
A49: ='Org structure'!E45 -> 4.10 - | C49: 0 | D49: 0 | E49: 0 | F49: 0 | G49: 0 | H49: 0 | I49: 0 | J49: 0 | K49: 0 | L49: 0 | Q49: 0 | U49: 0
A50: ='Org structure'!A6 -> Executive and council | C50: =SUM(C51:C60) -> 0 | D50: =SUM(D51:D60) -> 0 | E50: 0 | F50: 0 | G50: 0 | H50: 0 | I50: =SUM(I51:I60) -> 0 | J50: 0 | K50: 0 | L50: 0 | N50: =SUM(N51:N60) -> 0 | O50: 0 | P50: 0 | Q50: 0 | R50: 0 | S50: 0 | T50: 0 | U50: 0 | V50: 0 | W50: 0 | X50: 0
A51: ='Org structure'!E47 -> 5.1 - Municipal Manager, Town Secretary and Chief Executive | C51: 0 | D51: 0 | E51: 0 | F51: 0 | G51: 0 | H51: 0 | I51: 0 | J51: =Q51+V51 -> 0 | K51: =U51+W51 -> 0 | L51: =X51 -> 0 | Q51: =SUM(N51:P51) -> 0 | U51: 0
A52: ='Org structure'!E48 -> 5.2 - Mayor and Council | C52: 0 | D52: 0 | E52: 0 | F52: 0 | G52: 0 | H52: 0 | I52: 0 | J52: 0 | K52: 0 | L52: 0 | Q52: 0 | U52: 0
A53: ='Org structure'!E49 -> 5.3 - | C53: 0 | D53: 0 | E53: 0 | F53: 0 | G53: 0 | H53: 0 | I53: 0 | J53: 0 | K53: 0 | L53: 0 | Q53: 0 | U53: 0
A54: ='Org structure'!E50 -> 5.4 - | C54: 0 | D54: 0 | E54: 0 | F54: 0 | G54: 0 | H54: 0 | I54: 0 | J54: 0 | K54: 0 | L54: 0 | Q54: 0 | U54: 0
A55: ='Org structure'!E51 -> 5.5 - | C55: 0 | D55: 0 | E55: 0 | F55: 0 | G55: 0 | H55: 0 | I55: 0 | J55: 0 | K55: 0 | L55: 0 | Q55: 0 | U55: 0
A56: ='Org structure'!E52 -> 5.6 - | C56: 0 | D56: 0 | E56: 0 | F56: 0 | G56: 0 | H56: 0 | I56: 0 | J56: 0 | K56: 0 | L56: 0 | Q56: 0 | U56: 0
A57: ='Org structure'!E53 -> 5.7 - | C57: 0 | D57: 0 | E57: 0 | F57: 0 | G57: 0 | H57: 0 | I57: 0 | J57: 0 | K57: 0 | L57: 0 | Q57: 0 | U57: 0
A58: ='Org structure'!E54 -> 5.8 - | C58: 0 | D58: 0 | E58: 0 | F58: 0 | G58: 0 | H58: 0 | I58: 0 | J58: 0 | K58: 0 | L58: 0 | Q58: 0 | U58: 0
A59: ='Org structure'!E55 -> 5.9 - | C59: 0 | D59: 0 | E59: 0 | F59: 0 | G59: 0 | H59: 0 | I59: 0 | J59: 0 | K59: 0 | L59: 0 | Q59: 0 | U59: 0
A60: ='Org structure'!E56 -> 5.10 - | C60: 0 | D60: 0 | E60: 0 | F60: 0 | G60: 0 | H60: 0 | I60: 0 | J60: 0 | K60: 0 | L60: 0 | Q60: 0 | U60: 0
A61: ='Org structure'!A7 -> Internal audit | C61: =SUM(C62:C71) -> 0 | D61: =SUM(D62:D71) -> 0 | E61: 0 | F61: 0 | G61: 0 | H61: 0 | I61: =SUM(I62:I71) -> 0 | J61: 0 | K61: 0 | L61: 0 | N61: =SUM(N62:N71) -> 0 | O61: 0 | P61: 0 | Q61: 0 | R61: 0 | S61: 0 | T61: 0 | U61: 0 | V61: 0 | W61: 0 | X61: 0
A62: ='Org structure'!E58 -> 6.1 - Governance Function | C62: 0 | D62: 0 | E62: 0 | F62: 0 | G62: 0 | H62: 0 | I62: 0 | J62: =Q62+V62 -> 0 | K62: =U62+W62 -> 0 | L62: =X62 -> 0 | Q62: =SUM(N62:P62) -> 0 | U62: 0
A63: ='Org structure'!E59 -> 6.2 - | C63: 0 | D63: 0 | E63: 0 | F63: 0 | G63: 0 | H63: 0 | I63: 0 | J63: 0 | K63: 0 | L63: 0 | Q63: 0 | U63: 0
A64: ='Org structure'!E60 -> 6.3 - | C64: 0 | D64: 0 | E64: 0 | F64: 0 | G64: 0 | H64: 0 | I64: 0 | J64: 0 | K64: 0 | L64: 0 | Q64: 0 | U64: 0
A65: ='Org structure'!E61 -> 6.4 - | C65: 0 | D65: 0 | E65: 0 | F65: 0 | G65: 0 | H65: 0 | I65: 0 | J65: 0 | K65: 0 | L65: 0 | Q65: 0 | U65: 0
A66: ='Org structure'!E62 -> 6.5 - | C66: 0 | D66: 0 | E66: 0 | F66: 0 | G66: 0 | H66: 0 | I66: 0 | J66: 0 | K66: 0 | L66: 0 | Q66: 0 | U66: 0
A67: ='Org structure'!E63 -> 6.6 - | C67: 0 | D67: 0 | E67: 0 | F67: 0 | G67: 0 | H67: 0 | I67: 0 | J67: 0 | K67: 0 | L67: 0 | Q67: 0 | U67: 0
A68: ='Org structure'!E64 -> 6.7 - | C68: 0 | D68: 0 | E68: 0 | F68: 0 | G68: 0 | H68: 0 | I68: 0 | J68: 0 | K68: 0 | L68: 0 | Q68: 0 | U68: 0
A69: ='Org structure'!E65 -> 6.8 - | C69: 0 | D69: 0 | E69: 0 | F69: 0 | G69: 0 | H69: 0 | I69: 0 | J69: 0 | K69: 0 | L69: 0 | Q69: 0 | U69: 0
A70: ='Org structure'!E66 -> 6.9 - | C70: 0 | D70: 0 | E70: 0 | F70: 0 | G70: 0 | H70: 0 | I70: 0 | J70: 0 | K70: 0 | L70: 0 | Q70: 0 | U70: 0
A71: ='Org structure'!E67 -> 6.10 - | C71: 0 | D71: 0 | E71: 0 | F71: 0 | G71: 0 | H71: 0 | I71: 0 | J71: 0 | K71: 0 | L71: 0 | Q71: 0 | U71: 0
A72: ='Org structure'!A8 -> Road transport | C72: =SUM(C73:C82) -> 59045187 | D72: 20734494.4 | E72: 25353565.88 | F72: 34690477 | G72: 55916639 | H72: 55916639 | I72: 55916639 | J72: 44166027 | K72: 50116520 | L72: 84545529 | N72: =SUM(N73:N82) -> 0 | O72: 0 | P72: 0 | Q72: 0 | R72: 0 | S72: 0 | T72: 0 | U72: 0 | V72: 44166027 | W72: 50116520 | X72: 84545529
A73: ='Org structure'!E69 -> 7.1 - Taxi Ranks | C73: 0 | D73: 0 | E73: 0 | F73: 0 | G73: 0 | H73: 0 | I73: 0 | J73: =Q73+V73 -> 1000000 | K73: =U73+W73 -> 4000000 | L73: =X73 -> 4000000 | Q73: =SUM(N73:P73) -> 0 | U73: =SUM(R73:T73) -> 0 | V73: 1000000 | W73: 4000000 | X73: 4000000
A74: ='Org structure'!E70 -> 7.2 - Road and Traffic Regulation | C74: 0 | D74: 0 | E74: 0 | F74: 500000 | G74: 0 | H74: 0 | I74: 0 | J74: 0 | K74: 0 | L74: 0 | Q74: 0 | U74: 0
A75: ='Org structure'!E71 -> 7.3 - Public Transport | C75: 831033 | D75: 255161.4 | E75: 0 | F75: 500000 | G75: 0 | H75: 0 | I75: 0 | J75: 0 | K75: 0 | L75: 0 | Q75: 0 | U75: 0
A76: ='Org structure'!E72 -> 7.4 - Roads | C76: 58214154 | D76: 20479333 | E76: 25353565.88 | F76: 33690477 | G76: 55916639 | H76: 55916639 | I76: 55916639 | J76: 43166027 | K76: 46116520 | L76: 80545529 | Q76: 0 | U76: 0 | V76: 43166027 | W76: 46116520 | X76: 80545529
A77: ='Org structure'!E73 -> 7.5 - | C77: 0 | D77: 0 | E77: 0 | F77: 0 | G77: 0 | H77: 0 | I77: 0 | J77: 0 | K77: 0 | L77: 0 | Q77: 0 | U77: 0
A78: ='Org structure'!E74 -> 7.6 - | C78: 0 | D78: 0 | E78: 0 | F78: 0 | G78: 0 | H78: 0 | I78: 0 | J78: 0 | K78: 0 | L78: 0 | Q78: 0 | U78: 0
A79: ='Org structure'!E75 -> 7.7 - | C79: 0 | D79: 0 | E79: 0 | F79: 0 | G79: 0 | H79: 0 | I79: 0 | J79: 0 | K79: 0 | L79: 0 | Q79: 0 | U79: 0
A80: ='Org structure'!E76 -> 7.8 - | C80: 0 | D80: 0 | E80: 0 | F80: 0 | G80: 0 | H80: 0 | I80: 0 | J80: 0 | K80: 0 | L80: 0 | Q80: 0 | U80: 0
A81: ='Org structure'!E77 -> 7.9 - | C81: 0 | D81: 0 | E81: 0 | F81: 0 | G81: 0 | H81: 0 | I81: 0 | J81: 0 | K81: 0 | L81: 0 | Q81: 0 | U81: 0
A82: ='Org structure'!E78 -> 7.10 - | C82: 0 | D82: 0 | E82: 0 | F82: 0 | G82: 0 | H82: 0 | I82: 0 | J82: 0 | K82: 0 | L82: 0 | Q82: 0 | U82: 0
A83: ='Org structure'!A9 -> Public safety | C83: =SUM(C84:C93) -> 0 | D83: 0 | E83: 0 | F83: 0 | G83: 0 | H83: 0 | I83: 0 | J83: 1500000 | K83: 1000000 | L83: 1000000 | N83: =SUM(N84:N93) -> 0 | O83: 0 | P83: 0 | Q83: 0 | R83: 0 | S83: 0 | T83: 0 | U83: 0 | V83: 1500000 | W83: 1000000 | X83: 1000000
A84: ='Org structure'!E80 -> 8.1 - Cleansing | C84: 0 | D84: 0 | E84: 0 | F84: 0 | G84: 0 | H84: 0 | I84: 0 | J84: =Q84+V84 -> 0 | K84: =U84+W84 -> 0 | L84: =X84 -> 0 | Q84: =SUM(N84:P84) -> 0 | U84: 0
A85: ='Org structure'!E81 -> 8.2 - Fencing and Fences | C85: 0 | D85: 0 | E85: 0 | F85: 0 | G85: 0 | H85: 0 | I85: 0 | J85: 1500000 | K85: 1000000 | L85: 1000000 | Q85: 0 | U85: 0 | V85: 1500000 | W85: 1000000 | X85: 1000000
A86: ='Org structure'!E82 -> 8.3 - | C86: 0 | D86: 0 | E86: 0 | F86: 0 | G86: 0 | H86: 0 | I86: 0 | J86: 0 | K86: 0 | L86: 0 | Q86: 0 | U86: 0
A87: ='Org structure'!E83 -> 8.4 - | C87: 0 | D87: 0 | E87: 0 | F87: 0 | G87: 0 | H87: 0 | I87: 0 | J87: 0 | K87: 0 | L87: 0 | Q87: 0 | U87: 0
A88: ='Org structure'!E84 -> 8.5 - | C88: 0 | D88: 0 | E88: 0 | F88: 0 | G88: 0 | H88: 0 | I88: 0 | J88: 0 | K88: 0 | L88: 0 | Q88: 0 | U88: 0
A89: ='Org structure'!E85 -> 8.6 - | C89: 0 | D89: 0 | E89: 0 | F89: 0 | G89: 0 | H89: 0 | I89: 0 | J89: 0 | K89: 0 | L89: 0 | Q89: 0 | U89: 0
A90: ='Org structure'!E86 -> 8.7 - | C90: 0 | D90: 0 | E90: 0 | F90: 0 | G90: 0 | H90: 0 | I90: 0 | J90: 0 | K90: 0 | L90: 0 | Q90: 0 | U90: 0
A91: ='Org structure'!E87 -> 8.8 - | C91: 0 | D91: 0 | E91: 0 | F91: 0 | G91: 0 | H91: 0 | I91: 0 | J91: 0 | K91: 0 | L91: 0 | Q91: 0 | U91: 0
A92: ='Org structure'!E88 -> 8.9 - | C92: 0 | D92: 0 | E92: 0 | F92: 0 | G92: 0 | H92: 0 | I92: 0 | J92: 0 | K92: 0 | L92: 0 | Q92: 0 | U92: 0
A93: ='Org structure'!E89 -> 8.10 - | C93: 0 | D93: 0 | E93: 0 | F93: 0 | G93: 0 | H93: 0 | I93: 0 | J93: 0 | K93: 0 | L93: 0 | Q93: 0 | U93: 0
A94: ='Org structure'!A10 -> Waste management | C94: =SUM(C95:C104) -> 0 | D94: =SUM(D95:D104) -> 3684803 | E94: 0 | F94: 17000000 | G94: 17302254 | H94: 17302254 | I94: 17302254 | J94: 18468083 | K94: 21500000 | L94: 19500000 | N94: =SUM(N95:N104) -> 0 | O94: 0 | P94: 0 | Q94: 0 | R94: 0 | S94: 0 | T94: 0 | U94: 0 | V94: 18468083 | W94: 21500000 | X94: 19500000
A95: ='Org structure'!E91 -> 9.1 - Recycling | C95: 0 | D95: 0 | E95: 0 | F95: 0 | G95: 0 | H95: 0 | I95: 0 | J95: =Q95+V95 -> 0 | K95: =U95+W95 -> 0 | L95: =X95 -> 0 | Q95: =SUM(N95:P95) -> 0 | U95: 0
A96: ='Org structure'!E92 -> 9.2 - Solid Waste Disposal (Landfill Sites) | C96: 0 | D96: 0 | E96: 0 | F96: 17000000 | G96: 17302254 | H96: 17302254 | I96: 17302254 | J96: 18468083 | K96: 21500000 | L96: 19500000 | Q96: 0 | U96: 0 | V96: 18468083 | W96: 21500000 | X96: 19500000
A97: ='Org structure'!E93 -> 9.3 - Solid Waste Removal | D97: 3684803 | E97: 0 | F97: 0 | G97: 0 | H97: 0 | I97: 0 | J97: 0 | K97: 0 | L97: 0 | Q97: 0 | U97: 0
A98: ='Org structure'!E94 -> 9.4 - | C98: 0 | D98: 0 | E98: 0 | F98: 0 | G98: 0 | H98: 0 | I98: 0 | J98: 0 | K98: 0 | L98: 0 | Q98: 0 | U98: 0
A99: ='Org structure'!E95 -> 9.5 - | C99: 0 | D99: 0 | E99: 0 | F99: 0 | G99: 0 | H99: 0 | I99: 0 | J99: 0 | K99: 0 | L99: 0 | Q99: 0 | U99: 0
A100: ='Org structure'!E96 -> 9.6 - | C100: 0 | D100: 0 | E100: 0 | F100: 0 | G100: 0 | H100: 0 | I100: 0 | J100: 0 | K100: 0 | L100: 0 | Q100: 0 | U100: 0
A101: ='Org structure'!E97 -> 9.7 - | C101: 0 | D101: 0 | E101: 0 | F101: 0 | G101: 0 | H101: 0 | I101: 0 | J101: 0 | K101: 0 | L101: 0 | Q101: 0 | U101: 0
A102: ='Org structure'!E98 -> 9.8 - | C102: 0 | D102: 0 | E102: 0 | F102: 0 | G102: 0 | H102: 0 | I102: 0 | J102: 0 | K102: 0 | L102: 0 | Q102: 0 | U102: 0
A103: ='Org structure'!E99 -> 9.9 - | C103: 0 | D103: 0 | E103: 0 | F103: 0 | G103: 0 | H103: 0 | I103: 0 | J103: 0 | K103: 0 | L103: 0 | Q103: 0 | U103: 0
A104: ='Org structure'!E100 -> 9.10 - | C104: 0 | D104: 0 | E104: 0 | F104: 0 | G104: 0 | H104: 0 | I104: 0 | J104: 0 | K104: 0 | L104: 0 | Q104: 0 | U104: 0
A105: ='Org structure'!A11 -> Sport and recreation | C105: =SUM(C106:C115) -> 9782732 | D105: =SUM(D106:D115) -> 22244292 | E105: 2020672 | F105: 24355000 | G105: 29752938 | H105: 29752938 | I105: 29752938 | J105: 13365240 | K105: 25153600 | L105: 7500000 | N105: =SUM(N106:N115) -> 0 | O105: 0 | P105: 0 | Q105: 0 | R105: 0 | S105: 0 | T105: 0 | U105: 0 | V105: 13365240 | W105: 25153600 | X105: 7500000
A106: ='Org structure'!E102 -> 10.1 - Recreational Facilities | C106: 0 | D106: 0 | E106: 0 | F106: 0 | G106: 0 | H106: 0 | I106: 0 | J106: =Q106+V106 -> 0 | K106: =U106+W106 -> 0 | L106: =X106 -> 0 | Q106: =SUM(N106:P106) -> 0 | U106: 0
A107: ='Org structure'!E103 -> 10.2 - Sports Grounds and Stadiums | C107: 9782732 | D107: 22244292 | E107: 2020672 | F107: 24355000 | G107: 29752938 | H107: 29752938 | I107: 29752938 | J107: 13365240 | K107: 25153600 | L107: 7500000 | Q107: 0 | U107: 0 | V107: 13365240 | W107: 25153600 | X107: 7500000
A108: ='Org structure'!E104 -> 10.3 - | C108: 0 | D108: 0 | E108: 0 | F108: 0 | G108: 0 | H108: 0 | I108: 0 | J108: 0 | K108: 0 | L108: 0 | Q108: 0 | U108: 0
A109: ='Org structure'!E105 -> 10.4 - | C109: 0 | D109: 0 | E109: 0 | F109: 0 | G109: 0 | H109: 0 | I109: 0 | J109: 0 | K109: 0 | L109: 0 | Q109: 0 | U109: 0
A110: ='Org structure'!E106 -> 10.5 - | C110: 0 | D110: 0 | E110: 0 | F110: 0 | G110: 0 | H110: 0 | I110: 0 | J110: 0 | K110: 0 | L110: 0 | Q110: 0 | U110: 0
A111: ='Org structure'!E107 -> 10.6 - | C111: 0 | D111: 0 | E111: 0 | F111: 0 | G111: 0 | H111: 0 | I111: 0 | J111: 0 | K111: 0 | L111: 0 | Q111: 0 | U111: 0
A112: ='Org structure'!E108 -> 10.7 - | C112: 0 | D112: 0 | E112: 0 | F112: 0 | G112: 0 | H112: 0 | I112: 0 | J112: 0 | K112: 0 | L112: 0 | Q112: 0 | U112: 0
A113: ='Org structure'!E109 -> 10.8 - | C113: 0 | D113: 0 | E113: 0 | F113: 0 | G113: 0 | H113: 0 | I113: 0 | J113: 0 | K113: 0 | L113: 0 | Q113: 0 | U113: 0
A114: ='Org structure'!E110 -> 10.9 - | C114: 0 | D114: 0 | E114: 0 | F114: 0 | G114: 0 | H114: 0 | I114: 0 | J114: 0 | K114: 0 | L114: 0 | Q114: 0 | U114: 0
A115: ='Org structure'!E111 -> 10.10 - | C115: 0 | D115: 0 | E115: 0 | F115: 0 | G115: 0 | H115: 0 | I115: 0 | J115: 0 | K115: 0 | L115: 0 | Q115: 0 | U115: 0
A116: ='Org structure'!A12 -> Water management | C116: =SUM(C117:C126) -> 0 | D116: 0 | E116: 0 | F116: 0 | G116: 0 | H116: 0 | I116: 0 | J116: 0 | K116: 0 | L116: 0 | N116: =SUM(N117:N126) -> 0 | O116: 0 | P116: 0 | Q116: 0 | R116: 0 | S116: 0 | T116: 0 | U116: 0 | V116: 0 | W116: 0 | X116: 0
A117: ='Org structure'!E113 -> 11.1 - Water Distribution | C117: 0 | D117: 0 | E117: 0 | F117: 0 | G117: 0 | H117: 0 | I117: 0 | J117: =Q117+V117 -> 0 | K117: =U117+W117 -> 0 | L117: =X117 -> 0 | Q117: =SUM(N117:P117) -> 0 | U117: 0
A118: ='Org structure'!E114 -> 11.2 - | C118: 0 | D118: 0 | E118: 0 | F118: 0 | G118: 0 | H118: 0 | I118: 0 | J118: 0 | K118: 0 | L118: 0 | Q118: 0 | U118: 0
A119: ='Org structure'!E115 -> 11.3 - | C119: 0 | D119: 0 | E119: 0 | F119: 0 | G119: 0 | H119: 0 | I119: 0 | J119: 0 | K119: 0 | L119: 0 | Q119: 0 | U119: 0
A120: ='Org structure'!E116 -> 11.4 - | C120: 0 | D120: 0 | E120: 0 | F120: 0 | G120: 0 | H120: 0 | I120: 0 | J120: 0 | K120: 0 | L120: 0 | Q120: 0 | U120: 0
A121: ='Org structure'!E117 -> 11.5 - | C121: 0 | D121: 0 | E121: 0 | F121: 0 | G121: 0 | H121: 0 | I121: 0 | J121: 0 | K121: 0 | L121: 0 | Q121: 0 | U121: 0
A122: ='Org structure'!E118 -> 11.6 - | C122: 0 | D122: 0 | E122: 0 | F122: 0 | G122: 0 | H122: 0 | I122: 0 | J122: 0 | K122: 0 | L122: 0 | Q122: 0 | U122: 0
A123: ='Org structure'!E119 -> 11.7 - | C123: 0 | D123: 0 | E123: 0 | F123: 0 | G123: 0 | H123: 0 | I123: 0 | J123: 0 | K123: 0 | L123: 0 | Q123: 0 | U123: 0
A124: ='Org structure'!E120 -> 11.8 - | C124: 0 | D124: 0 | E124: 0 | F124: 0 | G124: 0 | H124: 0 | I124: 0 | J124: 0 | K124: 0 | L124: 0 | Q124: 0 | U124: 0
A125: ='Org structure'!E121 -> 11.9 - | C125: 0 | D125: 0 | E125: 0 | F125: 0 | G125: 0 | H125: 0 | I125: 0 | J125: 0 | K125: 0 | L125: 0 | Q125: 0 | U125: 0
A126: ='Org structure'!E122 -> 11.10 - | C126: 0 | D126: 0 | E126: 0 | F126: 0 | G126: 0 | H126: 0 | I126: 0 | J126: 0 | K126: 0 | L126: 0 | Q126: 0 | U126: 0
A127: ='Org structure'!A13 -> Waste water management | C127: =SUM(C128:C137) -> 0 | D127: 0 | E127: 0 | F127: 0 | G127: 0 | H127: 0 | I127: 0 | J127: 0 | K127: 0 | L127: 0 | N127: =SUM(N128:N137) -> 0 | O127: 0 | P127: 0 | Q127: 0 | R127: 0 | S127: 0 | T127: 0 | U127: 0 | V127: 0 | W127: 0 | X127: 0
A128: ='Org structure'!E124 -> 12.1 - Sewerage | C128: 0 | D128: 0 | E128: 0 | F128: 0 | G128: 0 | H128: 0 | I128: 0 | J128: =Q128+V128 -> 0 | K128: =U128+W128 -> 0 | L128: =X128 -> 0 | Q128: =SUM(N128:P128) -> 0 | U128: 0
A129: ='Org structure'!E125 -> 12.2 - | C129: 0 | D129: 0 | E129: 0 | F129: 0 | G129: 0 | H129: 0 | I129: 0 | J129: 0 | K129: 0 | L129: 0 | Q129: 0 | U129: 0
A130: ='Org structure'!E126 -> 12.3 - | C130: 0 | D130: 0 | E130: 0 | F130: 0 | G130: 0 | H130: 0 | I130: 0 | J130: 0 | K130: 0 | L130: 0 | Q130: 0 | U130: 0
A131: ='Org structure'!E127 -> 12.4 - | C131: 0 | D131: 0 | E131: 0 | F131: 0 | G131: 0 | H131: 0 | I131: 0 | J131: 0 | K131: 0 | L131: 0 | Q131: 0 | U131: 0
A132: ='Org structure'!E128 -> 12.5 - | C132: 0 | D132: 0 | E132: 0 | F132: 0 | G132: 0 | H132: 0 | I132: 0 | J132: 0 | K132: 0 | L132: 0 | Q132: 0 | U132: 0
A133: ='Org structure'!E129 -> 12.6 - | C133: 0 | D133: 0 | E133: 0 | F133: 0 | G133: 0 | H133: 0 | I133: 0 | J133: =Q133+V133 -> 0 | K133: 0 | L133: 0 | Q133: 0 | U133: 0
A134: ='Org structure'!E130 -> 12.7 - | C134: 0 | D134: 0 | E134: 0 | F134: 0 | G134: 0 | H134: 0 | I134: 0 | J134: 0 | K134: 0 | L134: 0 | Q134: 0 | U134: 0
A135: ='Org structure'!E131 -> 12.8 - | C135: 0 | D135: 0 | E135: 0 | F135: 0 | G135: 0 | H135: 0 | I135: 0 | J135: 0 | K135: 0 | L135: 0 | Q135: 0 | U135: 0
A136: ='Org structure'!E132 -> 12.9 - | C136: 0 | D136: 0 | E136: 0 | F136: 0 | G136: 0 | H136: 0 | I136: 0 | J136: 0 | K136: 0 | L136: 0 | Q136: 0 | U136: =SUM(R136:T136) -> 0
A137: ='Org structure'!E133 -> 12.10 - | C137: 0 | D137: 0 | E137: 0 | F137: 0 | G137: 0 | H137: 0 | I137: 0 | J137: 0 | K137: 0 | L137: 0 | Q137: 0 | U137: 0
A138: ='Org structure'!A14 -> Housing | C138: =SUM(C139:C148) -> 0 | D138: 0 | E138: 0 | F138: 0 | G138: 0 | H138: 0 | I138: 0 | J138: 0 | K138: 0 | L138: 0 | N138: =SUM(N139:N148) -> 0 | O138: 0 | P138: 0 | Q138: 0 | R138: 0 | S138: 0 | T138: 0 | U138: 0 | V138: 0 | W138: 0 | X138: 0
A139: ='Org structure'!E135 -> 13.1 - Housing | C139: 0 | D139: 0 | E139: 0 | F139: 0 | G139: 0 | H139: 0 | I139: 0 | J139: =Q139+V139 -> 0 | K139: =U139+W139 -> 0 | L139: =X139 -> 0 | Q139: =SUM(N139:P139) -> 0 | U139: 0
A140: ='Org structure'!E136 -> 13.2 - | C140: 0 | D140: 0 | E140: 0 | F140: 0 | G140: 0 | H140: 0 | I140: 0 | J140: 0 | K140: 0 | L140: 0 | Q140: 0 | U140: 0
A141: ='Org structure'!E137 -> 13.3 - | C141: 0 | D141: 0 | E141: 0 | F141: 0 | G141: 0 | H141: 0 | I141: 0 | J141: 0 | K141: 0 | L141: 0 | Q141: 0 | U141: 0
A142: ='Org structure'!E138 -> 13.4 - | C142: 0 | D142: 0 | E142: 0 | F142: 0 | G142: 0 | H142: 0 | I142: 0 | J142: 0 | K142: 0 | L142: 0 | Q142: 0 | U142: 0
A143: ='Org structure'!E139 -> 13.5 - | C143: 0 | D143: 0 | E143: 0 | F143: 0 | G143: 0 | H143: 0 | I143: 0 | J143: 0 | K143: 0 | L143: 0 | Q143: 0 | U143: 0
A144: ='Org structure'!E140 -> 13.6 - | C144: 0 | D144: 0 | E144: 0 | F144: 0 | G144: 0 | H144: 0 | I144: 0 | J144: 0 | K144: 0 | L144: 0 | Q144: 0 | U144: 0
A145: ='Org structure'!E141 -> 13.7 - | C145: 0 | D145: 0 | E145: 0 | F145: 0 | G145: 0 | H145: 0 | I145: 0 | J145: 0 | K145: 0 | L145: 0 | Q145: 0 | U145: 0
A146: ='Org structure'!E142 -> 13.8 - | C146: 0 | D146: 0 | E146: 0 | F146: 0 | G146: 0 | H146: 0 | I146: 0 | J146: 0 | K146: 0 | L146: 0 | Q146: 0 | U146: 0
A147: ='Org structure'!E143 -> 13.9 - | C147: 0 | D147: 0 | E147: 0 | F147: 0 | G147: 0 | H147: 0 | I147: 0 | J147: 0 | K147: 0 | L147: 0 | Q147: 0 | U147: 0
A148: ='Org structure'!E144 -> 13.10 - | C148: 0 | D148: 0 | E148: 0 | F148: 0 | G148: 0 | H148: 0 | I148: 0 | J148: 0 | K148: 0 | L148: 0 | Q148: 0 | U148: 0
A149: ='Org structure'!A15 -> Finance and administration | C149: =SUM(C150:C159) -> 3695537 | D149: 0 | E149: 0 | F149: 0 | G149: 0 | H149: 0 | I149: 0 | J149: 0 | K149: 0 | L149: 0 | N149: =SUM(N150:N159) -> 0 | O149: 0 | P149: 0 | Q149: 0 | R149: 0 | S149: 0 | T149: 0 | U149: 0 | V149: 0 | W149: 0 | X149: 0
A150: ='Org structure'!E146 -> 14.1 - Security Services | C150: 0 | D150: 0 | E150: 0 | F150: 0 | G150: 0 | H150: 0 | I150: 0 | J150: =Q150+V150 -> 0 | K150: =U150+W150 -> 0 | L150: =X150 -> 0 | Q150: =SUM(N150:P150) -> 0 | U150: 0
A151: ='Org structure'!E147 -> 14.2 - Administrative and Corporate Support | C151: 3695537 | E151: 0 | F151: 0 | G151: 0 | H151: 0 | I151: 0 | J151: 0 | K151: 0 | L151: 0 | Q151: 0 | U151: 0
A152: ='Org structure'!E148 -> 14.3 - Information Technology | C152: 0 | D152: 0 | E152: 0 | F152: 0 | G152: 0 | H152: 0 | I152: 0 | J152: 0 | K152: 0 | L152: 0 | Q152: 0 | U152: 0
A153: ='Org structure'!E149 -> 14.4 - | C153: 0 | D153: 0 | E153: 0 | F153: 0 | G153: 0 | H153: 0 | I153: 0 | J153: 0 | K153: 0 | L153: 0 | Q153: 0 | U153: 0
A154: ='Org structure'!E150 -> 14.5 - | C154: 0 | D154: 0 | E154: 0 | F154: 0 | G154: 0 | H154: 0 | I154: 0 | J154: 0 | K154: 0 | L154: 0 | Q154: 0 | U154: 0
A155: ='Org structure'!E151 -> 14.6 - | C155: 0 | D155: 0 | E155: 0 | F155: 0 | G155: 0 | H155: 0 | I155: 0 | J155: 0 | K155: 0 | L155: 0 | Q155: 0 | U155: 0
A156: ='Org structure'!E152 -> 14.7 - | C156: 0 | D156: 0 | E156: 0 | F156: 0 | G156: 0 | H156: 0 | I156: 0 | J156: 0 | K156: 0 | L156: 0 | Q156: 0 | U156: 0
A157: ='Org structure'!E153 -> 14.8 - | C157: 0 | D157: 0 | E157: 0 | F157: 0 | G157: 0 | H157: 0 | I157: 0 | J157: 0 | K157: 0 | L157: 0 | Q157: 0 | U157: 0
A158: ='Org structure'!E154 -> 14.9 - | C158: 0 | D158: 0 | E158: 0 | F158: 0 | G158: 0 | H158: 0 | I158: 0 | J158: 0 | K158: 0 | L158: 0 | Q158: 0 | U158: 0
A159: ='Org structure'!E155 -> 14.10 - | C159: 0 | D159: 0 | E159: 0 | F159: 0 | G159: 0 | H159: 0 | I159: 0 | J159: 0 | K159: 0 | L159: 0 | Q159: 0 | U159: 0
A160: ='Org structure'!A16 -> Vote 15 - | C160: =SUM(C161:C170) -> 0 | D160: 0 | E160: 0 | F160: 0 | G160: 0 | H160: 0 | I160: 0 | J160: 0 | K160: 0 | L160: 0 | N160: =SUM(N161:N170) -> 0 | O160: 0 | P160: 0 | Q160: 0 | R160: 0 | S160: 0 | T160: 0 | U160: 0 | V160: 0 | W160: 0 | X160: 0
A161: ='Org structure'!E157 -> 15.1 - | C161: 0 | D161: 0 | E161: 0 | F161: 0 | G161: 0 | H161: 0 | I161: 0 | J161: =Q161+V161 -> 0 | K161: =U161+W161 -> 0 | L161: =X161 -> 0 | Q161: =SUM(N161:P161) -> 0 | U161: 0
A162: ='Org structure'!E158 -> 15.2 - | C162: 0 | D162: 0 | E162: 0 | F162: 0 | G162: 0 | H162: 0 | I162: 0 | J162: 0 | K162: 0 | L162: 0 | Q162: 0 | U162: 0
A163: ='Org structure'!E159 -> 15.3 - | C163: 0 | D163: 0 | E163: 0 | F163: 0 | G163: 0 | H163: 0 | I163: 0 | J163: 0 | K163: 0 | L163: 0 | Q163: 0 | U163: 0
A164: ='Org structure'!E160 -> 15.4 - | C164: 0 | D164: 0 | E164: 0 | F164: 0 | G164: 0 | H164: 0 | I164: 0 | J164: 0 | K164: 0 | L164: 0 | Q164: 0 | U164: 0
A165: ='Org structure'!E161 -> 15.5 - | C165: 0 | D165: 0 | E165: 0 | F165: 0 | G165: 0 | H165: 0 | I165: 0 | J165: 0 | K165: 0 | L165: 0 | Q165: 0 | U165: 0
A166: ='Org structure'!E162 -> 15.6 - | C166: 0 | D166: 0 | E166: 0 | F166: 0 | G166: 0 | H166: 0 | I166: 0 | J166: 0 | K166: 0 | L166: 0 | Q166: 0 | U166: 0
A167: ='Org structure'!E163 -> 15.7 - | C167: 0 | D167: 0 | E167: 0 | F167: 0 | G167: 0 | H167: 0 | I167: 0 | J167: 0 | K167: 0 | L167: 0 | Q167: 0 | U167: 0
A168: ='Org structure'!E164 -> 15.8 - | C168: 0 | D168: 0 | E168: 0 | F168: 0 | G168: 0 | H168: 0 | I168: 0 | J168: 0 | K168: 0 | L168: 0 | Q168: 0 | U168: 0
A169: ='Org structure'!E165 -> 15.9 - | C169: 0 | D169: 0 | E169: 0 | F169: 0 | G169: 0 | H169: 0 | I169: 0 | J169: 0 | K169: 0 | L169: 0 | Q169: 0 | U169: 0
A170: ='Org structure'!E166 -> 15.10 - | C170: 0 | D170: 0 | E170: 0 | F170: 0 | G170: 0 | H170: 0 | I170: 0 | J170: 0 | K170: 0 | L170: 0 | Q170: 0 | U170: 0
A171: Capital multi-year expenditure sub-total | C171: =C6+C17+C28+C39+C50+C61+C72+C83+C94+C105+C116+C127+C138+C149+C160 -> 82663088 | D171: =D6+D17+D28+D39+D50+D61+D72+D83+D94+D105+D116+D127+D138+D149+D160 -> 61868228.69 | E171: 27374237.88 | F171: 108002077 | G171: 129272082 | H171: 129272082 | I171: 129272082 | J171: 86999350 | K171: 114770120 | L171: 129545529 | N171: =N6+N17+N28+N39+N50+N61+N72+N83+N94+N105+N116+N127+N138+N149+N160 -> 0 | O171: 0 | P171: 0 | Q171: 0 | R171: 0 | S171: 0 | U171: 0 | V171: =V6+V17+V28+V39+V50+V61+V72+V83+V94+V105+V116+V127+V138+V149+V160 -> 86999350 | W171: =W6+W17+W28+W39+W50+W61+W72+W83+W94+W105+W116+W127+W138+W149+W160 -> 114770120
A173: Capital expenditure - Municipal Vote
A174: Single-year expenditure appropriation | B174: 2
A175: =A6 -> Energy sources | C175: =SUM(C176:C185) -> 0 | D175: 1096710.53 | E175: 0 | F175: 0 | G175: 0 | H175: 0 | I175: 0 | J175: =SUM(J176:J185) -> 800000 | K175: 0 | L175: 0
A176: =A7 -> 1.1 - Electricity | D176: 1096710.53 | E176: 0 | F176: 0 | G176: 0 | H176: 0 | I176: 0 | J176: 800000 | K176: 0 | L176: 0
A177: 1.2 - Street Lighting and Signal Systems | C177: 0 | D177: 0 | E177: 0 | F177: 0 | G177: 0 | H177: 0 | I177: 0 | J177: 0 | K177: 0 | L177: 0
A178: 1.3 - | C178: 0 | D178: 0 | E178: 0 | F178: 0 | G178: 0 | H178: 0 | I178: 0 | J178: 0 | K178: 0 | L178: 0
A179: 1.4 - | C179: 0 | D179: 0 | E179: 0 | F179: 0 | G179: 0 | H179: 0 | I179: 0 | J179: 0 | K179: 0 | L179: 0
A180: 1.5 - | C180: 0 | D180: 0 | E180: 0 | F180: 0 | G180: 0 | H180: 0 | I180: 0 | J180: 0 | K180: 0 | L180: 0
A181: 1.6 - | C181: 0 | D181: 0 | E181: 0 | F181: 0 | G181: 0 | H181: 0 | I181: 0 | J181: 0 | K181: 0 | L181: 0
A182: 1.7 - | C182: 0 | D182: 0 | E182: 0 | F182: 0 | G182: 0 | H182: 0 | I182: 0 | J182: 0 | K182: 0 | L182: 0
A183: 1.8 - | C183: 0 | D183: 0 | E183: 0 | F183: 0 | G183: 0 | H183: 0 | I183: 0 | J183: 0 | K183: 0 | L183: 0
A184: 1.9 - | C184: 0 | D184: 0 | E184: 0 | F184: 0 | G184: 0 | H184: 0 | I184: 0 | J184: 0 | K184: 0 | L184: 0
A185: 1.10 - | C185: 0 | D185: 0 | E185: 0 | F185: 0 | G185: 0 | H185: 0 | I185: 0 | J185: 0 | K185: 0 | L185: 0
A186: Community and social services | C186: =SUM(C187:C196) -> 0 | D186: 0 | E186: 0 | F186: 0 | G186: 0 | H186: 0 | I186: 0 | J186: 500000 | K186: 1500000 | L186: 1500000
A187: 2.1 - Animal Care and Diseases | C187: 0 | D187: 0 | E187: 0 | F187: 0 | G187: 0 | H187: 0 | I187: 0 | J187: 500000 | K187: 1500000 | L187: 1500000
A188: 2.2 - Community Halls and Facilities | C188: 0 | D188: 0 | E188: 0 | F188: 0 | G188: 0 | H188: 0 | I188: 0 | J188: 0 | K188: 0 | L188: 0
A189: 2.3 - Libraries and Archives | C189: 0 | D189: 0 | E189: 0 | F189: 0 | G189: 0 | H189: 0 | I189: 0 | J189: 0 | K189: 0 | L189: 0
A190: 2.4 - Cemeteries, Funeral Parlours and Crematoriums | C190: 0 | D190: 0 | E190: 0 | F190: 0 | G190: 0 | H190: 0 | I190: 0 | J190: 0 | K190: 0 | L190: 0
A191: 2.5 - Libraries and Archives | C191: 0 | D191: 0 | E191: 0 | F191: 0 | G191: 0 | H191: 0 | I191: 0 | J191: 0 | K191: 0 | L191: 0
A192: 2.6 - Disaster Management | C192: 0 | D192: 0 | E192: 0 | F192: 0 | G192: 0 | H192: 0 | I192: 0 | J192: 0 | K192: 0 | L192: 0
A193: 2.7 - | C193: 0 | D193: 0 | E193: 0 | F193: 0 | G193: 0 | H193: 0 | I193: 0 | J193: 0 | K193: 0 | L193: 0
A194: 2.8 - | C194: 0 | D194: 0 | E194: 0 | F194: 0 | G194: 0 | H194: 0 | I194: 0 | J194: 0 | K194: 0 | L194: 0
A195: 2.9 - | C195: 0 | D195: 0 | E195: 0 | F195: 0 | G195: 0 | H195: 0 | I195: 0 | J195: 0 | K195: 0 | L195: 0
A196: 2.10 - | C196: 0 | D196: 0 | E196: 0 | F196: 0 | G196: 0 | H196: 0 | I196: 0 | J196: 0 | K196: 0 | L196: 0
A197: Finance and administration | C197: =SUM(C198:C207) -> 5138936 | D197: 342752.84 | E197: 3010099 | F197: 3000000 | G197: 2652398 | H197: 2652398 | I197: 2652398 | J197: 3800000 | K197: 9800000 | L197: 0
A198: 3.1 - Fleet Management | C198: 4816184 | D198: 170620 | E198: 3010099 | F198: 3000000 | G198: 2652398 | H198: 2652398 | I198: 2652398 | J198: 2500000 | K198: 9800000 | L198: 0
A199: 3.2 - Budget and Treasury Office | C199: 0 | D199: 0 | E199: 0 | F199: 0 | G199: 0 | H199: 0 | I199: 0 | J199: 0 | K199: 0 | L199: 0
A200: 3.3 - Finance | C200: 0 | D200: 0 | E200: 0 | F200: 0 | G200: 0 | H200: 0 | I200: 0 | J200: 0 | K200: 0 | L200: 0
A201: 3.4 - Asset Management | C201: 0 | D201: 0 | E201: 0 | F201: 0 | G201: 0 | H201: 0 | I201: 0 | J201: 0 | K201: 0 | L201: 0
... 140 more rows

Sheet A6-FinPos
A1: =muni&" - "&Approve6 -> LIM331 Greater Giyani - Table A6 Budgeted Financial Position
A2: =desc -> Description | B2: =head27 -> Ref | C2: =head1b -> 2014/15 | D2: =head1A -> 2015/16 | E2: =Head1 -> 2016/17 | F2: =Head2 -> Current Year 2017/18 | J2: =Head3 -> 2018/19 Medium Term Revenue & Expenditure Framework
A3: R thousand | C3: =Head5 -> Audited Outcome | D3: =Head5 -> Audited Outcome | E3: =Head5 -> Audited Outcome | F3: =Head6 -> Original Budget | G3: =Head7 -> Adjusted Budget | H3: =Head8 -> Full Year Forecast | I3: =Head5b -> Pre-audit outcome | J3: =Head9 -> Budget Year 2018/19 | K3: =Head10 -> Budget Year +1 2019/20 | L3: =Head11 -> Budget Year +2 2020/21
A4: ASSETS
A5: Current assets
A6: Cash | C6: 150319082 | D6: 180005001 | E6: 166530477 | F6: 0 | G6: 0 | H6: 0 | I6: 0 | J6: 0 | K6: 0 | L6: 0
A7: Call investment deposits | B7: 1 | C7: ='SA3'!C9 -> 0 | D7: ='SA3'!D9 -> 0 | E7: ='SA3'!E9 -> 0 | F7: ='SA3'!F9 -> 0 | G7: ='SA3'!G9 -> 0 | H7: ='SA3'!H9 -> 0 | I7: ='SA3'!I9 -> 0 | J7: ='SA3'!J9 -> 0 | K7: ='SA3'!K9 -> 0 | L7: ='SA3'!L9 -> 0
A8: Consumer debtors | B8: 1 | C8: ='SA3'!C14 -> 28919722 | D8: ='SA3'!D14 -> 20196629 | E8: ='SA3'!E14 -> 10289260 | F8: ='SA3'!F14 -> 69744801 | G8: ='SA3'!G14 -> 0 | H8: ='SA3'!H14 -> 0 | I8: ='SA3'!I14 -> 0 | J8: ='SA3'!J14 -> 0 | K8: ='SA3'!K14 -> 0 | L8: ='SA3'!L14 -> 0
A9: Other debtors | C9: 2726789 | D9: 18491316 | E9: 56831267 | F9: 0 | G9: 0 | H9: 0 | I9: 0 | J9: 0 | K9: 0 | L9: 0
A10: Current portion of long-term receivables | F10: 0 | G10: 0 | H10: 0 | I10: 0 | J10: 0 | K10: 0 | L10: 0
A11: Inventory | B11: 2 | C11: 603684 | D11: 1436620 | E11: 1519040 | F11: 0 | G11: 0 | H11: 0 | I11: 0 | J11: 0 | K11: 0 | L11: 0
A12: Total current assets | C12: =SUM(C6:C11) -> 182569277 | D12: 220129566 | E12: 235170044 | F12: 69744801 | G12: 0 | H12: 0 | I12: 0 | J12: 0 | K12: 0 | L12: 0
A14: Non current assets
A15: Long-term receivables | C15: 0 | D15: 0 | E15: 0 | F15: 0 | G15: 0 | H15: 0 | I15: 0 | J15: 0 | K15: 0 | L15: 0
A16: Investments | C16: 0 | D16: 0 | E16: 0 | F16: 0 | G16: 0 | H16: 0 | I16: 0 | J16: 0 | K16: 0 | L16: 0
A17: Investment property | C17: 0 | D17: 0 | E17: 26220000 | F17: 0 | G17: 0 | H17: 0 | I17: 0 | J17: 0 | K17: 0 | L17: 0
A18: Investment in Associate | C18: 0 | D18: 0 | E18: 0 | F18: 0 | G18: 0 | H18: 0 | I18: 0 | J18: 0 | K18: 0 | L18: 0
A19: Property, plant and equipment | B19: 3 | C19: ='SA3'!C26 -> 410693809 | D19: ='SA3'!D26 -> 525422124.5 | E19: ='SA3'!E26 -> 558566680 | F19: ='SA3'!F26 -> 113023557 | G19: ='SA3'!G26 -> 135339000 | H19: ='SA3'!H26 -> 135339000 | I19: ='SA3'!I26 -> 135339000 | J19: ='SA3'!J26 -> 0 | K19: ='SA3'!K26 -> 0 | L19: ='SA3'!L26 -> 0
A20: Agricultural | C20: 0 | D20: 0 | E20: 0 | F20: 0 | G20: 0 | H20: 0 | I20: 0 | J20: 0 | K20: 0 | L20: 0
A21: Biological | C21: 0 | D21: 0 | E21: 171053 | F21: 0 | G21: 0 | H21: 0 | I21: 0 | J21: 0 | K21: 0 | L21: 0
A22: Intangible | C22: 0 | D22: 0 | E22: 68458 | F22: 0 | G22: 0 | H22: 0 | I22: 0 | J22: 0 | K22: 0 | L22: 0
A23: Other non-current assets | C23: 0 | D23: 0 | E23: 0 | F23: 0 | G23: 0 | H23: 0 | I23: 0 | J23: 0 | K23: 0 | L23: 0
A24: Total non current assets | C24: =SUM(C15:C23) -> 410693809 | D24: =SUM(D15:D23) -> 525422124.5 | E24: =SUM(E15:E23) -> 585026191 | F24: 113023557 | G24: 135339000 | H24: 135339000 | I24: 135339000 | J24: 0 | K24: 0 | L24: 0
A25: TOTAL ASSETS | C25: =C12+C24 -> 593263086 | D25: =D12+D24 -> 745551690.5 | E25: =E12+E24 -> 820196235 | F25: =F12+F24 -> 182768358 | G25: 135339000 | H25: 135339000 | I25: 135339000 | J25: 0 | K25: 0 | L25: 0
A27: LIABILITIES
A28: Current liabilities
A29: Bank overdraft | B29: 1 | C29: 0 | D29: 0 | E29: 0 | F29: 0 | G29: 0 | H29: 0 | I29: 0 | J29: 0 | K29: 0 | L29: 0
A30: Borrowing | B30: 4 | C30: ='SA3'!C32 -> 0 | D30: ='SA3'!D32 -> 0 | E30: ='SA3'!E32 -> 0 | F30: ='SA3'!F32 -> 0 | G30: ='SA3'!G32 -> 0 | H30: ='SA3'!H32 -> 0 | I30: ='SA3'!I32 -> 0 | J30: ='SA3'!J32 -> 0 | K30: ='SA3'!K32 -> 0 | L30: ='SA3'!L32 -> 0
A31: Consumer deposits | C31: 0 | D31: 0 | E31: 0 | F31: 0 | G31: 0 | H31: 0 | I31: 0 | J31: 0 | K31: 0 | L31: 0
A32: Trade and other payables | B32: 4 | C32: ='SA3'!C38 -> 50104830 | D32: ='SA3'!D38 -> 62486713 | E32: ='SA3'!E38 -> 77173636 | F32: ='SA3'!F38 -> 9379000 | G32: ='SA3'!G38 -> 0 | H32: ='SA3'!H38 -> 0 | I32: ='SA3'!I38 -> 0 | J32: ='SA3'!J38 -> 0 | K32: ='SA3'!K38 -> 0 | L32: ='SA3'!L38 -> 0
A33: Provisions | C33: 392566 | E33: 0 | F33: 0 | G33: 0 | H33: 0 | I33: 0 | J33: 0 | K33: 0 | L33: 0
A34: Total current liabilities | C34: =SUM(C29:C33) -> 50497396 | D34: 62486713 | E34: 77173636 | F34: 9379000 | G34: 0 | H34: 0 | I34: 0 | J34: 0 | K34: 0 | L34: 0
A36: Non current liabilities
A37: Borrowing | C37: ='SA3'!C43 -> 0 | D37: ='SA3'!D43 -> 0 | E37: ='SA3'!E43 -> 0 | F37: ='SA3'!F43 -> 0 | G37: ='SA3'!G43 -> 0 | H37: ='SA3'!H43 -> 0 | I37: ='SA3'!I43 -> 0 | J37: ='SA3'!J43 -> 0 | K37: ='SA3'!K43 -> 0 | L37: ='SA3'!L43 -> 0
A38: Provisions | C38: ='SA3'!C50 -> 19640069 | D38: ='SA3'!D50 -> 36631023 | E38: ='SA3'!E50 -> 38545962 | F38: ='SA3'!F50 -> 0 | G38: ='SA3'!G50 -> 0 | H38: ='SA3'!H50 -> 0 | I38: ='SA3'!I50 -> 0 | J38: ='SA3'!J50 -> 0 | K38: ='SA3'!K50 -> 0 | L38: ='SA3'!L50 -> 0
A39: Total non current liabilities | C39: =SUM(C37:C38) -> 19640069 | D39: =SUM(D37:D38) -> 36631023 | E39: =SUM(E37:E38) -> 38545962 | F39: =SUM(F37:F38) -> 0 | G39: 0 | H39: 0 | I39: 0 | J39: 0 | K39: =SUM(K37:K38) -> 0 | L39: 0
A40: TOTAL LIABILITIES | C40: =C34+C39 -> 70137465 | D40: =D34+D39 -> 99117736 | E40: =E34+E39 -> 115719598 | F40: =F34+F39 -> 9379000 | G40: 0 | H40: 0 | I40: 0 | J40: 0 | K40: =K34+K39 -> 0 | L40: 0
A42: NET ASSETS | B42: 5 | C42: =C25-C40 -> 523125621 | D42: 646433954.5 | E42: 704476637 | F42: 173389358 | G42: 135339000 | H42: 135339000 | I42: 135339000 | J42: 0 | K42: 0 | L42: 0
A44: COMMUNITY WEALTH/EQUITY
A45: Accumulated Surplus/(Deficit) | C45: 523125621 | D45: 646433954.5 | E45: 704476637 | F45: ='SA3'!F62 -> 55461525 | G45: ='SA3'!G62 -> 105338680 | H45: ='SA3'!H62 -> 105338680 | I45: ='SA3'!I62 -> 105338680 | J45: ='SA3'!J62 -> 69949350 | K45: ='SA3'!K62 -> 98520120 | L45: ='SA3'!L62 -> 99186429
A46: Reserves | B46: 4 | C46: ='SA3'!C69 -> 0 | D46: ='SA3'!D69 -> 0 | E46: ='SA3'!E69 -> 0 | F46: ='SA3'!F69 -> 0 | G46: ='SA3'!G69 -> 0 | H46: ='SA3'!H69 -> 0 | I46: ='SA3'!I69 -> 0 | J46: ='SA3'!J69 -> 0 | K46: ='SA3'!K69 -> 0 | L46: ='SA3'!L69 -> 0
A48: TOTAL COMMUNITY WEALTH/EQUITY | B48: 5 | C48: =SUM(C45:C47) -> 523125621 | D48: =SUM(D45:D47) -> 646433954.5 | E48: 704476637 | F48: 55461525 | G48: 105338680 | H48: 105338680 | I48: 105338680 | J48: 69949350 | K48: 98520120 | L48: 99186429
A49: =head27a -> References
A50: 1. Detail to be provided in Table SA3
A51: 2. Include completed low cost housing to be transferred to beneficiaries within 12 months
A52: 3. Include 'Construction-work-in-progress' (disclosed separately in annual financial statements)
A53: 4. Detail to be provided in Table SA3. Includes reserves to be funded by statute.
A54: 5. Net assets must balance with Total Community Wealth/Equity
A55: check balance | C55: =IF((C42-C48)=0,0,"Unbalanced") -> 0 | D55: =IF((D42-D48)=0,0,"Unbalanced") -> 0 | E55: 0 | F55: Unbalanced | G55: Unbalanced | H55: Unbalanced | I55: Unbalanced | J55: Unbalanced | K55: Unbalanced | L55: Unbalanced
A71: Test | C71: =IF(C25<>C40,"Unbalanced",0) -> Unbalanced | D71: =IF(D25<>D40,"Unbalanced",0) -> Unbalanced | E71: Unbalanced | F71: Unbalanced | G71: Unbalanced | H71: Unbalanced | I71: Unbalanced | J71: 0 | K71: 0 | L71: 0

Sheet A7-CFlow
A1: =muni&" - "&Approve7 -> LIM331 Greater Giyani - Table A7 Budgeted Cash Flows
A2: =desc -> Description | B2: =head27 -> Ref | C2: =head1b -> 2014/15 | D2: =head1A -> 2015/16 | E2: =Head1 -> 2016/17 | F2: =Head2 -> Current Year 2017/18 | J2: =Head3 -> 2018/19 Medium Term Revenue & Expenditure Framework
A3: R thousand | C3: =Head5 -> Audited Outcome | D3: =Head5 -> Audited Outcome | E3: =Head5 -> Audited Outcome | F3: =Head6 -> Original Budget | G3: =Head7 -> Adjusted Budget | H3: =Head8 -> Full Year Forecast | I3: =Head5b -> Pre-audit outcome | J3: =Head9 -> Budget Year 2018/19 | K3: =Head10 -> Budget Year +1 2019/20 | L3: =Head11 -> Budget Year +2 2020/21
A4: CASH FLOW FROM OPERATING ACTIVITIES
A5: Receipts
A6: Property rates | C6: 59305233 | D6: 23607131 | E6: 27831943 | F6: 30000000 | G6: 30000000 | H6: 30000000 | I6: 30000000 | J6: ='SA30'!N5 -> 35000000 | K6: ='SA30'!O5 -> 37000000 | L6: ='SA30'!P5 -> 39000000
A7: Service charges | C7: 3953160 | D7: 4552821 | E7: 0 | F7: 4300000 | G7: 4400000 | H7: 4400000 | I7: 4400000 | J7: ='SA30'!N6+'SA30'!N7+'SA30'!N8+'SA30'!N9+'SA30'!N10 -> 4700000 | K7: ='SA30'!O6+'SA30'!O7+'SA30'!O8+'SA30'!O9+'SA30'!O10 -> 4900000 | L7: ='SA30'!P6+'SA30'!P7+'SA30'!P8+'SA30'!P9+'SA30'!P10 -> 5200000
A8: Other revenue | C8: 2318364 | D8: 13226367 | E8: 24220051 | F8: 10067969 | G8: 31300822 | H8: 31300822 | I8: 31300822 | J8: ='SA30'!N11+'SA30'!N15+'SA30'!N16+'SA30'!N17+'SA30'!N19 -> 31076330 | K8: ='SA30'!O11+'SA30'!O15+'SA30'!O16+'SA30'!O17+'SA30'!O19 -> 31567900 | L8: ='SA30'!P11+'SA30'!P15+'SA30'!P16+'SA30'!P17+'SA30'!P19 -> 34759228
A9: Government - operating | B9: 1 | C9: 177849504 | D9: 224923272 | E9: 222487632.7 | F9: 241457000 | G9: 241310582 | H9: 241310582 | I9: 241310582 | J9: ='SA30'!N18 -> 259395000 | K9: ='SA30'!O18 -> 283183000 | L9: ='SA30'!P18 -> 283183000
A10: Government - capital | B10: 1 | C10: 79480784 | D10: 105700629 | E10: 97901999 | F10: 81736000 | G10: 99115000 | H10: 99115000 | I10: 99115000 | J10: ='SA30'!N23 -> 70673000 | K10: ='SA30'!O23 -> 73488000 | L10: ='SA30'!P23 -> 76549000
A11: Interest | C11: 14804846 | D11: 13400970 | E11: 15174630 | F11: 15440258 | G11: 22323603 | H11: 22323603 | I11: 22323603 | J11: ='SA30'!N12+'SA30'!N13 -> 21200000 | K11: ='SA30'!O12+'SA30'!O13 -> 22260000 | L11: ='SA30'!P12+'SA30'!P13 -> 23373000
A12: Dividends | E12: 0 | F12: 0 | G12: 0 | H12: 0 | I12: 0 | J12: ='SA30'!N14 -> 0 | K12: ='SA30'!O14 -> 0 | L12: ='SA30'!P14 -> 0
A13: Payments
A14: Suppliers and employees | C14: -187837321 | D14: -265162685.8 | E14: -368187472 | F14: -298875446.4 | G14: -285413683 | H14: -285413683 | I14: -285413683 | J14: =-('SA30'!N35+'SA30'!N36+'SA30'!N38+'SA30'!N39+'SA30'!N40+'SA30'!N41+'SA30'!N44+'SA30'!N50) -> -312094980 | K14: =-('SA30'!O35+'SA30'!O36+'SA30'!O38+'SA30'!O39+'SA30'!O40+'SA30'!O41+'SA30'!O44+'SA30'!O50) -> -327699729 | L14: =-('SA30'!P35+'SA30'!P36+'SA30'!P38+'SA30'!P39+'SA30'!P40+'SA30'!P41+'SA30'!P44+'SA30'!P50) -> -344084715.5
A15: Finance charges | C15: -430059 | D15: -57409 | E15: 0 | F15: 0 | G15: 0 | H15: 0 | I15: 0 | J15: =-('SA30'!N37) -> 0 | K15: =-('SA30'!O37) -> 0 | L15: =-('SA30'!P37) -> 0
A16: Transfers and Grants | B16: 1 | C16: 0 | D16: 0 | E16: 0 | F16: 0 | G16: 0 | H16: 0 | I16: 0 | J16: =-('SA30'!N42+'SA30'!N43) -> 0 | K16: =-('SA30'!O42+'SA30'!O43) -> 0 | L16: =-('SA30'!P42+'SA30'!P43) -> 0
A17: NET CASH FROM/(USED) OPERATING ACTIVITIES | C17: =SUM(C6:C12)+SUM(C14:C16) -> 149444511 | D17: 120191095.2 | E17: 19428783.72 | F17: 84125780.56 | G17: 143036324 | H17: 143036324 | I17: 143036324 | J17: 109949350 | K17: 124699171 | L17: 117979512.5
A19: CASH FLOWS FROM INVESTING ACTIVITIES
A20: Receipts
A21: Proceeds on disposal of PPE | C21: 1776608 | D21: 0 | E21: 0 | F21: 0 | G21: 700000 | H21: 700000 | I21: 700000 | J21: ='SA30'!N24+'SA30'!N25 -> 0 | K21: ='SA30'!O24+'SA30'!O25 -> 0 | L21: ='SA30'!P24+'SA30'!P25 -> 0
A22: Decrease (Increase) in non-current debtors | C22: 0 | D22: 0 | E22: 0 | F22: 0 | G22: 0 | H22: 0 | I22: 0 | J22: ='SA30'!N29 -> 0 | K22: ='SA30'!O29 -> 0 | L22: ='SA30'!P29 -> 0
A23: Decrease (increase) other non-current receivables | C23: 0 | D23: 0 | E23: 0 | F23: 0 | G23: 0 | H23: 0 | I23: 0 | J23: ='SA30'!N30 -> 0 | K23: ='SA30'!O30 -> 0 | L23: ='SA30'!P30 -> 0
A24: Decrease (increase) in non-current investments | C24: 0 | D24: 0 | E24: 0 | F24: 0 | G24: 0 | H24: 0 | I24: 0 | J24: ='SA30'!N31 -> 0 | K24: ='SA30'!O31 -> 0 | L24: ='SA30'!P31 -> 0
A25: Payments
A26: Capital assets | C26: -87545649 | D26: -63937443 | E26: -30525586 | F26: -84923557 | G26: -135338681 | H26: -135338681 | I26: -135338681 | J26: =-('SA30'!N48) -> 0 | K26: =-('SA30'!O48) -> 0 | L26: =-('SA30'!P48) -> 0
A27: NET CASH FROM/(USED) INVESTING ACTIVITIES | C27: =SUM(C21:C24)+C26 -> -85769041 | D27: =SUM(D21:D24)+D26 -> -63937443 | E27: -30525586 | F27: -84923557 | G27: -134638681 | H27: -134638681 | I27: -134638681 | J27: 0 | K27: 0 | L27: 0
A29: CASH FLOWS FROM FINANCING ACTIVITIES
A30: Receipts
A31: Short term loans | C31: 0 | D31: 0 | E31: 0 | F31: 0 | G31: 0 | H31: 0 | I31: 0 | J31: ='SA30'!N26 -> 0 | K31: ='SA30'!O26 -> 0 | L31: ='SA30'!P26 -> 0
A32: Borrowing long term/refinancing | C32: 0 | D32: 0 | E32: 0 | F32: 0 | G32: 0 | H32: 0 | I32: 0 | J32: ='SA30'!N27 -> 0 | K32: ='SA30'!O27 -> 0 | L32: ='SA30'!P27 -> 0
A33: Increase (decrease) in consumer deposits | C33: 0 | D33: 0 | E33: 0 | F33: 0 | G33: 0 | H33: 0 | I33: 0 | J33: ='SA30'!N28 -> 0 | K33: ='SA30'!O28 -> 0 | L33: ='SA30'!P28 -> 0
A34: Payments
A35: Repayment of borrowing | D35: -26557699 | E35: -3258622 | F35: 0 | G35: 0 | H35: 0 | I35: 0 | J35: =-('SA30'!N49) -> 0 | K35: =-('SA30'!O49) -> 0 | L35: =-('SA30'!P49) -> 0
A36: NET CASH FROM/(USED) FINANCING ACTIVITIES | C36: =SUM(C31:C33)+C35 -> 0 | D36: =SUM(D31:D33)+D35 -> -26557699 | E36: -3258622 | F36: 0 | G36: 0 | H36: 0 | I36: 0 | J36: 0 | K36: 0 | L36: 0
A38: NET INCREASE/ (DECREASE) IN CASH HELD | C38: =C17+C27+C36 -> 63675470 | D38: =D17+D27+D36 -> 29695953.18 | E38: -14355424.28 | F38: -797776.44 | G38: 8397643 | H38: 8397643 | I38: 8397643 | J38: 109949350 | K38: 124699171 | L38: 117979512.5
A39: Cash/cash equivalents at the year begin: | B39: 2 | C39: 86643628 | D39: 150309048 | E39: 180005001 | F39: =E40 -> 165649576.7 | G39: 165649576.7 | H39: 165649576.7 | I39: 165649576.7 | J39: ='SA30'!N54 -> 188402644 | K39: =J40 -> 298351994 | L39: =K40 -> 423051165
A40: Cash/cash equivalents at the year end: | B40: 2 | C40: =C38+C39 -> 150319098 | D40: =D38+D39 -> 180005001.2 | E40: =E38+E39 -> 165649576.7 | F40: =F38+F39 -> 164851800.3 | G40: 174047219.7 | H40: 174047219.7 | I40: 174047219.7 | J40: 298351994 | K40: 423051165 | L40: 541030677.5
A41: =head27a -> References
A42: 1. Local/District municipalities to include transfers from/to District/Local Municipalities
A43: 2. Cash equivalents includes investments with maturities of 3 months or less
A44: 3. The MTREF is populated directly from SA30.
A45: Total receipts | C45: =SUM(C6:C12)+SUM(C21:C23) -> 339488499 | D45: 385411190 | E45: 387616255.7 | F45: 383001227 | G45: 429150007 | H45: 429150007 | I45: 429150007 | J45: 422044330 | K45: 452398900 | L45: 462064228
A46: Total payments | C46: =SUM(C14:C16)+C26 -> -275813029 | D46: =SUM(D14:D16)+D26 -> -329157537.8 | E46: -398713058 | F46: -383799003.4 | G46: -420752364 | H46: -420752364 | I46: -420752364 | J46: -312094980 | K46: -327699729 | L46: -344084715.5
C47: =C45+C46 -> 63675470 | D47: =D45+D46 -> 56253652.18 | E47: -11096802.28 | F47: -797776.44 | G47: 8397643 | H47: 8397643 | I47: 8397643 | J47: 109949350 | K47: 124699171 | L47: 117979512.5
A48: Borrowings & investments & c.deposits | C48: =C24+C32+C33 -> 0 | D48: =D24+D32+D33 -> 0 | E48: 0 | F48: 0 | G48: 0 | H48: 0 | I48: 0 | J48: 0 | K48: 0 | L48: 0
A49: =A35 -> Repayment of borrowing | C49: =C35 -> 0 | D49: =D35 -> -26557699 | E49: -3258622 | F49: 0 | G49: 0 | H49: 0 | I49: =I35 -> 0 | J49: 0 | K49: 0 | L49: 0
C50: =C47+C48+C49 -> 63675470 | D50: =D47+D48+D49 -> 29695953.18 | E50: -14355424.28 | F50: -797776.44 | G50: 8397643 | H50: 8397643 | I50: 8397643 | J50: 109949350 | K50: 124699171 | L50: 117979512.5
C51: =C38-C50 -> 0 | D51: 0 | E51: 0 | F51: 0 | G51: 0 | H51: 0 | I51: 0 | J51: 0 | K51: 0 | L51: 0

Sheet A8-ResRecon
A1: =muni&" - "&Approve8 -> LIM331 Greater Giyani - Table A8 Cash backed reserves/accumulated surplus reconciliation
A2: =desc -> Description | B2: =head27 -> Ref | C2: =head1b -> 2014/15 | D2: =head1A -> 2015/16 | E2: =Head1 -> 2016/17 | F2: =Head2 -> Current Year 2017/18 | J2: =Head3 -> 2018/19 Medium Term Revenue & Expenditure Framework
A3: R thousand | C3: =Head5 -> Audited Outcome | D3: =Head5 -> Audited Outcome | E3: =Head5 -> Audited Outcome | F3: =Head6 -> Original Budget | G3: =Head7 -> Adjusted Budget | H3: =Head8 -> Full Year Forecast | I3: =Head5b -> Pre-audit outcome | J3: =Head9 -> Budget Year 2018/19 | K3: =Head10 -> Budget Year +1 2019/20 | L3: =Head11 -> Budget Year +2 2020/21
A4: Cash and investments available
A5: =LEFT('A7-CFlow'!A40,37) -> Cash/cash equivalents at the year end | B5: 1 | C5: ='A7-CFlow'!C40 -> 150319098 | D5: ='A7-CFlow'!D40 -> 180005001.2 | E5: ='A7-CFlow'!E40 -> 165649576.7 | F5: ='A7-CFlow'!F40 -> 164851800.3 | G5: ='A7-CFlow'!G40 -> 174047219.7 | H5: ='A7-CFlow'!H40 -> 174047219.7 | I5: ='A7-CFlow'!I40 -> 174047219.7 | J5: ='A7-CFlow'!J40 -> 298351994 | K5: ='A7-CFlow'!K40 -> 423051165 | L5: ='A7-CFlow'!L40 -> 541030677.5
A6: Other current investments > 90 days | C6: ='A6-FinPos'!C6+'A6-FinPos'!C7-'A6-FinPos'!C29-'A8-ResRecon'!C5 -> -16 | D6: ='A6-FinPos'!D6+'A6-FinPos'!D7-'A6-FinPos'!D29-'A8-ResRecon'!D5 -> -0.1800000072 | E6: ='A6-FinPos'!E6+'A6-FinPos'!E7-'A6-FinPos'!E29-'A8-ResRecon'!E5 -> 880900.28 | F6: ='A6-FinPos'!F6+'A6-FinPos'!F7-'A6-FinPos'!F29-'A8-ResRecon'!F5 -> -164851800.3 | G6: ='A6-FinPos'!G6+'A6-FinPos'!G7-'A6-FinPos'!G29-'A8-ResRecon'!G5 -> -174047219.7 | H6: ='A6-FinPos'!H6+'A6-FinPos'!H7-'A6-FinPos'!H29-'A8-ResRecon'!H5 -> -174047219.7 | I6: ='A6-FinPos'!I6+'A6-FinPos'!I7-'A6-FinPos'!I29-'A8-ResRecon'!I5 -> -174047219.7 | J6: ='A6-FinPos'!J6+'A6-FinPos'!J7-'A6-FinPos'!J29-'A8-ResRecon'!J5 -> -298351994 | K6: ='A6-FinPos'!K6+'A6-FinPos'!K7-'A6-FinPos'!K29-'A8-ResRecon'!K5 -> -423051165 | L6: ='A6-FinPos'!L6+'A6-FinPos'!L7-'A6-FinPos'!L29-'A8-ResRecon'!L5 -> -541030677.5
A7: ='A6-FinPos'!A14&" - "&'A6-FinPos'!A16 -> Non current assets - Investments | B7: 1 | C7: ='A6-FinPos'!C16 -> 0 | D7: ='A6-FinPos'!D16 -> 0 | E7: ='A6-FinPos'!E16 -> 0 | F7: ='A6-FinPos'!F16 -> 0 | G7: ='A6-FinPos'!G16 -> 0 | H7: ='A6-FinPos'!H16 -> 0 | I7: ='A6-FinPos'!I16 -> 0 | J7: ='A6-FinPos'!J16 -> 0 | K7: ='A6-FinPos'!K16 -> 0 | L7: ='A6-FinPos'!L16 -> 0
A8: Cash and investments available: | C8: =SUM(C5:C7) -> 150319082 | D8: =SUM(D5:D7) -> 180005001 | E8: 166530477 | F8: 0 | G8: 0 | H8: 0 | I8: 0 | J8: 0 | K8: 0 | L8: 0
A10: Application of cash and investments
A11: ='SA3'!A36 -> Unspent conditional transfers | C11: ='SA3'!C36 -> 2086416 | D11: ='SA3'!D36 -> 4472278 | E11: ='SA3'!E36 -> 9374624 | F11: ='SA3'!F36 -> 9379000 | G11: ='SA3'!G36 -> 0 | H11: ='SA3'!H36 -> 0 | I11: ='SA3'!I36 -> 0 | J11: ='SA3'!J36 -> 0 | K11: ='SA3'!K36 -> 0 | L11: ='SA3'!L36 -> 0
A12: Unspent borrowing | C12: ='SA17'!C67 -> 0 | D12: ='SA17'!D67 -> 0 | E12: ='SA17'!E67 -> 0 | F12: ='SA17'!F67 -> 0 | G12: ='SA17'!G67 -> 0 | H12: ='SA17'!H67 -> 0 | J12: ='SA17'!I67 -> 0 | K12: ='SA17'!J67 -> 0 | L12: ='SA17'!K67 -> 0
A13: Statutory requirements | B13: 2
A14: Other working capital requirements | B14: 3 | C14: =-C32 -> -4066586 | D14: =-D32 -> 26606435 | E14: 588012 | F14: =-F32 -> -62681000 | G14: 0 | H14: 0 | I14: 0 | J14: 0 | K14: 0 | L14: 0
A15: Other provisions
A16: Long term investments committed | B16: 4 | C16: =C52 -> 0 | D16: =D52 -> 0 | E16: 0 | F16: 0 | G16: 0 | H16: 0 | I16: 0 | J16: 0 | K16: 0 | L16: 0
A17: Reserves to be backed by cash/investments | B17: 5
A18: ="Total "&A10&":" -> Total Application of cash and investments: | C18: =SUM(C11:C17) -> -1980170 | D18: =SUM(D11:D17) -> 31078713 | E18: 9962636 | F18: -53302000 | G18: 0 | H18: 0 | I18: 0 | J18: 0 | K18: 0 | L18: 0
A19: Surplus(shortfall) | C19: =C8-C18 -> 152299252 | D19: =D8-D18 -> 148926288 | E19: 156567841 | F19: 53302000 | G19: 0 | H19: 0 | I19: 0 | J19: 0 | K19: 0 | L19: 0
A20: =head27a -> References
A21: 1. Must reconcile with Budgeted Cash Flows
A22: 2. For example: VAT, taxation
A23: 3. Council approval for policy required - include sufficient working capital (e.g. allowing for a % of current debtors > 90 days as uncollectable)
A24: 4. For example: sinking fund requirements for borrowing
A25: 5. Council approval required for each reserve created and basis of cash backing of reserves
A28: Other working capital requirements
A29: Debtors | C29: =IF(ISERROR(ROUND(C35*C36,-3)),0,(ROUND(C35*C36,-3))) -> 52085000 | D29: =IF(ISERROR(ROUND(D35*D36,-3)),0,(ROUND(D35*D36,-3))) -> 31408000 | E29: 67211000 | F29: 62681000 | G29: 0 | H29: 0 | I29: 0 | J29: 0 | K29: 0 | L29: 0
A31: Creditors due | C31: ='SA3'!C35 -> 48018414 | D31: ='SA3'!D35 -> 58014435 | E31: ='SA3'!E35 -> 67799012 | F31: ='SA3'!F35 -> 0 | G31: ='SA3'!G35 -> 0 | H31: ='SA3'!H35 -> 0 | I31: ='SA3'!I35 -> 0 | J31: ='SA3'!J35 -> 0 | K31: ='SA3'!K35 -> 0 | L31: ='SA3'!L35 -> 0
A32: Total | C32: =C29-C31 -> 4066586 | D32: =D29-D31 -> -26606435 | E32: -588012 | F32: 62681000 | G32: 0 | H32: 0 | I32: 0 | J32: 0 | K32: 0 | L32: 0
A34: Debtors collection assumptions
A35: Balance outstanding - debtors | C35: ='A6-FinPos'!C8+'A6-FinPos'!C9+'A6-FinPos'!C15 -> 31646511 | D35: ='A6-FinPos'!D8+'A6-FinPos'!D9+'A6-FinPos'!D15 -> 38687945 | E35: ='A6-FinPos'!E8+'A6-FinPos'!E9+'A6-FinPos'!E15 -> 67120527 | F35: ='A6-FinPos'!F8+'A6-FinPos'!F9+'A6-FinPos'!F15 -> 69744801 | G35: ='A6-FinPos'!G8+'A6-FinPos'!G9+'A6-FinPos'!G15 -> 0 | H35: ='A6-FinPos'!H8+'A6-FinPos'!H9+'A6-FinPos'!H15 -> 0 | I35: ='A6-FinPos'!I8+'A6-FinPos'!I9+'A6-FinPos'!I15 -> 0 | J35: ='A6-FinPos'!J8+'A6-FinPos'!J9+'A6-FinPos'!J15 -> 0 | K35: ='A6-FinPos'!K8+'A6-FinPos'!K9+'A6-FinPos'!K15 -> 0 | L35: ='A6-FinPos'!L8+'A6-FinPos'!L9+'A6-FinPos'!L15 -> 0
A36: Estimate of debtors collection rate | C36: =IF(ISERROR('SA10'!D10),0,('SA10'!D10)) -> 1.645841284 | D36: =IF(ISERROR('SA10'!E10),0,('SA10'!E10)) -> 0.8118258923 | E36: =IF(ISERROR('SA10'!F10),0,('SA10'!F10)) -> 1.001347969 | F36: =IF(ISERROR('SA10'!G10),0,('SA10'!G10)) -> 0.8987197549 | G36: =IF(ISERROR('SA10'!H10),0,('SA10'!H10)) -> 0.8499110088 | H36: =IF(ISERROR('SA10'!I10),0,('SA10'!I10)) -> 0.8499110088 | I36: =IF(ISERROR('SA10'!J10),0,('SA10'!J10)) -> 0.8499110088 | J36: =IF(ISERROR('SA10'!K10),0,('SA10'!K10)) -> 0.9218509142 | K36: =IF(ISERROR('SA10'!L10),0,('SA10'!L10)) -> 0.9210208618 | L36: =IF(ISERROR('SA10'!M10),0,('SA10'!M10)) -> 0.9508943986
K39: `
A40: =A16 -> Long term investments committed
A41: Balance (Insert description; eg sinking fund)
C52: =SUM(C41:C51) -> 0 | D52: =SUM(D41:D51) -> 0 | E52: 0 | F52: 0 | G52: 0 | H52: 0 | I52: 0 | J52: 0 | K52: 0 | L52: 0
A53: =A17 -> Reserves to be backed by cash/investments
A54: ='SA3'!A64 -> Housing Development Fund | C54: ='SA3'!C64 -> 0 | D54: ='SA3'!D64 -> 0 | E54: ='SA3'!E64 -> 0 | F54: ='SA3'!F64 -> 0 | G54: ='SA3'!G64 -> 0 | H54: ='SA3'!H64 -> 0 | I54: ='SA3'!I64 -> 0 | J54: ='SA3'!J64 -> 0 | K54: ='SA3'!K64 -> 0 | L54: ='SA3'!L64 -> 0
A55: ='SA3'!A65 -> Capital replacement
A56: ='SA3'!A66 -> Self-insurance
A57: Other (list)
C67: =SUM(C54:C65) -> 0 | D67: 0 | E67: 0 | F67: 0 | G67: 0 | H67: 0 | I67: 0 | J67: 0 | K67: 0 | L67: 0

Sheet A9-Asset
A1: =muni&" - "&Approve9 -> LIM331 Greater Giyani - Table A9 Asset Management
A2: =desc -> Description | B2: =head27 -> Ref | C2: =head1b -> 2014/15 | D2: =head1A -> 2015/16 | E2: =Head1 -> 2016/17 | F2: =Head2 -> Current Year 2017/18 | I2: =Head3 -> 2018/19 Medium Term Revenue & Expenditure Framework
A3: R thousand | C3: =Head5 -> Audited Outcome | D3: =Head5 -> Audited Outcome | E3: =Head5 -> Audited Outcome | F3: =Head6 -> Original Budget | G3: =Head7 -> Adjusted Budget | H3: =Head8 -> Full Year Forecast | I3: =Head9 -> Budget Year 2018/19 | J3: =Head10 -> Budget Year +1 2019/20 | K3: =Head11 -> Budget Year +2 2020/21
A4: CAPITAL EXPENDITURE
A5: Total New Assets | B5: 1 | C5: =C15+C18+C19+C22+C25+C26+SUM(C29:C35) -> 27207726 | D5: =D15+D18+D19+D22+D25+D26+SUM(D29:D35) -> 32178179.16 | E5: 5170020 | F5: 113023557 | G5: 135338681 | H5: 135338681 | I5: 99949350 | J5: 130140120 | K5: 132545529
A6: Roads Infrastructure | C6: =SA34a!C7 -> 0 | D6: =SA34a!D7 -> 0 | E6: =SA34a!E7 -> 0 | F6: =SA34a!F7 -> 34690477 | G6: =SA34a!G7 -> 59001171 | H6: =SA34a!H7 -> 59001171 | I6: =SA34a!I7 -> 48066027 | J6: =SA34a!J7 -> 51616520 | K6: =SA34a!K7 -> 86045529
A7: Storm water Infrastructure | C7: =SA34a!C12 -> 0 | D7: =SA34a!D12 -> 0 | E7: =SA34a!E12 -> 0 | F7: =SA34a!F12 -> 0 | G7: =SA34a!G12 -> 0 | H7: =SA34a!H12 -> 0 | I7: =SA34a!I12 -> 0 | J7: =SA34a!J12 -> 0 | K7: =SA34a!K12 -> 0
A8: Electrical Infrastructure | C8: =SA34a!C16 -> 0 | D8: =SA34a!D16 -> 0 | E8: =SA34a!E16 -> 0 | F8: =SA34a!F16 -> 21500000 | G8: =SA34a!G16 -> 0 | H8: =SA34a!H16 -> 0 | I8: =SA34a!I16 -> 0 | J8: =SA34a!J16 -> 0 | K8: =SA34a!K16 -> 0
A9: Water Supply Infrastructure | C9: =SA34a!C26 -> 0 | D9: =SA34a!D26 -> 0 | E9: =SA34a!E26 -> 0 | F9: =SA34a!F26 -> 0 | G9: =SA34a!G26 -> 0 | H9: =SA34a!H26 -> 0 | I9: =SA34a!I26 -> 0 | J9: =SA34a!J26 -> 0 | K9: =SA34a!K26 -> 0
A10: Sanitation Infrastructure | C10: =SA34a!C37 -> 0 | D10: =SA34a!D37 -> 0 | E10: =SA34a!E37 -> 0 | F10: =SA34a!F37 -> 0 | G10: =SA34a!G37 -> 0 | H10: =SA34a!H37 -> 0 | I10: =SA34a!I37 -> 0 | J10: =SA34a!J37 -> 0 | K10: =SA34a!K37 -> 0
A11: Solid Waste Infrastructure | C11: =SA34a!C44 -> 0 | D11: =SA34a!D44 -> 3684803 | E11: =SA34a!E44 -> 0 | F11: =SA34a!F44 -> 17000000 | G11: =SA34a!G44 -> 17302254 | H11: =SA34a!H44 -> 17302254 | I11: =SA34a!I44 -> 18468083 | J11: =SA34a!J44 -> 21500000 | K11: =SA34a!K44 -> 19500000
A12: Rail Infrastructure | C12: =SA34a!C52 -> 0 | D12: =SA34a!D52 -> 0 | E12: =SA34a!E52 -> 0 | F12: =SA34a!F52 -> 0 | G12: =SA34a!G52 -> 0 | H12: =SA34a!H52 -> 0 | I12: =SA34a!I52 -> 0 | J12: =SA34a!J52 -> 0 | K12: =SA34a!K52 -> 0
A13: Coastal Infrastructure | C13: =SA34a!C62 -> 0 | D13: =SA34a!D62 -> 0 | E13: =SA34a!E62 -> 0 | F13: =SA34a!F62 -> 0 | G13: =SA34a!G62 -> 0 | H13: =SA34a!H62 -> 0 | I13: =SA34a!I62 -> 0 | J13: =SA34a!J62 -> 0 | K13: =SA34a!K62 -> 0
A14: Information and Communication Infrastructure | C14: =SA34a!C68 -> 0 | D14: =SA34a!D68 -> 0 | E14: =SA34a!E68 -> 0 | F14: =SA34a!F68 -> 0 | G14: =SA34a!G68 -> 0 | H14: =SA34a!H68 -> 0 | I14: =SA34a!I68 -> 0 | J14: =SA34a!J68 -> 0 | K14: =SA34a!K68 -> 0
A15: Infrastructure | C15: =SUM(C6:C14) -> 0 | D15: =SUM(D6:D14) -> 3684803 | E15: 0 | F15: 73190477 | G15: 76303425 | H15: 76303425 | I15: 66534110 | J15: 73116520 | K15: 105545529
A16: Community Facilities | C16: =SA34a!C75 -> 6298158 | D16: =SA34a!D75 -> 4179869.69 | E16: =SA34a!E75 -> 0 | F16: =SA34a!F75 -> 1800000 | G16: =SA34a!G75 -> 1215719 | H16: =SA34a!H75 -> 1215719 | I16: =SA34a!I75 -> 5000000 | J16: =SA34a!J75 -> 13500000 | K16: =SA34a!K75 -> 13500000
A17: Sport and Recreation Facilities | C17: =SA34a!C98 -> 9782732 | D17: =SA34a!D98 -> 22244292 | E17: =SA34a!E98 -> 2020672 | F17: =SA34a!F98 -> 24355000 | G17: =SA34a!G98 -> 29752938 | H17: =SA34a!H98 -> 29752938 | I17: =SA34a!I98 -> 13365240 | J17: =SA34a!J98 -> 25153600 | K17: =SA34a!K98 -> 7500000
A18: Community Assets | C18: =SUM(C16:C17) -> 16080890 | D18: =SUM(D16:D17) -> 26424161.69 | E18: 2020672 | F18: 26155000 | G18: 30968657 | H18: 30968657 | I18: 18365240 | J18: 38653600 | K18: 21000000
A19: Heritage Assets | C19: =SA34a!C103 -> 0 | D19: =SA34a!D103 -> 0 | E19: =SA34a!E103 -> 0 | F19: =SA34a!F103 -> 0 | G19: =SA34a!G103 -> 0 | H19: =SA34a!H103 -> 0 | I19: =SA34a!I103 -> 0 | J19: =SA34a!J103 -> 0 | K19: =SA34a!K103 -> 0
A20: Revenue Generating | C20: =SA34a!C111 -> 0 | D20: =SA34a!D111 -> 0 | E20: =SA34a!E111 -> 0 | F20: =SA34a!F111 -> 0 | G20: =SA34a!G111 -> 0 | H20: =SA34a!H111 -> 0 | I20: =SA34a!I111 -> 0 | J20: =SA34a!J111 -> 0 | K20: =SA34a!K111 -> 0
A21: Non-revenue Generating | C21: =SA34a!C114 -> 0 | D21: =SA34a!D114 -> 0 | E21: =SA34a!E114 -> 0 | F21: =SA34a!F114 -> 0 | G21: =SA34a!G114 -> 0 | H21: =SA34a!H114 -> 0 | I21: =SA34a!I114 -> 0 | J21: =SA34a!J114 -> 0 | K21: =SA34a!K114 -> 0
A22: Investment properties | C22: =SUM(C20:C21) -> 0 | D22: =SUM(D20:D21) -> 0 | E22: 0 | F22: 0 | G22: 0 | H22: 0 | I22: 0 | J22: 0 | K22: 0
A23: Operational Buildings | C23: =SA34a!C119 -> 5304717 | D23: =SA34a!D119 -> 0 | E23: =SA34a!E119 -> 0 | F23: =SA34a!F119 -> 8456600 | G23: =SA34a!G119 -> 22000000 | H23: =SA34a!H119 -> 22000000 | I23: =SA34a!I119 -> 4000000 | J23: =SA34a!J119 -> 6000000 | K23: =SA34a!K119 -> 6000000
A24: Housing | C24: =SA34a!C131 -> 0 | D24: =SA34a!D131 -> 0 | E24: =SA34a!E131 -> 0 | F24: =SA34a!F131 -> 0 | G24: =SA34a!G131 -> 0 | H24: =SA34a!H131 -> 0 | I24: =SA34a!I131 -> 0 | J24: =SA34a!J131 -> 0 | K24: =SA34a!K131 -> 0
A25: Other Assets | C25: =SUM(C23:C24) -> 5304717 | D25: =SUM(D23:D24) -> 0 | E25: 0 | F25: 8456600 | G25: 22000000 | H25: 22000000 | I25: 4000000 | J25: 6000000 | K25: 6000000
A26: Biological or Cultivated Assets | C26: =SA34a!C136 -> 0 | D26: =SA34a!D136 -> 0 | E26: =SA34a!E136 -> 0 | F26: =SA34a!F136 -> 0 | G26: =SA34a!G136 -> 0 | H26: =SA34a!H136 -> 0 | I26: =SA34a!I136 -> 0 | J26: =SA34a!J136 -> 0 | K26: =SA34a!K136 -> 0
A27: Servitudes | C27: =SA34a!C140 -> 0 | D27: =SA34a!D140 -> 0 | E27: =SA34a!E140 -> 0 | F27: =SA34a!F140 -> 0 | G27: =SA34a!G140 -> 0 | H27: =SA34a!H140 -> 0 | I27: =SA34a!I140 -> 0 | J27: =SA34a!J140 -> 0 | K27: =SA34a!K140 -> 0
A28: Licences and Rights | C28: =SA34a!C141 -> 0 | D28: =SA34a!D141 -> 142085 | E28: =SA34a!E141 -> 0 | F28: =SA34a!F141 -> 0 | G28: =SA34a!G141 -> 0 | H28: =SA34a!H141 -> 0 | I28: =SA34a!I141 -> 1300000 | J28: =SA34a!J141 -> 0 | K28: =SA34a!K141 -> 0
A29: Intangible Assets | C29: =SUM(C27:C28) -> 0 | D29: =SUM(D27:D28) -> 142085 | E29: 0 | F29: 0 | G29: 0 | H29: 0 | I29: 1300000 | J29: 0 | K29: 0
A30: Computer Equipment | C30: =SA34a!C149 -> 681513 | D30: =SA34a!D149 -> 349826.4 | E30: =SA34a!E149 -> 139249 | F30: =SA34a!F149 -> 421480 | G30: =SA34a!G149 -> 1200000 | H30: =SA34a!H149 -> 1200000 | I30: =SA34a!I149 -> 3000000 | J30: =SA34a!J149 -> 500000 | K30: =SA34a!K149 -> 0
A31: Furniture and Office Equipment | C31: =SA34a!C152 -> 324422 | D31: =SA34a!D152 -> 309972.54 | E31: =SA34a!E152 -> 0 | F31: =SA34a!F152 -> 1800000 | G31: =SA34a!G152 -> 2214201 | H31: =SA34a!H152 -> 2214201 | I31: =SA34a!I152 -> 1850000 | J31: =SA34a!J152 -> 1070000 | K31: =SA34a!K152 -> 0
A32: Machinery and Equipment | C32: =SA34a!C155 -> 4213556 | D32: =SA34a!D155 -> 1267330.53 | E32: =SA34a!E155 -> 3010099 | F32: =SA34a!F155 -> 0 | G32: =SA34a!G155 -> 0 | H32: =SA34a!H155 -> 0 | I32: =SA34a!I155 -> 2400000 | J32: =SA34a!J155 -> 1000000 | K32: =SA34a!K155 -> 0
A33: Transport Assets | C33: =SA34a!C158 -> 602628 | D33: =SA34a!D158 -> 0 | E33: =SA34a!E158 -> 0 | F33: =SA34a!F158 -> 3000000 | G33: =SA34a!G158 -> 2652398 | H33: =SA34a!H158 -> 2652398 | I33: =SA34a!I158 -> 2500000 | J33: =SA34a!J158 -> 9800000 | K33: =SA34a!K158 -> 0
A34: Libraries | C34: =SA34a!C161 -> 0 | D34: =SA34a!D161 -> 0 | E34: =SA34a!E161 -> 0 | F34: =SA34a!F161 -> 0 | G34: =SA34a!G161 -> 0 | H34: =SA34a!H161 -> 0 | I34: =SA34a!I161 -> 0 | J34: =SA34a!J161 -> 0 | K34: =SA34a!K161 -> 0
A35: Zoo's, Marine and Non-biological Animals | C35: =SA34a!C164 -> 0 | D35: =SA34a!D164 -> 0 | E35: =SA34a!E164 -> 0 | F35: =SA34a!F164 -> 0 | G35: =SA34a!G164 -> 0 | H35: =SA34a!H164 -> 0 | I35: =SA34a!I164 -> 0 | J35: =SA34a!J164 -> 0 | K35: =SA34a!K164 -> 0
A37: Total Renewal of Existing Assets | B37: 2 | C37: =C47+C50+C51+C54+C57+C58+SUM(C61:C67) -> 61277481 | D37: =D47+D50+D51+D54+D57+D58+SUM(D61:D67) -> 31759264 | E37: 25353565.88 | F37: 0 | G37: 0 | H37: 0 | I37: 0 | J37: 0 | K37: 0
A38: Roads Infrastructure | C38: =SA34b!C7 -> 61277481 | D38: =SA34b!D7 -> 31759264 | E38: =SA34b!E7 -> 25353565.88 | F38: =SA34b!F7 -> 0 | G38: =SA34b!G7 -> 0 | H38: =SA34b!H7 -> 0 | I38: =SA34b!I7 -> 0 | J38: =SA34b!J7 -> 0 | K38: =SA34b!K7 -> 0
A39: Storm water Infrastructure | C39: =SA34b!C12 -> 0 | D39: =SA34b!D12 -> 0 | E39: =SA34b!E12 -> 0 | F39: =SA34b!F12 -> 0 | G39: =SA34b!G12 -> 0 | H39: =SA34b!H12 -> 0 | I39: =SA34b!I12 -> 0 | J39: =SA34b!J12 -> 0 | K39: =SA34b!K12 -> 0
A40: Electrical Infrastructure | C40: =SA34b!C16 -> 0 | D40: =SA34b!D16 -> 0 | E40: =SA34b!E16 -> 0 | F40: =SA34b!F16 -> 0 | G40: =SA34b!G16 -> 0 | H40: =SA34b!H16 -> 0 | I40: =SA34b!I16 -> 0 | J40: =SA34b!J16 -> 0 | K40: =SA34b!K16 -> 0
A41: Water Supply Infrastructure | C41: =SA34b!C26 -> 0 | D41: =SA34b!D26 -> 0 | E41: =SA34b!E26 -> 0 | F41: =SA34b!F26 -> 0 | G41: =SA34b!G26 -> 0 | H41: =SA34b!H26 -> 0 | I41: =SA34b!I26 -> 0 | J41: =SA34b!J26 -> 0 | K41: =SA34b!K26 -> 0
A42: Sanitation Infrastructure | C42: =SA34b!C37 -> 0 | D42: =SA34b!D37 -> 0 | E42: =SA34b!E37 -> 0 | F42: =SA34b!F37 -> 0 | G42: =SA34b!G37 -> 0 | H42: =SA34b!H37 -> 0 | I42: =SA34b!I37 -> 0 | J42: =SA34b!J37 -> 0 | K42: =SA34b!K37 -> 0
A43: Solid Waste Infrastructure | C43: =SA34b!C44 -> 0 | D43: =SA34b!D44 -> 0 | E43: =SA34b!E44 -> 0 | F43: =SA34b!F44 -> 0 | G43: =SA34b!G44 -> 0 | H43: =SA34b!H44 -> 0 | I43: =SA34b!I44 -> 0 | J43: =SA34b!J44 -> 0 | K43: =SA34b!K44 -> 0
A44: Rail Infrastructure | C44: =SA34b!C52 -> 0 | D44: =SA34b!D52 -> 0 | E44: =SA34b!E52 -> 0 | F44: =SA34b!F52 -> 0 | G44: =SA34b!G52 -> 0 | H44: =SA34b!H52 -> 0 | I44: =SA34b!I52 -> 0 | J44: =SA34b!J52 -> 0 | K44: =SA34b!K52 -> 0
A45: Coastal Infrastructure | C45: =SA34b!C62 -> 0 | D45: =SA34b!D62 -> 0 | E45: =SA34b!E62 -> 0 | F45: =SA34b!F62 -> 0 | G45: =SA34b!G62 -> 0 | H45: =SA34b!H62 -> 0 | I45: =SA34b!I62 -> 0 | J45: =SA34b!J62 -> 0 | K45: =SA34b!K62 -> 0
A46: Information and Communication Infrastructure | C46: =SA34b!C68 -> 0 | D46: =SA34b!D68 -> 0 | E46: =SA34b!E68 -> 0 | F46: =SA34b!F68 -> 0 | G46: =SA34b!G68 -> 0 | H46: =SA34b!H68 -> 0 | I46: =SA34b!I68 -> 0 | J46: =SA34b!J68 -> 0 | K46: =SA34b!K68 -> 0
A47: Infrastructure | C47: =SUM(C38:C46) -> 61277481 | D47: =SUM(D38:D46) -> 31759264 | E47: 25353565.88 | F47: 0 | G47: 0 | H47: 0 | I47: 0 | J47: 0 | K47: 0
A48: Community Facilities | C48: =SA34b!C75 -> 0 | D48: =SA34b!D75 -> 0 | E48: =SA34b!E75 -> 0 | F48: =SA34b!F75 -> 0 | G48: =SA34b!G75 -> 0 | H48: =SA34b!H75 -> 0 | I48: =SA34b!I75 -> 0 | J48: =SA34b!J75 -> 0 | K48: =SA34b!K75 -> 0
A49: Sport and Recreation Facilities | C49: =SA34b!C98 -> 0 | D49: =SA34b!D98 -> 0 | E49: =SA34b!E98 -> 0 | F49: =SA34b!F98 -> 0 | G49: =SA34b!G98 -> 0 | H49: =SA34b!H98 -> 0 | I49: =SA34b!I98 -> 0 | J49: =SA34b!J98 -> 0 | K49: =SA34b!K98 -> 0
A50: Community Assets | C50: =SUM(C48:C49) -> 0 | D50: =SUM(D48:D49) -> 0 | E50: 0 | F50: 0 | G50: 0 | H50: 0 | I50: 0 | J50: 0 | K50: 0
A51: Heritage Assets | C51: =SA34b!C103 -> 0 | D51: =SA34b!D103 -> 0 | E51: =SA34b!E103 -> 0 | F51: =SA34b!F103 -> 0 | G51: =SA34b!G103 -> 0 | H51: =SA34b!H103 -> 0 | I51: =SA34b!I103 -> 0 | J51: =SA34b!J103 -> 0 | K51: =SA34b!K103 -> 0
A52: Revenue Generating | C52: =SA34b!C111 -> 0 | D52: =SA34b!D111 -> 0 | E52: =SA34b!E111 -> 0 | F52: =SA34b!F111 -> 0 | G52: =SA34b!G111 -> 0 | H52: =SA34b!H111 -> 0 | I52: =SA34b!I111 -> 0 | J52: =SA34b!J111 -> 0 | K52: =SA34b!K111 -> 0
A53: Non-revenue Generating | C53: =SA34b!C114 -> 0 | D53: =SA34b!D114 -> 0 | E53: =SA34b!E114 -> 0 | F53: =SA34b!F114 -> 0 | G53: =SA34b!G114 -> 0 | H53: =SA34b!H114 -> 0 | I53: =SA34b!I114 -> 0 | J53: =SA34b!J114 -> 0 | K53: =SA34b!K114 -> 0
A54: Investment properties | C54: =SUM(C52:C53) -> 0 | D54: =SUM(D52:D53) -> 0 | E54: 0 | F54: 0 | G54: 0 | H54: 0 | I54: 0 | J54: 0 | K54: 0
A55: Operational Buildings | C55: =SA34b!C119 -> 0 | D55: =SA34b!D119 -> 0 | E55: =SA34b!E119 -> 0 | F55: =SA34b!F119 -> 0 | G55: =SA34b!G119 -> 0 | H55: =SA34b!H119 -> 0 | I55: =SA34b!I119 -> 0 | J55: =SA34b!J119 -> 0 | K55: =SA34b!K119 -> 0
A56: Housing | C56: =SA34b!C131 -> 0 | D56: =SA34b!D131 -> 0 | E56: =SA34b!E131 -> 0 | F56: =SA34b!F131 -> 0 | G56: =SA34b!G131 -> 0 | H56: =SA34b!H131 -> 0 | I56: =SA34b!I131 -> 0 | J56: =SA34b!J131 -> 0 | K56: =SA34b!K131 -> 0
A57: Other Assets | C57: =SUM(C55:C56) -> 0 | D57: =SUM(D55:D56) -> 0 | E57: 0 | F57: 0 | G57: 0 | H57: 0 | I57: 0 | J57: 0 | K57: 0
A58: Biological or Cultivated Assets | C58: =SA34b!C136 -> 0 | D58: =SA34b!D136 -> 0 | E58: =SA34b!E136 -> 0 | F58: =SA34b!F136 -> 0 | G58: =SA34b!G136 -> 0 | H58: =SA34b!H136 -> 0 | I58: =SA34b!I136 -> 0 | J58: =SA34b!J136 -> 0 | K58: =SA34b!K136 -> 0
A59: Servitudes | C59: =SA34b!C140 -> 0 | D59: =SA34b!D140 -> 0 | E59: =SA34b!E140 -> 0 | F59: =SA34b!F140 -> 0 | G59: =SA34b!G140 -> 0 | H59: =SA34b!H140 -> 0 | I59: =SA34b!I140 -> 0 | J59: =SA34b!J140 -> 0 | K59: =SA34b!K140 -> 0
A60: Licences and Rights | C60: =SA34b!C141 -> 0 | D60: =SA34b!D141 -> 0 | E60: =SA34b!E141 -> 0 | F60: =SA34b!F141 -> 0 | G60: =SA34b!G141 -> 0 | H60: =SA34b!H141 -> 0 | I60: =SA34b!I141 -> 0 | J60: =SA34b!J141 -> 0 | K60: =SA34b!K141 -> 0
A61: Intangible Assets | C61: =SUM(C59:C60) -> 0 | D61: =SUM(D59:D60) -> 0 | E61: 0 | F61: 0 | G61: 0 | H61: 0 | I61: 0 | J61: 0 | K61: 0
A62: Computer Equipment | C62: =SA34b!C149 -> 0 | D62: =SA34b!D149 -> 0 | E62: =SA34b!E149 -> 0 | F62: =SA34b!F149 -> 0 | G62: =SA34b!G149 -> 0 | H62: =SA34b!H149 -> 0 | I62: =SA34b!I149 -> 0 | J62: =SA34b!J149 -> 0 | K62: =SA34b!K149 -> 0
A63: Furniture and Office Equipment | C63: =SA34b!C152 -> 0 | D63: =SA34b!D152 -> 0 | E63: =SA34b!E152 -> 0 | F63: =SA34b!F152 -> 0 | G63: =SA34b!G152 -> 0 | H63: =SA34b!H152 -> 0 | I63: =SA34b!I152 -> 0 | J63: =SA34b!J152 -> 0 | K63: =SA34b!K152 -> 0
A64: Machinery and Equipment | C64: =SA34b!C155 -> 0 | D64: =SA34b!D155 -> 0 | E64: =SA34b!E155 -> 0 | F64: =SA34b!F155 -> 0 | G64: =SA34b!G155 -> 0 | H64: =SA34b!H155 -> 0 | I64: =SA34b!I155 -> 0 | J64: =SA34b!J155 -> 0 | K64: =SA34b!K155 -> 0
A65: Transport Assets | C65: =SA34b!C158 -> 0 | D65: =SA34b!D158 -> 0 | E65: =SA34b!E158 -> 0 | F65: =SA34b!F158 -> 0 | G65: =SA34b!G158 -> 0 | H65: =SA34b!H158 -> 0 | I65: =SA34b!I158 -> 0 | J65: =SA34b!J158 -> 0 | K65: =SA34b!K158 -> 0
A66: Libraries | C66: =SA34b!C161 -> 0 | D66: =SA34b!D161 -> 0 | E66: =SA34b!E161 -> 0 | F66: =SA34b!F161 -> 0 | G66: =SA34b!G161 -> 0 | H66: =SA34b!H161 -> 0 | I66: =SA34b!I161 -> 0 | J66: =SA34b!J161 -> 0 | K66: =SA34b!K161 -> 0
A67: Zoo's, Marine and Non-biological Animals | C67: =SA34b!C164 -> 0 | D67: =SA34b!D164 -> 0 | E67: =SA34b!E164 -> 0 | F67: =SA34b!F164 -> 0 | G67: =SA34b!G164 -> 0 | H67: =SA34b!H164 -> 0 | I67: =SA34b!I164 -> 0 | J67: =SA34b!J164 -> 0 | K67: =SA34b!K164 -> 0
A69: Total Upgrading of Existing Assets | B69: 6 | C69: =C79+C82+C83+C86+C89+C90+SUM(C93:C99) -> 0 | D69: =D79+D82+D83+D86+D89+D90+SUM(D93:D99) -> 0 | E69: 0 | F69: 0 | G69: 0 | H69: 0 | I69: 0 | J69: 0 | K69: 0
A70: Roads Infrastructure | C70: =SA34e!C7 -> 0 | D70: =SA34e!D7 -> 0 | E70: =SA34e!E7 -> 0 | F70: =SA34e!F7 -> 0 | G70: =SA34e!G7 -> 0 | H70: =SA34e!H7 -> 0 | I70: =SA34e!I7 -> 0 | J70: =SA34e!J7 -> 0 | K70: =SA34e!K7 -> 0
A71: Storm water Infrastructure | C71: =SA34e!C12 -> 0 | D71: =SA34e!D12 -> 0 | E71: =SA34e!E12 -> 0 | F71: =SA34e!F12 -> 0 | G71: =SA34e!G12 -> 0 | H71: =SA34e!H12 -> 0 | I71: =SA34e!I12 -> 0 | J71: =SA34e!J12 -> 0 | K71: =SA34e!K12 -> 0
A72: Electrical Infrastructure | C72: =SA34e!C16 -> 0 | D72: =SA34e!D16 -> 0 | E72: =SA34e!E16 -> 0 | F72: =SA34e!F16 -> 0 | G72: =SA34e!G16 -> 0 | H72: =SA34e!H16 -> 0 | I72: =SA34e!I16 -> 0 | J72: =SA34e!J16 -> 0 | K72: =SA34e!K16 -> 0
A73: Water Supply Infrastructure | C73: =SA34e!C26 -> 0 | D73: =SA34e!D26 -> 0 | E73: =SA34e!E26 -> 0 | F73: =SA34e!F26 -> 0 | G73: =SA34e!G26 -> 0 | H73: =SA34e!H26 -> 0 | I73: =SA34e!I26 -> 0 | J73: =SA34e!J26 -> 0 | K73: =SA34e!K26 -> 0
A74: Sanitation Infrastructure | C74: =SA34e!C37 -> 0 | D74: =SA34e!D37 -> 0 | E74: =SA34e!E37 -> 0 | F74: =SA34e!F37 -> 0 | G74: =SA34e!G37 -> 0 | H74: =SA34e!H37 -> 0 | I74: =SA34e!I37 -> 0 | J74: =SA34e!J37 -> 0 | K74: =SA34e!K37 -> 0
A75: Solid Waste Infrastructure | C75: =SA34e!C44 -> 0 | D75: =SA34e!D44 -> 0 | E75: =SA34e!E44 -> 0 | F75: =SA34e!F44 -> 0 | G75: =SA34e!G44 -> 0 | H75: =SA34e!H44 -> 0 | I75: =SA34e!I44 -> 0 | J75: =SA34e!J44 -> 0 | K75: =SA34e!K44 -> 0
A76: Rail Infrastructure | C76: =SA34e!C52 -> 0 | D76: =SA34e!D52 -> 0 | E76: =SA34e!E52 -> 0 | F76: =SA34e!F52 -> 0 | G76: =SA34e!G52 -> 0 | H76: =SA34e!H52 -> 0 | I76: =SA34e!I52 -> 0 | J76: =SA34e!J52 -> 0 | K76: =SA34e!K52 -> 0
A77: Coastal Infrastructure | C77: =SA34e!C62 -> 0 | D77: =SA34e!D62 -> 0 | E77: =SA34e!E62 -> 0 | F77: =SA34e!F62 -> 0 | G77: =SA34e!G62 -> 0 | H77: =SA34e!H62 -> 0 | I77: =SA34e!I62 -> 0 | J77: =SA34e!J62 -> 0 | K77: =SA34e!K62 -> 0
A78: Information and Communication Infrastructure | C78: =SA34e!C68 -> 0 | D78: =SA34e!D68 -> 0 | E78: =SA34e!E68 -> 0 | F78: =SA34e!F68 -> 0 | G78: =SA34e!G68 -> 0 | H78: =SA34e!H68 -> 0 | I78: =SA34e!I68 -> 0 | J78: =SA34e!J68 -> 0 | K78: =SA34e!K68 -> 0
A79: Infrastructure | C79: =SUM(C70:C78) -> 0 | D79: 0 | E79: 0 | F79: 0 | G79: 0 | H79: 0 | I79: 0 | J79: 0 | K79: 0
A80: Community Facilities | C80: =SA34e!C75 -> 0 | D80: =SA34e!D75 -> 0 | E80: =SA34e!E75 -> 0 | F80: =SA34e!F75 -> 0 | G80: =SA34e!G75 -> 0 | H80: =SA34e!H75 -> 0 | I80: =SA34e!I75 -> 0 | J80: =SA34e!J75 -> 0 | K80: =SA34e!K75 -> 0
A81: Sport and Recreation Facilities | C81: =SA34e!C98 -> 0 | D81: =SA34e!D98 -> 0 | E81: =SA34e!E98 -> 0 | F81: =SA34e!F98 -> 0 | G81: =SA34e!G98 -> 0 | H81: =SA34e!H98 -> 0 | I81: =SA34e!I98 -> 0 | J81: =SA34e!J98 -> 0 | K81: =SA34e!K98 -> 0
A82: Community Assets | C82: =SUM(C80:C81) -> 0 | D82: 0 | E82: 0 | F82: 0 | G82: 0 | H82: 0 | I82: 0 | J82: 0 | K82: 0
A83: Heritage Assets | C83: =SA34e!C103 -> 0 | D83: =SA34e!D103 -> 0 | E83: =SA34e!E103 -> 0 | F83: =SA34e!F103 -> 0 | G83: =SA34e!G103 -> 0 | H83: =SA34e!H103 -> 0 | I83: =SA34e!I103 -> 0 | J83: =SA34e!J103 -> 0 | K83: =SA34e!K103 -> 0
A84: Revenue Generating | C84: =SA34e!C111 -> 0 | D84: =SA34e!D111 -> 0 | E84: =SA34e!E111 -> 0 | F84: =SA34e!F111 -> 0 | G84: =SA34e!G111 -> 0 | H84: =SA34e!H111 -> 0 | I84: =SA34e!I111 -> 0 | J84: =SA34e!J111 -> 0 | K84: =SA34e!K111 -> 0
A85: Non-revenue Generating | C85: =SA34e!C114 -> 0 | D85: =SA34e!D114 -> 0 | E85: =SA34e!E114 -> 0 | F85: =SA34e!F114 -> 0 | G85: =SA34e!G114 -> 0 | H85: =SA34e!H114 -> 0 | I85: =SA34e!I114 -> 0 | J85: =SA34e!J114 -> 0 | K85: =SA34e!K114 -> 0
A86: Investment properties | C86: =SUM(C84:C85) -> 0 | D86: 0 | E86: 0 | F86: 0 | G86: 0 | H86: 0 | I86: 0 | J86: 0 | K86: 0
A87: Operational Buildings | C87: =SA34e!C119 -> 0 | D87: =SA34e!D119 -> 0 | E87: =SA34e!E119 -> 0 | F87: =SA34e!F119 -> 0 | G87: =SA34e!G119 -> 0 | H87: =SA34e!H119 -> 0 | I87: =SA34e!I119 -> 0 | J87: =SA34e!J119 -> 0 | K87: =SA34e!K119 -> 0
A88: Housing | C88: =SA34e!C131 -> 0 | D88: =SA34e!D131 -> 0 | E88: =SA34e!E131 -> 0 | F88: =SA34e!F131 -> 0 | G88: =SA34e!G131 -> 0 | H88: =SA34e!H131 -> 0 | I88: =SA34e!I131 -> 0 | J88: =SA34e!J131 -> 0 | K88: =SA34e!K131 -> 0
A89: Other Assets | C89: =SUM(C87:C88) -> 0 | D89: 0 | E89: 0 | F89: 0 | G89: 0 | H89: 0 | I89: 0 | J89: 0 | K89: 0
A90: Biological or Cultivated Assets | C90: =SA34e!C136 -> 0 | D90: =SA34e!D136 -> 0 | E90: =SA34e!E136 -> 0 | F90: =SA34e!F136 -> 0 | G90: =SA34e!G136 -> 0 | H90: =SA34e!H136 -> 0 | I90: =SA34e!I136 -> 0 | J90: =SA34e!J136 -> 0 | K90: =SA34e!K136 -> 0
A91: Servitudes | C91: =SA34e!C140 -> 0 | D91: =SA34e!D140 -> 0 | E91: =SA34e!E140 -> 0 | F91: =SA34e!F140 -> 0 | G91: =SA34e!G140 -> 0 | H91: =SA34e!H140 -> 0 | I91: =SA34e!I140 -> 0 | J91: =SA34e!J140 -> 0 | K91: =SA34e!K140 -> 0
A92: Licences and Rights | C92: =SA34e!C141 -> 0 | D92: =SA34e!D141 -> 0 | E92: =SA34e!E141 -> 0 | F92: =SA34e!F141 -> 0 | G92: =SA34e!G141 -> 0 | H92: =SA34e!H141 -> 0 | I92: =SA34e!I141 -> 0 | J92: =SA34e!J141 -> 0 | K92: =SA34e!K141 -> 0
A93: Intangible Assets | C93: =SUM(C91:C92) -> 0 | D93: 0 | E93: 0 | F93: 0 | G93: 0 | H93: 0 | I93: 0 | J93: 0 | K93: 0
A94: Computer Equipment | C94: =SA34e!C149 -> 0 | D94: =SA34e!D149 -> 0 | E94: =SA34e!E149 -> 0 | F94: =SA34e!F149 -> 0 | G94: =SA34e!G149 -> 0 | H94: =SA34e!H149 -> 0 | I94: =SA34e!I149 -> 0 | J94: =SA34e!J149 -> 0 | K94: =SA34e!K149 -> 0
A95: Furniture and Office Equipment | C95: =SA34e!C152 -> 0 | D95: =SA34e!D152 -> 0 | E95: =SA34e!E152 -> 0 | F95: =SA34e!F152 -> 0 | G95: =SA34e!G152 -> 0 | H95: =SA34e!H152 -> 0 | I95: =SA34e!I152 -> 0 | J95: =SA34e!J152 -> 0 | K95: =SA34e!K152 -> 0
A96: Machinery and Equipment | C96: =SA34e!C155 -> 0 | D96: =SA34e!D155 -> 0 | E96: =SA34e!E155 -> 0 | F96: =SA34e!F155 -> 0 | G96: =SA34e!G155 -> 0 | H96: =SA34e!H155 -> 0 | I96: =SA34e!I155 -> 0 | J96: =SA34e!J155 -> 0 | K96: =SA34e!K155 -> 0
A97: Transport Assets | C97: =SA34e!C158 -> 0 | D97: =SA34e!D158 -> 0 | E97: =SA34e!E158 -> 0 | F97: =SA34e!F158 -> 0 | G97: =SA34e!G158 -> 0 | H97: =SA34e!H158 -> 0 | I97: =SA34e!I158 -> 0 | J97: =SA34e!J158 -> 0 | K97: =SA34e!K158 -> 0
A98: Libraries | C98: =SA34e!C161 -> 0 | D98: =SA34e!D161 -> 0 | E98: =SA34e!E161 -> 0 | F98: =SA34e!F161 -> 0 | G98: =SA34e!G161 -> 0 | H98: =SA34e!H161 -> 0 | I98: =SA34e!I161 -> 0 | J98: =SA34e!J161 -> 0 | K98: =SA34e!K161 -> 0
A99: Zoo's, Marine and Non-biological Animals | C99: =SA34e!C164 -> 0 | D99: =SA34e!D164 -> 0 | E99: =SA34e!E164 -> 0 | F99: =SA34e!F164 -> 0 | G99: =SA34e!G164 -> 0 | H99: =SA34e!H164 -> 0 | I99: =SA34e!I164 -> 0 | J99: =SA34e!J164 -> 0 | K99: =SA34e!K164 -> 0
A101: Total Capital Expenditure | B101: 4
A102: Roads Infrastructure | C102: =+C6+C38+C70 -> 61277481 | D102: =+D6+D38+D70 -> 31759264 | E102: 25353565.88 | F102: 34690477 | G102: 59001171 | H102: 59001171 | I102: 48066027 | J102: 51616520 | K102: 86045529
A103: Storm water Infrastructure | C103: =+C7+C39+C71 -> 0 | D103: 0 | E103: 0 | F103: 0 | G103: 0 | H103: 0 | I103: 0 | J103: 0 | K103: 0
A104: Electrical Infrastructure | C104: 0 | D104: 0 | E104: 0 | F104: 21500000 | G104: 0 | H104: 0 | I104: 0 | J104: 0 | K104: 0
A105: Water Supply Infrastructure | C105: 0 | D105: 0 | E105: 0 | F105: 0 | G105: 0 | H105: 0 | I105: 0 | J105: 0 | K105: 0
A106: Sanitation Infrastructure | C106: 0 | D106: 0 | E106: 0 | F106: 0 | G106: 0 | H106: 0 | I106: 0 | J106: 0 | K106: 0
A107: Solid Waste Infrastructure | C107: 0 | D107: 3684803 | E107: 0 | F107: 17000000 | G107: 17302254 | H107: 17302254 | I107: 18468083 | J107: 21500000 | K107: 19500000
A108: Rail Infrastructure | C108: 0 | D108: 0 | E108: 0 | F108: 0 | G108: 0 | H108: 0 | I108: 0 | J108: 0 | K108: 0
A109: Coastal Infrastructure | C109: 0 | D109: 0 | E109: 0 | F109: 0 | G109: 0 | H109: 0 | I109: 0 | J109: 0 | K109: 0
A110: Information and Communication Infrastructure | C110: 0 | D110: 0 | E110: 0 | F110: 0 | G110: 0 | H110: 0 | I110: 0 | J110: 0 | K110: 0
A111: Infrastructure | C111: =SUM(C102:C110) -> 61277481 | D111: =SUM(D102:D110) -> 35444067 | E111: 25353565.88 | F111: 73190477 | G111: 76303425 | H111: 76303425 | I111: 66534110 | J111: 73116520 | K111: 105545529
A112: Community Facilities | C112: =+C16+C48+C80 -> 6298158 | D112: =+D16+D48+D80 -> 4179869.69 | E112: 0 | F112: 1800000 | G112: 1215719 | H112: 1215719 | I112: 5000000 | J112: 13500000 | K112: 13500000
A113: Sport and Recreation Facilities | C113: =+C17+C49+C81 -> 9782732 | D113: =+D17+D49+D81 -> 22244292 | E113: 2020672 | F113: 24355000 | G113: 29752938 | H113: 29752938 | I113: 13365240 | J113: 25153600 | K113: 7500000
A114: Community Assets | C114: =SUM(C112:C113) -> 16080890 | D114: =SUM(D112:D113) -> 26424161.69 | E114: 2020672 | F114: 26155000 | G114: 30968657 | H114: 30968657 | I114: 18365240 | J114: 38653600 | K114: 21000000
A115: Heritage Assets | C115: =+C19+C51+C83 -> 0 | D115: =+D19+D51+D83 -> 0 | E115: 0 | F115: 0 | G115: 0 | H115: 0 | I115: 0 | J115: 0 | K115: 0
A116: Revenue Generating | C116: =+C20+C52+C84 -> 0 | D116: =+D20+D52+D84 -> 0 | E116: 0 | F116: 0 | G116: 0 | H116: 0 | I116: 0 | J116: 0 | K116: 0
A117: Non-revenue Generating | C117: =+C21+C53+C85 -> 0 | D117: =+D21+D53+D85 -> 0 | E117: 0 | F117: 0 | G117: 0 | H117: 0 | I117: 0 | J117: 0 | K117: 0
A118: Investment properties | C118: =SUM(C116:C117) -> 0 | D118: =SUM(D116:D117) -> 0 | E118: 0 | F118: 0 | G118: 0 | H118: 0 | I118: 0 | J118: 0 | K118: 0
A119: Operational Buildings | C119: =+C23+C55+C87 -> 5304717 | D119: =+D23+D55+D87 -> 0 | E119: 0 | F119: 8456600 | G119: 22000000 | H119: 22000000 | I119: 4000000 | J119: 6000000 | K119: 6000000
A120: Housing | C120: =+C24+C56+C88 -> 0 | D120: =+D24+D56+D88 -> 0 | E120: 0 | F120: 0 | G120: 0 | H120: 0 | I120: 0 | J120: 0 | K120: 0
A121: Other Assets | C121: =SUM(C119:C120) -> 5304717 | D121: 0 | E121: 0 | F121: 8456600 | G121: 22000000 | H121: 22000000 | I121: 4000000 | J121: 6000000 | K121: 6000000
A122: Biological or Cultivated Assets | C122: =+C26+C58+C90 -> 0 | D122: =+D26+D58+D90 -> 0 | E122: 0 | F122: 0 | G122: 0 | H122: 0 | I122: 0 | J122: 0 | K122: 0
A123: Servitudes | C123: =+C27+C59+C91 -> 0 | D123: =+D27+D59+D91 -> 0 | E123: 0 | F123: 0 | G123: 0 | H123: 0 | I123: 0 | J123: 0 | K123: 0
A124: Licences and Rights | C124: =+C28+C60+C92 -> 0 | D124: =+D28+D60+D92 -> 142085 | E124: 0 | F124: 0 | G124: 0 | H124: 0 | I124: 1300000 | J124: 0 | K124: 0
A125: Intangible Assets | C125: =SUM(C123:C124) -> 0 | D125: =SUM(D123:D124) -> 142085 | E125: 0 | F125: 0 | G125: 0 | H125: 0 | I125: 1300000 | J125: 0 | K125: 0
A126: Computer Equipment | C126: =+C30+C62+C94 -> 681513 | D126: =+D30+D62+D94 -> 349826.4 | E126: 139249 | F126: 421480 | G126: 1200000 | H126: 1200000 | I126: 3000000 | J126: 500000 | K126: 0
A127: Furniture and Office Equipment | C127: =+C31+C63+C95 -> 324422 | D127: 309972.54 | E127: 0 | F127: 1800000 | G127: 2214201 | H127: 2214201 | I127: 1850000 | J127: 1070000 | K127: 0
A128: Machinery and Equipment | C128: 4213556 | D128: 1267330.53 | E128: 3010099 | F128: 0 | G128: 0 | H128: 0 | I128: 2400000 | J128: 1000000 | K128: 0
A129: Transport Assets | C129: 602628 | D129: 0 | E129: 0 | F129: 3000000 | G129: 2652398 | H129: 2652398 | I129: 2500000 | J129: 9800000 | K129: 0
A130: Libraries | C130: 0 | D130: 0 | E130: 0 | F130: 0 | G130: 0 | H130: 0 | I130: 0 | J130: 0 | K130: 0
A131: Zoo's, Marine and Non-biological Animals | C131: 0 | D131: 0 | E131: 0 | F131: 0 | G131: 0 | H131: 0 | I131: 0 | J131: 0 | K131: 0
A132: TOTAL CAPITAL EXPENDITURE - Asset class | C132: =+C5+C37+C69 -> 88485207 | D132: =+D5+D37+D69 -> 63937443.16 | E132: 30523585.88 | F132: 113023557 | G132: 135338681 | H132: 135338681 | I132: 99949350 | J132: 130140120 | K132: 132545529
A134: ASSET REGISTER SUMMARY - PPE (WDV) | B134: 5
A135: Roads Infrastructure | C135: 296550243 | D135: 295845605 | E135: 363017821 | F135: 275725051 | G135: 55916639 | H135: 55916639 | I135: 278482302 | J135: 281267125 | K135: 281267125
A136: Storm water Infrastructure
A137: Electrical Infrastructure
A138: Water Supply Infrastructure
A139: Sanitation Infrastructure
A140: Solid Waste Infrastructure
A141: Rail Infrastructure
A142: Coastal Infrastructure
A143: Information and Communication Infrastructure
A144: Infrastructure | C144: =SUM(C135:C143) -> 296550243 | D144: =SUM(D135:D143) -> 295845605 | E144: 363017821 | F144: 275725051 | G144: 55916639 | H144: 55916639 | I144: 278482302 | J144: 281267125 | K144: 281267125
A145: Community Facilities | C145: 18018347 | D145: 52381027.69 | E145: 84836139 | F145: 94534303 | G145: 1216000 | H145: 1216000 | I145: 95479646 | J145: 96434443 | K145: 96434443
A146: Sport and Recreation Facilities
A147: Community Assets | C147: =SUM(C145:C146) -> 18018347 | D147: 52381027.69 | E147: 84836139 | F147: 94534303 | G147: 1216000 | H147: 1216000 | I147: 95479646 | J147: 96434443 | K147: 96434443
A148: Heritage Assets
A149: Revenue Generating
A150: Non-revenue Generating
A151: Investment properties | C151: =SUM(C149:C150) -> 0 | D151: 0 | E151: 0 | F151: 0 | G151: 0 | H151: 0 | I151: 0 | J151: 0 | K151: 0
A152: Operational Buildings | G152: 22000000 | H152: 22000000
A153: Housing
A154: Other Assets | C154: =SUM(C152:C153) -> 0 | D154: 0 | E154: 0 | F154: 0 | G154: 22000000 | H154: 22000000 | I154: 0 | J154: 0 | K154: 0
A155: Biological or Cultivated Assets
A156: Servitudes | D156: 142085 | E156: 0
A157: Licences and Rights
A158: Intangible Assets | C158: =SUM(C156:C157) -> 0 | D158: 142085 | E158: 0 | F158: 0 | G158: 0 | H158: 0 | I158: 0 | J158: 0 | K158: 0
A159: Computer Equipment | G159: 1240000 | H159: 1240000
A160: Furniture and Office Equipment | G160: 400000 | H160: 400000
A161: Machinery and Equipment | C161: 96125219 | D161: 177053406.8 | E161: 110712720 | F161: 23633697 | G161: 3824000 | H161: 3824000 | I161: 23870034 | J161: 24108734 | K161: 24108734
A162: Transport Assets | G162: 902000 | H162: 902000
A163: Libraries
A164: Zoo's, Marine and Non-biological Animals
A165: TOTAL ASSET REGISTER SUMMARY - PPE (WDV) | B165: 5 | C165: =C144+C147+C151+C154+C155+C158+C159+C160+C161+C162+C163+C164+C148 -> 410693809 | D165: =D144+D147+D151+D154+D155+D158+D159+D160+D161+D162+D163+D164+D148 -> 525422124.5 | E165: 558566680 | F165: 393893051 | G165: 85498639 | H165: 85498639 | I165: 397831982 | J165: 401810302 | K165: 401810302
A167: EXPENDITURE OTHER ITEMS
A168: Depreciation | B168: 7 | C168: =SA34d!C167 -> 14405686 | D168: =SA34d!D167 -> 20361463 | E168: =SA34d!E167 -> 27530406 | F168: =SA34d!F167 -> 30000000 | G168: =SA34d!G167 -> 30000000 | H168: =SA34d!H167 -> 30000000 | I168: =SA34d!I167 -> 30000000 | J168: =SA34d!J167 -> 31620000 | K168: =SA34d!K167 -> 33359100
A169: Repairs and Maintenance by Asset Class | B169: 3 | C169: =C179+C182+C183+C186+C189+C190+SUM(C193:C199) -> 7888539 | D169: =D179+D182+D183+D186+D189+D190+SUM(D193:D199) -> 25776515.68 | E169: 16265309.8 | F169: 19800000 | G169: 12931480 | H169: 12931480 | I169: 18610000 | J169: 19540500 | K169: 20517525
A170: Roads Infrastructure | C170: =SA34c!C7 -> 5090790 | D170: =SA34c!D7 -> 19638920.58 | E170: =SA34c!E7 -> 7857544 | F170: =SA34c!F7 -> 12000000 | G170: =SA34c!G7 -> 7800000 | H170: =SA34c!H7 -> 7800000 | I170: =SA34c!I7 -> 10000000 | J170: =SA34c!J7 -> 10500000 | K170: =SA34c!K7 -> 11025000
A171: Storm water Infrastructure | C171: =SA34c!C12 -> 0 | D171: =SA34c!D12 -> 0 | E171: =SA34c!E12 -> 0 | F171: =SA34c!F12 -> 0 | G171: =SA34c!G12 -> 0 | H171: =SA34c!H12 -> 0 | I171: =SA34c!I12 -> 0 | J171: =SA34c!J12 -> 0 | K171: =SA34c!K12 -> 0
A172: Electrical Infrastructure | C172: =SA34c!C16 -> 0 | D172: =SA34c!D16 -> 830018.81 | E172: =SA34c!E16 -> 1977908 | F172: =SA34c!F16 -> 0 | G172: =SA34c!G16 -> 0 | H172: =SA34c!H16 -> 0 | I172: =SA34c!I16 -> 0 | J172: =SA34c!J16 -> 0 | K172: =SA34c!K16 -> 0
A173: Water Supply Infrastructure | C173: =SA34c!C26 -> 0 | D173: =SA34c!D26 -> 1388425.43 | E173: =SA34c!E26 -> 0 | F173: =SA34c!F26 -> 0 | G173: =SA34c!G26 -> 0 | H173: =SA34c!H26 -> 0 | I173: =SA34c!I26 -> 0 | J173: =SA34c!J26 -> 0 | K173: =SA34c!K26 -> 0
A174: Sanitation Infrastructure | C174: =SA34c!C37 -> 0 | D174: =SA34c!D37 -> 0 | E174: =SA34c!E37 -> 0 | F174: =SA34c!F37 -> 0 | G174: =SA34c!G37 -> 0 | H174: =SA34c!H37 -> 0 | I174: =SA34c!I37 -> 0 | J174: =SA34c!J37 -> 0 | K174: =SA34c!K37 -> 0
A175: Solid Waste Infrastructure | C175: =SA34c!C44 -> 108550 | D175: =SA34c!D44 -> 167100 | E175: =SA34c!E44 -> 393262 | F175: =SA34c!F44 -> 300000 | G175: =SA34c!G44 -> 250000 | H175: =SA34c!H44 -> 250000 | I175: =SA34c!I44 -> 500000 | J175: =SA34c!J44 -> 525000 | K175: =SA34c!K44 -> 551250
A176: Rail Infrastructure | C176: =SA34c!C52 -> 0 | D176: =SA34c!D52 -> 0 | E176: =SA34c!E52 -> 0 | F176: =SA34c!F52 -> 0 | G176: =SA34c!G52 -> 0 | H176: =SA34c!H52 -> 0 | I176: =SA34c!I52 -> 0 | J176: =SA34c!J52 -> 0 | K176: =SA34c!K52 -> 0
A177: Coastal Infrastructure | C177: =SA34c!C62 -> 0 | D177: =SA34c!D62 -> 0 | E177: =SA34c!E62 -> 0 | F177: =SA34c!F62 -> 0 | G177: =SA34c!G62 -> 0 | H177: =SA34c!H62 -> 0 | I177: =SA34c!I62 -> 0 | J177: =SA34c!J62 -> 0 | K177: =SA34c!K62 -> 0
A178: Information and Communication Infrastructure | C178: =SA34c!C68 -> 0 | D178: =SA34c!D68 -> 0 | E178: =SA34c!E68 -> 0 | F178: =SA34c!F68 -> 0 | G178: =SA34c!G68 -> 0 | H178: =SA34c!H68 -> 0 | I178: =SA34c!I68 -> 0 | J178: =SA34c!J68 -> 0 | K178: =SA34c!K68 -> 0
A179: Infrastructure | C179: =SUM(C170:C178) -> 5199340 | D179: =SUM(D170:D178) -> 22024464.82 | E179: 10228714 | F179: 12300000 | G179: 8050000 | H179: 8050000 | I179: 10500000 | J179: 11025000 | K179: 11576250
A180: Community Facilities | C180: =SA34c!C75 -> 0 | D180: =SA34c!D75 -> 0 | E180: =SA34c!E75 -> 0 | F180: =SA34c!F75 -> 300000 | G180: =SA34c!G75 -> 200000 | H180: =SA34c!H75 -> 200000 | I180: =SA34c!I75 -> 350000 | J180: =SA34c!J75 -> 367500 | K180: =SA34c!K75 -> 385875
A181: Sport and Recreation Facilities | C181: =SA34c!C98 -> 66980 | D181: =SA34c!D98 -> 0 | E181: =SA34c!E98 -> 0 | F181: =SA34c!F98 -> 0 | G181: =SA34c!G98 -> 0 | H181: =SA34c!H98 -> 0 | I181: =SA34c!I98 -> 0 | J181: =SA34c!J98 -> 0 | K181: =SA34c!K98 -> 0
A182: Community Assets | C182: =SUM(C180:C181) -> 66980 | D182: 0 | E182: 0 | F182: 300000 | G182: 200000 | H182: 200000 | I182: 350000 | J182: 367500 | K182: 385875
A183: Heritage Assets | C183: =SA34c!C103 -> 0 | D183: =SA34c!D103 -> 0 | E183: =SA34c!E103 -> 0 | F183: =SA34c!F103 -> 0 | G183: =SA34c!G103 -> 0 | H183: =SA34c!H103 -> 0 | I183: =SA34c!I103 -> 0 | J183: =SA34c!J103 -> 0 | K183: =SA34c!K103 -> 0
A184: Revenue Generating | C184: =SA34c!C111 -> 0 | D184: =SA34c!D111 -> 0 | E184: =SA34c!E111 -> 0 | F184: =SA34c!F111 -> 0 | G184: =SA34c!G111 -> 0 | H184: =SA34c!H111 -> 0 | I184: =SA34c!I111 -> 0 | J184: =SA34c!J111 -> 0 | K184: =SA34c!K111 -> 0
A185: Non-revenue Generating | C185: =SA34c!C114 -> 0 | D185: =SA34c!D114 -> 0 | E185: =SA34c!E114 -> 0 | F185: =SA34c!F114 -> 0 | G185: =SA34c!G114 -> 0 | H185: =SA34c!H114 -> 0 | I185: =SA34c!I114 -> 0 | J185: =SA34c!J114 -> 0 | K185: =SA34c!K114 -> 0
A186: Investment properties | C186: =SUM(C184:C185) -> 0 | D186: 0 | E186: 0 | F186: 0 | G186: 0 | H186: 0 | I186: 0 | J186: 0 | K186: 0
A187: Operational Buildings | C187: =SA34c!C119 -> 1241147 | D187: =SA34c!D119 -> 1111831.76 | E187: =SA34c!E119 -> 3904232.8 | F187: =SA34c!F119 -> 0 | G187: =SA34c!G119 -> 0 | H187: =SA34c!H119 -> 0 | I187: =SA34c!I119 -> 4500000 | J187: =SA34c!J119 -> 4725000 | K187: =SA34c!K119 -> 4961250
A188: Housing | C188: =SA34c!C131 -> 0 | D188: =SA34c!D131 -> 0 | E188: =SA34c!E131 -> 0 | F188: =SA34c!F131 -> 3150000 | G188: =SA34c!G131 -> 0 | H188: =SA34c!H131 -> 0 | I188: =SA34c!I131 -> 0 | J188: =SA34c!J131 -> 0 | K188: =SA34c!K131 -> 0
A189: Other Assets | C189: =SUM(C187:C188) -> 1241147 | D189: 1111831.76 | E189: 3904232.8 | F189: 3150000 | G189: 0 | H189: 0 | I189: 4500000 | J189: 4725000 | K189: 4961250
A190: Biological or Cultivated Assets | C190: =SA34c!C136 -> 0 | D190: =SA34c!D136 -> 0 | E190: =SA34c!E136 -> 0 | F190: =SA34c!F136 -> 0 | G190: =SA34c!G136 -> 0 | H190: =SA34c!H136 -> 0 | I190: =SA34c!I136 -> 0 | J190: =SA34c!J136 -> 0 | K190: =SA34c!K136 -> 0
A191: Servitudes | C191: =SA34c!C140 -> 0 | D191: =SA34c!D140 -> 0 | E191: =SA34c!E140 -> 0 | F191: =SA34c!F140 -> 0 | G191: =SA34c!G140 -> 0 | H191: =SA34c!H140 -> 0 | I191: =SA34c!I140 -> 0 | J191: =SA34c!J140 -> 0 | K191: =SA34c!K140 -> 0
A192: Licences and Rights | C192: =SA34c!C141 -> 0 | D192: =SA34c!D141 -> 0 | E192: =SA34c!E141 -> 0 | F192: =SA34c!F141 -> 0 | G192: =SA34c!G141 -> 0 | H192: =SA34c!H141 -> 0 | I192: =SA34c!I141 -> 0 | J192: =SA34c!J141 -> 0 | K192: =SA34c!K141 -> 0
A193: Intangible Assets | C193: =SUM(C191:C192) -> 0 | D193: 0 | E193: 0 | F193: 0 | G193: 0 | H193: 0 | I193: 0 | J193: 0 | K193: 0
A194: Computer Equipment | C194: =SA34c!C149 -> 0 | D194: =SA34c!D149 -> 13190.35 | E194: =SA34c!E149 -> 14532 | F194: =SA34c!F149 -> 50000 | G194: =SA34c!G149 -> 701480 | H194: =SA34c!H149 -> 701480 | I194: =SA34c!I149 -> 60000 | J194: =SA34c!J149 -> 63000 | K194: =SA34c!K149 -> 66150
A195: Furniture and Office Equipment | C195: =SA34c!C152 -> 15841 | D195: =SA34c!D152 -> 422913 | E195: =SA34c!E152 -> 1953793 | F195: =SA34c!F152 -> 50000 | G195: =SA34c!G152 -> 20000 | H195: =SA34c!H152 -> 20000 | I195: =SA34c!I152 -> 200000 | J195: =SA34c!J152 -> 210000 | K195: =SA34c!K152 -> 220500
A196: Machinery and Equipment | C196: =SA34c!C155 -> 118725 | D196: =SA34c!D155 -> 2147200.75 | E196: =SA34c!E155 -> 0 | F196: =SA34c!F155 -> 3050000 | G196: =SA34c!G155 -> 2460000 | H196: =SA34c!H155 -> 2460000 | I196: =SA34c!I155 -> 2000000 | J196: =SA34c!J155 -> 2100000 | K196: =SA34c!K155 -> 2205000
A197: Transport Assets | C197: =SA34c!C158 -> 1246506 | D197: =SA34c!D158 -> 56915 | E197: =SA34c!E158 -> 164038 | F197: =SA34c!F158 -> 900000 | G197: =SA34c!G158 -> 1500000 | H197: =SA34c!H158 -> 1500000 | I197: =SA34c!I158 -> 1000000 | J197: =SA34c!J158 -> 1050000 | K197: =SA34c!K158 -> 1102500
A198: Libraries | C198: =SA34c!C161 -> 0 | D198: =SA34c!D161 -> 0 | E198: =SA34c!E161 -> 0 | F198: =SA34c!F161 -> 0 | G198: =SA34c!G161 -> 0 | H198: =SA34c!H161 -> 0 | I198: =SA34c!I161 -> 0 | J198: =SA34c!J161 -> 0 | K198: =SA34c!K161 -> 0
A199: Zoo's, Marine and Non-biological Animals | C199: =SA34c!C164 -> 0 | D199: =SA34c!D164 -> 0 | E199: =SA34c!E164 -> 0 | F199: =SA34c!F164 -> 0 | G199: =SA34c!G164 -> 0 | H199: =SA34c!H164 -> 0 | I199: =SA34c!I164 -> 0 | J199: =SA34c!J164 -> 0 | K199: =SA34c!K164 -> 0
A201: TOTAL EXPENDITURE OTHER ITEMS | C201: =SUM(C168:C169) -> 22294225 | D201: 46137978.68 | E201: 43795715.8 | F201: 49800000 | G201: 42931480 | H201: 42931480 | I201: 48610000 | J201: 51160500 | K201: 53876625
A203: Renewal and upgrading of Existing Assets as % of total capex | C203: =IF(ISERROR((C37+C69)/C132),0,((C37+C69)/C132)) -> 0.6925166712 | D203: =IF(ISERROR((D37+D69)/D132),0,((D37+D69)/D132)) -> 0.4967240232 | E203: 0.8306221287 | F203: 0 | G203: 0 | H203: 0 | I203: 0 | J203: 0 | K203: 0
A204: Renewal and upgrading of Existing Assets as % of deprecn | C204: =IF(ISERROR((C37+C69)/C168),0,((C37+C69)/C168)) -> 4.253701004 | D204: =IF(ISERROR((D37+D69)/D168),0,((D37+D69)/D168)) -> 1.559773185 | E204: 0.9209296034 | F204: 0 | G204: 0 | H204: 0 | I204: 0 | J204: 0 | K204: 0
A205: R&M as a % of PPE | C205: =IF(ISERROR(ROUND(C169/'A6-FinPos'!C19,3)),0,(ROUND(C169/'A6-FinPos'!C19,3))) -> 0.019 | D205: =IF(ISERROR(ROUND(D169/'A6-FinPos'!D19,3)),0,(ROUND(D169/'A6-FinPos'!D19,3))) -> 0.049 | E205: =IF(ISERROR(ROUND(E169/'A6-FinPos'!E19,3)),0,(ROUND(E169/'A6-FinPos'!E19,3))) -> 0.029 | F205: =IF(ISERROR(ROUND(F169/'A6-FinPos'!F19,3)),0,(ROUND(F169/'A6-FinPos'!F19,3))) -> 0.175 | G205: =IF(ISERROR(ROUND(G169/'A6-FinPos'!G19,3)),0,(ROUND(G169/'A6-FinPos'!G19,3))) -> 0.096 | H205: =IF(ISERROR(ROUND(H169/'A6-FinPos'!H19,3)),0,(ROUND(H169/'A6-FinPos'!H19,3))) -> 0.096 | I205: =IF(ISERROR(ROUND(I169/'A6-FinPos'!J19,3)),0,(ROUND(I169/'A6-FinPos'!J19,3))) -> 0 | J205: =IF(ISERROR(ROUND(J169/'A6-FinPos'!K19,3)),0,(ROUND(J169/'A6-FinPos'!K19,3))) -> 0 | K205: =IF(ISERROR(ROUND(K169/'A6-FinPos'!L19,3)),0,(ROUND(K169/'A6-FinPos'!L19,3))) -> 0
A206: Renewal and upgrading and R&M as a % of PPE | C206: =IF(ISERROR(ROUND((C37+C69+C169)/C165,2)),0,(ROUND((C37+C69+C169)/C165,2))) -> 0.17 | D206: =IF(ISERROR(ROUND((D37+D69+D169)/D165,2)),0,(ROUND((D37+D69+D169)/D165,2))) -> 0.11 | E206: 0.07 | F206: 0.05 | G206: 0.15 | H206: 0.15 | I206: 0.05 | J206: 0.05 | K206: 0.05
A208: =head27a -> References
... 8 more rows

Sheet A10-SerDel
A1: =muni&" - "&Approve10 -> LIM331 Greater Giyani - Table A10 Basic service delivery measurement
A2: =desc -> Description | B2: =head27 -> Ref | C2: =head1b -> 2014/15 | D2: =head1A -> 2015/16 | E2: =Head1 -> 2016/17 | F2: =Head2 -> Current Year 2017/18 | I2: =Head3 -> 2018/19 Medium Term Revenue & Expenditure Framework
C3: =Head5A -> Outcome | D3: =Head5A -> Outcome | E3: =Head5A -> Outcome | F3: =Head6 -> Original Budget | G3: =Head7 -> Adjusted Budget | H3: =Head8 -> Full Year Forecast | I3: =Head9 -> Budget Year 2018/19 | J3: =Head10 -> Budget Year +1 2019/20 | K3: =Head11 -> Budget Year +2 2020/21
A4: Household service targets | B4: 1
A5: Water:
A6: Piped water inside dwelling | C6: ='SA9'!E67 -> 0 | D6: ='SA9'!F67 -> 0 | E6: ='SA9'!G67 -> 0 | F6: ='SA9'!H67 -> 0 | G6: ='SA9'!I67 -> 0 | H6: ='SA9'!J67 -> 0 | I6: ='SA9'!K67 -> 0 | J6: ='SA9'!L67 -> 0 | K6: ='SA9'!M67 -> 0
A7: Piped water inside yard (but not in dwelling) | C7: ='SA9'!E68 -> 0 | D7: ='SA9'!F68 -> 0 | E7: ='SA9'!G68 -> 0 | F7: ='SA9'!H68 -> 0 | G7: ='SA9'!I68 -> 0 | H7: ='SA9'!J68 -> 0 | I7: ='SA9'!K68 -> 0 | J7: ='SA9'!L68 -> 0 | K7: ='SA9'!M68 -> 0
A8: Using public tap (at least min.service level) | B8: 2 | C8: ='SA9'!E69 -> 0 | D8: ='SA9'!F69 -> 0 | E8: ='SA9'!G69 -> 0 | F8: ='SA9'!H69 -> 0 | G8: ='SA9'!I69 -> 0 | H8: ='SA9'!J69 -> 0 | I8: ='SA9'!K69 -> 0 | J8: ='SA9'!L69 -> 0 | K8: ='SA9'!M69 -> 0
A9: Other water supply (at least min.service level) | B9: 4 | C9: ='SA9'!E70 -> 0 | D9: ='SA9'!F70 -> 0 | E9: ='SA9'!G70 -> 0 | F9: ='SA9'!H70 -> 0 | G9: ='SA9'!I70 -> 0 | H9: ='SA9'!J70 -> 0 | I9: ='SA9'!K70 -> 0 | J9: ='SA9'!L70 -> 0 | K9: ='SA9'!M70 -> 0
A10: Minimum Service Level and Above sub-total | C10: =SUM(C6:C9) -> 0 | D10: =SUM(D6:D9) -> 0 | E10: 0 | F10: 0 | G10: 0 | H10: 0 | I10: 0 | J10: 0 | K10: 0
